Workbook

Sheet INTRO
B2: Joint request for selected PC medicines v.4.1
B4: As part of global efforts to accelerate expansion of preventive chemotherapy (PC) for control and elimination of lymphatic filariasis, schistosomiasis and soil-transmitted helminthiases, the World Health Organization (WHO) facilitates the supply of albendazole 400 mg tablets (GSK) to national lymphatic filariasis elimination programmes and national soil-transmitted helminth control programmes; diethylcarbamazine citrate 100 mg tablets (Eisai) to national lymphatic filariasis elimination programmes; mebendazole 500 mg tablets (J&J) for national soil-transmitted helminth control programmes; and praziquantel 600 mg tablets (Merck KGaA) for school-age children to national schistosomiasis control programmes. WHO also collaborates to supply ivermectin 3 mg tablets (Merck) for onchocerciasis and lymphatic filariasis donation programmes. This Excel-based tool is designed to assist countries in quantifying the number of tablets of relevant PC medicines required to reach the planned target population and districts for the year of request. Output of the tool is a joint request for PC medicines, which can be printed, signed and submitted to WHO to request these medicines.
B6: Structure of the application (worksheets):
B8: INTRO | C8: This worksheet includes guides on how to complete the joint request for selected PC medicines and information about the status of PC for endemic diseases in the country.
B9: COUNTRY_INFO | C9: This worksheet includes information about administrative structure of the country, population by age group, status of endemicity for each disease, population requiring PC and planned interventions.
B10: DEC, ALB_MBD, PZQ and IVM | C10: These worksheets include information about endemic districts targeted for treatment with specified PC medicines, treatment plan, and number of tablets required and requested.
B11: SUMMARY | C11: This worksheet includes summary of number of tablets requested, information about stock, and date for submission of requested medicines. Before generating the report (run macros) please select the medicine for which the report is needed. Follow the same rule to see the number of people to be treated for the specific disease. This worksheet should be printed and submitted as a joint request for selected PC medicines (see the instruction for submission in the SUMMARY worksheet).
B13: Instruction for data entry
B15: Most of the cells in the above-mentioned worksheets include formula that are calculated automatically according to the treatment policy recommended by WHO for each disease. See the link https://www.who.int/publications/i/item/9789241599993.
B17: Please enter your data into the cells according to their colour code:
C19: White - cell is not protected. Please enter the value of the requested indicator.
C21: Yellow - cell is protected and includes name of indicator. No data entry required.
C23: Orange - cell is not protected and includes a drop-down menu. Please select the value from the drop-down list.
C26: Green - cell is not protected and includes formula. Please change the value only if your data are different from those that are calculated automatically.
C29: Blue - cell is protected and includes formula. No data entry required.
B31: Country data
B33: COUNTRY | E33: Eswatini | G33: SZ | H33: SWZ
E34: 5
B35: Year for request of the medicine | E35: 2024
B37: Is country endemic for lymphatic filariasis (LF)? | E37: Non-endemic
B39: Is country endemic for onchocerciasis (ONCHO)? | E39: Non-endemic
B41: Is country endemic for soil-transmitted helminthiases (STH)? | E41: Endemic
B43: Is country endemic for schistosomiasis (SCH)? | E43: Endemic
B45: How many administrative units in the country? | E45: 59
B47: If demographical data at the second administrative level are not available by age group, please enter the proportion (%) of population by age group in the country. If data are available, please leave these cells blank.
B48: 1-4 years age | C48: Preschool-age children (PreSAC) | E48: 0.0939
B49: 5-14 years age | C49: School-age children (SAC) | E49: 0.2328
B50: 15 years + | C50: Adults | E50: 0.6497
B51: 15-49 years | C51: Women of reproductive age (WRA) | E51: 0.2593

Sheet COUNTRY_INFO
A1: COUNTRY INFORMATION
A2: Administrative structure, population by age group, status of endemicity and planned interventions
A4: TOTAL | D4: =SUBTOTAL(9,D$10:D$1010) -> 1248334 | E4: =SUBTOTAL(9,E$10:E$1010) -> 117220 | F4: 290612 | G4: 811046 | L4: =SUBTOTAL(9,L$10:L$1010) -> 0 | M4: 0 | N4: 7819 | O4: 19383 | P4: 21590 | Q4: 48792 | R4: 64071 | S4: 211782 | T4: 591042 | U4: 866895
A6: Country administrative structure | D6: Population | H6: Endemicity | L6: Population requiring PC | V6: Number of treatment rounds planned for the year | Z6: Criteria to apply for IVM+DEC+ALB therapy | AA6: Epidemiological surveys planned for the year
A7: Country | B7: Province/State | C7: District | D7: Total | E7: PreSAC | F7: SAC | G7: Adults | H7: LF | I7: Oncho | J7: STH | K7: SCH | L7: LF | M7: ONCHO | N7: STH | R7: SCH | V7: LF | W7: Oncho | X7: STH | Y7: SCH | Z7: LF | AA7: LF | AB7: Oncho | AC7: STH | AD7: SCH
N8: PreSAC | O8: SAC | P8: WRA | Q8: TOTAL | R8: PreSAC | S8: SAC | T8: Adults | U8: TOTAL | AH8: IU_ID | AI8: IU_NAME
AH9: x | AI9: x | AJ9: x | AK9: x | AL9: x | AM9: x | AN9: x | AO9: x | AP9: x | AQ9: x | AR9: x | AS9: x | AT9: x | AU9: x
A10: =IF(INTRO!$E$33<>0,INTRO!$E$33, " ") -> Eswatini | B10: HHOHHO | C10: Hhukwini | D10: 12736 | E10: =IF(INTRO!$E$48="","",ROUND($D10*INTRO!$E$48,0)) -> 1196 | F10: =IF(INTRO!$E$49="","",ROUND($D10*INTRO!$E$49,0)) -> 2965 | G10: =IF(INTRO!$E$50="","",ROUND($D10*INTRO!$E$50,0)) -> 8275 | J10: 2 | K10: 1 | L10: =IF(INTRO!$E$37="Endemic",IF($H10>0,IF($H10=4,"Unknown",IF($H10=99,"Stopped",$D10)),0),"Not required") -> Not required | M10: =IF(INTRO!$E$39="Endemic", IF($I10>0, IF($I10=4,"Unknown",IF($I10=99,"Stopped",$D10)), 0),"Not required") -> Not required | N10: =IF(INTRO!$E$41="Endemic", IF($J10>1, IF($J10=4, "Unknown", IF($J10=99, "Surveillance", E10)), 0),"Not required") -> 1196 | O10: =IF(INTRO!$E$41="Endemic", IF($J10>1, IF($J10=4, "Unknown", IF($J10=99, "Surveillance", F10)), 0),"Not required") -> 2965 | P10: =IF(INTRO!$E$41="Endemic", IF($J10>1, IF($J10=4, "Unknown", IF($J10=99, "Surveillance", ROUND(D10*INTRO!$E$51,0))), 0),"Not required") -> 3302 | Q10: =IF(INTRO!$E$41="Endemic", IF($J10>1, IF($J10=4, "Unknown", IF($J10=99, "Surveillance", SUM($N10:$P10))), 0),"Not required") -> 7463 | R10: =IF(INTRO!$E$43="Endemic", IF($K10>1, IF($K10=4, "Unknown", IF($K10=99, "Surveillance", ROUND(E10*0.75,0))), 0),"Not required") -> 0 | S10: =IF(INTRO!$E$43="Endemic", IF($K10>1, IF($K10=4, "Unknown", IF($K10=99, "Surveillance", F10)), 0),"Not required") -> 0 | T10: =IF(INTRO!$E$43="Endemic", IF($K10>1, IF($K10=4, "Unknown", IF($K10=99, "Surveillance", G10)), 0),"Not required") -> 0 | U10: =IF(INTRO!$E$43="Endemic", IF($K10>1, IF($K10=4, "Unknown", IF($K10=99, "Surveillance", SUM($R10:$T10))), 0),"Not required") -> 0 | X10: 1 | Y10: 0 | AH10: 45404 | AI10: Hhukwini | AK10: 12626.33736
A11: =IF(INTRO!$E$33<>0,INTRO!$E$33, " ") -> Eswatini | B11: HHOHHO | C11: Lobamba | D11: 34014 | E11: =IF(INTRO!$E$48="","",ROUND($D11*INTRO!$E$48,0)) -> 3194 | F11: =IF(INTRO!$E$49="","",ROUND($D11*INTRO!$E$49,0)) -> 7918 | G11: =IF(INTRO!$E$50="","",ROUND($D11*INTRO!$E$50,0)) -> 22099 | J11: 1 | K11: 1 | L11: =IF(INTRO!$E$37="Endemic",IF($H11>0,IF($H11=4,"Unknown",IF($H11=99,"Stopped",$D11)),0),"Not required") -> Not required | M11: =IF(INTRO!$E$39="Endemic", IF($I11>0, IF($I11=4,"Unknown",IF($I11=99,"Stopped",$D11)), 0),"Not required") -> Not required | N11: =IF(INTRO!$E$41="Endemic", IF($J11>1, IF($J11=4, "Unknown", IF($J11=99, "Surveillance", E11)), 0),"Not required") -> 0 | O11: =IF(INTRO!$E$41="Endemic", IF($J11>1, IF($J11=4, "Unknown", IF($J11=99, "Surveillance", F11)), 0),"Not required") -> 0 | P11: =IF(INTRO!$E$41="Endemic", IF($J11>1, IF($J11=4, "Unknown", IF($J11=99, "Surveillance", ROUND(D11*INTRO!$E$51,0))), 0),"Not required") -> 0 | Q11: =IF(INTRO!$E$41="Endemic", IF($J11>1, IF($J11=4, "Unknown", IF($J11=99, "Surveillance", SUM($N11:$P11))), 0),"Not required") -> 0 | R11: =IF(INTRO!$E$43="Endemic", IF($K11>1, IF($K11=4, "Unknown", IF($K11=99, "Surveillance", ROUND(E11*0.75,0))), 0),"Not required") -> 0 | S11: =IF(INTRO!$E$43="Endemic", IF($K11>1, IF($K11=4, "Unknown", IF($K11=99, "Surveillance", F11)), 0),"Not required") -> 0 | T11: =IF(INTRO!$E$43="Endemic", IF($K11>1, IF($K11=4, "Unknown", IF($K11=99, "Surveillance", G11)), 0),"Not required") -> 0 | U11: =IF(INTRO!$E$43="Endemic", IF($K11>1, IF($K11=4, "Unknown", IF($K11=99, "Surveillance", SUM($R11:$T11))), 0),"Not required") -> 0 | X11: 0 | Y11: 0 | AH11: 45405 | AI11: Lobamba | AK11: 33720.8879
A12: =IF(INTRO!$E$33<>0,INTRO!$E$33, " ") -> Eswatini | B12: HHOHHO | C12: Madlangempisi | D12: 24951 | E12: =IF(INTRO!$E$48="","",ROUND($D12*INTRO!$E$48,0)) -> 2343 | F12: =IF(INTRO!$E$49="","",ROUND($D12*INTRO!$E$49,0)) -> 5809 | G12: =IF(INTRO!$E$50="","",ROUND($D12*INTRO!$E$50,0)) -> 16211 | J12: 1 | K12: 2 | L12: =IF(INTRO!$E$37="Endemic",IF($H12>0,IF($H12=4,"Unknown",IF($H12=99,"Stopped",$D12)),0),"Not required") -> Not required | M12: =IF(INTRO!$E$39="Endemic", IF($I12>0, IF($I12=4,"Unknown",IF($I12=99,"Stopped",$D12)), 0),"Not required") -> Not required | N12: =IF(INTRO!$E$41="Endemic", IF($J12>1, IF($J12=4, "Unknown", IF($J12=99, "Surveillance", E12)), 0),"Not required") -> 0 | O12: =IF(INTRO!$E$41="Endemic", IF($J12>1, IF($J12=4, "Unknown", IF($J12=99, "Surveillance", F12)), 0),"Not required") -> 0 | P12: =IF(INTRO!$E$41="Endemic", IF($J12>1, IF($J12=4, "Unknown", IF($J12=99, "Surveillance", ROUND(D12*INTRO!$E$51,0))), 0),"Not required") -> 0 | Q12: =IF(INTRO!$E$41="Endemic", IF($J12>1, IF($J12=4, "Unknown", IF($J12=99, "Surveillance", SUM($N12:$P12))), 0),"Not required") -> 0 | R12: =IF(INTRO!$E$43="Endemic", IF($K12>1, IF($K12=4, "Unknown", IF($K12=99, "Surveillance", ROUND(E12*0.75,0))), 0),"Not required") -> 1757 | S12: =IF(INTRO!$E$43="Endemic", IF($K12>1, IF($K12=4, "Unknown", IF($K12=99, "Surveillance", F12)), 0),"Not required") -> 5809 | T12: =IF(INTRO!$E$43="Endemic", IF($K12>1, IF($K12=4, "Unknown", IF($K12=99, "Surveillance", G12)), 0),"Not required") -> 16211 | U12: =IF(INTRO!$E$43="Endemic", IF($K12>1, IF($K12=4, "Unknown", IF($K12=99, "Surveillance", SUM($R12:$T12))), 0),"Not required") -> 23777 | X12: 0 | Y12: 1 | AH12: 45406 | AI12: Mandlangempisi | AK12: 24735.58644
A13: =IF(INTRO!$E$33<>0,INTRO!$E$33, " ") -> Eswatini | B13: HHOHHO | C13: Maphalaleni | D13: 20580 | E13: =IF(INTRO!$E$48="","",ROUND($D13*INTRO!$E$48,0)) -> 1932 | F13: =IF(INTRO!$E$49="","",ROUND($D13*INTRO!$E$49,0)) -> 4791 | G13: =IF(INTRO!$E$50="","",ROUND($D13*INTRO!$E$50,0)) -> 13371 | J13: 1 | K13: 3 | L13: =IF(INTRO!$E$37="Endemic",IF($H13>0,IF($H13=4,"Unknown",IF($H13=99,"Stopped",$D13)),0),"Not required") -> Not required | M13: =IF(INTRO!$E$39="Endemic", IF($I13>0, IF($I13=4,"Unknown",IF($I13=99,"Stopped",$D13)), 0),"Not required") -> Not required | N13: =IF(INTRO!$E$41="Endemic", IF($J13>1, IF($J13=4, "Unknown", IF($J13=99, "Surveillance", E13)), 0),"Not required") -> 0 | O13: =IF(INTRO!$E$41="Endemic", IF($J13>1, IF($J13=4, "Unknown", IF($J13=99, "Surveillance", F13)), 0),"Not required") -> 0 | P13: =IF(INTRO!$E$41="Endemic", IF($J13>1, IF($J13=4, "Unknown", IF($J13=99, "Surveillance", ROUND(D13*INTRO!$E$51,0))), 0),"Not required") -> 0 | Q13: =IF(INTRO!$E$41="Endemic", IF($J13>1, IF($J13=4, "Unknown", IF($J13=99, "Surveillance", SUM($N13:$P13))), 0),"Not required") -> 0 | R13: =IF(INTRO!$E$43="Endemic", IF($K13>1, IF($K13=4, "Unknown", IF($K13=99, "Surveillance", ROUND(E13*0.75,0))), 0),"Not required") -> 1449 | S13: =IF(INTRO!$E$43="Endemic", IF($K13>1, IF($K13=4, "Unknown", IF($K13=99, "Surveillance", F13)), 0),"Not required") -> 4791 | T13: =IF(INTRO!$E$43="Endemic", IF($K13>1, IF($K13=4, "Unknown", IF($K13=99, "Surveillance", G13)), 0),"Not required") -> 13371 | U13: =IF(INTRO!$E$43="Endemic", IF($K13>1, IF($K13=4, "Unknown", IF($K13=99, "Surveillance", SUM($R13:$T13))), 0),"Not required") -> 19611 | X13: 0 | Y13: 1 | AH13: 45412 | AI13: Maphalaleni | AK13: 20402.03979
A14: =IF(INTRO!$E$33<>0,INTRO!$E$33, " ") -> Eswatini | B14: HHOHHO | C14: Mayiwane | D14: 18067 | E14: =IF(INTRO!$E$48="","",ROUND($D14*INTRO!$E$48,0)) -> 1696 | F14: =IF(INTRO!$E$49="","",ROUND($D14*INTRO!$E$49,0)) -> 4206 | G14: =IF(INTRO!$E$50="","",ROUND($D14*INTRO!$E$50,0)) -> 11738 | J14: 1 | K14: 2 | L14: =IF(INTRO!$E$37="Endemic",IF($H14>0,IF($H14=4,"Unknown",IF($H14=99,"Stopped",$D14)),0),"Not required") -> Not required | M14: =IF(INTRO!$E$39="Endemic", IF($I14>0, IF($I14=4,"Unknown",IF($I14=99,"Stopped",$D14)), 0),"Not required") -> Not required | N14: =IF(INTRO!$E$41="Endemic", IF($J14>1, IF($J14=4, "Unknown", IF($J14=99, "Surveillance", E14)), 0),"Not required") -> 0 | O14: =IF(INTRO!$E$41="Endemic", IF($J14>1, IF($J14=4, "Unknown", IF($J14=99, "Surveillance", F14)), 0),"Not required") -> 0 | P14: =IF(INTRO!$E$41="Endemic", IF($J14>1, IF($J14=4, "Unknown", IF($J14=99, "Surveillance", ROUND(D14*INTRO!$E$51,0))), 0),"Not required") -> 0 | Q14: =IF(INTRO!$E$41="Endemic", IF($J14>1, IF($J14=4, "Unknown", IF($J14=99, "Surveillance", SUM($N14:$P14))), 0),"Not required") -> 0 | R14: =IF(INTRO!$E$43="Endemic", IF($K14>1, IF($K14=4, "Unknown", IF($K14=99, "Surveillance", ROUND(E14*0.75,0))), 0),"Not required") -> 1272 | S14: =IF(INTRO!$E$43="Endemic", IF($K14>1, IF($K14=4, "Unknown", IF($K14=99, "Surveillance", F14)), 0),"Not required") -> 4206 | T14: =IF(INTRO!$E$43="Endemic", IF($K14>1, IF($K14=4, "Unknown", IF($K14=99, "Surveillance", G14)), 0),"Not required") -> 11738 | U14: =IF(INTRO!$E$43="Endemic", IF($K14>1, IF($K14=4, "Unknown", IF($K14=99, "Surveillance", SUM($R14:$T14))), 0),"Not required") -> 17216 | X14: 0 | Y14: 1 | AH14: 45407 | AI14: Mayiwane | AK14: 17911.44885
A15: =IF(INTRO!$E$33<>0,INTRO!$E$33, " ") -> Eswatini | B15: HHOHHO | C15: Mbabane East | D15: 38094 | E15: =IF(INTRO!$E$48="","",ROUND($D15*INTRO!$E$48,0)) -> 3577 | F15: =IF(INTRO!$E$49="","",ROUND($D15*INTRO!$E$49,0)) -> 8868 | G15: =IF(INTRO!$E$50="","",ROUND($D15*INTRO!$E$50,0)) -> 24750 | J15: 1 | K15: 2 | L15: =IF(INTRO!$E$37="Endemic",IF($H15>0,IF($H15=4,"Unknown",IF($H15=99,"Stopped",$D15)),0),"Not required") -> Not required | M15: =IF(INTRO!$E$39="Endemic", IF($I15>0, IF($I15=4,"Unknown",IF($I15=99,"Stopped",$D15)), 0),"Not required") -> Not required | N15: =IF(INTRO!$E$41="Endemic", IF($J15>1, IF($J15=4, "Unknown", IF($J15=99, "Surveillance", E15)), 0),"Not required") -> 0 | O15: =IF(INTRO!$E$41="Endemic", IF($J15>1, IF($J15=4, "Unknown", IF($J15=99, "Surveillance", F15)), 0),"Not required") -> 0 | P15: =IF(INTRO!$E$41="Endemic", IF($J15>1, IF($J15=4, "Unknown", IF($J15=99, "Surveillance", ROUND(D15*INTRO!$E$51,0))), 0),"Not required") -> 0 | Q15: =IF(INTRO!$E$41="Endemic", IF($J15>1, IF($J15=4, "Unknown", IF($J15=99, "Surveillance", SUM($N15:$P15))), 0),"Not required") -> 0 | R15: =IF(INTRO!$E$43="Endemic", IF($K15>1, IF($K15=4, "Unknown", IF($K15=99, "Surveillance", ROUND(E15*0.75,0))), 0),"Not required") -> 2683 | S15: =IF(INTRO!$E$43="Endemic", IF($K15>1, IF($K15=4, "Unknown", IF($K15=99, "Surveillance", F15)), 0),"Not required") -> 8868 | T15: =IF(INTRO!$E$43="Endemic", IF($K15>1, IF($K15=4, "Unknown", IF($K15=99, "Surveillance", G15)), 0),"Not required") -> 24750 | U15: =IF(INTRO!$E$43="Endemic", IF($K15>1, IF($K15=4, "Unknown", IF($K15=99, "Surveillance", SUM($R15:$T15))), 0),"Not required") -> 36301 | X15: 0 | Y15: 1 | AH15: 45408 | AI15: Mbabane East | AK15: 37765.80341
A16: =IF(INTRO!$E$33<>0,INTRO!$E$33, " ") -> Eswatini | B16: HHOHHO | C16: Mbabane West | D16: 27623 | E16: =IF(INTRO!$E$48="","",ROUND($D16*INTRO!$E$48,0)) -> 2594 | F16: =IF(INTRO!$E$49="","",ROUND($D16*INTRO!$E$49,0)) -> 6431 | G16: =IF(INTRO!$E$50="","",ROUND($D16*INTRO!$E$50,0)) -> 17947 | J16: 1 | K16: 1 | L16: =IF(INTRO!$E$37="Endemic",IF($H16>0,IF($H16=4,"Unknown",IF($H16=99,"Stopped",$D16)),0),"Not required") -> Not required | M16: =IF(INTRO!$E$39="Endemic", IF($I16>0, IF($I16=4,"Unknown",IF($I16=99,"Stopped",$D16)), 0),"Not required") -> Not required | N16: =IF(INTRO!$E$41="Endemic", IF($J16>1, IF($J16=4, "Unknown", IF($J16=99, "Surveillance", E16)), 0),"Not required") -> 0 | O16: =IF(INTRO!$E$41="Endemic", IF($J16>1, IF($J16=4, "Unknown", IF($J16=99, "Surveillance", F16)), 0),"Not required") -> 0 | P16: =IF(INTRO!$E$41="Endemic", IF($J16>1, IF($J16=4, "Unknown", IF($J16=99, "Surveillance", ROUND(D16*INTRO!$E$51,0))), 0),"Not required") -> 0 | Q16: =IF(INTRO!$E$41="Endemic", IF($J16>1, IF($J16=4, "Unknown", IF($J16=99, "Surveillance", SUM($N16:$P16))), 0),"Not required") -> 0 | R16: =IF(INTRO!$E$43="Endemic", IF($K16>1, IF($K16=4, "Unknown", IF($K16=99, "Surveillance", ROUND(E16*0.75,0))), 0),"Not required") -> 0 | S16: =IF(INTRO!$E$43="Endemic", IF($K16>1, IF($K16=4, "Unknown", IF($K16=99, "Surveillance", F16)), 0),"Not required") -> 0 | T16: =IF(INTRO!$E$43="Endemic", IF($K16>1, IF($K16=4, "Unknown", IF($K16=99, "Surveillance", G16)), 0),"Not required") -> 0 | U16: =IF(INTRO!$E$43="Endemic", IF($K16>1, IF($K16=4, "Unknown", IF($K16=99, "Surveillance", SUM($R16:$T16))), 0),"Not required") -> 0 | X16: 0 | Y16: 0 | AH16: 45409 | AI16: Mbabane West | AK16: 27384.26157
A17: =IF(INTRO!$E$33<>0,INTRO!$E$33, " ") -> Eswatini | B17: HHOHHO | C17: Mhlangatane | D17: 26903 | E17: =IF(INTRO!$E$48="","",ROUND($D17*INTRO!$E$48,0)) -> 2526 | F17: =IF(INTRO!$E$49="","",ROUND($D17*INTRO!$E$49,0)) -> 6263 | G17: =IF(INTRO!$E$50="","",ROUND($D17*INTRO!$E$50,0)) -> 17479 | J17: 1 | K17: 2 | L17: =IF(INTRO!$E$37="Endemic",IF($H17>0,IF($H17=4,"Unknown",IF($H17=99,"Stopped",$D17)),0),"Not required") -> Not required | M17: =IF(INTRO!$E$39="Endemic", IF($I17>0, IF($I17=4,"Unknown",IF($I17=99,"Stopped",$D17)), 0),"Not required") -> Not required | N17: =IF(INTRO!$E$41="Endemic", IF($J17>1, IF($J17=4, "Unknown", IF($J17=99, "Surveillance", E17)), 0),"Not required") -> 0 | O17: =IF(INTRO!$E$41="Endemic", IF($J17>1, IF($J17=4, "Unknown", IF($J17=99, "Surveillance", F17)), 0),"Not required") -> 0 | P17: =IF(INTRO!$E$41="Endemic", IF($J17>1, IF($J17=4, "Unknown", IF($J17=99, "Surveillance", ROUND(D17*INTRO!$E$51,0))), 0),"Not required") -> 0 | Q17: =IF(INTRO!$E$41="Endemic", IF($J17>1, IF($J17=4, "Unknown", IF($J17=99, "Surveillance", SUM($N17:$P17))), 0),"Not required") -> 0 | R17: =IF(INTRO!$E$43="Endemic", IF($K17>1, IF($K17=4, "Unknown", IF($K17=99, "Surveillance", ROUND(E17*0.75,0))), 0),"Not required") -> 1895 | S17: =IF(INTRO!$E$43="Endemic", IF($K17>1, IF($K17=4, "Unknown", IF($K17=99, "Surveillance", F17)), 0),"Not required") -> 6263 | T17: =IF(INTRO!$E$43="Endemic", IF($K17>1, IF($K17=4, "Unknown", IF($K17=99, "Surveillance", G17)), 0),"Not required") -> 17479 | U17: =IF(INTRO!$E$43="Endemic", IF($K17>1, IF($K17=4, "Unknown", IF($K17=99, "Surveillance", SUM($R17:$T17))), 0),"Not required") -> 25637 | X17: 0 | Y17: 1 | AH17: 45410 | AI17: Mhlangatane | AK17: 26671.35286
A18: =IF(INTRO!$E$33<>0,INTRO!$E$33, " ") -> Eswatini | B18: HHOHHO | C18: Motshane | D18: 29349 | E18: =IF(INTRO!$E$48="","",ROUND($D18*INTRO!$E$48,0)) -> 2756 | F18: =IF(INTRO!$E$49="","",ROUND($D18*INTRO!$E$49,0)) -> 6832 | G18: =IF(INTRO!$E$50="","",ROUND($D18*INTRO!$E$50,0)) -> 19068 | J18: 2 | K18: 2 | L18: =IF(INTRO!$E$37="Endemic",IF($H18>0,IF($H18=4,"Unknown",IF($H18=99,"Stopped",$D18)),0),"Not required") -> Not required | M18: =IF(INTRO!$E$39="Endemic", IF($I18>0, IF($I18=4,"Unknown",IF($I18=99,"Stopped",$D18)), 0),"Not required") -> Not required | N18: =IF(INTRO!$E$41="Endemic", IF($J18>1, IF($J18=4, "Unknown", IF($J18=99, "Surveillance", E18)), 0),"Not required") -> 2756 | O18: =IF(INTRO!$E$41="Endemic", IF($J18>1, IF($J18=4, "Unknown", IF($J18=99, "Surveillance", F18)), 0),"Not required") -> 6832 | P18: =IF(INTRO!$E$41="Endemic", IF($J18>1, IF($J18=4, "Unknown", IF($J18=99, "Surveillance", ROUND(D18*INTRO!$E$51,0))), 0),"Not required") -> 7610 | Q18: =IF(INTRO!$E$41="Endemic", IF($J18>1, IF($J18=4, "Unknown", IF($J18=99, "Surveillance", SUM($N18:$P18))), 0),"Not required") -> 17198 | R18: =IF(INTRO!$E$43="Endemic", IF($K18>1, IF($K18=4, "Unknown", IF($K18=99, "Surveillance", ROUND(E18*0.75,0))), 0),"Not required") -> 2067 | S18: =IF(INTRO!$E$43="Endemic", IF($K18>1, IF($K18=4, "Unknown", IF($K18=99, "Surveillance", F18)), 0),"Not required") -> 6832 | T18: =IF(INTRO!$E$43="Endemic", IF($K18>1, IF($K18=4, "Unknown", IF($K18=99, "Surveillance", G18)), 0),"Not required") -> 19068 | U18: =IF(INTRO!$E$43="Endemic", IF($K18>1, IF($K18=4, "Unknown", IF($K18=99, "Surveillance", SUM($R18:$T18))), 0),"Not required") -> 27967 | X18: 1 | Y18: 1 | AH18: 45411 | AI18: Motjane | AK18: 29095.65043
A19: =IF(INTRO!$E$33<>0,INTRO!$E$33, " ") -> Eswatini | B19: HHOHHO | C19: Ndzingeni | D19: 20055 | E19: =IF(INTRO!$E$48="","",ROUND($D19*INTRO!$E$48,0)) -> 1883 | F19: =IF(INTRO!$E$49="","",ROUND($D19*INTRO!$E$49,0)) -> 4669 | G19: =IF(INTRO!$E$50="","",ROUND($D19*INTRO!$E$50,0)) -> 13030 | J19: 1 | K19: 1 | L19: =IF(INTRO!$E$37="Endemic",IF($H19>0,IF($H19=4,"Unknown",IF($H19=99,"Stopped",$D19)),0),"Not required") -> Not required | M19: =IF(INTRO!$E$39="Endemic", IF($I19>0, IF($I19=4,"Unknown",IF($I19=99,"Stopped",$D19)), 0),"Not required") -> Not required | N19: =IF(INTRO!$E$41="Endemic", IF($J19>1, IF($J19=4, "Unknown", IF($J19=99, "Surveillance", E19)), 0),"Not required") -> 0 | O19: =IF(INTRO!$E$41="Endemic", IF($J19>1, IF($J19=4, "Unknown", IF($J19=99, "Surveillance", F19)), 0),"Not required") -> 0 | P19: =IF(INTRO!$E$41="Endemic", IF($J19>1, IF($J19=4, "Unknown", IF($J19=99, "Surveillance", ROUND(D19*INTRO!$E$51,0))), 0),"Not required") -> 0 | Q19: =IF(INTRO!$E$41="Endemic", IF($J19>1, IF($J19=4, "Unknown", IF($J19=99, "Surveillance", SUM($N19:$P19))), 0),"Not required") -> 0 | R19: =IF(INTRO!$E$43="Endemic", IF($K19>1, IF($K19=4, "Unknown", IF($K19=99, "Surveillance", ROUND(E19*0.75,0))), 0),"Not required") -> 0 | S19: =IF(INTRO!$E$43="Endemic", IF($K19>1, IF($K19=4, "Unknown", IF($K19=99, "Surveillance", F19)), 0),"Not required") -> 0 | T19: =IF(INTRO!$E$43="Endemic", IF($K19>1, IF($K19=4, "Unknown", IF($K19=99, "Surveillance", G19)), 0),"Not required") -> 0 | U19: =IF(INTRO!$E$43="Endemic", IF($K19>1, IF($K19=4, "Unknown", IF($K19=99, "Surveillance", SUM($R19:$T19))), 0),"Not required") -> 0 | X19: 0 | Y19: 0 | AH19: 45413 | AI19: Ndzingeni | AK19: 19881.89181
A20: =IF(INTRO!$E$33<>0,INTRO!$E$33, " ") -> Eswatini | B20: HHOHHO | C20: Nkhaba | D20: 21641 | E20: =IF(INTRO!$E$48="","",ROUND($D20*INTRO!$E$48,0)) -> 2032 | F20: =IF(INTRO!$E$49="","",ROUND($D20*INTRO!$E$49,0)) -> 5038 | G20: =IF(INTRO!$E$50="","",ROUND($D20*INTRO!$E$50,0)) -> 14060 | J20: 1 | K20: 1 | L20: =IF(INTRO!$E$37="Endemic",IF($H20>0,IF($H20=4,"Unknown",IF($H20=99,"Stopped",$D20)),0),"Not required") -> Not required | M20: =IF(INTRO!$E$39="Endemic", IF($I20>0, IF($I20=4,"Unknown",IF($I20=99,"Stopped",$D20)), 0),"Not required") -> Not required | N20: =IF(INTRO!$E$41="Endemic", IF($J20>1, IF($J20=4, "Unknown", IF($J20=99, "Surveillance", E20)), 0),"Not required") -> 0 | O20: =IF(INTRO!$E$41="Endemic", IF($J20>1, IF($J20=4, "Unknown", IF($J20=99, "Surveillance", F20)), 0),"Not required") -> 0 | P20: =IF(INTRO!$E$41="Endemic", IF($J20>1, IF($J20=4, "Unknown", IF($J20=99, "Surveillance", ROUND(D20*INTRO!$E$51,0))), 0),"Not required") -> 0 | Q20: =IF(INTRO!$E$41="Endemic", IF($J20>1, IF($J20=4, "Unknown", IF($J20=99, "Surveillance", SUM($N20:$P20))), 0),"Not required") -> 0 | R20: =IF(INTRO!$E$43="Endemic", IF($K20>1, IF($K20=4, "Unknown", IF($K20=99, "Surveillance", ROUND(E20*0.75,0))), 0),"Not required") -> 0 | S20: =IF(INTRO!$E$43="Endemic", IF($K20>1, IF($K20=4, "Unknown", IF($K20=99, "Surveillance", F20)), 0),"Not required") -> 0 | T20: =IF(INTRO!$E$43="Endemic", IF($K20>1, IF($K20=4, "Unknown", IF($K20=99, "Surveillance", G20)), 0),"Not required") -> 0 | U20: =IF(INTRO!$E$43="Endemic", IF($K20>1, IF($K20=4, "Unknown", IF($K20=99, "Surveillance", SUM($R20:$T20))), 0),"Not required") -> 0 | X20: 0 | Y20: 0 | AH20: 45414 | AI20: Nkhaba | AK20: 21454.57454
A21: =IF(INTRO!$E$33<>0,INTRO!$E$33, " ") -> Eswatini | B21: HHOHHO | C21: Ntfonjeni | D21: 23491 | E21: =IF(INTRO!$E$48="","",ROUND($D21*INTRO!$E$48,0)) -> 2206 | F21: =IF(INTRO!$E$49="","",ROUND($D21*INTRO!$E$49,0)) -> 5469 | G21: =IF(INTRO!$E$50="","",ROUND($D21*INTRO!$E$50,0)) -> 15262 | J21: 1 | K21: 1 | L21: =IF(INTRO!$E$37="Endemic",IF($H21>0,IF($H21=4,"Unknown",IF($H21=99,"Stopped",$D21)),0),"Not required") -> Not required | M21: =IF(INTRO!$E$39="Endemic", IF($I21>0, IF($I21=4,"Unknown",IF($I21=99,"Stopped",$D21)), 0),"Not required") -> Not required | N21: =IF(INTRO!$E$41="Endemic", IF($J21>1, IF($J21=4, "Unknown", IF($J21=99, "Surveillance", E21)), 0),"Not required") -> 0 | O21: =IF(INTRO!$E$41="Endemic", IF($J21>1, IF($J21=4, "Unknown", IF($J21=99, "Surveillance", F21)), 0),"Not required") -> 0 | P21: =IF(INTRO!$E$41="Endemic", IF($J21>1, IF($J21=4, "Unknown", IF($J21=99, "Surveillance", ROUND(D21*INTRO!$E$51,0))), 0),"Not required") -> 0 | Q21: =IF(INTRO!$E$41="Endemic", IF($J21>1, IF($J21=4, "Unknown", IF($J21=99, "Surveillance", SUM($N21:$P21))), 0),"Not required") -> 0 | R21: =IF(INTRO!$E$43="Endemic", IF($K21>1, IF($K21=4, "Unknown", IF($K21=99, "Surveillance", ROUND(E21*0.75,0))), 0),"Not required") -> 0 | S21: =IF(INTRO!$E$43="Endemic", IF($K21>1, IF($K21=4, "Unknown", IF($K21=99, "Surveillance", F21)), 0),"Not required") -> 0 | T21: =IF(INTRO!$E$43="Endemic", IF($K21>1, IF($K21=4, "Unknown", IF($K21=99, "Surveillance", G21)), 0),"Not required") -> 0 | U21: =IF(INTRO!$E$43="Endemic", IF($K21>1, IF($K21=4, "Unknown", IF($K21=99, "Surveillance", SUM($R21:$T21))), 0),"Not required") -> 0 | X21: 0 | Y21: 0 | AH21: 45415 | AI21: Ntfonjeni | AK21: 23288.35116
A22: =IF(INTRO!$E$33<>0,INTRO!$E$33, " ") -> Eswatini | B22: HHOHHO | C22: Pigg's Peak | D22: 20832 | E22: =IF(INTRO!$E$48="","",ROUND($D22*INTRO!$E$48,0)) -> 1956 | F22: =IF(INTRO!$E$49="","",ROUND($D22*INTRO!$E$49,0)) -> 4850 | G22: =IF(INTRO!$E$50="","",ROUND($D22*INTRO!$E$50,0)) -> 13535 | J22: 1 | K22: 2 | L22: =IF(INTRO!$E$37="Endemic",IF($H22>0,IF($H22=4,"Unknown",IF($H22=99,"Stopped",$D22)),0),"Not required") -> Not required | M22: =IF(INTRO!$E$39="Endemic", IF($I22>0, IF($I22=4,"Unknown",IF($I22=99,"Stopped",$D22)), 0),"Not required") -> Not required | N22: =IF(INTRO!$E$41="Endemic", IF($J22>1, IF($J22=4, "Unknown", IF($J22=99, "Surveillance", E22)), 0),"Not required") -> 0 | O22: =IF(INTRO!$E$41="Endemic", IF($J22>1, IF($J22=4, "Unknown", IF($J22=99, "Surveillance", F22)), 0),"Not required") -> 0 | P22: =IF(INTRO!$E$41="Endemic", IF($J22>1, IF($J22=4, "Unknown", IF($J22=99, "Surveillance", ROUND(D22*INTRO!$E$51,0))), 0),"Not required") -> 0 | Q22: =IF(INTRO!$E$41="Endemic", IF($J22>1, IF($J22=4, "Unknown", IF($J22=99, "Surveillance", SUM($N22:$P22))), 0),"Not required") -> 0 | R22: =IF(INTRO!$E$43="Endemic", IF($K22>1, IF($K22=4, "Unknown", IF($K22=99, "Surveillance", ROUND(E22*0.75,0))), 0),"Not required") -> 1467 | S22: =IF(INTRO!$E$43="Endemic", IF($K22>1, IF($K22=4, "Unknown", IF($K22=99, "Surveillance", F22)), 0),"Not required") -> 4850 | T22: =IF(INTRO!$E$43="Endemic", IF($K22>1, IF($K22=4, "Unknown", IF($K22=99, "Surveillance", G22)), 0),"Not required") -> 13535 | U22: =IF(INTRO!$E$43="Endemic", IF($K22>1, IF($K22=4, "Unknown", IF($K22=99, "Surveillance", SUM($R22:$T22))), 0),"Not required") -> 19852 | X22: 0 | Y22: 1 | AH22: 45416 | AI22: Pigg's Peak | AK22: 20651.9148
A23: =IF(INTRO!$E$33<>0,INTRO!$E$33, " ") -> Eswatini | B23: HHOHHO | C23: Siphocosini | D23: 27731 | E23: =IF(INTRO!$E$48="","",ROUND($D23*INTRO!$E$48,0)) -> 2604 | F23: =IF(INTRO!$E$49="","",ROUND($D23*INTRO!$E$49,0)) -> 6456 | G23: =IF(INTRO!$E$50="","",ROUND($D23*INTRO!$E$50,0)) -> 18017 | J23: 2 | K23: 2 | L23: =IF(INTRO!$E$37="Endemic",IF($H23>0,IF($H23=4,"Unknown",IF($H23=99,"Stopped",$D23)),0),"Not required") -> Not required | M23: =IF(INTRO!$E$39="Endemic", IF($I23>0, IF($I23=4,"Unknown",IF($I23=99,"Stopped",$D23)), 0),"Not required") -> Not required | N23: =IF(INTRO!$E$41="Endemic", IF($J23>1, IF($J23=4, "Unknown", IF($J23=99, "Surveillance", E23)), 0),"Not required") -> 2604 | O23: =IF(INTRO!$E$41="Endemic", IF($J23>1, IF($J23=4, "Unknown", IF($J23=99, "Surveillance", F23)), 0),"Not required") -> 6456 | P23: =IF(INTRO!$E$41="Endemic", IF($J23>1, IF($J23=4, "Unknown", IF($J23=99, "Surveillance", ROUND(D23*INTRO!$E$51,0))), 0),"Not required") -> 7191 | Q23: =IF(INTRO!$E$41="Endemic", IF($J23>1, IF($J23=4, "Unknown", IF($J23=99, "Surveillance", SUM($N23:$P23))), 0),"Not required") -> 16251 | R23: =IF(INTRO!$E$43="Endemic", IF($K23>1, IF($K23=4, "Unknown", IF($K23=99, "Surveillance", ROUND(E23*0.75,0))), 0),"Not required") -> 1953 | S23: =IF(INTRO!$E$43="Endemic", IF($K23>1, IF($K23=4, "Unknown", IF($K23=99, "Surveillance", F23)), 0),"Not required") -> 6456 | T23: =IF(INTRO!$E$43="Endemic", IF($K23>1, IF($K23=4, "Unknown", IF($K23=99, "Surveillance", G23)), 0),"Not required") -> 18017 | U23: =IF(INTRO!$E$43="Endemic", IF($K23>1, IF($K23=4, "Unknown", IF($K23=99, "Surveillance", SUM($R23:$T23))), 0),"Not required") -> 26426 | X23: 1 | Y23: 1 | AH23: 45460 | AI23: Siphocosin | AK23: 27491.35086
A24: =IF(INTRO!$E$33<>0,INTRO!$E$33, " ") -> Eswatini | B24: HHOHHO | C24: Timphisini | D24: 13447 | E24: =IF(INTRO!$E$48="","",ROUND($D24*INTRO!$E$48,0)) -> 1263 | F24: =IF(INTRO!$E$49="","",ROUND($D24*INTRO!$E$49,0)) -> 3130 | G24: =IF(INTRO!$E$50="","",ROUND($D24*INTRO!$E$50,0)) -> 8737 | J24: 2 | K24: 2 | L24: =IF(INTRO!$E$37="Endemic",IF($H24>0,IF($H24=4,"Unknown",IF($H24=99,"Stopped",$D24)),0),"Not required") -> Not required | M24: =IF(INTRO!$E$39="Endemic", IF($I24>0, IF($I24=4,"Unknown",IF($I24=99,"Stopped",$D24)), 0),"Not required") -> Not required | N24: =IF(INTRO!$E$41="Endemic", IF($J24>1, IF($J24=4, "Unknown", IF($J24=99, "Surveillance", E24)), 0),"Not required") -> 1263 | O24: =IF(INTRO!$E$41="Endemic", IF($J24>1, IF($J24=4, "Unknown", IF($J24=99, "Surveillance", F24)), 0),"Not required") -> 3130 | P24: =IF(INTRO!$E$41="Endemic", IF($J24>1, IF($J24=4, "Unknown", IF($J24=99, "Surveillance", ROUND(D24*INTRO!$E$51,0))), 0),"Not required") -> 3487 | Q24: =IF(INTRO!$E$41="Endemic", IF($J24>1, IF($J24=4, "Unknown", IF($J24=99, "Surveillance", SUM($N24:$P24))), 0),"Not required") -> 7880 | R24: =IF(INTRO!$E$43="Endemic", IF($K24>1, IF($K24=4, "Unknown", IF($K24=99, "Surveillance", ROUND(E24*0.75,0))), 0),"Not required") -> 947 | S24: =IF(INTRO!$E$43="Endemic", IF($K24>1, IF($K24=4, "Unknown", IF($K24=99, "Surveillance", F24)), 0),"Not required") -> 3130 | T24: =IF(INTRO!$E$43="Endemic", IF($K24>1, IF($K24=4, "Unknown", IF($K24=99, "Surveillance", G24)), 0),"Not required") -> 8737 | U24: =IF(INTRO!$E$43="Endemic", IF($K24>1, IF($K24=4, "Unknown", IF($K24=99, "Surveillance", SUM($R24:$T24))), 0),"Not required") -> 12814 | X24: 1 | Y24: 1 | AH24: 45417 | AI24: Timphisini | AK24: 13331.08689
A25: =IF(INTRO!$E$33<>0,INTRO!$E$33, " ") -> Eswatini | B25: LUBOMBO | C25: Dvokodvweni | D25: 33056 | E25: =IF(INTRO!$E$48="","",ROUND($D25*INTRO!$E$48,0)) -> 3104 | F25: =IF(INTRO!$E$49="","",ROUND($D25*INTRO!$E$49,0)) -> 7695 | G25: =IF(INTRO!$E$50="","",ROUND($D25*INTRO!$E$50,0)) -> 21476 | J25: 1 | K25: 1 | L25: =IF(INTRO!$E$37="Endemic",IF($H25>0,IF($H25=4,"Unknown",IF($H25=99,"Stopped",$D25)),0),"Not required") -> Not required | M25: =IF(INTRO!$E$39="Endemic", IF($I25>0, IF($I25=4,"Unknown",IF($I25=99,"Stopped",$D25)), 0),"Not required") -> Not required | N25: =IF(INTRO!$E$41="Endemic", IF($J25>1, IF($J25=4, "Unknown", IF($J25=99, "Surveillance", E25)), 0),"Not required") -> 0 | O25: =IF(INTRO!$E$41="Endemic", IF($J25>1, IF($J25=4, "Unknown", IF($J25=99, "Surveillance", F25)), 0),"Not required") -> 0 | P25: =IF(INTRO!$E$41="Endemic", IF($J25>1, IF($J25=4, "Unknown", IF($J25=99, "Surveillance", ROUND(D25*INTRO!$E$51,0))), 0),"Not required") -> 0 | Q25: =IF(INTRO!$E$41="Endemic", IF($J25>1, IF($J25=4, "Unknown", IF($J25=99, "Surveillance", SUM($N25:$P25))), 0),"Not required") -> 0 | R25: =IF(INTRO!$E$43="Endemic", IF($K25>1, IF($K25=4, "Unknown", IF($K25=99, "Surveillance", ROUND(E25*0.75,0))), 0),"Not required") -> 0 | S25: =IF(INTRO!$E$43="Endemic", IF($K25>1, IF($K25=4, "Unknown", IF($K25=99, "Surveillance", F25)), 0),"Not required") -> 0 | T25: =IF(INTRO!$E$43="Endemic", IF($K25>1, IF($K25=4, "Unknown", IF($K25=99, "Surveillance", G25)), 0),"Not required") -> 0 | U25: =IF(INTRO!$E$43="Endemic", IF($K25>1, IF($K25=4, "Unknown", IF($K25=99, "Surveillance", SUM($R25:$T25))), 0),"Not required") -> 0 | X25: 0 | Y25: 0 | AH25: 45418 | AI25: Dvokodvweni | AK25: 32771.36286
A26: =IF(INTRO!$E$33<>0,INTRO!$E$33, " ") -> Eswatini | B26: LUBOMBO | C26: Gigal | D26: 11933 | E26: =IF(INTRO!$E$48="","",ROUND($D26*INTRO!$E$48,0)) -> 1121 | F26: =IF(INTRO!$E$49="","",ROUND($D26*INTRO!$E$49,0)) -> 2778 | G26: =IF(INTRO!$E$50="","",ROUND($D26*INTRO!$E$50,0)) -> 7753 | J26: 1 | K26: 2 | L26: =IF(INTRO!$E$37="Endemic",IF($H26>0,IF($H26=4,"Unknown",IF($H26=99,"Stopped",$D26)),0),"Not required") -> Not required | M26: =IF(INTRO!$E$39="Endemic", IF($I26>0, IF($I26=4,"Unknown",IF($I26=99,"Stopped",$D26)), 0),"Not required") -> Not required | N26: =IF(INTRO!$E$41="Endemic", IF($J26>1, IF($J26=4, "Unknown", IF($J26=99, "Surveillance", E26)), 0),"Not required") -> 0 | O26: =IF(INTRO!$E$41="Endemic", IF($J26>1, IF($J26=4, "Unknown", IF($J26=99, "Surveillance", F26)), 0),"Not required") -> 0 | P26: =IF(INTRO!$E$41="Endemic", IF($J26>1, IF($J26=4, "Unknown", IF($J26=99, "Surveillance", ROUND(D26*INTRO!$E$51,0))), 0),"Not required") -> 0 | Q26: =IF(INTRO!$E$41="Endemic", IF($J26>1, IF($J26=4, "Unknown", IF($J26=99, "Surveillance", SUM($N26:$P26))), 0),"Not required") -> 0 | R26: =IF(INTRO!$E$43="Endemic", IF($K26>1, IF($K26=4, "Unknown", IF($K26=99, "Surveillance", ROUND(E26*0.75,0))), 0),"Not required") -> 841 | S26: =IF(INTRO!$E$43="Endemic", IF($K26>1, IF($K26=4, "Unknown", IF($K26=99, "Surveillance", F26)), 0),"Not required") -> 2778 | T26: =IF(INTRO!$E$43="Endemic", IF($K26>1, IF($K26=4, "Unknown", IF($K26=99, "Surveillance", G26)), 0),"Not required") -> 7753 | U26: =IF(INTRO!$E$43="Endemic", IF($K26>1, IF($K26=4, "Unknown", IF($K26=99, "Surveillance", SUM($R26:$T26))), 0),"Not required") -> 11372 | X26: 0 | Y26: 1 | AH26: 45419 | AI26: Hlane | AK26: 11829.79702
A27: =IF(INTRO!$E$33<>0,INTRO!$E$33, " ") -> Eswatini | B27: LUBOMBO | C27: Lomahasha | D27: 23442 | E27: =IF(INTRO!$E$48="","",ROUND($D27*INTRO!$E$48,0)) -> 2201 | F27: =IF(INTRO!$E$49="","",ROUND($D27*INTRO!$E$49,0)) -> 5457 | G27: =IF(INTRO!$E$50="","",ROUND($D27*INTRO!$E$50,0)) -> 15230 | J27: 1 | K27: 2 | L27: =IF(INTRO!$E$37="Endemic",IF($H27>0,IF($H27=4,"Unknown",IF($H27=99,"Stopped",$D27)),0),"Not required") -> Not required | M27: =IF(INTRO!$E$39="Endemic", IF($I27>0, IF($I27=4,"Unknown",IF($I27=99,"Stopped",$D27)), 0),"Not required") -> Not required | N27: =IF(INTRO!$E$41="Endemic", IF($J27>1, IF($J27=4, "Unknown", IF($J27=99, "Surveillance", E27)), 0),"Not required") -> 0 | O27: =IF(INTRO!$E$41="Endemic", IF($J27>1, IF($J27=4, "Unknown", IF($J27=99, "Surveillance", F27)), 0),"Not required") -> 0 | P27: =IF(INTRO!$E$41="Endemic", IF($J27>1, IF($J27=4, "Unknown", IF($J27=99, "Surveillance", ROUND(D27*INTRO!$E$51,0))), 0),"Not required") -> 0 | Q27: =IF(INTRO!$E$41="Endemic", IF($J27>1, IF($J27=4, "Unknown", IF($J27=99, "Surveillance", SUM($N27:$P27))), 0),"Not required") -> 0 | R27: =IF(INTRO!$E$43="Endemic", IF($K27>1, IF($K27=4, "Unknown", IF($K27=99, "Surveillance", ROUND(E27*0.75,0))), 0),"Not required") -> 1651 | S27: =IF(INTRO!$E$43="Endemic", IF($K27>1, IF($K27=4, "Unknown", IF($K27=99, "Surveillance", F27)), 0),"Not required") -> 5457 | T27: =IF(INTRO!$E$43="Endemic", IF($K27>1, IF($K27=4, "Unknown", IF($K27=99, "Surveillance", G27)), 0),"Not required") -> 15230 | U27: =IF(INTRO!$E$43="Endemic", IF($K27>1, IF($K27=4, "Unknown", IF($K27=99, "Surveillance", SUM($R27:$T27))), 0),"Not required") -> 22338 | X27: 0 | Y27: 1 | AH27: 45420 | AI27: Lomahasha | AK27: 23239.39606
A28: =IF(INTRO!$E$33<>0,INTRO!$E$33, " ") -> Eswatini | B28: LUBOMBO | C28: Lubuli | D28: 15014 | E28: =IF(INTRO!$E$48="","",ROUND($D28*INTRO!$E$48,0)) -> 1410 | F28: =IF(INTRO!$E$49="","",ROUND($D28*INTRO!$E$49,0)) -> 3495 | G28: =IF(INTRO!$E$50="","",ROUND($D28*INTRO!$E$50,0)) -> 9755 | J28: 1 | K28: 1 | L28: =IF(INTRO!$E$37="Endemic",IF($H28>0,IF($H28=4,"Unknown",IF($H28=99,"Stopped",$D28)),0),"Not required") -> Not required | M28: =IF(INTRO!$E$39="Endemic", IF($I28>0, IF($I28=4,"Unknown",IF($I28=99,"Stopped",$D28)), 0),"Not required") -> Not required | N28: =IF(INTRO!$E$41="Endemic", IF($J28>1, IF($J28=4, "Unknown", IF($J28=99, "Surveillance", E28)), 0),"Not required") -> 0 | O28: =IF(INTRO!$E$41="Endemic", IF($J28>1, IF($J28=4, "Unknown", IF($J28=99, "Surveillance", F28)), 0),"Not required") -> 0 | P28: =IF(INTRO!$E$41="Endemic", IF($J28>1, IF($J28=4, "Unknown", IF($J28=99, "Surveillance", ROUND(D28*INTRO!$E$51,0))), 0),"Not required") -> 0 | Q28: =IF(INTRO!$E$41="Endemic", IF($J28>1, IF($J28=4, "Unknown", IF($J28=99, "Surveillance", SUM($N28:$P28))), 0),"Not required") -> 0 | R28: =IF(INTRO!$E$43="Endemic", IF($K28>1, IF($K28=4, "Unknown", IF($K28=99, "Surveillance", ROUND(E28*0.75,0))), 0),"Not required") -> 0 | S28: =IF(INTRO!$E$43="Endemic", IF($K28>1, IF($K28=4, "Unknown", IF($K28=99, "Surveillance", F28)), 0),"Not required") -> 0 | T28: =IF(INTRO!$E$43="Endemic", IF($K28>1, IF($K28=4, "Unknown", IF($K28=99, "Surveillance", G28)), 0),"Not required") -> 0 | U28: =IF(INTRO!$E$43="Endemic", IF($K28>1, IF($K28=4, "Unknown", IF($K28=99, "Surveillance", SUM($R28:$T28))), 0),"Not required") -> 0 | X28: 0 | Y28: 0 | AH28: 45421 | AI28: Lubuli | AK28: 14884.39156
A29: =IF(INTRO!$E$33<>0,INTRO!$E$33, " ") -> Eswatini | B29: LUBOMBO | C29: Lugongolweni | D29: 28983 | E29: =IF(INTRO!$E$48="","",ROUND($D29*INTRO!$E$48,0)) -> 2722 | F29: =IF(INTRO!$E$49="","",ROUND($D29*INTRO!$E$49,0)) -> 6747 | G29: =IF(INTRO!$E$50="","",ROUND($D29*INTRO!$E$50,0)) -> 18830 | J29: 1 | K29: 2 | L29: =IF(INTRO!$E$37="Endemic",IF($H29>0,IF($H29=4,"Unknown",IF($H29=99,"Stopped",$D29)),0),"Not required") -> Not required | M29: =IF(INTRO!$E$39="Endemic", IF($I29>0, IF($I29=4,"Unknown",IF($I29=99,"Stopped",$D29)), 0),"Not required") -> Not required | N29: =IF(INTRO!$E$41="Endemic", IF($J29>1, IF($J29=4, "Unknown", IF($J29=99, "Surveillance", E29)), 0),"Not required") -> 0 | O29: =IF(INTRO!$E$41="Endemic", IF($J29>1, IF($J29=4, "Unknown", IF($J29=99, "Surveillance", F29)), 0),"Not required") -> 0 | P29: =IF(INTRO!$E$41="Endemic", IF($J29>1, IF($J29=4, "Unknown", IF($J29=99, "Surveillance", ROUND(D29*INTRO!$E$51,0))), 0),"Not required") -> 0 | Q29: =IF(INTRO!$E$41="Endemic", IF($J29>1, IF($J29=4, "Unknown", IF($J29=99, "Surveillance", SUM($N29:$P29))), 0),"Not required") -> 0 | R29: =IF(INTRO!$E$43="Endemic", IF($K29>1, IF($K29=4, "Unknown", IF($K29=99, "Surveillance", ROUND(E29*0.75,0))), 0),"Not required") -> 2042 | S29: =IF(INTRO!$E$43="Endemic", IF($K29>1, IF($K29=4, "Unknown", IF($K29=99, "Surveillance", F29)), 0),"Not required") -> 6747 | T29: =IF(INTRO!$E$43="Endemic", IF($K29>1, IF($K29=4, "Unknown", IF($K29=99, "Surveillance", G29)), 0),"Not required") -> 18830 | U29: =IF(INTRO!$E$43="Endemic", IF($K29>1, IF($K29=4, "Unknown", IF($K29=99, "Surveillance", SUM($R29:$T29))), 0),"Not required") -> 27619 | X29: 0 | Y29: 1 | AH29: 45422 | AI29: Lugongolweni | AK29: 28732.56674
A30: =IF(INTRO!$E$33<>0,INTRO!$E$33, " ") -> Eswatini | B30: LUBOMBO | C30: Matsanjeni North | D30: 16446 | E30: =IF(INTRO!$E$48="","",ROUND($D30*INTRO!$E$48,0)) -> 1544 | F30: =IF(INTRO!$E$49="","",ROUND($D30*INTRO!$E$49,0)) -> 3829 | G30: =IF(INTRO!$E$50="","",ROUND($D30*INTRO!$E$50,0)) -> 10685 | J30: 1 | K30: 2 | L30: =IF(INTRO!$E$37="Endemic",IF($H30>0,IF($H30=4,"Unknown",IF($H30=99,"Stopped",$D30)),0),"Not required") -> Not required | M30: =IF(INTRO!$E$39="Endemic", IF($I30>0, IF($I30=4,"Unknown",IF($I30=99,"Stopped",$D30)), 0),"Not required") -> Not required | N30: =IF(INTRO!$E$41="Endemic", IF($J30>1, IF($J30=4, "Unknown", IF($J30=99, "Surveillance", E30)), 0),"Not required") -> 0 | O30: =IF(INTRO!$E$41="Endemic", IF($J30>1, IF($J30=4, "Unknown", IF($J30=99, "Surveillance", F30)), 0),"Not required") -> 0 | P30: =IF(INTRO!$E$41="Endemic", IF($J30>1, IF($J30=4, "Unknown", IF($J30=99, "Surveillance", ROUND(D30*INTRO!$E$51,0))), 0),"Not required") -> 0 | Q30: =IF(INTRO!$E$41="Endemic", IF($J30>1, IF($J30=4, "Unknown", IF($J30=99, "Surveillance", SUM($N30:$P30))), 0),"Not required") -> 0 | R30: =IF(INTRO!$E$43="Endemic", IF($K30>1, IF($K30=4, "Unknown", IF($K30=99, "Surveillance", ROUND(E30*0.75,0))), 0),"Not required") -> 1158 | S30: =IF(INTRO!$E$43="Endemic", IF($K30>1, IF($K30=4, "Unknown", IF($K30=99, "Surveillance", F30)), 0),"Not required") -> 3829 | T30: =IF(INTRO!$E$43="Endemic", IF($K30>1, IF($K30=4, "Unknown", IF($K30=99, "Surveillance", G30)), 0),"Not required") -> 10685 | U30: =IF(INTRO!$E$43="Endemic", IF($K30>1, IF($K30=4, "Unknown", IF($K30=99, "Surveillance", SUM($R30:$T30))), 0),"Not required") -> 15672 | X30: 0 | Y30: 1 | AH30: 45423 | AI30: Matsanjeni North | AK30: 16304.08959
A31: =IF(INTRO!$E$33<>0,INTRO!$E$33, " ") -> Eswatini | B31: LUBOMBO | C31: Mhlume | D31: 17465 | E31: =IF(INTRO!$E$48="","",ROUND($D31*INTRO!$E$48,0)) -> 1640 | F31: =IF(INTRO!$E$49="","",ROUND($D31*INTRO!$E$49,0)) -> 4066 | G31: =IF(INTRO!$E$50="","",ROUND($D31*INTRO!$E$50,0)) -> 11347 | J31: 1 | K31: 2 | L31: =IF(INTRO!$E$37="Endemic",IF($H31>0,IF($H31=4,"Unknown",IF($H31=99,"Stopped",$D31)),0),"Not required") -> Not required | M31: =IF(INTRO!$E$39="Endemic", IF($I31>0, IF($I31=4,"Unknown",IF($I31=99,"Stopped",$D31)), 0),"Not required") -> Not required | N31: =IF(INTRO!$E$41="Endemic", IF($J31>1, IF($J31=4, "Unknown", IF($J31=99, "Surveillance", E31)), 0),"Not required") -> 0 | O31: =IF(INTRO!$E$41="Endemic", IF($J31>1, IF($J31=4, "Unknown", IF($J31=99, "Surveillance", F31)), 0),"Not required") -> 0 | P31: =IF(INTRO!$E$41="Endemic", IF($J31>1, IF($J31=4, "Unknown", IF($J31=99, "Surveillance", ROUND(D31*INTRO!$E$51,0))), 0),"Not required") -> 0 | Q31: =IF(INTRO!$E$41="Endemic", IF($J31>1, IF($J31=4, "Unknown", IF($J31=99, "Surveillance", SUM($N31:$P31))), 0),"Not required") -> 0 | R31: =IF(INTRO!$E$43="Endemic", IF($K31>1, IF($K31=4, "Unknown", IF($K31=99, "Surveillance", ROUND(E31*0.75,0))), 0),"Not required") -> 1230 | S31: =IF(INTRO!$E$43="Endemic", IF($K31>1, IF($K31=4, "Unknown", IF($K31=99, "Surveillance", F31)), 0),"Not required") -> 4066 | T31: =IF(INTRO!$E$43="Endemic", IF($K31>1, IF($K31=4, "Unknown", IF($K31=99, "Surveillance", G31)), 0),"Not required") -> 11347 | U31: =IF(INTRO!$E$43="Endemic", IF($K31>1, IF($K31=4, "Unknown", IF($K31=99, "Surveillance", SUM($R31:$T31))), 0),"Not required") -> 16643 | X31: 0 | Y31: 1 | AH31: 45424 | AI31: Mhlume | AK31: 17314.80852
A32: =IF(INTRO!$E$33<>0,INTRO!$E$33, " ") -> Eswatini | B32: LUBOMBO | C32: Mpolonjeni | D32: 14900 | E32: =IF(INTRO!$E$48="","",ROUND($D32*INTRO!$E$48,0)) -> 1399 | F32: =IF(INTRO!$E$49="","",ROUND($D32*INTRO!$E$49,0)) -> 3469 | G32: =IF(INTRO!$E$50="","",ROUND($D32*INTRO!$E$50,0)) -> 9681 | J32: 1 | K32: 2 | L32: =IF(INTRO!$E$37="Endemic",IF($H32>0,IF($H32=4,"Unknown",IF($H32=99,"Stopped",$D32)),0),"Not required") -> Not required | M32: =IF(INTRO!$E$39="Endemic", IF($I32>0, IF($I32=4,"Unknown",IF($I32=99,"Stopped",$D32)), 0),"Not required") -> Not required | N32: =IF(INTRO!$E$41="Endemic", IF($J32>1, IF($J32=4, "Unknown", IF($J32=99, "Surveillance", E32)), 0),"Not required") -> 0 | O32: =IF(INTRO!$E$41="Endemic", IF($J32>1, IF($J32=4, "Unknown", IF($J32=99, "Surveillance", F32)), 0),"Not required") -> 0 | P32: =IF(INTRO!$E$41="Endemic", IF($J32>1, IF($J32=4, "Unknown", IF($J32=99, "Surveillance", ROUND(D32*INTRO!$E$51,0))), 0),"Not required") -> 0 | Q32: =IF(INTRO!$E$41="Endemic", IF($J32>1, IF($J32=4, "Unknown", IF($J32=99, "Surveillance", SUM($N32:$P32))), 0),"Not required") -> 0 | R32: =IF(INTRO!$E$43="Endemic", IF($K32>1, IF($K32=4, "Unknown", IF($K32=99, "Surveillance", ROUND(E32*0.75,0))), 0),"Not required") -> 1049 | S32: =IF(INTRO!$E$43="Endemic", IF($K32>1, IF($K32=4, "Unknown", IF($K32=99, "Surveillance", F32)), 0),"Not required") -> 3469 | T32: =IF(INTRO!$E$43="Endemic", IF($K32>1, IF($K32=4, "Unknown", IF($K32=99, "Surveillance", G32)), 0),"Not required") -> 9681 | U32: =IF(INTRO!$E$43="Endemic", IF($K32>1, IF($K32=4, "Unknown", IF($K32=99, "Surveillance", SUM($R32:$T32))), 0),"Not required") -> 14199 | X32: 0 | Y32: 1 | AH32: 45425 | AI32: Mpolonjeni | AK32: 14771.18288
A33: =IF(INTRO!$E$33<>0,INTRO!$E$33, " ") -> Eswatini | B33: LUBOMBO | C33: Nkilongo | D33: 15619 | E33: =IF(INTRO!$E$48="","",ROUND($D33*INTRO!$E$48,0)) -> 1467 | F33: =IF(INTRO!$E$49="","",ROUND($D33*INTRO!$E$49,0)) -> 3636 | G33: =IF(INTRO!$E$50="","",ROUND($D33*INTRO!$E$50,0)) -> 10148 | J33: 1 | K33: 2 | L33: =IF(INTRO!$E$37="Endemic",IF($H33>0,IF($H33=4,"Unknown",IF($H33=99,"Stopped",$D33)),0),"Not required") -> Not required | M33: =IF(INTRO!$E$39="Endemic", IF($I33>0, IF($I33=4,"Unknown",IF($I33=99,"Stopped",$D33)), 0),"Not required") -> Not required | N33: =IF(INTRO!$E$41="Endemic", IF($J33>1, IF($J33=4, "Unknown", IF($J33=99, "Surveillance", E33)), 0),"Not required") -> 0 | O33: =IF(INTRO!$E$41="Endemic", IF($J33>1, IF($J33=4, "Unknown", IF($J33=99, "Surveillance", F33)), 0),"Not required") -> 0 | P33: =IF(INTRO!$E$41="Endemic", IF($J33>1, IF($J33=4, "Unknown", IF($J33=99, "Surveillance", ROUND(D33*INTRO!$E$51,0))), 0),"Not required") -> 0 | Q33: =IF(INTRO!$E$41="Endemic", IF($J33>1, IF($J33=4, "Unknown", IF($J33=99, "Surveillance", SUM($N33:$P33))), 0),"Not required") -> 0 | R33: =IF(INTRO!$E$43="Endemic", IF($K33>1, IF($K33=4, "Unknown", IF($K33=99, "Surveillance", ROUND(E33*0.75,0))), 0),"Not required") -> 1100 | S33: =IF(INTRO!$E$43="Endemic", IF($K33>1, IF($K33=4, "Unknown", IF($K33=99, "Surveillance", F33)), 0),"Not required") -> 3636 | T33: =IF(INTRO!$E$43="Endemic", IF($K33>1, IF($K33=4, "Unknown", IF($K33=99, "Surveillance", G33)), 0),"Not required") -> 10148 | U33: =IF(INTRO!$E$43="Endemic", IF($K33>1, IF($K33=4, "Unknown", IF($K33=99, "Surveillance", SUM($R33:$T33))), 0),"Not required") -> 14884 | X33: 0 | Y33: 1 | AH33: 45426 | AI33: Nkilongo | AK33: 15484.09159
A34: =IF(INTRO!$E$33<>0,INTRO!$E$33, " ") -> Eswatini | B34: LUBOMBO | C34: Siphofaneni | D34: 34426 | E34: =IF(INTRO!$E$48="","",ROUND($D34*INTRO!$E$48,0)) -> 3233 | F34: =IF(INTRO!$E$49="","",ROUND($D34*INTRO!$E$49,0)) -> 8014 | G34: =IF(INTRO!$E$50="","",ROUND($D34*INTRO!$E$50,0)) -> 22367 | J34: 1 | K34: 2 | L34: =IF(INTRO!$E$37="Endemic",IF($H34>0,IF($H34=4,"Unknown",IF($H34=99,"Stopped",$D34)),0),"Not required") -> Not required | M34: =IF(INTRO!$E$39="Endemic", IF($I34>0, IF($I34=4,"Unknown",IF($I34=99,"Stopped",$D34)), 0),"Not required") -> Not required | N34: =IF(INTRO!$E$41="Endemic", IF($J34>1, IF($J34=4, "Unknown", IF($J34=99, "Surveillance", E34)), 0),"Not required") -> 0 | O34: =IF(INTRO!$E$41="Endemic", IF($J34>1, IF($J34=4, "Unknown", IF($J34=99, "Surveillance", F34)), 0),"Not required") -> 0 | P34: =IF(INTRO!$E$41="Endemic", IF($J34>1, IF($J34=4, "Unknown", IF($J34=99, "Surveillance", ROUND(D34*INTRO!$E$51,0))), 0),"Not required") -> 0 | Q34: =IF(INTRO!$E$41="Endemic", IF($J34>1, IF($J34=4, "Unknown", IF($J34=99, "Surveillance", SUM($N34:$P34))), 0),"Not required") -> 0 | R34: =IF(INTRO!$E$43="Endemic", IF($K34>1, IF($K34=4, "Unknown", IF($K34=99, "Surveillance", ROUND(E34*0.75,0))), 0),"Not required") -> 2425 | S34: =IF(INTRO!$E$43="Endemic", IF($K34>1, IF($K34=4, "Unknown", IF($K34=99, "Surveillance", F34)), 0),"Not required") -> 8014 | T34: =IF(INTRO!$E$43="Endemic", IF($K34>1, IF($K34=4, "Unknown", IF($K34=99, "Surveillance", G34)), 0),"Not required") -> 22367 | U34: =IF(INTRO!$E$43="Endemic", IF($K34>1, IF($K34=4, "Unknown", IF($K34=99, "Surveillance", SUM($R34:$T34))), 0),"Not required") -> 32806 | X34: 0 | Y34: 1 | AH34: 45427 | AI34: Siphofaneni | AK34: 34128.84711
A35: =IF(INTRO!$E$33<>0,INTRO!$E$33, " ") -> Eswatini | B35: LUBOMBO | C35: Sithobela | D35: 29706 | E35: =IF(INTRO!$E$48="","",ROUND($D35*INTRO!$E$48,0)) -> 2789 | F35: =IF(INTRO!$E$49="","",ROUND($D35*INTRO!$E$49,0)) -> 6916 | G35: =IF(INTRO!$E$50="","",ROUND($D35*INTRO!$E$50,0)) -> 19300 | J35: 1 | K35: 2 | L35: =IF(INTRO!$E$37="Endemic",IF($H35>0,IF($H35=4,"Unknown",IF($H35=99,"Stopped",$D35)),0),"Not required") -> Not required | M35: =IF(INTRO!$E$39="Endemic", IF($I35>0, IF($I35=4,"Unknown",IF($I35=99,"Stopped",$D35)), 0),"Not required") -> Not required | N35: =IF(INTRO!$E$41="Endemic", IF($J35>1, IF($J35=4, "Unknown", IF($J35=99, "Surveillance", E35)), 0),"Not required") -> 0 | O35: =IF(INTRO!$E$41="Endemic", IF($J35>1, IF($J35=4, "Unknown", IF($J35=99, "Surveillance", F35)), 0),"Not required") -> 0 | P35: =IF(INTRO!$E$41="Endemic", IF($J35>1, IF($J35=4, "Unknown", IF($J35=99, "Surveillance", ROUND(D35*INTRO!$E$51,0))), 0),"Not required") -> 0 | Q35: =IF(INTRO!$E$41="Endemic", IF($J35>1, IF($J35=4, "Unknown", IF($J35=99, "Surveillance", SUM($N35:$P35))), 0),"Not required") -> 0 | R35: =IF(INTRO!$E$43="Endemic", IF($K35>1, IF($K35=4, "Unknown", IF($K35=99, "Surveillance", ROUND(E35*0.75,0))), 0),"Not required") -> 2092 | S35: =IF(INTRO!$E$43="Endemic", IF($K35>1, IF($K35=4, "Unknown", IF($K35=99, "Surveillance", F35)), 0),"Not required") -> 6916 | T35: =IF(INTRO!$E$43="Endemic", IF($K35>1, IF($K35=4, "Unknown", IF($K35=99, "Surveillance", G35)), 0),"Not required") -> 19300 | U35: =IF(INTRO!$E$43="Endemic", IF($K35>1, IF($K35=4, "Unknown", IF($K35=99, "Surveillance", SUM($R35:$T35))), 0),"Not required") -> 28308 | X35: 0 | Y35: 1 | AH35: 45429 | AI35: Sithobela | AK35: 29449.55504
A36: =IF(INTRO!$E$33<>0,INTRO!$E$33, " ") -> Eswatini | B36: MANZINI | C36: Kukhanyeni | D36: 20238 | E36: =IF(INTRO!$E$48="","",ROUND($D36*INTRO!$E$48,0)) -> 1900 | F36: =IF(INTRO!$E$49="","",ROUND($D36*INTRO!$E$49,0)) -> 4711 | G36: =IF(INTRO!$E$50="","",ROUND($D36*INTRO!$E$50,0)) -> 13149 | J36: 1 | K36: 2 | L36: =IF(INTRO!$E$37="Endemic",IF($H36>0,IF($H36=4,"Unknown",IF($H36=99,"Stopped",$D36)),0),"Not required") -> Not required | M36: =IF(INTRO!$E$39="Endemic", IF($I36>0, IF($I36=4,"Unknown",IF($I36=99,"Stopped",$D36)), 0),"Not required") -> Not required | N36: =IF(INTRO!$E$41="Endemic", IF($J36>1, IF($J36=4, "Unknown", IF($J36=99, "Surveillance", E36)), 0),"Not required") -> 0 | O36: =IF(INTRO!$E$41="Endemic", IF($J36>1, IF($J36=4, "Unknown", IF($J36=99, "Surveillance", F36)), 0),"Not required") -> 0 | P36: =IF(INTRO!$E$41="Endemic", IF($J36>1, IF($J36=4, "Unknown", IF($J36=99, "Surveillance", ROUND(D36*INTRO!$E$51,0))), 0),"Not required") -> 0 | Q36: =IF(INTRO!$E$41="Endemic", IF($J36>1, IF($J36=4, "Unknown", IF($J36=99, "Surveillance", SUM($N36:$P36))), 0),"Not required") -> 0 | R36: =IF(INTRO!$E$43="Endemic", IF($K36>1, IF($K36=4, "Unknown", IF($K36=99, "Surveillance", ROUND(E36*0.75,0))), 0),"Not required") -> 1425 | S36: =IF(INTRO!$E$43="Endemic", IF($K36>1, IF($K36=4, "Unknown", IF($K36=99, "Surveillance", F36)), 0),"Not required") -> 4711 | T36: =IF(INTRO!$E$43="Endemic", IF($K36>1, IF($K36=4, "Unknown", IF($K36=99, "Surveillance", G36)), 0),"Not required") -> 13149 | U36: =IF(INTRO!$E$43="Endemic", IF($K36>1, IF($K36=4, "Unknown", IF($K36=99, "Surveillance", SUM($R36:$T36))), 0),"Not required") -> 19285 | X36: 0 | Y36: 1 | AH36: 45430 | AI36: Kukhanyeni | AK36: 20063.43365
A37: =IF(INTRO!$E$33<>0,INTRO!$E$33, " ") -> Eswatini | B37: MANZINI | C37: Kwaluseni | D37: 63539 | E37: =IF(INTRO!$E$48="","",ROUND($D37*INTRO!$E$48,0)) -> 5966 | F37: =IF(INTRO!$E$49="","",ROUND($D37*INTRO!$E$49,0)) -> 14792 | G37: =IF(INTRO!$E$50="","",ROUND($D37*INTRO!$E$50,0)) -> 41281 | J37: 0 | K37: 1 | L37: =IF(INTRO!$E$37="Endemic",IF($H37>0,IF($H37=4,"Unknown",IF($H37=99,"Stopped",$D37)),0),"Not required") -> Not required | M37: =IF(INTRO!$E$39="Endemic", IF($I37>0, IF($I37=4,"Unknown",IF($I37=99,"Stopped",$D37)), 0),"Not required") -> Not required | N37: =IF(INTRO!$E$41="Endemic", IF($J37>1, IF($J37=4, "Unknown", IF($J37=99, "Surveillance", E37)), 0),"Not required") -> 0 | O37: =IF(INTRO!$E$41="Endemic", IF($J37>1, IF($J37=4, "Unknown", IF($J37=99, "Surveillance", F37)), 0),"Not required") -> 0 | P37: =IF(INTRO!$E$41="Endemic", IF($J37>1, IF($J37=4, "Unknown", IF($J37=99, "Surveillance", ROUND(D37*INTRO!$E$51,0))), 0),"Not required") -> 0 | Q37: =IF(INTRO!$E$41="Endemic", IF($J37>1, IF($J37=4, "Unknown", IF($J37=99, "Surveillance", SUM($N37:$P37))), 0),"Not required") -> 0 | R37: =IF(INTRO!$E$43="Endemic", IF($K37>1, IF($K37=4, "Unknown", IF($K37=99, "Surveillance", ROUND(E37*0.75,0))), 0),"Not required") -> 0 | S37: =IF(INTRO!$E$43="Endemic", IF($K37>1, IF($K37=4, "Unknown", IF($K37=99, "Surveillance", F37)), 0),"Not required") -> 0 | T37: =IF(INTRO!$E$43="Endemic", IF($K37>1, IF($K37=4, "Unknown", IF($K37=99, "Surveillance", G37)), 0),"Not required") -> 0 | U37: =IF(INTRO!$E$43="Endemic", IF($K37>1, IF($K37=4, "Unknown", IF($K37=99, "Surveillance", SUM($R37:$T37))), 0),"Not required") -> 0 | X37: 0 | Y37: 0 | AH37: 45431 | AI37: Kwaluseni | AK37: 62990.94089
A38: =IF(INTRO!$E$33<>0,INTRO!$E$33, " ") -> Eswatini | B38: MANZINI | C38: LaMgabhi | D38: 12035 | E38: =IF(INTRO!$E$48="","",ROUND($D38*INTRO!$E$48,0)) -> 1130 | F38: =IF(INTRO!$E$49="","",ROUND($D38*INTRO!$E$49,0)) -> 2802 | G38: =IF(INTRO!$E$50="","",ROUND($D38*INTRO!$E$50,0)) -> 7819 | J38: 1 | K38: 2 | L38: =IF(INTRO!$E$37="Endemic",IF($H38>0,IF($H38=4,"Unknown",IF($H38=99,"Stopped",$D38)),0),"Not required") -> Not required | M38: =IF(INTRO!$E$39="Endemic", IF($I38>0, IF($I38=4,"Unknown",IF($I38=99,"Stopped",$D38)), 0),"Not required") -> Not required | N38: =IF(INTRO!$E$41="Endemic", IF($J38>1, IF($J38=4, "Unknown", IF($J38=99, "Surveillance", E38)), 0),"Not required") -> 0 | O38: =IF(INTRO!$E$41="Endemic", IF($J38>1, IF($J38=4, "Unknown", IF($J38=99, "Surveillance", F38)), 0),"Not required") -> 0 | P38: =IF(INTRO!$E$41="Endemic", IF($J38>1, IF($J38=4, "Unknown", IF($J38=99, "Surveillance", ROUND(D38*INTRO!$E$51,0))), 0),"Not required") -> 0 | Q38: =IF(INTRO!$E$41="Endemic", IF($J38>1, IF($J38=4, "Unknown", IF($J38=99, "Surveillance", SUM($N38:$P38))), 0),"Not required") -> 0 | R38: =IF(INTRO!$E$43="Endemic", IF($K38>1, IF($K38=4, "Unknown", IF($K38=99, "Surveillance", ROUND(E38*0.75,0))), 0),"Not required") -> 848 | S38: =IF(INTRO!$E$43="Endemic", IF($K38>1, IF($K38=4, "Unknown", IF($K38=99, "Surveillance", F38)), 0),"Not required") -> 2802 | T38: =IF(INTRO!$E$43="Endemic", IF($K38>1, IF($K38=4, "Unknown", IF($K38=99, "Surveillance", G38)), 0),"Not required") -> 7819 | U38: =IF(INTRO!$E$43="Endemic", IF($K38>1, IF($K38=4, "Unknown", IF($K38=99, "Surveillance", SUM($R38:$T38))), 0),"Not required") -> 11469 | X38: 0 | Y38: 1 | AH38: 45432 | AI38: La-Mgabhi | AK38: 11930.76692
A39: =IF(INTRO!$E$33<>0,INTRO!$E$33, " ") -> Eswatini | B39: MANZINI | C39: Lobamba Lomdzala | D39: 23102 | E39: =IF(INTRO!$E$48="","",ROUND($D39*INTRO!$E$48,0)) -> 2169 | F39: =IF(INTRO!$E$49="","",ROUND($D39*INTRO!$E$49,0)) -> 5378 | G39: =IF(INTRO!$E$50="","",ROUND($D39*INTRO!$E$50,0)) -> 15009 | J39: 1 | K39: 2 | L39: =IF(INTRO!$E$37="Endemic",IF($H39>0,IF($H39=4,"Unknown",IF($H39=99,"Stopped",$D39)),0),"Not required") -> Not required | M39: =IF(INTRO!$E$39="Endemic", IF($I39>0, IF($I39=4,"Unknown",IF($I39=99,"Stopped",$D39)), 0),"Not required") -> Not required | N39: =IF(INTRO!$E$41="Endemic", IF($J39>1, IF($J39=4, "Unknown", IF($J39=99, "Surveillance", E39)), 0),"Not required") -> 0 | O39: =IF(INTRO!$E$41="Endemic", IF($J39>1, IF($J39=4, "Unknown", IF($J39=99, "Surveillance", F39)), 0),"Not required") -> 0 | P39: =IF(INTRO!$E$41="Endemic", IF($J39>1, IF($J39=4, "Unknown", IF($J39=99, "Surveillance", ROUND(D39*INTRO!$E$51,0))), 0),"Not required") -> 0 | Q39: =IF(INTRO!$E$41="Endemic", IF($J39>1, IF($J39=4, "Unknown", IF($J39=99, "Surveillance", SUM($N39:$P39))), 0),"Not required") -> 0 | R39: =IF(INTRO!$E$43="Endemic", IF($K39>1, IF($K39=4, "Unknown", IF($K39=99, "Surveillance", ROUND(E39*0.75,0))), 0),"Not required") -> 1627 | S39: =IF(INTRO!$E$43="Endemic", IF($K39>1, IF($K39=4, "Unknown", IF($K39=99, "Surveillance", F39)), 0),"Not required") -> 5378 | T39: =IF(INTRO!$E$43="Endemic", IF($K39>1, IF($K39=4, "Unknown", IF($K39=99, "Surveillance", G39)), 0),"Not required") -> 15009 | U39: =IF(INTRO!$E$43="Endemic", IF($K39>1, IF($K39=4, "Unknown", IF($K39=99, "Surveillance", SUM($R39:$T39))), 0),"Not required") -> 22014 | X39: 0 | Y39: 1 | AH39: 45459 | AI39: Lobamba Lomdzala | AK39: 22902.82971
A40: =IF(INTRO!$E$33<>0,INTRO!$E$33, " ") -> Eswatini | B40: MANZINI | C40: Ludzeludze | D40: 24500 | E40: =IF(INTRO!$E$48="","",ROUND($D40*INTRO!$E$48,0)) -> 2301 | F40: =IF(INTRO!$E$49="","",ROUND($D40*INTRO!$E$49,0)) -> 5704 | G40: =IF(INTRO!$E$50="","",ROUND($D40*INTRO!$E$50,0)) -> 15918 | J40: 1 | K40: 2 | L40: =IF(INTRO!$E$37="Endemic",IF($H40>0,IF($H40=4,"Unknown",IF($H40=99,"Stopped",$D40)),0),"Not required") -> Not required | M40: =IF(INTRO!$E$39="Endemic", IF($I40>0, IF($I40=4,"Unknown",IF($I40=99,"Stopped",$D40)), 0),"Not required") -> Not required | N40: =IF(INTRO!$E$41="Endemic", IF($J40>1, IF($J40=4, "Unknown", IF($J40=99, "Surveillance", E40)), 0),"Not required") -> 0 | O40: =IF(INTRO!$E$41="Endemic", IF($J40>1, IF($J40=4, "Unknown", IF($J40=99, "Surveillance", F40)), 0),"Not required") -> 0 | P40: =IF(INTRO!$E$41="Endemic", IF($J40>1, IF($J40=4, "Unknown", IF($J40=99, "Surveillance", ROUND(D40*INTRO!$E$51,0))), 0),"Not required") -> 0 | Q40: =IF(INTRO!$E$41="Endemic", IF($J40>1, IF($J40=4, "Unknown", IF($J40=99, "Surveillance", SUM($N40:$P40))), 0),"Not required") -> 0 | R40: =IF(INTRO!$E$43="Endemic", IF($K40>1, IF($K40=4, "Unknown", IF($K40=99, "Surveillance", ROUND(E40*0.75,0))), 0),"Not required") -> 1726 | S40: =IF(INTRO!$E$43="Endemic", IF($K40>1, IF($K40=4, "Unknown", IF($K40=99, "Surveillance", F40)), 0),"Not required") -> 5704 | T40: =IF(INTRO!$E$43="Endemic", IF($K40>1, IF($K40=4, "Unknown", IF($K40=99, "Surveillance", G40)), 0),"Not required") -> 15918 | U40: =IF(INTRO!$E$43="Endemic", IF($K40>1, IF($K40=4, "Unknown", IF($K40=99, "Surveillance", SUM($R40:$T40))), 0),"Not required") -> 23348 | X40: 0 | Y40: 1 | AH40: 45433 | AI40: Ludzeludze | AK40: 24288.87111
A41: =IF(INTRO!$E$33<>0,INTRO!$E$33, " ") -> Eswatini | B41: MANZINI | C41: Mafutseni | D41: 23376 | E41: =IF(INTRO!$E$48="","",ROUND($D41*INTRO!$E$48,0)) -> 2195 | F41: =IF(INTRO!$E$49="","",ROUND($D41*INTRO!$E$49,0)) -> 5442 | G41: =IF(INTRO!$E$50="","",ROUND($D41*INTRO!$E$50,0)) -> 15187 | J41: 1 | K41: 2 | L41: =IF(INTRO!$E$37="Endemic",IF($H41>0,IF($H41=4,"Unknown",IF($H41=99,"Stopped",$D41)),0),"Not required") -> Not required | M41: =IF(INTRO!$E$39="Endemic", IF($I41>0, IF($I41=4,"Unknown",IF($I41=99,"Stopped",$D41)), 0),"Not required") -> Not required | N41: =IF(INTRO!$E$41="Endemic", IF($J41>1, IF($J41=4, "Unknown", IF($J41=99, "Surveillance", E41)), 0),"Not required") -> 0 | O41: =IF(INTRO!$E$41="Endemic", IF($J41>1, IF($J41=4, "Unknown", IF($J41=99, "Surveillance", F41)), 0),"Not required") -> 0 | P41: =IF(INTRO!$E$41="Endemic", IF($J41>1, IF($J41=4, "Unknown", IF($J41=99, "Surveillance", ROUND(D41*INTRO!$E$51,0))), 0),"Not required") -> 0 | Q41: =IF(INTRO!$E$41="Endemic", IF($J41>1, IF($J41=4, "Unknown", IF($J41=99, "Surveillance", SUM($N41:$P41))), 0),"Not required") -> 0 | R41: =IF(INTRO!$E$43="Endemic", IF($K41>1, IF($K41=4, "Unknown", IF($K41=99, "Surveillance", ROUND(E41*0.75,0))), 0),"Not required") -> 1646 | S41: =IF(INTRO!$E$43="Endemic", IF($K41>1, IF($K41=4, "Unknown", IF($K41=99, "Surveillance", F41)), 0),"Not required") -> 5442 | T41: =IF(INTRO!$E$43="Endemic", IF($K41>1, IF($K41=4, "Unknown", IF($K41=99, "Surveillance", G41)), 0),"Not required") -> 15187 | U41: =IF(INTRO!$E$43="Endemic", IF($K41>1, IF($K41=4, "Unknown", IF($K41=99, "Surveillance", SUM($R41:$T41))), 0),"Not required") -> 22275 | X41: 0 | Y41: 1 | AH41: 45434 | AI41: Mafutseni | AK41: 23174.12258
A42: =IF(INTRO!$E$33<>0,INTRO!$E$33, " ") -> Eswatini | B42: MANZINI | C42: Mahlangatsha | D42: 18912 | E42: =IF(INTRO!$E$48="","",ROUND($D42*INTRO!$E$48,0)) -> 1776 | F42: =IF(INTRO!$E$49="","",ROUND($D42*INTRO!$E$49,0)) -> 4403 | G42: =IF(INTRO!$E$50="","",ROUND($D42*INTRO!$E$50,0)) -> 12287 | J42: 1 | K42: 2 | L42: =IF(INTRO!$E$37="Endemic",IF($H42>0,IF($H42=4,"Unknown",IF($H42=99,"Stopped",$D42)),0),"Not required") -> Not required | M42: =IF(INTRO!$E$39="Endemic", IF($I42>0, IF($I42=4,"Unknown",IF($I42=99,"Stopped",$D42)), 0),"Not required") -> Not required | N42: =IF(INTRO!$E$41="Endemic", IF($J42>1, IF($J42=4, "Unknown", IF($J42=99, "Surveillance", E42)), 0),"Not required") -> 0 | O42: =IF(INTRO!$E$41="Endemic", IF($J42>1, IF($J42=4, "Unknown", IF($J42=99, "Surveillance", F42)), 0),"Not required") -> 0 | P42: =IF(INTRO!$E$41="Endemic", IF($J42>1, IF($J42=4, "Unknown", IF($J42=99, "Surveillance", ROUND(D42*INTRO!$E$51,0))), 0),"Not required") -> 0 | Q42: =IF(INTRO!$E$41="Endemic", IF($J42>1, IF($J42=4, "Unknown", IF($J42=99, "Surveillance", SUM($N42:$P42))), 0),"Not required") -> 0 | R42: =IF(INTRO!$E$43="Endemic", IF($K42>1, IF($K42=4, "Unknown", IF($K42=99, "Surveillance", ROUND(E42*0.75,0))), 0),"Not required") -> 1332 | S42: =IF(INTRO!$E$43="Endemic", IF($K42>1, IF($K42=4, "Unknown", IF($K42=99, "Surveillance", F42)), 0),"Not required") -> 4403 | T42: =IF(INTRO!$E$43="Endemic", IF($K42>1, IF($K42=4, "Unknown", IF($K42=99, "Surveillance", G42)), 0),"Not required") -> 12287 | U42: =IF(INTRO!$E$43="Endemic", IF($K42>1, IF($K42=4, "Unknown", IF($K42=99, "Surveillance", SUM($R42:$T42))), 0),"Not required") -> 18022 | X42: 0 | Y42: 1 | AH42: 45435 | AI42: Mahlangatsha | AK42: 18748.78512
A43: =IF(INTRO!$E$33<>0,INTRO!$E$33, " ") -> Eswatini | B43: MANZINI | C43: Mangcongco | D43: 21793 | E43: =IF(INTRO!$E$48="","",ROUND($D43*INTRO!$E$48,0)) -> 2046 | F43: =IF(INTRO!$E$49="","",ROUND($D43*INTRO!$E$49,0)) -> 5073 | G43: =IF(INTRO!$E$50="","",ROUND($D43*INTRO!$E$50,0)) -> 14159 | J43: 0 | K43: 1 | L43: =IF(INTRO!$E$37="Endemic",IF($H43>0,IF($H43=4,"Unknown",IF($H43=99,"Stopped",$D43)),0),"Not required") -> Not required | M43: =IF(INTRO!$E$39="Endemic", IF($I43>0, IF($I43=4,"Unknown",IF($I43=99,"Stopped",$D43)), 0),"Not required") -> Not required | N43: =IF(INTRO!$E$41="Endemic", IF($J43>1, IF($J43=4, "Unknown", IF($J43=99, "Surveillance", E43)), 0),"Not required") -> 0 | O43: =IF(INTRO!$E$41="Endemic", IF($J43>1, IF($J43=4, "Unknown", IF($J43=99, "Surveillance", F43)), 0),"Not required") -> 0 | P43: =IF(INTRO!$E$41="Endemic", IF($J43>1, IF($J43=4, "Unknown", IF($J43=99, "Surveillance", ROUND(D43*INTRO!$E$51,0))), 0),"Not required") -> 0 | Q43: =IF(INTRO!$E$41="Endemic", IF($J43>1, IF($J43=4, "Unknown", IF($J43=99, "Surveillance", SUM($N43:$P43))), 0),"Not required") -> 0 | R43: =IF(INTRO!$E$43="Endemic", IF($K43>1, IF($K43=4, "Unknown", IF($K43=99, "Surveillance", ROUND(E43*0.75,0))), 0),"Not required") -> 0 | S43: =IF(INTRO!$E$43="Endemic", IF($K43>1, IF($K43=4, "Unknown", IF($K43=99, "Surveillance", F43)), 0),"Not required") -> 0 | T43: =IF(INTRO!$E$43="Endemic", IF($K43>1, IF($K43=4, "Unknown", IF($K43=99, "Surveillance", G43)), 0),"Not required") -> 0 | U43: =IF(INTRO!$E$43="Endemic", IF($K43>1, IF($K43=4, "Unknown", IF($K43=99, "Surveillance", SUM($R43:$T43))), 0),"Not required") -> 0 | X43: 0 | Y43: 0 | AH43: 45436 | AI43: Mangcongco | AK43: 21605.37666
A44: =IF(INTRO!$E$33<>0,INTRO!$E$33, " ") -> Eswatini | B44: MANZINI | C44: Manzini North | D44: 36373 | E44: =IF(INTRO!$E$48="","",ROUND($D44*INTRO!$E$48,0)) -> 3415 | F44: =IF(INTRO!$E$49="","",ROUND($D44*INTRO!$E$49,0)) -> 8468 | G44: =IF(INTRO!$E$50="","",ROUND($D44*INTRO!$E$50,0)) -> 23632 | J44: 1 | K44: 2 | L44: =IF(INTRO!$E$37="Endemic",IF($H44>0,IF($H44=4,"Unknown",IF($H44=99,"Stopped",$D44)),0),"Not required") -> Not required | M44: =IF(INTRO!$E$39="Endemic", IF($I44>0, IF($I44=4,"Unknown",IF($I44=99,"Stopped",$D44)), 0),"Not required") -> Not required | N44: =IF(INTRO!$E$41="Endemic", IF($J44>1, IF($J44=4, "Unknown", IF($J44=99, "Surveillance", E44)), 0),"Not required") -> 0 | O44: =IF(INTRO!$E$41="Endemic", IF($J44>1, IF($J44=4, "Unknown", IF($J44=99, "Surveillance", F44)), 0),"Not required") -> 0 | P44: =IF(INTRO!$E$41="Endemic", IF($J44>1, IF($J44=4, "Unknown", IF($J44=99, "Surveillance", ROUND(D44*INTRO!$E$51,0))), 0),"Not required") -> 0 | Q44: =IF(INTRO!$E$41="Endemic", IF($J44>1, IF($J44=4, "Unknown", IF($J44=99, "Surveillance", SUM($N44:$P44))), 0),"Not required") -> 0 | R44: =IF(INTRO!$E$43="Endemic", IF($K44>1, IF($K44=4, "Unknown", IF($K44=99, "Surveillance", ROUND(E44*0.75,0))), 0),"Not required") -> 2561 | S44: =IF(INTRO!$E$43="Endemic", IF($K44>1, IF($K44=4, "Unknown", IF($K44=99, "Surveillance", F44)), 0),"Not required") -> 8468 | T44: =IF(INTRO!$E$43="Endemic", IF($K44>1, IF($K44=4, "Unknown", IF($K44=99, "Surveillance", G44)), 0),"Not required") -> 23632 | U44: =IF(INTRO!$E$43="Endemic", IF($K44>1, IF($K44=4, "Unknown", IF($K44=99, "Surveillance", SUM($R44:$T44))), 0),"Not required") -> 34661 | X44: 0 | Y44: 1 | AH44: 45437 | AI44: Manzini North | AK44: 36059.51404
A45: =IF(INTRO!$E$33<>0,INTRO!$E$33, " ") -> Eswatini | B45: MANZINI | C45: Manzini South | D45: 27684 | E45: =IF(INTRO!$E$48="","",ROUND($D45*INTRO!$E$48,0)) -> 2600 | F45: =IF(INTRO!$E$49="","",ROUND($D45*INTRO!$E$49,0)) -> 6445 | G45: =IF(INTRO!$E$50="","",ROUND($D45*INTRO!$E$50,0)) -> 17986 | J45: 1 | K45: 2 | L45: =IF(INTRO!$E$37="Endemic",IF($H45>0,IF($H45=4,"Unknown",IF($H45=99,"Stopped",$D45)),0),"Not required") -> Not required | M45: =IF(INTRO!$E$39="Endemic", IF($I45>0, IF($I45=4,"Unknown",IF($I45=99,"Stopped",$D45)), 0),"Not required") -> Not required | N45: =IF(INTRO!$E$41="Endemic", IF($J45>1, IF($J45=4, "Unknown", IF($J45=99, "Surveillance", E45)), 0),"Not required") -> 0 | O45: =IF(INTRO!$E$41="Endemic", IF($J45>1, IF($J45=4, "Unknown", IF($J45=99, "Surveillance", F45)), 0),"Not required") -> 0 | P45: =IF(INTRO!$E$41="Endemic", IF($J45>1, IF($J45=4, "Unknown", IF($J45=99, "Surveillance", ROUND(D45*INTRO!$E$51,0))), 0),"Not required") -> 0 | Q45: =IF(INTRO!$E$41="Endemic", IF($J45>1, IF($J45=4, "Unknown", IF($J45=99, "Surveillance", SUM($N45:$P45))), 0),"Not required") -> 0 | R45: =IF(INTRO!$E$43="Endemic", IF($K45>1, IF($K45=4, "Unknown", IF($K45=99, "Surveillance", ROUND(E45*0.75,0))), 0),"Not required") -> 1950 | S45: =IF(INTRO!$E$43="Endemic", IF($K45>1, IF($K45=4, "Unknown", IF($K45=99, "Surveillance", F45)), 0),"Not required") -> 6445 | T45: =IF(INTRO!$E$43="Endemic", IF($K45>1, IF($K45=4, "Unknown", IF($K45=99, "Surveillance", G45)), 0),"Not required") -> 17986 | U45: =IF(INTRO!$E$43="Endemic", IF($K45>1, IF($K45=4, "Unknown", IF($K45=99, "Surveillance", SUM($R45:$T45))), 0),"Not required") -> 26381 | X45: 0 | Y45: 1 | AH45: 45438 | AI45: Manzini South | AK45: 27445.45545
A46: =IF(INTRO!$E$33<>0,INTRO!$E$33, " ") -> Eswatini | B46: MANZINI | C46: Mhlambanyatsi | D46: 10512 | E46: =IF(INTRO!$E$48="","",ROUND($D46*INTRO!$E$48,0)) -> 987 | F46: =IF(INTRO!$E$49="","",ROUND($D46*INTRO!$E$49,0)) -> 2447 | G46: =IF(INTRO!$E$50="","",ROUND($D46*INTRO!$E$50,0)) -> 6830 | J46: 0 | K46: 1 | L46: =IF(INTRO!$E$37="Endemic",IF($H46>0,IF($H46=4,"Unknown",IF($H46=99,"Stopped",$D46)),0),"Not required") -> Not required | M46: =IF(INTRO!$E$39="Endemic", IF($I46>0, IF($I46=4,"Unknown",IF($I46=99,"Stopped",$D46)), 0),"Not required") -> Not required | N46: =IF(INTRO!$E$41="Endemic", IF($J46>1, IF($J46=4, "Unknown", IF($J46=99, "Surveillance", E46)), 0),"Not required") -> 0 | O46: =IF(INTRO!$E$41="Endemic", IF($J46>1, IF($J46=4, "Unknown", IF($J46=99, "Surveillance", F46)), 0),"Not required") -> 0 | P46: =IF(INTRO!$E$41="Endemic", IF($J46>1, IF($J46=4, "Unknown", IF($J46=99, "Surveillance", ROUND(D46*INTRO!$E$51,0))), 0),"Not required") -> 0 | Q46: =IF(INTRO!$E$41="Endemic", IF($J46>1, IF($J46=4, "Unknown", IF($J46=99, "Surveillance", SUM($N46:$P46))), 0),"Not required") -> 0 | R46: =IF(INTRO!$E$43="Endemic", IF($K46>1, IF($K46=4, "Unknown", IF($K46=99, "Surveillance", ROUND(E46*0.75,0))), 0),"Not required") -> 0 | S46: =IF(INTRO!$E$43="Endemic", IF($K46>1, IF($K46=4, "Unknown", IF($K46=99, "Surveillance", F46)), 0),"Not required") -> 0 | T46: =IF(INTRO!$E$43="Endemic", IF($K46>1, IF($K46=4, "Unknown", IF($K46=99, "Surveillance", G46)), 0),"Not required") -> 0 | U46: =IF(INTRO!$E$43="Endemic", IF($K46>1, IF($K46=4, "Unknown", IF($K46=99, "Surveillance", SUM($R46:$T46))), 0),"Not required") -> 0 | X46: 0 | Y46: 0 | AH46: 45439 | AI46: Mhlambanyatsi | AK46: 10421.31787
A47: =IF(INTRO!$E$33<>0,INTRO!$E$33, " ") -> Eswatini | B47: MANZINI | C47: Mkhiweni | D47: 25126 | E47: =IF(INTRO!$E$48="","",ROUND($D47*INTRO!$E$48,0)) -> 2359 | F47: =IF(INTRO!$E$49="","",ROUND($D47*INTRO!$E$49,0)) -> 5849 | G47: =IF(INTRO!$E$50="","",ROUND($D47*INTRO!$E$50,0)) -> 16324 | J47: 1 | K47: 2 | L47: =IF(INTRO!$E$37="Endemic",IF($H47>0,IF($H47=4,"Unknown",IF($H47=99,"Stopped",$D47)),0),"Not required") -> Not required | M47: =IF(INTRO!$E$39="Endemic", IF($I47>0, IF($I47=4,"Unknown",IF($I47=99,"Stopped",$D47)), 0),"Not required") -> Not required | N47: =IF(INTRO!$E$41="Endemic", IF($J47>1, IF($J47=4, "Unknown", IF($J47=99, "Surveillance", E47)), 0),"Not required") -> 0 | O47: =IF(INTRO!$E$41="Endemic", IF($J47>1, IF($J47=4, "Unknown", IF($J47=99, "Surveillance", F47)), 0),"Not required") -> 0 | P47: =IF(INTRO!$E$41="Endemic", IF($J47>1, IF($J47=4, "Unknown", IF($J47=99, "Surveillance", ROUND(D47*INTRO!$E$51,0))), 0),"Not required") -> 0 | Q47: =IF(INTRO!$E$41="Endemic", IF($J47>1, IF($J47=4, "Unknown", IF($J47=99, "Surveillance", SUM($N47:$P47))), 0),"Not required") -> 0 | R47: =IF(INTRO!$E$43="Endemic", IF($K47>1, IF($K47=4, "Unknown", IF($K47=99, "Surveillance", ROUND(E47*0.75,0))), 0),"Not required") -> 1769 | S47: =IF(INTRO!$E$43="Endemic", IF($K47>1, IF($K47=4, "Unknown", IF($K47=99, "Surveillance", F47)), 0),"Not required") -> 5849 | T47: =IF(INTRO!$E$43="Endemic", IF($K47>1, IF($K47=4, "Unknown", IF($K47=99, "Surveillance", G47)), 0),"Not required") -> 16324 | U47: =IF(INTRO!$E$43="Endemic", IF($K47>1, IF($K47=4, "Unknown", IF($K47=99, "Surveillance", SUM($R47:$T47))), 0),"Not required") -> 23942 | X47: 0 | Y47: 1 | AH47: 45440 | AI47: Mkhiweni | AK47: 24908.9691
A48: =IF(INTRO!$E$33<>0,INTRO!$E$33, " ") -> Eswatini | B48: MANZINI | C48: Mtfongwaneni | D48: 16449 | E48: =IF(INTRO!$E$48="","",ROUND($D48*INTRO!$E$48,0)) -> 1545 | F48: =IF(INTRO!$E$49="","",ROUND($D48*INTRO!$E$49,0)) -> 3829 | G48: =IF(INTRO!$E$50="","",ROUND($D48*INTRO!$E$50,0)) -> 10687 | J48: 1 | K48: 1 | L48: =IF(INTRO!$E$37="Endemic",IF($H48>0,IF($H48=4,"Unknown",IF($H48=99,"Stopped",$D48)),0),"Not required") -> Not required | M48: =IF(INTRO!$E$39="Endemic", IF($I48>0, IF($I48=4,"Unknown",IF($I48=99,"Stopped",$D48)), 0),"Not required") -> Not required | N48: =IF(INTRO!$E$41="Endemic", IF($J48>1, IF($J48=4, "Unknown", IF($J48=99, "Surveillance", E48)), 0),"Not required") -> 0 | O48: =IF(INTRO!$E$41="Endemic", IF($J48>1, IF($J48=4, "Unknown", IF($J48=99, "Surveillance", F48)), 0),"Not required") -> 0 | P48: =IF(INTRO!$E$41="Endemic", IF($J48>1, IF($J48=4, "Unknown", IF($J48=99, "Surveillance", ROUND(D48*INTRO!$E$51,0))), 0),"Not required") -> 0 | Q48: =IF(INTRO!$E$41="Endemic", IF($J48>1, IF($J48=4, "Unknown", IF($J48=99, "Surveillance", SUM($N48:$P48))), 0),"Not required") -> 0 | R48: =IF(INTRO!$E$43="Endemic", IF($K48>1, IF($K48=4, "Unknown", IF($K48=99, "Surveillance", ROUND(E48*0.75,0))), 0),"Not required") -> 0 | S48: =IF(INTRO!$E$43="Endemic", IF($K48>1, IF($K48=4, "Unknown", IF($K48=99, "Surveillance", F48)), 0),"Not required") -> 0 | T48: =IF(INTRO!$E$43="Endemic", IF($K48>1, IF($K48=4, "Unknown", IF($K48=99, "Surveillance", G48)), 0),"Not required") -> 0 | U48: =IF(INTRO!$E$43="Endemic", IF($K48>1, IF($K48=4, "Unknown", IF($K48=99, "Surveillance", SUM($R48:$T48))), 0),"Not required") -> 0 | X48: 0 | Y48: 0 | AH48: 45441 | AI48: Mtfongwaneni | AK48: 16307.14928
A49: =IF(INTRO!$E$33<>0,INTRO!$E$33, " ") -> Eswatini | B49: MANZINI | C49: Ngwemphisi | D49: 20914 | E49: =IF(INTRO!$E$48="","",ROUND($D49*INTRO!$E$48,0)) -> 1964 | F49: =IF(INTRO!$E$49="","",ROUND($D49*INTRO!$E$49,0)) -> 4869 | G49: =IF(INTRO!$E$50="","",ROUND($D49*INTRO!$E$50,0)) -> 13588 | J49: 1 | K49: 2 | L49: =IF(INTRO!$E$37="Endemic",IF($H49>0,IF($H49=4,"Unknown",IF($H49=99,"Stopped",$D49)),0),"Not required") -> Not required | M49: =IF(INTRO!$E$39="Endemic", IF($I49>0, IF($I49=4,"Unknown",IF($I49=99,"Stopped",$D49)), 0),"Not required") -> Not required | N49: =IF(INTRO!$E$41="Endemic", IF($J49>1, IF($J49=4, "Unknown", IF($J49=99, "Surveillance", E49)), 0),"Not required") -> 0 | O49: =IF(INTRO!$E$41="Endemic", IF($J49>1, IF($J49=4, "Unknown", IF($J49=99, "Surveillance", F49)), 0),"Not required") -> 0 | P49: =IF(INTRO!$E$41="Endemic", IF($J49>1, IF($J49=4, "Unknown", IF($J49=99, "Surveillance", ROUND(D49*INTRO!$E$51,0))), 0),"Not required") -> 0 | Q49: =IF(INTRO!$E$41="Endemic", IF($J49>1, IF($J49=4, "Unknown", IF($J49=99, "Surveillance", SUM($N49:$P49))), 0),"Not required") -> 0 | R49: =IF(INTRO!$E$43="Endemic", IF($K49>1, IF($K49=4, "Unknown", IF($K49=99, "Surveillance", ROUND(E49*0.75,0))), 0),"Not required") -> 1473 | S49: =IF(INTRO!$E$43="Endemic", IF($K49>1, IF($K49=4, "Unknown", IF($K49=99, "Surveillance", F49)), 0),"Not required") -> 4869 | T49: =IF(INTRO!$E$43="Endemic", IF($K49>1, IF($K49=4, "Unknown", IF($K49=99, "Surveillance", G49)), 0),"Not required") -> 13588 | U49: =IF(INTRO!$E$43="Endemic", IF($K49>1, IF($K49=4, "Unknown", IF($K49=99, "Surveillance", SUM($R49:$T49))), 0),"Not required") -> 19930 | X49: 0 | Y49: 1 | AH49: 45442 | AI49: Ngwempisi | AK49: 20733.43525
A50: =IF(INTRO!$E$33<>0,INTRO!$E$33, " ") -> Eswatini | B50: MANZINI | C50: Nhlambeni | D50: 13384 | E50: =IF(INTRO!$E$48="","",ROUND($D50*INTRO!$E$48,0)) -> 1257 | F50: =IF(INTRO!$E$49="","",ROUND($D50*INTRO!$E$49,0)) -> 3116 | G50: =IF(INTRO!$E$50="","",ROUND($D50*INTRO!$E$50,0)) -> 8696 | J50: 0 | K50: 2 | L50: =IF(INTRO!$E$37="Endemic",IF($H50>0,IF($H50=4,"Unknown",IF($H50=99,"Stopped",$D50)),0),"Not required") -> Not required | M50: =IF(INTRO!$E$39="Endemic", IF($I50>0, IF($I50=4,"Unknown",IF($I50=99,"Stopped",$D50)), 0),"Not required") -> Not required | N50: =IF(INTRO!$E$41="Endemic", IF($J50>1, IF($J50=4, "Unknown", IF($J50=99, "Surveillance", E50)), 0),"Not required") -> 0 | O50: =IF(INTRO!$E$41="Endemic", IF($J50>1, IF($J50=4, "Unknown", IF($J50=99, "Surveillance", F50)), 0),"Not required") -> 0 | P50: =IF(INTRO!$E$41="Endemic", IF($J50>1, IF($J50=4, "Unknown", IF($J50=99, "Surveillance", ROUND(D50*INTRO!$E$51,0))), 0),"Not required") -> 0 | Q50: =IF(INTRO!$E$41="Endemic", IF($J50>1, IF($J50=4, "Unknown", IF($J50=99, "Surveillance", SUM($N50:$P50))), 0),"Not required") -> 0 | R50: =IF(INTRO!$E$43="Endemic", IF($K50>1, IF($K50=4, "Unknown", IF($K50=99, "Surveillance", ROUND(E50*0.75,0))), 0),"Not required") -> 943 | S50: =IF(INTRO!$E$43="Endemic", IF($K50>1, IF($K50=4, "Unknown", IF($K50=99, "Surveillance", F50)), 0),"Not required") -> 3116 | T50: =IF(INTRO!$E$43="Endemic", IF($K50>1, IF($K50=4, "Unknown", IF($K50=99, "Surveillance", G50)), 0),"Not required") -> 8696 | U50: =IF(INTRO!$E$43="Endemic", IF($K50>1, IF($K50=4, "Unknown", IF($K50=99, "Surveillance", SUM($R50:$T50))), 0),"Not required") -> 12755 | X50: 0 | Y50: 1 | AH50: 45443 | AI50: Nhlambeni | AK50: 13268.87311
A51: =IF(INTRO!$E$33<>0,INTRO!$E$33, " ") -> Eswatini | B51: MANZINI | C51: Ntondozi | D51: 15667 | E51: =IF(INTRO!$E$48="","",ROUND($D51*INTRO!$E$48,0)) -> 1471 | F51: =IF(INTRO!$E$49="","",ROUND($D51*INTRO!$E$49,0)) -> 3647 | G51: =IF(INTRO!$E$50="","",ROUND($D51*INTRO!$E$50,0)) -> 10179 | J51: 1 | K51: 2 | L51: =IF(INTRO!$E$37="Endemic",IF($H51>0,IF($H51=4,"Unknown",IF($H51=99,"Stopped",$D51)),0),"Not required") -> Not required | M51: =IF(INTRO!$E$39="Endemic", IF($I51>0, IF($I51=4,"Unknown",IF($I51=99,"Stopped",$D51)), 0),"Not required") -> Not required | N51: =IF(INTRO!$E$41="Endemic", IF($J51>1, IF($J51=4, "Unknown", IF($J51=99, "Surveillance", E51)), 0),"Not required") -> 0 | O51: =IF(INTRO!$E$41="Endemic", IF($J51>1, IF($J51=4, "Unknown", IF($J51=99, "Surveillance", F51)), 0),"Not required") -> 0 | P51: =IF(INTRO!$E$41="Endemic", IF($J51>1, IF($J51=4, "Unknown", IF($J51=99, "Surveillance", ROUND(D51*INTRO!$E$51,0))), 0),"Not required") -> 0 | Q51: =IF(INTRO!$E$41="Endemic", IF($J51>1, IF($J51=4, "Unknown", IF($J51=99, "Surveillance", SUM($N51:$P51))), 0),"Not required") -> 0 | R51: =IF(INTRO!$E$43="Endemic", IF($K51>1, IF($K51=4, "Unknown", IF($K51=99, "Surveillance", ROUND(E51*0.75,0))), 0),"Not required") -> 1103 | S51: =IF(INTRO!$E$43="Endemic", IF($K51>1, IF($K51=4, "Unknown", IF($K51=99, "Surveillance", F51)), 0),"Not required") -> 3647 | T51: =IF(INTRO!$E$43="Endemic", IF($K51>1, IF($K51=4, "Unknown", IF($K51=99, "Surveillance", G51)), 0),"Not required") -> 10179 | U51: =IF(INTRO!$E$43="Endemic", IF($K51>1, IF($K51=4, "Unknown", IF($K51=99, "Surveillance", SUM($R51:$T51))), 0),"Not required") -> 14929 | X51: 0 | Y51: 1 | AH51: 45444 | AI51: Ntondozi | AK51: 15532.02679
A52: =IF(INTRO!$E$33<>0,INTRO!$E$33, " ") -> Eswatini | B52: MANZINI | C52: Nkomiyahlaba | D52: 14696 | E52: =IF(INTRO!$E$48="","",ROUND($D52*INTRO!$E$48,0)) -> 1380 | F52: =IF(INTRO!$E$49="","",ROUND($D52*INTRO!$E$49,0)) -> 3421 | G52: =IF(INTRO!$E$50="","",ROUND($D52*INTRO!$E$50,0)) -> 9548 | J52: 1 | K52: 2 | L52: =IF(INTRO!$E$37="Endemic",IF($H52>0,IF($H52=4,"Unknown",IF($H52=99,"Stopped",$D52)),0),"Not required") -> Not required | M52: =IF(INTRO!$E$39="Endemic", IF($I52>0, IF($I52=4,"Unknown",IF($I52=99,"Stopped",$D52)), 0),"Not required") -> Not required | N52: =IF(INTRO!$E$41="Endemic", IF($J52>1, IF($J52=4, "Unknown", IF($J52=99, "Surveillance", E52)), 0),"Not required") -> 0 | O52: =IF(INTRO!$E$41="Endemic", IF($J52>1, IF($J52=4, "Unknown", IF($J52=99, "Surveillance", F52)), 0),"Not required") -> 0 | P52: =IF(INTRO!$E$41="Endemic", IF($J52>1, IF($J52=4, "Unknown", IF($J52=99, "Surveillance", ROUND(D52*INTRO!$E$51,0))), 0),"Not required") -> 0 | Q52: =IF(INTRO!$E$41="Endemic", IF($J52>1, IF($J52=4, "Unknown", IF($J52=99, "Surveillance", SUM($N52:$P52))), 0),"Not required") -> 0 | R52: =IF(INTRO!$E$43="Endemic", IF($K52>1, IF($K52=4, "Unknown", IF($K52=99, "Surveillance", ROUND(E52*0.75,0))), 0),"Not required") -> 1035 | S52: =IF(INTRO!$E$43="Endemic", IF($K52>1, IF($K52=4, "Unknown", IF($K52=99, "Surveillance", F52)), 0),"Not required") -> 3421 | T52: =IF(INTRO!$E$43="Endemic", IF($K52>1, IF($K52=4, "Unknown", IF($K52=99, "Surveillance", G52)), 0),"Not required") -> 9548 | U52: =IF(INTRO!$E$43="Endemic", IF($K52>1, IF($K52=4, "Unknown", IF($K52=99, "Surveillance", SUM($R52:$T52))), 0),"Not required") -> 14004 | X52: 0 | Y52: 1 | AH52: 45461 | AI52: Nkomiyahlaba | AK52: 14569.24307
A53: =IF(INTRO!$E$33<>0,INTRO!$E$33, " ") -> Eswatini | B53: MANZINI | C53: Phondo | D53: 24650 | E53: =IF(INTRO!$E$48="","",ROUND($D53*INTRO!$E$48,0)) -> 2315 | F53: =IF(INTRO!$E$49="","",ROUND($D53*INTRO!$E$49,0)) -> 5739 | G53: =IF(INTRO!$E$50="","",ROUND($D53*INTRO!$E$50,0)) -> 16015 | J53: 1 | K53: 2 | L53: =IF(INTRO!$E$37="Endemic",IF($H53>0,IF($H53=4,"Unknown",IF($H53=99,"Stopped",$D53)),0),"Not required") -> Not required | M53: =IF(INTRO!$E$39="Endemic", IF($I53>0, IF($I53=4,"Unknown",IF($I53=99,"Stopped",$D53)), 0),"Not required") -> Not required | N53: =IF(INTRO!$E$41="Endemic", IF($J53>1, IF($J53=4, "Unknown", IF($J53=99, "Surveillance", E53)), 0),"Not required") -> 0 | O53: =IF(INTRO!$E$41="Endemic", IF($J53>1, IF($J53=4, "Unknown", IF($J53=99, "Surveillance", F53)), 0),"Not required") -> 0 | P53: =IF(INTRO!$E$41="Endemic", IF($J53>1, IF($J53=4, "Unknown", IF($J53=99, "Surveillance", ROUND(D53*INTRO!$E$51,0))), 0),"Not required") -> 0 | Q53: =IF(INTRO!$E$41="Endemic", IF($J53>1, IF($J53=4, "Unknown", IF($J53=99, "Surveillance", SUM($N53:$P53))), 0),"Not required") -> 0 | R53: =IF(INTRO!$E$43="Endemic", IF($K53>1, IF($K53=4, "Unknown", IF($K53=99, "Surveillance", ROUND(E53*0.75,0))), 0),"Not required") -> 1736 | S53: =IF(INTRO!$E$43="Endemic", IF($K53>1, IF($K53=4, "Unknown", IF($K53=99, "Surveillance", F53)), 0),"Not required") -> 5739 | T53: =IF(INTRO!$E$43="Endemic", IF($K53>1, IF($K53=4, "Unknown", IF($K53=99, "Surveillance", G53)), 0),"Not required") -> 16015 | U53: =IF(INTRO!$E$43="Endemic", IF($K53>1, IF($K53=4, "Unknown", IF($K53=99, "Surveillance", SUM($R53:$T53))), 0),"Not required") -> 23490 | X53: 0 | Y53: 1 | AH53: 45462 | AI53: Phondo | AK53: 24437.77622
A54: =IF(INTRO!$E$33<>0,INTRO!$E$33, " ") -> Eswatini | B54: SHISELWENI | C54: Gege | D54: 18734 | E54: =IF(INTRO!$E$48="","",ROUND($D54*INTRO!$E$48,0)) -> 1759 | F54: =IF(INTRO!$E$49="","",ROUND($D54*INTRO!$E$49,0)) -> 4361 | G54: =IF(INTRO!$E$50="","",ROUND($D54*INTRO!$E$50,0)) -> 12171 | J54: 1 | K54: 1 | L54: =IF(INTRO!$E$37="Endemic",IF($H54>0,IF($H54=4,"Unknown",IF($H54=99,"Stopped",$D54)),0),"Not required") -> Not required | M54: =IF(INTRO!$E$39="Endemic", IF($I54>0, IF($I54=4,"Unknown",IF($I54=99,"Stopped",$D54)), 0),"Not required") -> Not required | N54: =IF(INTRO!$E$41="Endemic", IF($J54>1, IF($J54=4, "Unknown", IF($J54=99, "Surveillance", E54)), 0),"Not required") -> 0 | O54: =IF(INTRO!$E$41="Endemic", IF($J54>1, IF($J54=4, "Unknown", IF($J54=99, "Surveillance", F54)), 0),"Not required") -> 0 | P54: =IF(INTRO!$E$41="Endemic", IF($J54>1, IF($J54=4, "Unknown", IF($J54=99, "Surveillance", ROUND(D54*INTRO!$E$51,0))), 0),"Not required") -> 0 | Q54: =IF(INTRO!$E$41="Endemic", IF($J54>1, IF($J54=4, "Unknown", IF($J54=99, "Surveillance", SUM($N54:$P54))), 0),"Not required") -> 0 | R54: =IF(INTRO!$E$43="Endemic", IF($K54>1, IF($K54=4, "Unknown", IF($K54=99, "Surveillance", ROUND(E54*0.75,0))), 0),"Not required") -> 0 | S54: =IF(INTRO!$E$43="Endemic", IF($K54>1, IF($K54=4, "Unknown", IF($K54=99, "Surveillance", F54)), 0),"Not required") -> 0 | T54: =IF(INTRO!$E$43="Endemic", IF($K54>1, IF($K54=4, "Unknown", IF($K54=99, "Surveillance", G54)), 0),"Not required") -> 0 | U54: =IF(INTRO!$E$43="Endemic", IF($K54>1, IF($K54=4, "Unknown", IF($K54=99, "Surveillance", SUM($R54:$T54))), 0),"Not required") -> 0 | X54: 0 | Y54: 0 | AH54: 45445 | AI54: Gege | AK54: 18572.34276
A55: =IF(INTRO!$E$33<>0,INTRO!$E$33, " ") -> Eswatini | B55: SHISELWENI | C55: Hosea | D55: 15586 | E55: =IF(INTRO!$E$48="","",ROUND($D55*INTRO!$E$48,0)) -> 1464 | F55: =IF(INTRO!$E$49="","",ROUND($D55*INTRO!$E$49,0)) -> 3628 | G55: =IF(INTRO!$E$50="","",ROUND($D55*INTRO!$E$50,0)) -> 10126 | J55: 0 | K55: 2 | L55: =IF(INTRO!$E$37="Endemic",IF($H55>0,IF($H55=4,"Unknown",IF($H55=99,"Stopped",$D55)),0),"Not required") -> Not required | M55: =IF(INTRO!$E$39="Endemic", IF($I55>0, IF($I55=4,"Unknown",IF($I55=99,"Stopped",$D55)), 0),"Not required") -> Not required | N55: =IF(INTRO!$E$41="Endemic", IF($J55>1, IF($J55=4, "Unknown", IF($J55=99, "Surveillance", E55)), 0),"Not required") -> 0 | O55: =IF(INTRO!$E$41="Endemic", IF($J55>1, IF($J55=4, "Unknown", IF($J55=99, "Surveillance", F55)), 0),"Not required") -> 0 | P55: =IF(INTRO!$E$41="Endemic", IF($J55>1, IF($J55=4, "Unknown", IF($J55=99, "Surveillance", ROUND(D55*INTRO!$E$51,0))), 0),"Not required") -> 0 | Q55: =IF(INTRO!$E$41="Endemic", IF($J55>1, IF($J55=4, "Unknown", IF($J55=99, "Surveillance", SUM($N55:$P55))), 0),"Not required") -> 0 | R55: =IF(INTRO!$E$43="Endemic", IF($K55>1, IF($K55=4, "Unknown", IF($K55=99, "Surveillance", ROUND(E55*0.75,0))), 0),"Not required") -> 1098 | S55: =IF(INTRO!$E$43="Endemic", IF($K55>1, IF($K55=4, "Unknown", IF($K55=99, "Surveillance", F55)), 0),"Not required") -> 3628 | T55: =IF(INTRO!$E$43="Endemic", IF($K55>1, IF($K55=4, "Unknown", IF($K55=99, "Surveillance", G55)), 0),"Not required") -> 10126 | U55: =IF(INTRO!$E$43="Endemic", IF($K55>1, IF($K55=4, "Unknown", IF($K55=99, "Surveillance", SUM($R55:$T55))), 0),"Not required") -> 14852 | X55: 0 | Y55: 1 | AH55: 45446 | AI55: Hosea | AK55: 15451.45485
A56: =IF(INTRO!$E$33<>0,INTRO!$E$33, " ") -> Eswatini | B56: SHISELWENI | C56: Khubutha | D56: 6190 | E56: =IF(INTRO!$E$48="","",ROUND($D56*INTRO!$E$48,0)) -> 581 | F56: =IF(INTRO!$E$49="","",ROUND($D56*INTRO!$E$49,0)) -> 1441 | G56: =IF(INTRO!$E$50="","",ROUND($D56*INTRO!$E$50,0)) -> 4022 | J56: 1 | K56: 2 | L56: =IF(INTRO!$E$37="Endemic",IF($H56>0,IF($H56=4,"Unknown",IF($H56=99,"Stopped",$D56)),0),"Not required") -> Not required | M56: =IF(INTRO!$E$39="Endemic", IF($I56>0, IF($I56=4,"Unknown",IF($I56=99,"Stopped",$D56)), 0),"Not required") -> Not required | N56: =IF(INTRO!$E$41="Endemic", IF($J56>1, IF($J56=4, "Unknown", IF($J56=99, "Surveillance", E56)), 0),"Not required") -> 0 | O56: =IF(INTRO!$E$41="Endemic", IF($J56>1, IF($J56=4, "Unknown", IF($J56=99, "Surveillance", F56)), 0),"Not required") -> 0 | P56: =IF(INTRO!$E$41="Endemic", IF($J56>1, IF($J56=4, "Unknown", IF($J56=99, "Surveillance", ROUND(D56*INTRO!$E$51,0))), 0),"Not required") -> 0 | Q56: =IF(INTRO!$E$41="Endemic", IF($J56>1, IF($J56=4, "Unknown", IF($J56=99, "Surveillance", SUM($N56:$P56))), 0),"Not required") -> 0 | R56: =IF(INTRO!$E$43="Endemic", IF($K56>1, IF($K56=4, "Unknown", IF($K56=99, "Surveillance", ROUND(E56*0.75,0))), 0),"Not required") -> 436 | S56: =IF(INTRO!$E$43="Endemic", IF($K56>1, IF($K56=4, "Unknown", IF($K56=99, "Surveillance", F56)), 0),"Not required") -> 1441 | T56: =IF(INTRO!$E$43="Endemic", IF($K56>1, IF($K56=4, "Unknown", IF($K56=99, "Surveillance", G56)), 0),"Not required") -> 4022 | U56: =IF(INTRO!$E$43="Endemic", IF($K56>1, IF($K56=4, "Unknown", IF($K56=99, "Surveillance", SUM($R56:$T56))), 0),"Not required") -> 5899 | X56: 0 | Y56: 1 | AH56: 45447 | AI56: Kubuta | AK56: 6136.726326
A57: =IF(INTRO!$E$33<>0,INTRO!$E$33, " ") -> Eswatini | B57: SHISELWENI | C57: Maseyisini | D57: 31317 | E57: =IF(INTRO!$E$48="","",ROUND($D57*INTRO!$E$48,0)) -> 2941 | F57: =IF(INTRO!$E$49="","",ROUND($D57*INTRO!$E$49,0)) -> 7291 | G57: =IF(INTRO!$E$50="","",ROUND($D57*INTRO!$E$50,0)) -> 20347 | J57: 1 | K57: 2 | L57: =IF(INTRO!$E$37="Endemic",IF($H57>0,IF($H57=4,"Unknown",IF($H57=99,"Stopped",$D57)),0),"Not required") -> Not required | M57: =IF(INTRO!$E$39="Endemic", IF($I57>0, IF($I57=4,"Unknown",IF($I57=99,"Stopped",$D57)), 0),"Not required") -> Not required | N57: =IF(INTRO!$E$41="Endemic", IF($J57>1, IF($J57=4, "Unknown", IF($J57=99, "Surveillance", E57)), 0),"Not required") -> 0 | O57: =IF(INTRO!$E$41="Endemic", IF($J57>1, IF($J57=4, "Unknown", IF($J57=99, "Surveillance", F57)), 0),"Not required") -> 0 | P57: =IF(INTRO!$E$41="Endemic", IF($J57>1, IF($J57=4, "Unknown", IF($J57=99, "Surveillance", ROUND(D57*INTRO!$E$51,0))), 0),"Not required") -> 0 | Q57: =IF(INTRO!$E$41="Endemic", IF($J57>1, IF($J57=4, "Unknown", IF($J57=99, "Surveillance", SUM($N57:$P57))), 0),"Not required") -> 0 | R57: =IF(INTRO!$E$43="Endemic", IF($K57>1, IF($K57=4, "Unknown", IF($K57=99, "Surveillance", ROUND(E57*0.75,0))), 0),"Not required") -> 2206 | S57: =IF(INTRO!$E$43="Endemic", IF($K57>1, IF($K57=4, "Unknown", IF($K57=99, "Surveillance", F57)), 0),"Not required") -> 7291 | T57: =IF(INTRO!$E$43="Endemic", IF($K57>1, IF($K57=4, "Unknown", IF($K57=99, "Surveillance", G57)), 0),"Not required") -> 20347 | U57: =IF(INTRO!$E$43="Endemic", IF($K57>1, IF($K57=4, "Unknown", IF($K57=99, "Surveillance", SUM($R57:$T57))), 0),"Not required") -> 29844 | X57: 0 | Y57: 1 | AH57: 45449 | AI57: Maseyisini | AK57: 31046.71532
A58: =IF(INTRO!$E$33<>0,INTRO!$E$33, " ") -> Eswatini | B58: SHISELWENI | C58: Matsanjeni South | D58: 11127 | E58: =IF(INTRO!$E$48="","",ROUND($D58*INTRO!$E$48,0)) -> 1045 | F58: =IF(INTRO!$E$49="","",ROUND($D58*INTRO!$E$49,0)) -> 2590 | G58: =IF(INTRO!$E$50="","",ROUND($D58*INTRO!$E$50,0)) -> 7229 | J58: 1 | K58: 1 | L58: =IF(INTRO!$E$37="Endemic",IF($H58>0,IF($H58=4,"Unknown",IF($H58=99,"Stopped",$D58)),0),"Not required") -> Not required | M58: =IF(INTRO!$E$39="Endemic", IF($I58>0, IF($I58=4,"Unknown",IF($I58=99,"Stopped",$D58)), 0),"Not required") -> Not required | N58: =IF(INTRO!$E$41="Endemic", IF($J58>1, IF($J58=4, "Unknown", IF($J58=99, "Surveillance", E58)), 0),"Not required") -> 0 | O58: =IF(INTRO!$E$41="Endemic", IF($J58>1, IF($J58=4, "Unknown", IF($J58=99, "Surveillance", F58)), 0),"Not required") -> 0 | P58: =IF(INTRO!$E$41="Endemic", IF($J58>1, IF($J58=4, "Unknown", IF($J58=99, "Surveillance", ROUND(D58*INTRO!$E$51,0))), 0),"Not required") -> 0 | Q58: =IF(INTRO!$E$41="Endemic", IF($J58>1, IF($J58=4, "Unknown", IF($J58=99, "Surveillance", SUM($N58:$P58))), 0),"Not required") -> 0 | R58: =IF(INTRO!$E$43="Endemic", IF($K58>1, IF($K58=4, "Unknown", IF($K58=99, "Surveillance", ROUND(E58*0.75,0))), 0),"Not required") -> 0 | S58: =IF(INTRO!$E$43="Endemic", IF($K58>1, IF($K58=4, "Unknown", IF($K58=99, "Surveillance", F58)), 0),"Not required") -> 0 | T58: =IF(INTRO!$E$43="Endemic", IF($K58>1, IF($K58=4, "Unknown", IF($K58=99, "Surveillance", G58)), 0),"Not required") -> 0 | U58: =IF(INTRO!$E$43="Endemic", IF($K58>1, IF($K58=4, "Unknown", IF($K58=99, "Surveillance", SUM($R58:$T58))), 0),"Not required") -> 0 | X58: 0 | Y58: 0 | AH58: 45450 | AI58: Matsanjeni South | AK58: 11031.21688
A59: =IF(INTRO!$E$33<>0,INTRO!$E$33, " ") -> Eswatini | B59: SHISELWENI | C59: Methula | D59: 18955 | E59: =IF(INTRO!$E$48="","",ROUND($D59*INTRO!$E$48,0)) -> 1780 | F59: =IF(INTRO!$E$49="","",ROUND($D59*INTRO!$E$49,0)) -> 4413 | G59: =IF(INTRO!$E$50="","",ROUND($D59*INTRO!$E$50,0)) -> 12315 | J59: 1 | K59: 2 | L59: =IF(INTRO!$E$37="Endemic",IF($H59>0,IF($H59=4,"Unknown",IF($H59=99,"Stopped",$D59)),0),"Not required") -> Not required | M59: =IF(INTRO!$E$39="Endemic", IF($I59>0, IF($I59=4,"Unknown",IF($I59=99,"Stopped",$D59)), 0),"Not required") -> Not required | N59: =IF(INTRO!$E$41="Endemic", IF($J59>1, IF($J59=4, "Unknown", IF($J59=99, "Surveillance", E59)), 0),"Not required") -> 0 | O59: =IF(INTRO!$E$41="Endemic", IF($J59>1, IF($J59=4, "Unknown", IF($J59=99, "Surveillance", F59)), 0),"Not required") -> 0 | P59: =IF(INTRO!$E$41="Endemic", IF($J59>1, IF($J59=4, "Unknown", IF($J59=99, "Surveillance", ROUND(D59*INTRO!$E$51,0))), 0),"Not required") -> 0 | Q59: =IF(INTRO!$E$41="Endemic", IF($J59>1, IF($J59=4, "Unknown", IF($J59=99, "Surveillance", SUM($N59:$P59))), 0),"Not required") -> 0 | R59: =IF(INTRO!$E$43="Endemic", IF($K59>1, IF($K59=4, "Unknown", IF($K59=99, "Surveillance", ROUND(E59*0.75,0))), 0),"Not required") -> 1335 | S59: =IF(INTRO!$E$43="Endemic", IF($K59>1, IF($K59=4, "Unknown", IF($K59=99, "Surveillance", F59)), 0),"Not required") -> 4413 | T59: =IF(INTRO!$E$43="Endemic", IF($K59>1, IF($K59=4, "Unknown", IF($K59=99, "Surveillance", G59)), 0),"Not required") -> 12315 | U59: =IF(INTRO!$E$43="Endemic", IF($K59>1, IF($K59=4, "Unknown", IF($K59=99, "Surveillance", SUM($R59:$T59))), 0),"Not required") -> 18063 | X59: 0 | Y59: 1 | AH59: 45463 | AI59: Methula | AK59: 18791.62083
A60: =IF(INTRO!$E$33<>0,INTRO!$E$33, " ") -> Eswatini | B60: SHISELWENI | C60: Mbangweni/Shiselweni 2 | D60: 34188 | E60: =IF(INTRO!$E$48="","",ROUND($D60*INTRO!$E$48,0)) -> 3210 | F60: =IF(INTRO!$E$49="","",ROUND($D60*INTRO!$E$49,0)) -> 7959 | G60: =IF(INTRO!$E$50="","",ROUND($D60*INTRO!$E$50,0)) -> 22212 | J60: 1 | K60: 2 | L60: =IF(INTRO!$E$37="Endemic",IF($H60>0,IF($H60=4,"Unknown",IF($H60=99,"Stopped",$D60)),0),"Not required") -> Not required | M60: =IF(INTRO!$E$39="Endemic", IF($I60>0, IF($I60=4,"Unknown",IF($I60=99,"Stopped",$D60)), 0),"Not required") -> Not required | N60: =IF(INTRO!$E$41="Endemic", IF($J60>1, IF($J60=4, "Unknown", IF($J60=99, "Surveillance", E60)), 0),"Not required") -> 0 | O60: =IF(INTRO!$E$41="Endemic", IF($J60>1, IF($J60=4, "Unknown", IF($J60=99, "Surveillance", F60)), 0),"Not required") -> 0 | P60: =IF(INTRO!$E$41="Endemic", IF($J60>1, IF($J60=4, "Unknown", IF($J60=99, "Surveillance", ROUND(D60*INTRO!$E$51,0))), 0),"Not required") -> 0 | Q60: =IF(INTRO!$E$41="Endemic", IF($J60>1, IF($J60=4, "Unknown", IF($J60=99, "Surveillance", SUM($N60:$P60))), 0),"Not required") -> 0 | R60: =IF(INTRO!$E$43="Endemic", IF($K60>1, IF($K60=4, "Unknown", IF($K60=99, "Surveillance", ROUND(E60*0.75,0))), 0),"Not required") -> 2408 | S60: =IF(INTRO!$E$43="Endemic", IF($K60>1, IF($K60=4, "Unknown", IF($K60=99, "Surveillance", F60)), 0),"Not required") -> 7959 | T60: =IF(INTRO!$E$43="Endemic", IF($K60>1, IF($K60=4, "Unknown", IF($K60=99, "Surveillance", G60)), 0),"Not required") -> 22212 | U60: =IF(INTRO!$E$43="Endemic", IF($K60>1, IF($K60=4, "Unknown", IF($K60=99, "Surveillance", SUM($R60:$T60))), 0),"Not required") -> 32579 | X60: 0 | Y60: 1 | AH60: 45451 | AI60: Shiselweni 2 | AK60: 33893.25067
A61: =IF(INTRO!$E$33<>0,INTRO!$E$33, " ") -> Eswatini | B61: SHISELWENI | C61: Mtsambama | D61: 19227 | E61: =IF(INTRO!$E$48="","",ROUND($D61*INTRO!$E$48,0)) -> 1805 | F61: =IF(INTRO!$E$49="","",ROUND($D61*INTRO!$E$49,0)) -> 4476 | G61: =IF(INTRO!$E$50="","",ROUND($D61*INTRO!$E$50,0)) -> 12492 | J61: 1 | K61: 2 | L61: =IF(INTRO!$E$37="Endemic",IF($H61>0,IF($H61=4,"Unknown",IF($H61=99,"Stopped",$D61)),0),"Not required") -> Not required | M61: =IF(INTRO!$E$39="Endemic", IF($I61>0, IF($I61=4,"Unknown",IF($I61=99,"Stopped",$D61)), 0),"Not required") -> Not required | N61: =IF(INTRO!$E$41="Endemic", IF($J61>1, IF($J61=4, "Unknown", IF($J61=99, "Surveillance", E61)), 0),"Not required") -> 0 | O61: =IF(INTRO!$E$41="Endemic", IF($J61>1, IF($J61=4, "Unknown", IF($J61=99, "Surveillance", F61)), 0),"Not required") -> 0 | P61: =IF(INTRO!$E$41="Endemic", IF($J61>1, IF($J61=4, "Unknown", IF($J61=99, "Surveillance", ROUND(D61*INTRO!$E$51,0))), 0),"Not required") -> 0 | Q61: =IF(INTRO!$E$41="Endemic", IF($J61>1, IF($J61=4, "Unknown", IF($J61=99, "Surveillance", SUM($N61:$P61))), 0),"Not required") -> 0 | R61: =IF(INTRO!$E$43="Endemic", IF($K61>1, IF($K61=4, "Unknown", IF($K61=99, "Surveillance", ROUND(E61*0.75,0))), 0),"Not required") -> 1354 | S61: =IF(INTRO!$E$43="Endemic", IF($K61>1, IF($K61=4, "Unknown", IF($K61=99, "Surveillance", F61)), 0),"Not required") -> 4476 | T61: =IF(INTRO!$E$43="Endemic", IF($K61>1, IF($K61=4, "Unknown", IF($K61=99, "Surveillance", G61)), 0),"Not required") -> 12492 | U61: =IF(INTRO!$E$43="Endemic", IF($K61>1, IF($K61=4, "Unknown", IF($K61=99, "Surveillance", SUM($R61:$T61))), 0),"Not required") -> 18322 | X61: 0 | Y61: 1 | AH61: 45452 | AI61: Mtsambama | AK61: 19060.87391
A62: =IF(INTRO!$E$33<>0,INTRO!$E$33, " ") -> Eswatini | B62: SHISELWENI | C62: Ngudzeni | D62: 9381 | E62: =IF(INTRO!$E$48="","",ROUND($D62*INTRO!$E$48,0)) -> 881 | F62: =IF(INTRO!$E$49="","",ROUND($D62*INTRO!$E$49,0)) -> 2184 | G62: =IF(INTRO!$E$50="","",ROUND($D62*INTRO!$E$50,0)) -> 6095 | J62: 1 | K62: 3 | L62: =IF(INTRO!$E$37="Endemic",IF($H62>0,IF($H62=4,"Unknown",IF($H62=99,"Stopped",$D62)),0),"Not required") -> Not required | M62: =IF(INTRO!$E$39="Endemic", IF($I62>0, IF($I62=4,"Unknown",IF($I62=99,"Stopped",$D62)), 0),"Not required") -> Not required | N62: =IF(INTRO!$E$41="Endemic", IF($J62>1, IF($J62=4, "Unknown", IF($J62=99, "Surveillance", E62)), 0),"Not required") -> 0 | O62: =IF(INTRO!$E$41="Endemic", IF($J62>1, IF($J62=4, "Unknown", IF($J62=99, "Surveillance", F62)), 0),"Not required") -> 0 | P62: =IF(INTRO!$E$41="Endemic", IF($J62>1, IF($J62=4, "Unknown", IF($J62=99, "Surveillance", ROUND(D62*INTRO!$E$51,0))), 0),"Not required") -> 0 | Q62: =IF(INTRO!$E$41="Endemic", IF($J62>1, IF($J62=4, "Unknown", IF($J62=99, "Surveillance", SUM($N62:$P62))), 0),"Not required") -> 0 | R62: =IF(INTRO!$E$43="Endemic", IF($K62>1, IF($K62=4, "Unknown", IF($K62=99, "Surveillance", ROUND(E62*0.75,0))), 0),"Not required") -> 661 | S62: =IF(INTRO!$E$43="Endemic", IF($K62>1, IF($K62=4, "Unknown", IF($K62=99, "Surveillance", F62)), 0),"Not required") -> 2184 | T62: =IF(INTRO!$E$43="Endemic", IF($K62>1, IF($K62=4, "Unknown", IF($K62=99, "Surveillance", G62)), 0),"Not required") -> 6095 | U62: =IF(INTRO!$E$43="Endemic", IF($K62>1, IF($K62=4, "Unknown", IF($K62=99, "Surveillance", SUM($R62:$T62))), 0),"Not required") -> 8940 | X62: 0 | Y62: 1 | AH62: 45453 | AI62: Ngudzeni | AK62: 9300.449953
A63: =IF(INTRO!$E$33<>0,INTRO!$E$33, " ") -> Eswatini | B63: SHISELWENI | C63: Nkwene | D63: 7157 | E63: =IF(INTRO!$E$48="","",ROUND($D63*INTRO!$E$48,0)) -> 672 | F63: =IF(INTRO!$E$49="","",ROUND($D63*INTRO!$E$49,0)) -> 1666 | G63: =IF(INTRO!$E$50="","",ROUND($D63*INTRO!$E$50,0)) -> 4650 | J63: 1 | K63: 2 | L63: =IF(INTRO!$E$37="Endemic",IF($H63>0,IF($H63=4,"Unknown",IF($H63=99,"Stopped",$D63)),0),"Not required") -> Not required | M63: =IF(INTRO!$E$39="Endemic", IF($I63>0, IF($I63=4,"Unknown",IF($I63=99,"Stopped",$D63)), 0),"Not required") -> Not required | N63: =IF(INTRO!$E$41="Endemic", IF($J63>1, IF($J63=4, "Unknown", IF($J63=99, "Surveillance", E63)), 0),"Not required") -> 0 | O63: =IF(INTRO!$E$41="Endemic", IF($J63>1, IF($J63=4, "Unknown", IF($J63=99, "Surveillance", F63)), 0),"Not required") -> 0 | P63: =IF(INTRO!$E$41="Endemic", IF($J63>1, IF($J63=4, "Unknown", IF($J63=99, "Surveillance", ROUND(D63*INTRO!$E$51,0))), 0),"Not required") -> 0 | Q63: =IF(INTRO!$E$41="Endemic", IF($J63>1, IF($J63=4, "Unknown", IF($J63=99, "Surveillance", SUM($N63:$P63))), 0),"Not required") -> 0 | R63: =IF(INTRO!$E$43="Endemic", IF($K63>1, IF($K63=4, "Unknown", IF($K63=99, "Surveillance", ROUND(E63*0.75,0))), 0),"Not required") -> 504 | S63: =IF(INTRO!$E$43="Endemic", IF($K63>1, IF($K63=4, "Unknown", IF($K63=99, "Surveillance", F63)), 0),"Not required") -> 1666 | T63: =IF(INTRO!$E$43="Endemic", IF($K63>1, IF($K63=4, "Unknown", IF($K63=99, "Surveillance", G63)), 0),"Not required") -> 4650 | U63: =IF(INTRO!$E$43="Endemic", IF($K63>1, IF($K63=4, "Unknown", IF($K63=99, "Surveillance", SUM($R63:$T63))), 0),"Not required") -> 6820 | X63: 0 | Y63: 1 | AH63: 45454 | AI63: Nkwene | AK63: 7095.430456
A64: =IF(INTRO!$E$33<>0,INTRO!$E$33, " ") -> Eswatini | B64: SHISELWENI | C64: Sandleni | D64: 18910 | E64: =IF(INTRO!$E$48="","",ROUND($D64*INTRO!$E$48,0)) -> 1776 | F64: =IF(INTRO!$E$49="","",ROUND($D64*INTRO!$E$49,0)) -> 4402 | G64: =IF(INTRO!$E$50="","",ROUND($D64*INTRO!$E$50,0)) -> 12286 | J64: 1 | K64: 2 | L64: =IF(INTRO!$E$37="Endemic",IF($H64>0,IF($H64=4,"Unknown",IF($H64=99,"Stopped",$D64)),0),"Not required") -> Not required | M64: =IF(INTRO!$E$39="Endemic", IF($I64>0, IF($I64=4,"Unknown",IF($I64=99,"Stopped",$D64)), 0),"Not required") -> Not required | N64: =IF(INTRO!$E$41="Endemic", IF($J64>1, IF($J64=4, "Unknown", IF($J64=99, "Surveillance", E64)), 0),"Not required") -> 0 | O64: =IF(INTRO!$E$41="Endemic", IF($J64>1, IF($J64=4, "Unknown", IF($J64=99, "Surveillance", F64)), 0),"Not required") -> 0 | P64: =IF(INTRO!$E$41="Endemic", IF($J64>1, IF($J64=4, "Unknown", IF($J64=99, "Surveillance", ROUND(D64*INTRO!$E$51,0))), 0),"Not required") -> 0 | Q64: =IF(INTRO!$E$41="Endemic", IF($J64>1, IF($J64=4, "Unknown", IF($J64=99, "Surveillance", SUM($N64:$P64))), 0),"Not required") -> 0 | R64: =IF(INTRO!$E$43="Endemic", IF($K64>1, IF($K64=4, "Unknown", IF($K64=99, "Surveillance", ROUND(E64*0.75,0))), 0),"Not required") -> 1332 | S64: =IF(INTRO!$E$43="Endemic", IF($K64>1, IF($K64=4, "Unknown", IF($K64=99, "Surveillance", F64)), 0),"Not required") -> 4402 | T64: =IF(INTRO!$E$43="Endemic", IF($K64>1, IF($K64=4, "Unknown", IF($K64=99, "Surveillance", G64)), 0),"Not required") -> 12286 | U64: =IF(INTRO!$E$43="Endemic", IF($K64>1, IF($K64=4, "Unknown", IF($K64=99, "Surveillance", SUM($R64:$T64))), 0),"Not required") -> 18020 | X64: 0 | Y64: 1 | AH64: 45455 | AI64: Sandleni | AK64: 18746.74532
A65: =IF(INTRO!$E$33<>0,INTRO!$E$33, " ") -> Eswatini | B65: SHISELWENI | C65: Shiselweni 1 | D65: 9805 | E65: =IF(INTRO!$E$48="","",ROUND($D65*INTRO!$E$48,0)) -> 921 | F65: =IF(INTRO!$E$49="","",ROUND($D65*INTRO!$E$49,0)) -> 2283 | G65: =IF(INTRO!$E$50="","",ROUND($D65*INTRO!$E$50,0)) -> 6370 | J65: 1 | K65: 2 | L65: =IF(INTRO!$E$37="Endemic",IF($H65>0,IF($H65=4,"Unknown",IF($H65=99,"Stopped",$D65)),0),"Not required") -> Not required | M65: =IF(INTRO!$E$39="Endemic", IF($I65>0, IF($I65=4,"Unknown",IF($I65=99,"Stopped",$D65)), 0),"Not required") -> Not required | N65: =IF(INTRO!$E$41="Endemic", IF($J65>1, IF($J65=4, "Unknown", IF($J65=99, "Surveillance", E65)), 0),"Not required") -> 0 | O65: =IF(INTRO!$E$41="Endemic", IF($J65>1, IF($J65=4, "Unknown", IF($J65=99, "Surveillance", F65)), 0),"Not required") -> 0 | P65: =IF(INTRO!$E$41="Endemic", IF($J65>1, IF($J65=4, "Unknown", IF($J65=99, "Surveillance", ROUND(D65*INTRO!$E$51,0))), 0),"Not required") -> 0 | Q65: =IF(INTRO!$E$41="Endemic", IF($J65>1, IF($J65=4, "Unknown", IF($J65=99, "Surveillance", SUM($N65:$P65))), 0),"Not required") -> 0 | R65: =IF(INTRO!$E$43="Endemic", IF($K65>1, IF($K65=4, "Unknown", IF($K65=99, "Surveillance", ROUND(E65*0.75,0))), 0),"Not required") -> 691 | S65: =IF(INTRO!$E$43="Endemic", IF($K65>1, IF($K65=4, "Unknown", IF($K65=99, "Surveillance", F65)), 0),"Not required") -> 2283 | T65: =IF(INTRO!$E$43="Endemic", IF($K65>1, IF($K65=4, "Unknown", IF($K65=99, "Surveillance", G65)), 0),"Not required") -> 6370 | U65: =IF(INTRO!$E$43="Endemic", IF($K65>1, IF($K65=4, "Unknown", IF($K65=99, "Surveillance", SUM($R65:$T65))), 0),"Not required") -> 9344 | X65: 0 | Y65: 1 | AH65: 45456 | AI65: Shiselweni 1 | AK65: 9720.647933
A66: =IF(INTRO!$E$33<>0,INTRO!$E$33, " ") -> Eswatini | B66: SHISELWENI | C66: Sigwe | D66: 10408 | E66: =IF(INTRO!$E$48="","",ROUND($D66*INTRO!$E$48,0)) -> 977 | F66: =IF(INTRO!$E$49="","",ROUND($D66*INTRO!$E$49,0)) -> 2423 | G66: =IF(INTRO!$E$50="","",ROUND($D66*INTRO!$E$50,0)) -> 6762 | J66: 1 | K66: 2 | L66: =IF(INTRO!$E$37="Endemic",IF($H66>0,IF($H66=4,"Unknown",IF($H66=99,"Stopped",$D66)),0),"Not required") -> Not required | M66: =IF(INTRO!$E$39="Endemic", IF($I66>0, IF($I66=4,"Unknown",IF($I66=99,"Stopped",$D66)), 0),"Not required") -> Not required | N66: =IF(INTRO!$E$41="Endemic", IF($J66>1, IF($J66=4, "Unknown", IF($J66=99, "Surveillance", E66)), 0),"Not required") -> 0 | O66: =IF(INTRO!$E$41="Endemic", IF($J66>1, IF($J66=4, "Unknown", IF($J66=99, "Surveillance", F66)), 0),"Not required") -> 0 | P66: =IF(INTRO!$E$41="Endemic", IF($J66>1, IF($J66=4, "Unknown", IF($J66=99, "Surveillance", ROUND(D66*INTRO!$E$51,0))), 0),"Not required") -> 0 | Q66: =IF(INTRO!$E$41="Endemic", IF($J66>1, IF($J66=4, "Unknown", IF($J66=99, "Surveillance", SUM($N66:$P66))), 0),"Not required") -> 0 | R66: =IF(INTRO!$E$43="Endemic", IF($K66>1, IF($K66=4, "Unknown", IF($K66=99, "Surveillance", ROUND(E66*0.75,0))), 0),"Not required") -> 733 | S66: =IF(INTRO!$E$43="Endemic", IF($K66>1, IF($K66=4, "Unknown", IF($K66=99, "Surveillance", F66)), 0),"Not required") -> 2423 | T66: =IF(INTRO!$E$43="Endemic", IF($K66>1, IF($K66=4, "Unknown", IF($K66=99, "Surveillance", G66)), 0),"Not required") -> 6762 | U66: =IF(INTRO!$E$43="Endemic", IF($K66>1, IF($K66=4, "Unknown", IF($K66=99, "Surveillance", SUM($R66:$T66))), 0),"Not required") -> 9918 | X66: 0 | Y66: 1 | AH66: 45457 | AI66: Sigwe | AK66: 10318.30817
A67: =IF(INTRO!$E$33<>0,INTRO!$E$33, " ") -> Eswatini | B67: SHISELWENI | C67: Somntongo | D67: 8840 | E67: =IF(INTRO!$E$48="","",ROUND($D67*INTRO!$E$48,0)) -> 830 | F67: =IF(INTRO!$E$49="","",ROUND($D67*INTRO!$E$49,0)) -> 2058 | G67: =IF(INTRO!$E$50="","",ROUND($D67*INTRO!$E$50,0)) -> 5743 | J67: 1 | K67: 0 | L67: =IF(INTRO!$E$37="Endemic",IF($H67>0,IF($H67=4,"Unknown",IF($H67=99,"Stopped",$D67)),0),"Not required") -> Not required | M67: =IF(INTRO!$E$39="Endemic", IF($I67>0, IF($I67=4,"Unknown",IF($I67=99,"Stopped",$D67)), 0),"Not required") -> Not required | N67: =IF(INTRO!$E$41="Endemic", IF($J67>1, IF($J67=4, "Unknown", IF($J67=99, "Surveillance", E67)), 0),"Not required") -> 0 | O67: =IF(INTRO!$E$41="Endemic", IF($J67>1, IF($J67=4, "Unknown", IF($J67=99, "Surveillance", F67)), 0),"Not required") -> 0 | P67: =IF(INTRO!$E$41="Endemic", IF($J67>1, IF($J67=4, "Unknown", IF($J67=99, "Surveillance", ROUND(D67*INTRO!$E$51,0))), 0),"Not required") -> 0 | Q67: =IF(INTRO!$E$41="Endemic", IF($J67>1, IF($J67=4, "Unknown", IF($J67=99, "Surveillance", SUM($N67:$P67))), 0),"Not required") -> 0 | R67: =IF(INTRO!$E$43="Endemic", IF($K67>1, IF($K67=4, "Unknown", IF($K67=99, "Surveillance", ROUND(E67*0.75,0))), 0),"Not required") -> 0 | S67: =IF(INTRO!$E$43="Endemic", IF($K67>1, IF($K67=4, "Unknown", IF($K67=99, "Surveillance", F67)), 0),"Not required") -> 0 | T67: =IF(INTRO!$E$43="Endemic", IF($K67>1, IF($K67=4, "Unknown", IF($K67=99, "Surveillance", G67)), 0),"Not required") -> 0 | U67: =IF(INTRO!$E$43="Endemic", IF($K67>1, IF($K67=4, "Unknown", IF($K67=99, "Surveillance", SUM($R67:$T67))), 0),"Not required") -> 0 | X67: 0 | Y67: 0 | AH67: 45448 | AI67: Somntongo | AK67: 8763.9836
A68: =IF(INTRO!$E$33<>0,INTRO!$E$33, " ") -> Eswatini | B68: SHISELWENI | C68: Zombodze Emuva | D68: 15055 | E68: =IF(INTRO!$E$48="","",ROUND($D68*INTRO!$E$48,0)) -> 1414 | F68: =IF(INTRO!$E$49="","",ROUND($D68*INTRO!$E$49,0)) -> 3505 | G68: =IF(INTRO!$E$50="","",ROUND($D68*INTRO!$E$50,0)) -> 9781 | J68: 1 | K68: 2 | L68: =IF(INTRO!$E$37="Endemic",IF($H68>0,IF($H68=4,"Unknown",IF($H68=99,"Stopped",$D68)),0),"Not required") -> Not required | M68: =IF(INTRO!$E$39="Endemic", IF($I68>0, IF($I68=4,"Unknown",IF($I68=99,"Stopped",$D68)), 0),"Not required") -> Not required | N68: =IF(INTRO!$E$41="Endemic", IF($J68>1, IF($J68=4, "Unknown", IF($J68=99, "Surveillance", E68)), 0),"Not required") -> 0 | O68: =IF(INTRO!$E$41="Endemic", IF($J68>1, IF($J68=4, "Unknown", IF($J68=99, "Surveillance", F68)), 0),"Not required") -> 0 | P68: =IF(INTRO!$E$41="Endemic", IF($J68>1, IF($J68=4, "Unknown", IF($J68=99, "Surveillance", ROUND(D68*INTRO!$E$51,0))), 0),"Not required") -> 0 | Q68: =IF(INTRO!$E$41="Endemic", IF($J68>1, IF($J68=4, "Unknown", IF($J68=99, "Surveillance", SUM($N68:$P68))), 0),"Not required") -> 0 | R68: =IF(INTRO!$E$43="Endemic", IF($K68>1, IF($K68=4, "Unknown", IF($K68=99, "Surveillance", ROUND(E68*0.75,0))), 0),"Not required") -> 1061 | S68: =IF(INTRO!$E$43="Endemic", IF($K68>1, IF($K68=4, "Unknown", IF($K68=99, "Surveillance", F68)), 0),"Not required") -> 3505 | T68: =IF(INTRO!$E$43="Endemic", IF($K68>1, IF($K68=4, "Unknown", IF($K68=99, "Surveillance", G68)), 0),"Not required") -> 9781 | U68: =IF(INTRO!$E$43="Endemic", IF($K68>1, IF($K68=4, "Unknown", IF($K68=99, "Surveillance", SUM($R68:$T68))), 0),"Not required") -> 14347 | X68: 0 | Y68: 1 | AH68: 45458 | AI68: Zombodze Emuva | AK68: 14925.18748

Sheet DEC (hidden)
A1: Diethylcarbamazine citrate (DEC)
A2: Administrative structure, eligible population by age group, treatment plan and information about tablets
A4: TOTAL | D4: =SUBTOTAL(9,D$10:D$1010) -> 0 | E4: 0 | F4: 0 | G4: 0 | I4: =SUBTOTAL(9,I$10:I$1010) -> 0 | J4: 0 | K4: 0 | L4: 0
A6: Country administrative structure | D6: Population requiring treatment with DEC | H6: Treatment plan | I6: Target population | J6: Diethylcarbamazine citrate (DEC)
A7: Country | B7: Province/State | C7: District | D7: PreSAC | E7: SAC | F7: Adults | G7: Total | H7: LF | I7: LF | J7: Total required | K7: Remaining in stock | L7: Tablets to be procured
A10: =IF(INTRO!$E$39<>"Non-endemic", " ", IF(INTRO!$E$37="Non-endemic"," ", IF(COUNTRY_INFO!A10=0," ",COUNTRY_INFO!A10))) ->  | B10: =IF(INTRO!$E$39<>"Non-endemic", " ", IF(INTRO!$E$37="Non-endemic"," ", IF(COUNTRY_INFO!B10=0," ",COUNTRY_INFO!B10))) ->  | C10: =IF(INTRO!$E$39<>"Non-endemic", " ", IF(INTRO!$E$37="Non-endemic"," ", IF(COUNTRY_INFO!C10=0," ",COUNTRY_INFO!C10))) ->  | D10: =IF(INTRO!$E$39<>"Non-endemic", 0, IF(INTRO!$E$37="Non-endemic",0,IF(COUNTRY_INFO!$H10=1,COUNTRY_INFO!E10,0))) -> 0 | E10: =IF(INTRO!$E$39<>"Non-endemic", 0, IF(INTRO!$E$37="Non-endemic",0,IF(COUNTRY_INFO!$H10=1,COUNTRY_INFO!F10,0))) -> 0 | F10: =IF(INTRO!$E$39<>"Non-endemic", 0, IF(INTRO!$E$37="Non-endemic",0,IF(COUNTRY_INFO!$H10=1,COUNTRY_INFO!G10,0))) -> 0 | G10: =SUM(D10:F10) -> 0 | H10: =IF(INTRO!$E$39="Non-endemic",IF(INTRO!$E$37="Non-endemic","Not required",COUNTRY_INFO!V10),"Treat with IVM") -> Not required | I10: =IF(H10=1,G10,0) -> 0 | J10: =IF(I10>0,I10*2.5,0) -> 0 | L10: =IF($J10>$K10,$J10-$K10,0) -> 0
A11: =IF(INTRO!$E$39<>"Non-endemic", " ", IF(INTRO!$E$37="Non-endemic"," ", IF(COUNTRY_INFO!A11=0," ",COUNTRY_INFO!A11))) ->  | B11: =IF(INTRO!$E$39<>"Non-endemic", " ", IF(INTRO!$E$37="Non-endemic"," ", IF(COUNTRY_INFO!B11=0," ",COUNTRY_INFO!B11))) ->  | C11: =IF(INTRO!$E$39<>"Non-endemic", " ", IF(INTRO!$E$37="Non-endemic"," ", IF(COUNTRY_INFO!C11=0," ",COUNTRY_INFO!C11))) ->  | D11: =IF(INTRO!$E$39<>"Non-endemic", 0, IF(INTRO!$E$37="Non-endemic",0,IF(COUNTRY_INFO!$H11=1,COUNTRY_INFO!E11,0))) -> 0 | E11: =IF(INTRO!$E$39<>"Non-endemic", 0, IF(INTRO!$E$37="Non-endemic",0,IF(COUNTRY_INFO!$H11=1,COUNTRY_INFO!F11,0))) -> 0 | F11: =IF(INTRO!$E$39<>"Non-endemic", 0, IF(INTRO!$E$37="Non-endemic",0,IF(COUNTRY_INFO!$H11=1,COUNTRY_INFO!G11,0))) -> 0 | G11: =SUM(D11:F11) -> 0 | H11: =IF(INTRO!$E$39="Non-endemic",IF(INTRO!$E$37="Non-endemic","Not required",COUNTRY_INFO!V11),"Treat with IVM") -> Not required | I11: =IF(H11=1,G11,0) -> 0 | J11: =IF(I11>0,I11*2.5,0) -> 0 | L11: 0
A12: =IF(INTRO!$E$39<>"Non-endemic", " ", IF(INTRO!$E$37="Non-endemic"," ", IF(COUNTRY_INFO!A12=0," ",COUNTRY_INFO!A12))) ->  | B12: =IF(INTRO!$E$39<>"Non-endemic", " ", IF(INTRO!$E$37="Non-endemic"," ", IF(COUNTRY_INFO!B12=0," ",COUNTRY_INFO!B12))) ->  | C12: =IF(INTRO!$E$39<>"Non-endemic", " ", IF(INTRO!$E$37="Non-endemic"," ", IF(COUNTRY_INFO!C12=0," ",COUNTRY_INFO!C12))) ->  | D12: =IF(INTRO!$E$39<>"Non-endemic", 0, IF(INTRO!$E$37="Non-endemic",0,IF(COUNTRY_INFO!$H12=1,COUNTRY_INFO!E12,0))) -> 0 | E12: =IF(INTRO!$E$39<>"Non-endemic", 0, IF(INTRO!$E$37="Non-endemic",0,IF(COUNTRY_INFO!$H12=1,COUNTRY_INFO!F12,0))) -> 0 | F12: =IF(INTRO!$E$39<>"Non-endemic", 0, IF(INTRO!$E$37="Non-endemic",0,IF(COUNTRY_INFO!$H12=1,COUNTRY_INFO!G12,0))) -> 0 | G12: 0 | H12: =IF(INTRO!$E$39="Non-endemic",IF(INTRO!$E$37="Non-endemic","Not required",COUNTRY_INFO!V12),"Treat with IVM") -> Not required | I12: 0 | J12: 0 | L12: 0
A13: =IF(INTRO!$E$39<>"Non-endemic", " ", IF(INTRO!$E$37="Non-endemic"," ", IF(COUNTRY_INFO!A13=0," ",COUNTRY_INFO!A13))) ->  | B13: =IF(INTRO!$E$39<>"Non-endemic", " ", IF(INTRO!$E$37="Non-endemic"," ", IF(COUNTRY_INFO!B13=0," ",COUNTRY_INFO!B13))) ->  | C13: =IF(INTRO!$E$39<>"Non-endemic", " ", IF(INTRO!$E$37="Non-endemic"," ", IF(COUNTRY_INFO!C13=0," ",COUNTRY_INFO!C13))) ->  | D13: =IF(INTRO!$E$39<>"Non-endemic", 0, IF(INTRO!$E$37="Non-endemic",0,IF(COUNTRY_INFO!$H13=1,COUNTRY_INFO!E13,0))) -> 0 | E13: =IF(INTRO!$E$39<>"Non-endemic", 0, IF(INTRO!$E$37="Non-endemic",0,IF(COUNTRY_INFO!$H13=1,COUNTRY_INFO!F13,0))) -> 0 | F13: =IF(INTRO!$E$39<>"Non-endemic", 0, IF(INTRO!$E$37="Non-endemic",0,IF(COUNTRY_INFO!$H13=1,COUNTRY_INFO!G13,0))) -> 0 | G13: 0 | H13: =IF(INTRO!$E$39="Non-endemic",IF(INTRO!$E$37="Non-endemic","Not required",COUNTRY_INFO!V13),"Treat with IVM") -> Not required | I13: 0 | J13: 0 | L13: 0
A14: =IF(INTRO!$E$39<>"Non-endemic", " ", IF(INTRO!$E$37="Non-endemic"," ", IF(COUNTRY_INFO!A14=0," ",COUNTRY_INFO!A14))) ->  | B14: =IF(INTRO!$E$39<>"Non-endemic", " ", IF(INTRO!$E$37="Non-endemic"," ", IF(COUNTRY_INFO!B14=0," ",COUNTRY_INFO!B14))) ->  | C14: =IF(INTRO!$E$39<>"Non-endemic", " ", IF(INTRO!$E$37="Non-endemic"," ", IF(COUNTRY_INFO!C14=0," ",COUNTRY_INFO!C14))) ->  | D14: =IF(INTRO!$E$39<>"Non-endemic", 0, IF(INTRO!$E$37="Non-endemic",0,IF(COUNTRY_INFO!$H14=1,COUNTRY_INFO!E14,0))) -> 0 | E14: =IF(INTRO!$E$39<>"Non-endemic", 0, IF(INTRO!$E$37="Non-endemic",0,IF(COUNTRY_INFO!$H14=1,COUNTRY_INFO!F14,0))) -> 0 | F14: =IF(INTRO!$E$39<>"Non-endemic", 0, IF(INTRO!$E$37="Non-endemic",0,IF(COUNTRY_INFO!$H14=1,COUNTRY_INFO!G14,0))) -> 0 | G14: 0 | H14: =IF(INTRO!$E$39="Non-endemic",IF(INTRO!$E$37="Non-endemic","Not required",COUNTRY_INFO!V14),"Treat with IVM") -> Not required | I14: 0 | J14: 0 | L14: 0
A15: =IF(INTRO!$E$39<>"Non-endemic", " ", IF(INTRO!$E$37="Non-endemic"," ", IF(COUNTRY_INFO!A15=0," ",COUNTRY_INFO!A15))) ->  | B15: =IF(INTRO!$E$39<>"Non-endemic", " ", IF(INTRO!$E$37="Non-endemic"," ", IF(COUNTRY_INFO!B15=0," ",COUNTRY_INFO!B15))) ->  | C15: =IF(INTRO!$E$39<>"Non-endemic", " ", IF(INTRO!$E$37="Non-endemic"," ", IF(COUNTRY_INFO!C15=0," ",COUNTRY_INFO!C15))) ->  | D15: =IF(INTRO!$E$39<>"Non-endemic", 0, IF(INTRO!$E$37="Non-endemic",0,IF(COUNTRY_INFO!$H15=1,COUNTRY_INFO!E15,0))) -> 0 | E15: =IF(INTRO!$E$39<>"Non-endemic", 0, IF(INTRO!$E$37="Non-endemic",0,IF(COUNTRY_INFO!$H15=1,COUNTRY_INFO!F15,0))) -> 0 | F15: =IF(INTRO!$E$39<>"Non-endemic", 0, IF(INTRO!$E$37="Non-endemic",0,IF(COUNTRY_INFO!$H15=1,COUNTRY_INFO!G15,0))) -> 0 | G15: 0 | H15: =IF(INTRO!$E$39="Non-endemic",IF(INTRO!$E$37="Non-endemic","Not required",COUNTRY_INFO!V15),"Treat with IVM") -> Not required | I15: 0 | J15: 0 | L15: 0
A16: =IF(INTRO!$E$39<>"Non-endemic", " ", IF(INTRO!$E$37="Non-endemic"," ", IF(COUNTRY_INFO!A16=0," ",COUNTRY_INFO!A16))) ->  | B16: =IF(INTRO!$E$39<>"Non-endemic", " ", IF(INTRO!$E$37="Non-endemic"," ", IF(COUNTRY_INFO!B16=0," ",COUNTRY_INFO!B16))) ->  | C16: =IF(INTRO!$E$39<>"Non-endemic", " ", IF(INTRO!$E$37="Non-endemic"," ", IF(COUNTRY_INFO!C16=0," ",COUNTRY_INFO!C16))) ->  | D16: =IF(INTRO!$E$39<>"Non-endemic", 0, IF(INTRO!$E$37="Non-endemic",0,IF(COUNTRY_INFO!$H16=1,COUNTRY_INFO!E16,0))) -> 0 | E16: =IF(INTRO!$E$39<>"Non-endemic", 0, IF(INTRO!$E$37="Non-endemic",0,IF(COUNTRY_INFO!$H16=1,COUNTRY_INFO!F16,0))) -> 0 | F16: =IF(INTRO!$E$39<>"Non-endemic", 0, IF(INTRO!$E$37="Non-endemic",0,IF(COUNTRY_INFO!$H16=1,COUNTRY_INFO!G16,0))) -> 0 | G16: 0 | H16: =IF(INTRO!$E$39="Non-endemic",IF(INTRO!$E$37="Non-endemic","Not required",COUNTRY_INFO!V16),"Treat with IVM") -> Not required | I16: 0 | J16: 0 | L16: 0
A17: =IF(INTRO!$E$39<>"Non-endemic", " ", IF(INTRO!$E$37="Non-endemic"," ", IF(COUNTRY_INFO!A17=0," ",COUNTRY_INFO!A17))) ->  | B17: =IF(INTRO!$E$39<>"Non-endemic", " ", IF(INTRO!$E$37="Non-endemic"," ", IF(COUNTRY_INFO!B17=0," ",COUNTRY_INFO!B17))) ->  | C17: =IF(INTRO!$E$39<>"Non-endemic", " ", IF(INTRO!$E$37="Non-endemic"," ", IF(COUNTRY_INFO!C17=0," ",COUNTRY_INFO!C17))) ->  | D17: =IF(INTRO!$E$39<>"Non-endemic", 0, IF(INTRO!$E$37="Non-endemic",0,IF(COUNTRY_INFO!$H17=1,COUNTRY_INFO!E17,0))) -> 0 | E17: =IF(INTRO!$E$39<>"Non-endemic", 0, IF(INTRO!$E$37="Non-endemic",0,IF(COUNTRY_INFO!$H17=1,COUNTRY_INFO!F17,0))) -> 0 | F17: =IF(INTRO!$E$39<>"Non-endemic", 0, IF(INTRO!$E$37="Non-endemic",0,IF(COUNTRY_INFO!$H17=1,COUNTRY_INFO!G17,0))) -> 0 | G17: 0 | H17: =IF(INTRO!$E$39="Non-endemic",IF(INTRO!$E$37="Non-endemic","Not required",COUNTRY_INFO!V17),"Treat with IVM") -> Not required | I17: 0 | J17: 0 | L17: 0
A18: =IF(INTRO!$E$39<>"Non-endemic", " ", IF(INTRO!$E$37="Non-endemic"," ", IF(COUNTRY_INFO!A18=0," ",COUNTRY_INFO!A18))) ->  | B18: =IF(INTRO!$E$39<>"Non-endemic", " ", IF(INTRO!$E$37="Non-endemic"," ", IF(COUNTRY_INFO!B18=0," ",COUNTRY_INFO!B18))) ->  | C18: =IF(INTRO!$E$39<>"Non-endemic", " ", IF(INTRO!$E$37="Non-endemic"," ", IF(COUNTRY_INFO!C18=0," ",COUNTRY_INFO!C18))) ->  | D18: =IF(INTRO!$E$39<>"Non-endemic", 0, IF(INTRO!$E$37="Non-endemic",0,IF(COUNTRY_INFO!$H18=1,COUNTRY_INFO!E18,0))) -> 0 | E18: =IF(INTRO!$E$39<>"Non-endemic", 0, IF(INTRO!$E$37="Non-endemic",0,IF(COUNTRY_INFO!$H18=1,COUNTRY_INFO!F18,0))) -> 0 | F18: =IF(INTRO!$E$39<>"Non-endemic", 0, IF(INTRO!$E$37="Non-endemic",0,IF(COUNTRY_INFO!$H18=1,COUNTRY_INFO!G18,0))) -> 0 | G18: 0 | H18: =IF(INTRO!$E$39="Non-endemic",IF(INTRO!$E$37="Non-endemic","Not required",COUNTRY_INFO!V18),"Treat with IVM") -> Not required | I18: 0 | J18: 0 | L18: 0
A19: =IF(INTRO!$E$39<>"Non-endemic", " ", IF(INTRO!$E$37="Non-endemic"," ", IF(COUNTRY_INFO!A19=0," ",COUNTRY_INFO!A19))) ->  | B19: =IF(INTRO!$E$39<>"Non-endemic", " ", IF(INTRO!$E$37="Non-endemic"," ", IF(COUNTRY_INFO!B19=0," ",COUNTRY_INFO!B19))) ->  | C19: =IF(INTRO!$E$39<>"Non-endemic", " ", IF(INTRO!$E$37="Non-endemic"," ", IF(COUNTRY_INFO!C19=0," ",COUNTRY_INFO!C19))) ->  | D19: =IF(INTRO!$E$39<>"Non-endemic", 0, IF(INTRO!$E$37="Non-endemic",0,IF(COUNTRY_INFO!$H19=1,COUNTRY_INFO!E19,0))) -> 0 | E19: =IF(INTRO!$E$39<>"Non-endemic", 0, IF(INTRO!$E$37="Non-endemic",0,IF(COUNTRY_INFO!$H19=1,COUNTRY_INFO!F19,0))) -> 0 | F19: =IF(INTRO!$E$39<>"Non-endemic", 0, IF(INTRO!$E$37="Non-endemic",0,IF(COUNTRY_INFO!$H19=1,COUNTRY_INFO!G19,0))) -> 0 | G19: 0 | H19: =IF(INTRO!$E$39="Non-endemic",IF(INTRO!$E$37="Non-endemic","Not required",COUNTRY_INFO!V19),"Treat with IVM") -> Not required | I19: 0 | J19: 0 | L19: 0
A20: =IF(INTRO!$E$39<>"Non-endemic", " ", IF(INTRO!$E$37="Non-endemic"," ", IF(COUNTRY_INFO!A20=0," ",COUNTRY_INFO!A20))) ->  | B20: =IF(INTRO!$E$39<>"Non-endemic", " ", IF(INTRO!$E$37="Non-endemic"," ", IF(COUNTRY_INFO!B20=0," ",COUNTRY_INFO!B20))) ->  | C20: =IF(INTRO!$E$39<>"Non-endemic", " ", IF(INTRO!$E$37="Non-endemic"," ", IF(COUNTRY_INFO!C20=0," ",COUNTRY_INFO!C20))) ->  | D20: =IF(INTRO!$E$39<>"Non-endemic", 0, IF(INTRO!$E$37="Non-endemic",0,IF(COUNTRY_INFO!$H20=1,COUNTRY_INFO!E20,0))) -> 0 | E20: =IF(INTRO!$E$39<>"Non-endemic", 0, IF(INTRO!$E$37="Non-endemic",0,IF(COUNTRY_INFO!$H20=1,COUNTRY_INFO!F20,0))) -> 0 | F20: =IF(INTRO!$E$39<>"Non-endemic", 0, IF(INTRO!$E$37="Non-endemic",0,IF(COUNTRY_INFO!$H20=1,COUNTRY_INFO!G20,0))) -> 0 | G20: 0 | H20: =IF(INTRO!$E$39="Non-endemic",IF(INTRO!$E$37="Non-endemic","Not required",COUNTRY_INFO!V20),"Treat with IVM") -> Not required | I20: 0 | J20: 0 | L20: 0
A21: =IF(INTRO!$E$39<>"Non-endemic", " ", IF(INTRO!$E$37="Non-endemic"," ", IF(COUNTRY_INFO!A21=0," ",COUNTRY_INFO!A21))) ->  | B21: =IF(INTRO!$E$39<>"Non-endemic", " ", IF(INTRO!$E$37="Non-endemic"," ", IF(COUNTRY_INFO!B21=0," ",COUNTRY_INFO!B21))) ->  | C21: =IF(INTRO!$E$39<>"Non-endemic", " ", IF(INTRO!$E$37="Non-endemic"," ", IF(COUNTRY_INFO!C21=0," ",COUNTRY_INFO!C21))) ->  | D21: =IF(INTRO!$E$39<>"Non-endemic", 0, IF(INTRO!$E$37="Non-endemic",0,IF(COUNTRY_INFO!$H21=1,COUNTRY_INFO!E21,0))) -> 0 | E21: =IF(INTRO!$E$39<>"Non-endemic", 0, IF(INTRO!$E$37="Non-endemic",0,IF(COUNTRY_INFO!$H21=1,COUNTRY_INFO!F21,0))) -> 0 | F21: =IF(INTRO!$E$39<>"Non-endemic", 0, IF(INTRO!$E$37="Non-endemic",0,IF(COUNTRY_INFO!$H21=1,COUNTRY_INFO!G21,0))) -> 0 | G21: 0 | H21: =IF(INTRO!$E$39="Non-endemic",IF(INTRO!$E$37="Non-endemic","Not required",COUNTRY_INFO!V21),"Treat with IVM") -> Not required | I21: 0 | J21: 0 | L21: 0
A22: =IF(INTRO!$E$39<>"Non-endemic", " ", IF(INTRO!$E$37="Non-endemic"," ", IF(COUNTRY_INFO!A22=0," ",COUNTRY_INFO!A22))) ->  | B22: =IF(INTRO!$E$39<>"Non-endemic", " ", IF(INTRO!$E$37="Non-endemic"," ", IF(COUNTRY_INFO!B22=0," ",COUNTRY_INFO!B22))) ->  | C22: =IF(INTRO!$E$39<>"Non-endemic", " ", IF(INTRO!$E$37="Non-endemic"," ", IF(COUNTRY_INFO!C22=0," ",COUNTRY_INFO!C22))) ->  | D22: =IF(INTRO!$E$39<>"Non-endemic", 0, IF(INTRO!$E$37="Non-endemic",0,IF(COUNTRY_INFO!$H22=1,COUNTRY_INFO!E22,0))) -> 0 | E22: =IF(INTRO!$E$39<>"Non-endemic", 0, IF(INTRO!$E$37="Non-endemic",0,IF(COUNTRY_INFO!$H22=1,COUNTRY_INFO!F22,0))) -> 0 | F22: =IF(INTRO!$E$39<>"Non-endemic", 0, IF(INTRO!$E$37="Non-endemic",0,IF(COUNTRY_INFO!$H22=1,COUNTRY_INFO!G22,0))) -> 0 | G22: 0 | H22: =IF(INTRO!$E$39="Non-endemic",IF(INTRO!$E$37="Non-endemic","Not required",COUNTRY_INFO!V22),"Treat with IVM") -> Not required | I22: 0 | J22: 0 | L22: 0
A23: =IF(INTRO!$E$39<>"Non-endemic", " ", IF(INTRO!$E$37="Non-endemic"," ", IF(COUNTRY_INFO!A23=0," ",COUNTRY_INFO!A23))) ->  | B23: =IF(INTRO!$E$39<>"Non-endemic", " ", IF(INTRO!$E$37="Non-endemic"," ", IF(COUNTRY_INFO!B23=0," ",COUNTRY_INFO!B23))) ->  | C23: =IF(INTRO!$E$39<>"Non-endemic", " ", IF(INTRO!$E$37="Non-endemic"," ", IF(COUNTRY_INFO!C23=0," ",COUNTRY_INFO!C23))) ->  | D23: =IF(INTRO!$E$39<>"Non-endemic", 0, IF(INTRO!$E$37="Non-endemic",0,IF(COUNTRY_INFO!$H23=1,COUNTRY_INFO!E23,0))) -> 0 | E23: =IF(INTRO!$E$39<>"Non-endemic", 0, IF(INTRO!$E$37="Non-endemic",0,IF(COUNTRY_INFO!$H23=1,COUNTRY_INFO!F23,0))) -> 0 | F23: =IF(INTRO!$E$39<>"Non-endemic", 0, IF(INTRO!$E$37="Non-endemic",0,IF(COUNTRY_INFO!$H23=1,COUNTRY_INFO!G23,0))) -> 0 | G23: 0 | H23: =IF(INTRO!$E$39="Non-endemic",IF(INTRO!$E$37="Non-endemic","Not required",COUNTRY_INFO!V23),"Treat with IVM") -> Not required | I23: 0 | J23: 0 | L23: 0
A24: =IF(INTRO!$E$39<>"Non-endemic", " ", IF(INTRO!$E$37="Non-endemic"," ", IF(COUNTRY_INFO!A24=0," ",COUNTRY_INFO!A24))) ->  | B24: =IF(INTRO!$E$39<>"Non-endemic", " ", IF(INTRO!$E$37="Non-endemic"," ", IF(COUNTRY_INFO!B24=0," ",COUNTRY_INFO!B24))) ->  | C24: =IF(INTRO!$E$39<>"Non-endemic", " ", IF(INTRO!$E$37="Non-endemic"," ", IF(COUNTRY_INFO!C24=0," ",COUNTRY_INFO!C24))) ->  | D24: =IF(INTRO!$E$39<>"Non-endemic", 0, IF(INTRO!$E$37="Non-endemic",0,IF(COUNTRY_INFO!$H24=1,COUNTRY_INFO!E24,0))) -> 0 | E24: =IF(INTRO!$E$39<>"Non-endemic", 0, IF(INTRO!$E$37="Non-endemic",0,IF(COUNTRY_INFO!$H24=1,COUNTRY_INFO!F24,0))) -> 0 | F24: =IF(INTRO!$E$39<>"Non-endemic", 0, IF(INTRO!$E$37="Non-endemic",0,IF(COUNTRY_INFO!$H24=1,COUNTRY_INFO!G24,0))) -> 0 | G24: 0 | H24: =IF(INTRO!$E$39="Non-endemic",IF(INTRO!$E$37="Non-endemic","Not required",COUNTRY_INFO!V24),"Treat with IVM") -> Not required | I24: 0 | J24: 0 | L24: 0
A25: =IF(INTRO!$E$39<>"Non-endemic", " ", IF(INTRO!$E$37="Non-endemic"," ", IF(COUNTRY_INFO!A25=0," ",COUNTRY_INFO!A25))) ->  | B25: =IF(INTRO!$E$39<>"Non-endemic", " ", IF(INTRO!$E$37="Non-endemic"," ", IF(COUNTRY_INFO!B25=0," ",COUNTRY_INFO!B25))) ->  | C25: =IF(INTRO!$E$39<>"Non-endemic", " ", IF(INTRO!$E$37="Non-endemic"," ", IF(COUNTRY_INFO!C25=0," ",COUNTRY_INFO!C25))) ->  | D25: =IF(INTRO!$E$39<>"Non-endemic", 0, IF(INTRO!$E$37="Non-endemic",0,IF(COUNTRY_INFO!$H25=1,COUNTRY_INFO!E25,0))) -> 0 | E25: =IF(INTRO!$E$39<>"Non-endemic", 0, IF(INTRO!$E$37="Non-endemic",0,IF(COUNTRY_INFO!$H25=1,COUNTRY_INFO!F25,0))) -> 0 | F25: =IF(INTRO!$E$39<>"Non-endemic", 0, IF(INTRO!$E$37="Non-endemic",0,IF(COUNTRY_INFO!$H25=1,COUNTRY_INFO!G25,0))) -> 0 | G25: 0 | H25: =IF(INTRO!$E$39="Non-endemic",IF(INTRO!$E$37="Non-endemic","Not required",COUNTRY_INFO!V25),"Treat with IVM") -> Not required | I25: 0 | J25: 0 | L25: 0
A26: =IF(INTRO!$E$39<>"Non-endemic", " ", IF(INTRO!$E$37="Non-endemic"," ", IF(COUNTRY_INFO!A26=0," ",COUNTRY_INFO!A26))) ->  | B26: =IF(INTRO!$E$39<>"Non-endemic", " ", IF(INTRO!$E$37="Non-endemic"," ", IF(COUNTRY_INFO!B26=0," ",COUNTRY_INFO!B26))) ->  | C26: =IF(INTRO!$E$39<>"Non-endemic", " ", IF(INTRO!$E$37="Non-endemic"," ", IF(COUNTRY_INFO!C26=0," ",COUNTRY_INFO!C26))) ->  | D26: =IF(INTRO!$E$39<>"Non-endemic", 0, IF(INTRO!$E$37="Non-endemic",0,IF(COUNTRY_INFO!$H26=1,COUNTRY_INFO!E26,0))) -> 0 | E26: =IF(INTRO!$E$39<>"Non-endemic", 0, IF(INTRO!$E$37="Non-endemic",0,IF(COUNTRY_INFO!$H26=1,COUNTRY_INFO!F26,0))) -> 0 | F26: =IF(INTRO!$E$39<>"Non-endemic", 0, IF(INTRO!$E$37="Non-endemic",0,IF(COUNTRY_INFO!$H26=1,COUNTRY_INFO!G26,0))) -> 0 | G26: 0 | H26: =IF(INTRO!$E$39="Non-endemic",IF(INTRO!$E$37="Non-endemic","Not required",COUNTRY_INFO!V26),"Treat with IVM") -> Not required | I26: 0 | J26: 0 | L26: 0
A27: =IF(INTRO!$E$39<>"Non-endemic", " ", IF(INTRO!$E$37="Non-endemic"," ", IF(COUNTRY_INFO!A27=0," ",COUNTRY_INFO!A27))) ->  | B27: =IF(INTRO!$E$39<>"Non-endemic", " ", IF(INTRO!$E$37="Non-endemic"," ", IF(COUNTRY_INFO!B27=0," ",COUNTRY_INFO!B27))) ->  | C27: =IF(INTRO!$E$39<>"Non-endemic", " ", IF(INTRO!$E$37="Non-endemic"," ", IF(COUNTRY_INFO!C27=0," ",COUNTRY_INFO!C27))) ->  | D27: =IF(INTRO!$E$39<>"Non-endemic", 0, IF(INTRO!$E$37="Non-endemic",0,IF(COUNTRY_INFO!$H27=1,COUNTRY_INFO!E27,0))) -> 0 | E27: =IF(INTRO!$E$39<>"Non-endemic", 0, IF(INTRO!$E$37="Non-endemic",0,IF(COUNTRY_INFO!$H27=1,COUNTRY_INFO!F27,0))) -> 0 | F27: =IF(INTRO!$E$39<>"Non-endemic", 0, IF(INTRO!$E$37="Non-endemic",0,IF(COUNTRY_INFO!$H27=1,COUNTRY_INFO!G27,0))) -> 0 | G27: 0 | H27: =IF(INTRO!$E$39="Non-endemic",IF(INTRO!$E$37="Non-endemic","Not required",COUNTRY_INFO!V27),"Treat with IVM") -> Not required | I27: 0 | J27: 0 | L27: 0
A28: =IF(INTRO!$E$39<>"Non-endemic", " ", IF(INTRO!$E$37="Non-endemic"," ", IF(COUNTRY_INFO!A28=0," ",COUNTRY_INFO!A28))) ->  | B28: =IF(INTRO!$E$39<>"Non-endemic", " ", IF(INTRO!$E$37="Non-endemic"," ", IF(COUNTRY_INFO!B28=0," ",COUNTRY_INFO!B28))) ->  | C28: =IF(INTRO!$E$39<>"Non-endemic", " ", IF(INTRO!$E$37="Non-endemic"," ", IF(COUNTRY_INFO!C28=0," ",COUNTRY_INFO!C28))) ->  | D28: =IF(INTRO!$E$39<>"Non-endemic", 0, IF(INTRO!$E$37="Non-endemic",0,IF(COUNTRY_INFO!$H28=1,COUNTRY_INFO!E28,0))) -> 0 | E28: =IF(INTRO!$E$39<>"Non-endemic", 0, IF(INTRO!$E$37="Non-endemic",0,IF(COUNTRY_INFO!$H28=1,COUNTRY_INFO!F28,0))) -> 0 | F28: =IF(INTRO!$E$39<>"Non-endemic", 0, IF(INTRO!$E$37="Non-endemic",0,IF(COUNTRY_INFO!$H28=1,COUNTRY_INFO!G28,0))) -> 0 | G28: 0 | H28: =IF(INTRO!$E$39="Non-endemic",IF(INTRO!$E$37="Non-endemic","Not required",COUNTRY_INFO!V28),"Treat with IVM") -> Not required | I28: 0 | J28: 0 | L28: 0
A29: =IF(INTRO!$E$39<>"Non-endemic", " ", IF(INTRO!$E$37="Non-endemic"," ", IF(COUNTRY_INFO!A29=0," ",COUNTRY_INFO!A29))) ->  | B29: =IF(INTRO!$E$39<>"Non-endemic", " ", IF(INTRO!$E$37="Non-endemic"," ", IF(COUNTRY_INFO!B29=0," ",COUNTRY_INFO!B29))) ->  | C29: =IF(INTRO!$E$39<>"Non-endemic", " ", IF(INTRO!$E$37="Non-endemic"," ", IF(COUNTRY_INFO!C29=0," ",COUNTRY_INFO!C29))) ->  | D29: =IF(INTRO!$E$39<>"Non-endemic", 0, IF(INTRO!$E$37="Non-endemic",0,IF(COUNTRY_INFO!$H29=1,COUNTRY_INFO!E29,0))) -> 0 | E29: =IF(INTRO!$E$39<>"Non-endemic", 0, IF(INTRO!$E$37="Non-endemic",0,IF(COUNTRY_INFO!$H29=1,COUNTRY_INFO!F29,0))) -> 0 | F29: =IF(INTRO!$E$39<>"Non-endemic", 0, IF(INTRO!$E$37="Non-endemic",0,IF(COUNTRY_INFO!$H29=1,COUNTRY_INFO!G29,0))) -> 0 | G29: 0 | H29: =IF(INTRO!$E$39="Non-endemic",IF(INTRO!$E$37="Non-endemic","Not required",COUNTRY_INFO!V29),"Treat with IVM") -> Not required | I29: 0 | J29: 0 | L29: 0
A30: =IF(INTRO!$E$39<>"Non-endemic", " ", IF(INTRO!$E$37="Non-endemic"," ", IF(COUNTRY_INFO!A30=0," ",COUNTRY_INFO!A30))) ->  | B30: =IF(INTRO!$E$39<>"Non-endemic", " ", IF(INTRO!$E$37="Non-endemic"," ", IF(COUNTRY_INFO!B30=0," ",COUNTRY_INFO!B30))) ->  | C30: =IF(INTRO!$E$39<>"Non-endemic", " ", IF(INTRO!$E$37="Non-endemic"," ", IF(COUNTRY_INFO!C30=0," ",COUNTRY_INFO!C30))) ->  | D30: =IF(INTRO!$E$39<>"Non-endemic", 0, IF(INTRO!$E$37="Non-endemic",0,IF(COUNTRY_INFO!$H30=1,COUNTRY_INFO!E30,0))) -> 0 | E30: =IF(INTRO!$E$39<>"Non-endemic", 0, IF(INTRO!$E$37="Non-endemic",0,IF(COUNTRY_INFO!$H30=1,COUNTRY_INFO!F30,0))) -> 0 | F30: =IF(INTRO!$E$39<>"Non-endemic", 0, IF(INTRO!$E$37="Non-endemic",0,IF(COUNTRY_INFO!$H30=1,COUNTRY_INFO!G30,0))) -> 0 | G30: 0 | H30: =IF(INTRO!$E$39="Non-endemic",IF(INTRO!$E$37="Non-endemic","Not required",COUNTRY_INFO!V30),"Treat with IVM") -> Not required | I30: 0 | J30: 0 | L30: 0
A31: =IF(INTRO!$E$39<>"Non-endemic", " ", IF(INTRO!$E$37="Non-endemic"," ", IF(COUNTRY_INFO!A31=0," ",COUNTRY_INFO!A31))) ->  | B31: =IF(INTRO!$E$39<>"Non-endemic", " ", IF(INTRO!$E$37="Non-endemic"," ", IF(COUNTRY_INFO!B31=0," ",COUNTRY_INFO!B31))) ->  | C31: =IF(INTRO!$E$39<>"Non-endemic", " ", IF(INTRO!$E$37="Non-endemic"," ", IF(COUNTRY_INFO!C31=0," ",COUNTRY_INFO!C31))) ->  | D31: =IF(INTRO!$E$39<>"Non-endemic", 0, IF(INTRO!$E$37="Non-endemic",0,IF(COUNTRY_INFO!$H31=1,COUNTRY_INFO!E31,0))) -> 0 | E31: =IF(INTRO!$E$39<>"Non-endemic", 0, IF(INTRO!$E$37="Non-endemic",0,IF(COUNTRY_INFO!$H31=1,COUNTRY_INFO!F31,0))) -> 0 | F31: =IF(INTRO!$E$39<>"Non-endemic", 0, IF(INTRO!$E$37="Non-endemic",0,IF(COUNTRY_INFO!$H31=1,COUNTRY_INFO!G31,0))) -> 0 | G31: 0 | H31: =IF(INTRO!$E$39="Non-endemic",IF(INTRO!$E$37="Non-endemic","Not required",COUNTRY_INFO!V31),"Treat with IVM") -> Not required | I31: 0 | J31: 0 | L31: 0
A32: =IF(INTRO!$E$39<>"Non-endemic", " ", IF(INTRO!$E$37="Non-endemic"," ", IF(COUNTRY_INFO!A32=0," ",COUNTRY_INFO!A32))) ->  | B32: =IF(INTRO!$E$39<>"Non-endemic", " ", IF(INTRO!$E$37="Non-endemic"," ", IF(COUNTRY_INFO!B32=0," ",COUNTRY_INFO!B32))) ->  | C32: =IF(INTRO!$E$39<>"Non-endemic", " ", IF(INTRO!$E$37="Non-endemic"," ", IF(COUNTRY_INFO!C32=0," ",COUNTRY_INFO!C32))) ->  | D32: =IF(INTRO!$E$39<>"Non-endemic", 0, IF(INTRO!$E$37="Non-endemic",0,IF(COUNTRY_INFO!$H32=1,COUNTRY_INFO!E32,0))) -> 0 | E32: =IF(INTRO!$E$39<>"Non-endemic", 0, IF(INTRO!$E$37="Non-endemic",0,IF(COUNTRY_INFO!$H32=1,COUNTRY_INFO!F32,0))) -> 0 | F32: =IF(INTRO!$E$39<>"Non-endemic", 0, IF(INTRO!$E$37="Non-endemic",0,IF(COUNTRY_INFO!$H32=1,COUNTRY_INFO!G32,0))) -> 0 | G32: 0 | H32: =IF(INTRO!$E$39="Non-endemic",IF(INTRO!$E$37="Non-endemic","Not required",COUNTRY_INFO!V32),"Treat with IVM") -> Not required | I32: 0 | J32: 0 | L32: 0
A33: =IF(INTRO!$E$39<>"Non-endemic", " ", IF(INTRO!$E$37="Non-endemic"," ", IF(COUNTRY_INFO!A33=0," ",COUNTRY_INFO!A33))) ->  | B33: =IF(INTRO!$E$39<>"Non-endemic", " ", IF(INTRO!$E$37="Non-endemic"," ", IF(COUNTRY_INFO!B33=0," ",COUNTRY_INFO!B33))) ->  | C33: =IF(INTRO!$E$39<>"Non-endemic", " ", IF(INTRO!$E$37="Non-endemic"," ", IF(COUNTRY_INFO!C33=0," ",COUNTRY_INFO!C33))) ->  | D33: =IF(INTRO!$E$39<>"Non-endemic", 0, IF(INTRO!$E$37="Non-endemic",0,IF(COUNTRY_INFO!$H33=1,COUNTRY_INFO!E33,0))) -> 0 | E33: =IF(INTRO!$E$39<>"Non-endemic", 0, IF(INTRO!$E$37="Non-endemic",0,IF(COUNTRY_INFO!$H33=1,COUNTRY_INFO!F33,0))) -> 0 | F33: =IF(INTRO!$E$39<>"Non-endemic", 0, IF(INTRO!$E$37="Non-endemic",0,IF(COUNTRY_INFO!$H33=1,COUNTRY_INFO!G33,0))) -> 0 | G33: 0 | H33: =IF(INTRO!$E$39="Non-endemic",IF(INTRO!$E$37="Non-endemic","Not required",COUNTRY_INFO!V33),"Treat with IVM") -> Not required | I33: 0 | J33: 0 | L33: 0
A34: =IF(INTRO!$E$39<>"Non-endemic", " ", IF(INTRO!$E$37="Non-endemic"," ", IF(COUNTRY_INFO!A34=0," ",COUNTRY_INFO!A34))) ->  | B34: =IF(INTRO!$E$39<>"Non-endemic", " ", IF(INTRO!$E$37="Non-endemic"," ", IF(COUNTRY_INFO!B34=0," ",COUNTRY_INFO!B34))) ->  | C34: =IF(INTRO!$E$39<>"Non-endemic", " ", IF(INTRO!$E$37="Non-endemic"," ", IF(COUNTRY_INFO!C34=0," ",COUNTRY_INFO!C34))) ->  | D34: =IF(INTRO!$E$39<>"Non-endemic", 0, IF(INTRO!$E$37="Non-endemic",0,IF(COUNTRY_INFO!$H34=1,COUNTRY_INFO!E34,0))) -> 0 | E34: =IF(INTRO!$E$39<>"Non-endemic", 0, IF(INTRO!$E$37="Non-endemic",0,IF(COUNTRY_INFO!$H34=1,COUNTRY_INFO!F34,0))) -> 0 | F34: =IF(INTRO!$E$39<>"Non-endemic", 0, IF(INTRO!$E$37="Non-endemic",0,IF(COUNTRY_INFO!$H34=1,COUNTRY_INFO!G34,0))) -> 0 | G34: 0 | H34: =IF(INTRO!$E$39="Non-endemic",IF(INTRO!$E$37="Non-endemic","Not required",COUNTRY_INFO!V34),"Treat with IVM") -> Not required | I34: 0 | J34: 0 | L34: 0
A35: =IF(INTRO!$E$39<>"Non-endemic", " ", IF(INTRO!$E$37="Non-endemic"," ", IF(COUNTRY_INFO!A35=0," ",COUNTRY_INFO!A35))) ->  | B35: =IF(INTRO!$E$39<>"Non-endemic", " ", IF(INTRO!$E$37="Non-endemic"," ", IF(COUNTRY_INFO!B35=0," ",COUNTRY_INFO!B35))) ->  | C35: =IF(INTRO!$E$39<>"Non-endemic", " ", IF(INTRO!$E$37="Non-endemic"," ", IF(COUNTRY_INFO!C35=0," ",COUNTRY_INFO!C35))) ->  | D35: =IF(INTRO!$E$39<>"Non-endemic", 0, IF(INTRO!$E$37="Non-endemic",0,IF(COUNTRY_INFO!$H35=1,COUNTRY_INFO!E35,0))) -> 0 | E35: =IF(INTRO!$E$39<>"Non-endemic", 0, IF(INTRO!$E$37="Non-endemic",0,IF(COUNTRY_INFO!$H35=1,COUNTRY_INFO!F35,0))) -> 0 | F35: =IF(INTRO!$E$39<>"Non-endemic", 0, IF(INTRO!$E$37="Non-endemic",0,IF(COUNTRY_INFO!$H35=1,COUNTRY_INFO!G35,0))) -> 0 | G35: 0 | H35: =IF(INTRO!$E$39="Non-endemic",IF(INTRO!$E$37="Non-endemic","Not required",COUNTRY_INFO!V35),"Treat with IVM") -> Not required | I35: 0 | J35: 0 | L35: 0
A36: =IF(INTRO!$E$39<>"Non-endemic", " ", IF(INTRO!$E$37="Non-endemic"," ", IF(COUNTRY_INFO!A36=0," ",COUNTRY_INFO!A36))) ->  | B36: =IF(INTRO!$E$39<>"Non-endemic", " ", IF(INTRO!$E$37="Non-endemic"," ", IF(COUNTRY_INFO!B36=0," ",COUNTRY_INFO!B36))) ->  | C36: =IF(INTRO!$E$39<>"Non-endemic", " ", IF(INTRO!$E$37="Non-endemic"," ", IF(COUNTRY_INFO!C36=0," ",COUNTRY_INFO!C36))) ->  | D36: =IF(INTRO!$E$39<>"Non-endemic", 0, IF(INTRO!$E$37="Non-endemic",0,IF(COUNTRY_INFO!$H36=1,COUNTRY_INFO!E36,0))) -> 0 | E36: =IF(INTRO!$E$39<>"Non-endemic", 0, IF(INTRO!$E$37="Non-endemic",0,IF(COUNTRY_INFO!$H36=1,COUNTRY_INFO!F36,0))) -> 0 | F36: =IF(INTRO!$E$39<>"Non-endemic", 0, IF(INTRO!$E$37="Non-endemic",0,IF(COUNTRY_INFO!$H36=1,COUNTRY_INFO!G36,0))) -> 0 | G36: 0 | H36: =IF(INTRO!$E$39="Non-endemic",IF(INTRO!$E$37="Non-endemic","Not required",COUNTRY_INFO!V36),"Treat with IVM") -> Not required | I36: 0 | J36: 0 | L36: 0
A37: =IF(INTRO!$E$39<>"Non-endemic", " ", IF(INTRO!$E$37="Non-endemic"," ", IF(COUNTRY_INFO!A37=0," ",COUNTRY_INFO!A37))) ->  | B37: =IF(INTRO!$E$39<>"Non-endemic", " ", IF(INTRO!$E$37="Non-endemic"," ", IF(COUNTRY_INFO!B37=0," ",COUNTRY_INFO!B37))) ->  | C37: =IF(INTRO!$E$39<>"Non-endemic", " ", IF(INTRO!$E$37="Non-endemic"," ", IF(COUNTRY_INFO!C37=0," ",COUNTRY_INFO!C37))) ->  | D37: =IF(INTRO!$E$39<>"Non-endemic", 0, IF(INTRO!$E$37="Non-endemic",0,IF(COUNTRY_INFO!$H37=1,COUNTRY_INFO!E37,0))) -> 0 | E37: =IF(INTRO!$E$39<>"Non-endemic", 0, IF(INTRO!$E$37="Non-endemic",0,IF(COUNTRY_INFO!$H37=1,COUNTRY_INFO!F37,0))) -> 0 | F37: =IF(INTRO!$E$39<>"Non-endemic", 0, IF(INTRO!$E$37="Non-endemic",0,IF(COUNTRY_INFO!$H37=1,COUNTRY_INFO!G37,0))) -> 0 | G37: 0 | H37: =IF(INTRO!$E$39="Non-endemic",IF(INTRO!$E$37="Non-endemic","Not required",COUNTRY_INFO!V37),"Treat with IVM") -> Not required | I37: 0 | J37: 0 | L37: 0
A38: =IF(INTRO!$E$39<>"Non-endemic", " ", IF(INTRO!$E$37="Non-endemic"," ", IF(COUNTRY_INFO!A38=0," ",COUNTRY_INFO!A38))) ->  | B38: =IF(INTRO!$E$39<>"Non-endemic", " ", IF(INTRO!$E$37="Non-endemic"," ", IF(COUNTRY_INFO!B38=0," ",COUNTRY_INFO!B38))) ->  | C38: =IF(INTRO!$E$39<>"Non-endemic", " ", IF(INTRO!$E$37="Non-endemic"," ", IF(COUNTRY_INFO!C38=0," ",COUNTRY_INFO!C38))) ->  | D38: =IF(INTRO!$E$39<>"Non-endemic", 0, IF(INTRO!$E$37="Non-endemic",0,IF(COUNTRY_INFO!$H38=1,COUNTRY_INFO!E38,0))) -> 0 | E38: =IF(INTRO!$E$39<>"Non-endemic", 0, IF(INTRO!$E$37="Non-endemic",0,IF(COUNTRY_INFO!$H38=1,COUNTRY_INFO!F38,0))) -> 0 | F38: =IF(INTRO!$E$39<>"Non-endemic", 0, IF(INTRO!$E$37="Non-endemic",0,IF(COUNTRY_INFO!$H38=1,COUNTRY_INFO!G38,0))) -> 0 | G38: 0 | H38: =IF(INTRO!$E$39="Non-endemic",IF(INTRO!$E$37="Non-endemic","Not required",COUNTRY_INFO!V38),"Treat with IVM") -> Not required | I38: 0 | J38: 0 | L38: 0
A39: =IF(INTRO!$E$39<>"Non-endemic", " ", IF(INTRO!$E$37="Non-endemic"," ", IF(COUNTRY_INFO!A39=0," ",COUNTRY_INFO!A39))) ->  | B39: =IF(INTRO!$E$39<>"Non-endemic", " ", IF(INTRO!$E$37="Non-endemic"," ", IF(COUNTRY_INFO!B39=0," ",COUNTRY_INFO!B39))) ->  | C39: =IF(INTRO!$E$39<>"Non-endemic", " ", IF(INTRO!$E$37="Non-endemic"," ", IF(COUNTRY_INFO!C39=0," ",COUNTRY_INFO!C39))) ->  | D39: =IF(INTRO!$E$39<>"Non-endemic", 0, IF(INTRO!$E$37="Non-endemic",0,IF(COUNTRY_INFO!$H39=1,COUNTRY_INFO!E39,0))) -> 0 | E39: =IF(INTRO!$E$39<>"Non-endemic", 0, IF(INTRO!$E$37="Non-endemic",0,IF(COUNTRY_INFO!$H39=1,COUNTRY_INFO!F39,0))) -> 0 | F39: =IF(INTRO!$E$39<>"Non-endemic", 0, IF(INTRO!$E$37="Non-endemic",0,IF(COUNTRY_INFO!$H39=1,COUNTRY_INFO!G39,0))) -> 0 | G39: 0 | H39: =IF(INTRO!$E$39="Non-endemic",IF(INTRO!$E$37="Non-endemic","Not required",COUNTRY_INFO!V39),"Treat with IVM") -> Not required | I39: 0 | J39: 0 | L39: 0
A40: =IF(INTRO!$E$39<>"Non-endemic", " ", IF(INTRO!$E$37="Non-endemic"," ", IF(COUNTRY_INFO!A40=0," ",COUNTRY_INFO!A40))) ->  | B40: =IF(INTRO!$E$39<>"Non-endemic", " ", IF(INTRO!$E$37="Non-endemic"," ", IF(COUNTRY_INFO!B40=0," ",COUNTRY_INFO!B40))) ->  | C40: =IF(INTRO!$E$39<>"Non-endemic", " ", IF(INTRO!$E$37="Non-endemic"," ", IF(COUNTRY_INFO!C40=0," ",COUNTRY_INFO!C40))) ->  | D40: =IF(INTRO!$E$39<>"Non-endemic", 0, IF(INTRO!$E$37="Non-endemic",0,IF(COUNTRY_INFO!$H40=1,COUNTRY_INFO!E40,0))) -> 0 | E40: =IF(INTRO!$E$39<>"Non-endemic", 0, IF(INTRO!$E$37="Non-endemic",0,IF(COUNTRY_INFO!$H40=1,COUNTRY_INFO!F40,0))) -> 0 | F40: =IF(INTRO!$E$39<>"Non-endemic", 0, IF(INTRO!$E$37="Non-endemic",0,IF(COUNTRY_INFO!$H40=1,COUNTRY_INFO!G40,0))) -> 0 | G40: 0 | H40: =IF(INTRO!$E$39="Non-endemic",IF(INTRO!$E$37="Non-endemic","Not required",COUNTRY_INFO!V40),"Treat with IVM") -> Not required | I40: 0 | J40: 0 | L40: 0
A41: =IF(INTRO!$E$39<>"Non-endemic", " ", IF(INTRO!$E$37="Non-endemic"," ", IF(COUNTRY_INFO!A41=0," ",COUNTRY_INFO!A41))) ->  | B41: =IF(INTRO!$E$39<>"Non-endemic", " ", IF(INTRO!$E$37="Non-endemic"," ", IF(COUNTRY_INFO!B41=0," ",COUNTRY_INFO!B41))) ->  | C41: =IF(INTRO!$E$39<>"Non-endemic", " ", IF(INTRO!$E$37="Non-endemic"," ", IF(COUNTRY_INFO!C41=0," ",COUNTRY_INFO!C41))) ->  | D41: =IF(INTRO!$E$39<>"Non-endemic", 0, IF(INTRO!$E$37="Non-endemic",0,IF(COUNTRY_INFO!$H41=1,COUNTRY_INFO!E41,0))) -> 0 | E41: =IF(INTRO!$E$39<>"Non-endemic", 0, IF(INTRO!$E$37="Non-endemic",0,IF(COUNTRY_INFO!$H41=1,COUNTRY_INFO!F41,0))) -> 0 | F41: =IF(INTRO!$E$39<>"Non-endemic", 0, IF(INTRO!$E$37="Non-endemic",0,IF(COUNTRY_INFO!$H41=1,COUNTRY_INFO!G41,0))) -> 0 | G41: 0 | H41: =IF(INTRO!$E$39="Non-endemic",IF(INTRO!$E$37="Non-endemic","Not required",COUNTRY_INFO!V41),"Treat with IVM") -> Not required | I41: 0 | J41: 0 | L41: 0
A42: =IF(INTRO!$E$39<>"Non-endemic", " ", IF(INTRO!$E$37="Non-endemic"," ", IF(COUNTRY_INFO!A42=0," ",COUNTRY_INFO!A42))) ->  | B42: =IF(INTRO!$E$39<>"Non-endemic", " ", IF(INTRO!$E$37="Non-endemic"," ", IF(COUNTRY_INFO!B42=0," ",COUNTRY_INFO!B42))) ->  | C42: =IF(INTRO!$E$39<>"Non-endemic", " ", IF(INTRO!$E$37="Non-endemic"," ", IF(COUNTRY_INFO!C42=0," ",COUNTRY_INFO!C42))) ->  | D42: =IF(INTRO!$E$39<>"Non-endemic", 0, IF(INTRO!$E$37="Non-endemic",0,IF(COUNTRY_INFO!$H42=1,COUNTRY_INFO!E42,0))) -> 0 | E42: =IF(INTRO!$E$39<>"Non-endemic", 0, IF(INTRO!$E$37="Non-endemic",0,IF(COUNTRY_INFO!$H42=1,COUNTRY_INFO!F42,0))) -> 0 | F42: =IF(INTRO!$E$39<>"Non-endemic", 0, IF(INTRO!$E$37="Non-endemic",0,IF(COUNTRY_INFO!$H42=1,COUNTRY_INFO!G42,0))) -> 0 | G42: 0 | H42: =IF(INTRO!$E$39="Non-endemic",IF(INTRO!$E$37="Non-endemic","Not required",COUNTRY_INFO!V42),"Treat with IVM") -> Not required | I42: 0 | J42: 0 | L42: 0
A43: =IF(INTRO!$E$39<>"Non-endemic", " ", IF(INTRO!$E$37="Non-endemic"," ", IF(COUNTRY_INFO!A43=0," ",COUNTRY_INFO!A43))) ->  | B43: =IF(INTRO!$E$39<>"Non-endemic", " ", IF(INTRO!$E$37="Non-endemic"," ", IF(COUNTRY_INFO!B43=0," ",COUNTRY_INFO!B43))) ->  | C43: =IF(INTRO!$E$39<>"Non-endemic", " ", IF(INTRO!$E$37="Non-endemic"," ", IF(COUNTRY_INFO!C43=0," ",COUNTRY_INFO!C43))) ->  | D43: =IF(INTRO!$E$39<>"Non-endemic", 0, IF(INTRO!$E$37="Non-endemic",0,IF(COUNTRY_INFO!$H43=1,COUNTRY_INFO!E43,0))) -> 0 | E43: =IF(INTRO!$E$39<>"Non-endemic", 0, IF(INTRO!$E$37="Non-endemic",0,IF(COUNTRY_INFO!$H43=1,COUNTRY_INFO!F43,0))) -> 0 | F43: =IF(INTRO!$E$39<>"Non-endemic", 0, IF(INTRO!$E$37="Non-endemic",0,IF(COUNTRY_INFO!$H43=1,COUNTRY_INFO!G43,0))) -> 0 | G43: 0 | H43: =IF(INTRO!$E$39="Non-endemic",IF(INTRO!$E$37="Non-endemic","Not required",COUNTRY_INFO!V43),"Treat with IVM") -> Not required | I43: 0 | J43: 0 | L43: 0
A44: =IF(INTRO!$E$39<>"Non-endemic", " ", IF(INTRO!$E$37="Non-endemic"," ", IF(COUNTRY_INFO!A44=0," ",COUNTRY_INFO!A44))) ->  | B44: =IF(INTRO!$E$39<>"Non-endemic", " ", IF(INTRO!$E$37="Non-endemic"," ", IF(COUNTRY_INFO!B44=0," ",COUNTRY_INFO!B44))) ->  | C44: =IF(INTRO!$E$39<>"Non-endemic", " ", IF(INTRO!$E$37="Non-endemic"," ", IF(COUNTRY_INFO!C44=0," ",COUNTRY_INFO!C44))) ->  | D44: =IF(INTRO!$E$39<>"Non-endemic", 0, IF(INTRO!$E$37="Non-endemic",0,IF(COUNTRY_INFO!$H44=1,COUNTRY_INFO!E44,0))) -> 0 | E44: =IF(INTRO!$E$39<>"Non-endemic", 0, IF(INTRO!$E$37="Non-endemic",0,IF(COUNTRY_INFO!$H44=1,COUNTRY_INFO!F44,0))) -> 0 | F44: =IF(INTRO!$E$39<>"Non-endemic", 0, IF(INTRO!$E$37="Non-endemic",0,IF(COUNTRY_INFO!$H44=1,COUNTRY_INFO!G44,0))) -> 0 | G44: 0 | H44: =IF(INTRO!$E$39="Non-endemic",IF(INTRO!$E$37="Non-endemic","Not required",COUNTRY_INFO!V44),"Treat with IVM") -> Not required | I44: 0 | J44: 0 | L44: 0
A45: =IF(INTRO!$E$39<>"Non-endemic", " ", IF(INTRO!$E$37="Non-endemic"," ", IF(COUNTRY_INFO!A45=0," ",COUNTRY_INFO!A45))) ->  | B45: =IF(INTRO!$E$39<>"Non-endemic", " ", IF(INTRO!$E$37="Non-endemic"," ", IF(COUNTRY_INFO!B45=0," ",COUNTRY_INFO!B45))) ->  | C45: =IF(INTRO!$E$39<>"Non-endemic", " ", IF(INTRO!$E$37="Non-endemic"," ", IF(COUNTRY_INFO!C45=0," ",COUNTRY_INFO!C45))) ->  | D45: =IF(INTRO!$E$39<>"Non-endemic", 0, IF(INTRO!$E$37="Non-endemic",0,IF(COUNTRY_INFO!$H45=1,COUNTRY_INFO!E45,0))) -> 0 | E45: =IF(INTRO!$E$39<>"Non-endemic", 0, IF(INTRO!$E$37="Non-endemic",0,IF(COUNTRY_INFO!$H45=1,COUNTRY_INFO!F45,0))) -> 0 | F45: =IF(INTRO!$E$39<>"Non-endemic", 0, IF(INTRO!$E$37="Non-endemic",0,IF(COUNTRY_INFO!$H45=1,COUNTRY_INFO!G45,0))) -> 0 | G45: 0 | H45: =IF(INTRO!$E$39="Non-endemic",IF(INTRO!$E$37="Non-endemic","Not required",COUNTRY_INFO!V45),"Treat with IVM") -> Not required | I45: 0 | J45: 0 | L45: 0
A46: =IF(INTRO!$E$39<>"Non-endemic", " ", IF(INTRO!$E$37="Non-endemic"," ", IF(COUNTRY_INFO!A46=0," ",COUNTRY_INFO!A46))) ->  | B46: =IF(INTRO!$E$39<>"Non-endemic", " ", IF(INTRO!$E$37="Non-endemic"," ", IF(COUNTRY_INFO!B46=0," ",COUNTRY_INFO!B46))) ->  | C46: =IF(INTRO!$E$39<>"Non-endemic", " ", IF(INTRO!$E$37="Non-endemic"," ", IF(COUNTRY_INFO!C46=0," ",COUNTRY_INFO!C46))) ->  | D46: =IF(INTRO!$E$39<>"Non-endemic", 0, IF(INTRO!$E$37="Non-endemic",0,IF(COUNTRY_INFO!$H46=1,COUNTRY_INFO!E46,0))) -> 0 | E46: =IF(INTRO!$E$39<>"Non-endemic", 0, IF(INTRO!$E$37="Non-endemic",0,IF(COUNTRY_INFO!$H46=1,COUNTRY_INFO!F46,0))) -> 0 | F46: =IF(INTRO!$E$39<>"Non-endemic", 0, IF(INTRO!$E$37="Non-endemic",0,IF(COUNTRY_INFO!$H46=1,COUNTRY_INFO!G46,0))) -> 0 | G46: 0 | H46: =IF(INTRO!$E$39="Non-endemic",IF(INTRO!$E$37="Non-endemic","Not required",COUNTRY_INFO!V46),"Treat with IVM") -> Not required | I46: 0 | J46: 0 | L46: 0
A47: =IF(INTRO!$E$39<>"Non-endemic", " ", IF(INTRO!$E$37="Non-endemic"," ", IF(COUNTRY_INFO!A47=0," ",COUNTRY_INFO!A47))) ->  | B47: =IF(INTRO!$E$39<>"Non-endemic", " ", IF(INTRO!$E$37="Non-endemic"," ", IF(COUNTRY_INFO!B47=0," ",COUNTRY_INFO!B47))) ->  | C47: =IF(INTRO!$E$39<>"Non-endemic", " ", IF(INTRO!$E$37="Non-endemic"," ", IF(COUNTRY_INFO!C47=0," ",COUNTRY_INFO!C47))) ->  | D47: =IF(INTRO!$E$39<>"Non-endemic", 0, IF(INTRO!$E$37="Non-endemic",0,IF(COUNTRY_INFO!$H47=1,COUNTRY_INFO!E47,0))) -> 0 | E47: =IF(INTRO!$E$39<>"Non-endemic", 0, IF(INTRO!$E$37="Non-endemic",0,IF(COUNTRY_INFO!$H47=1,COUNTRY_INFO!F47,0))) -> 0 | F47: =IF(INTRO!$E$39<>"Non-endemic", 0, IF(INTRO!$E$37="Non-endemic",0,IF(COUNTRY_INFO!$H47=1,COUNTRY_INFO!G47,0))) -> 0 | G47: 0 | H47: =IF(INTRO!$E$39="Non-endemic",IF(INTRO!$E$37="Non-endemic","Not required",COUNTRY_INFO!V47),"Treat with IVM") -> Not required | I47: 0 | J47: 0 | L47: 0
A48: =IF(INTRO!$E$39<>"Non-endemic", " ", IF(INTRO!$E$37="Non-endemic"," ", IF(COUNTRY_INFO!A48=0," ",COUNTRY_INFO!A48))) ->  | B48: =IF(INTRO!$E$39<>"Non-endemic", " ", IF(INTRO!$E$37="Non-endemic"," ", IF(COUNTRY_INFO!B48=0," ",COUNTRY_INFO!B48))) ->  | C48: =IF(INTRO!$E$39<>"Non-endemic", " ", IF(INTRO!$E$37="Non-endemic"," ", IF(COUNTRY_INFO!C48=0," ",COUNTRY_INFO!C48))) ->  | D48: =IF(INTRO!$E$39<>"Non-endemic", 0, IF(INTRO!$E$37="Non-endemic",0,IF(COUNTRY_INFO!$H48=1,COUNTRY_INFO!E48,0))) -> 0 | E48: =IF(INTRO!$E$39<>"Non-endemic", 0, IF(INTRO!$E$37="Non-endemic",0,IF(COUNTRY_INFO!$H48=1,COUNTRY_INFO!F48,0))) -> 0 | F48: =IF(INTRO!$E$39<>"Non-endemic", 0, IF(INTRO!$E$37="Non-endemic",0,IF(COUNTRY_INFO!$H48=1,COUNTRY_INFO!G48,0))) -> 0 | G48: 0 | H48: =IF(INTRO!$E$39="Non-endemic",IF(INTRO!$E$37="Non-endemic","Not required",COUNTRY_INFO!V48),"Treat with IVM") -> Not required | I48: 0 | J48: 0 | L48: 0
A49: =IF(INTRO!$E$39<>"Non-endemic", " ", IF(INTRO!$E$37="Non-endemic"," ", IF(COUNTRY_INFO!A49=0," ",COUNTRY_INFO!A49))) ->  | B49: =IF(INTRO!$E$39<>"Non-endemic", " ", IF(INTRO!$E$37="Non-endemic"," ", IF(COUNTRY_INFO!B49=0," ",COUNTRY_INFO!B49))) ->  | C49: =IF(INTRO!$E$39<>"Non-endemic", " ", IF(INTRO!$E$37="Non-endemic"," ", IF(COUNTRY_INFO!C49=0," ",COUNTRY_INFO!C49))) ->  | D49: =IF(INTRO!$E$39<>"Non-endemic", 0, IF(INTRO!$E$37="Non-endemic",0,IF(COUNTRY_INFO!$H49=1,COUNTRY_INFO!E49,0))) -> 0 | E49: =IF(INTRO!$E$39<>"Non-endemic", 0, IF(INTRO!$E$37="Non-endemic",0,IF(COUNTRY_INFO!$H49=1,COUNTRY_INFO!F49,0))) -> 0 | F49: =IF(INTRO!$E$39<>"Non-endemic", 0, IF(INTRO!$E$37="Non-endemic",0,IF(COUNTRY_INFO!$H49=1,COUNTRY_INFO!G49,0))) -> 0 | G49: 0 | H49: =IF(INTRO!$E$39="Non-endemic",IF(INTRO!$E$37="Non-endemic","Not required",COUNTRY_INFO!V49),"Treat with IVM") -> Not required | I49: 0 | J49: 0 | L49: 0
A50: =IF(INTRO!$E$39<>"Non-endemic", " ", IF(INTRO!$E$37="Non-endemic"," ", IF(COUNTRY_INFO!A50=0," ",COUNTRY_INFO!A50))) ->  | B50: =IF(INTRO!$E$39<>"Non-endemic", " ", IF(INTRO!$E$37="Non-endemic"," ", IF(COUNTRY_INFO!B50=0," ",COUNTRY_INFO!B50))) ->  | C50: =IF(INTRO!$E$39<>"Non-endemic", " ", IF(INTRO!$E$37="Non-endemic"," ", IF(COUNTRY_INFO!C50=0," ",COUNTRY_INFO!C50))) ->  | D50: =IF(INTRO!$E$39<>"Non-endemic", 0, IF(INTRO!$E$37="Non-endemic",0,IF(COUNTRY_INFO!$H50=1,COUNTRY_INFO!E50,0))) -> 0 | E50: =IF(INTRO!$E$39<>"Non-endemic", 0, IF(INTRO!$E$37="Non-endemic",0,IF(COUNTRY_INFO!$H50=1,COUNTRY_INFO!F50,0))) -> 0 | F50: =IF(INTRO!$E$39<>"Non-endemic", 0, IF(INTRO!$E$37="Non-endemic",0,IF(COUNTRY_INFO!$H50=1,COUNTRY_INFO!G50,0))) -> 0 | G50: 0 | H50: =IF(INTRO!$E$39="Non-endemic",IF(INTRO!$E$37="Non-endemic","Not required",COUNTRY_INFO!V50),"Treat with IVM") -> Not required | I50: 0 | J50: 0 | L50: 0
A51: =IF(INTRO!$E$39<>"Non-endemic", " ", IF(INTRO!$E$37="Non-endemic"," ", IF(COUNTRY_INFO!A51=0," ",COUNTRY_INFO!A51))) ->  | B51: =IF(INTRO!$E$39<>"Non-endemic", " ", IF(INTRO!$E$37="Non-endemic"," ", IF(COUNTRY_INFO!B51=0," ",COUNTRY_INFO!B51))) ->  | C51: =IF(INTRO!$E$39<>"Non-endemic", " ", IF(INTRO!$E$37="Non-endemic"," ", IF(COUNTRY_INFO!C51=0," ",COUNTRY_INFO!C51))) ->  | D51: =IF(INTRO!$E$39<>"Non-endemic", 0, IF(INTRO!$E$37="Non-endemic",0,IF(COUNTRY_INFO!$H51=1,COUNTRY_INFO!E51,0))) -> 0 | E51: =IF(INTRO!$E$39<>"Non-endemic", 0, IF(INTRO!$E$37="Non-endemic",0,IF(COUNTRY_INFO!$H51=1,COUNTRY_INFO!F51,0))) -> 0 | F51: =IF(INTRO!$E$39<>"Non-endemic", 0, IF(INTRO!$E$37="Non-endemic",0,IF(COUNTRY_INFO!$H51=1,COUNTRY_INFO!G51,0))) -> 0 | G51: 0 | H51: =IF(INTRO!$E$39="Non-endemic",IF(INTRO!$E$37="Non-endemic","Not required",COUNTRY_INFO!V51),"Treat with IVM") -> Not required | I51: 0 | J51: 0 | L51: 0
A52: =IF(INTRO!$E$39<>"Non-endemic", " ", IF(INTRO!$E$37="Non-endemic"," ", IF(COUNTRY_INFO!A52=0," ",COUNTRY_INFO!A52))) ->  | B52: =IF(INTRO!$E$39<>"Non-endemic", " ", IF(INTRO!$E$37="Non-endemic"," ", IF(COUNTRY_INFO!B52=0," ",COUNTRY_INFO!B52))) ->  | C52: =IF(INTRO!$E$39<>"Non-endemic", " ", IF(INTRO!$E$37="Non-endemic"," ", IF(COUNTRY_INFO!C52=0," ",COUNTRY_INFO!C52))) ->  | D52: =IF(INTRO!$E$39<>"Non-endemic", 0, IF(INTRO!$E$37="Non-endemic",0,IF(COUNTRY_INFO!$H52=1,COUNTRY_INFO!E52,0))) -> 0 | E52: =IF(INTRO!$E$39<>"Non-endemic", 0, IF(INTRO!$E$37="Non-endemic",0,IF(COUNTRY_INFO!$H52=1,COUNTRY_INFO!F52,0))) -> 0 | F52: =IF(INTRO!$E$39<>"Non-endemic", 0, IF(INTRO!$E$37="Non-endemic",0,IF(COUNTRY_INFO!$H52=1,COUNTRY_INFO!G52,0))) -> 0 | G52: 0 | H52: =IF(INTRO!$E$39="Non-endemic",IF(INTRO!$E$37="Non-endemic","Not required",COUNTRY_INFO!V52),"Treat with IVM") -> Not required | I52: 0 | J52: 0 | L52: 0
A53: =IF(INTRO!$E$39<>"Non-endemic", " ", IF(INTRO!$E$37="Non-endemic"," ", IF(COUNTRY_INFO!A53=0," ",COUNTRY_INFO!A53))) ->  | B53: =IF(INTRO!$E$39<>"Non-endemic", " ", IF(INTRO!$E$37="Non-endemic"," ", IF(COUNTRY_INFO!B53=0," ",COUNTRY_INFO!B53))) ->  | C53: =IF(INTRO!$E$39<>"Non-endemic", " ", IF(INTRO!$E$37="Non-endemic"," ", IF(COUNTRY_INFO!C53=0," ",COUNTRY_INFO!C53))) ->  | D53: =IF(INTRO!$E$39<>"Non-endemic", 0, IF(INTRO!$E$37="Non-endemic",0,IF(COUNTRY_INFO!$H53=1,COUNTRY_INFO!E53,0))) -> 0 | E53: =IF(INTRO!$E$39<>"Non-endemic", 0, IF(INTRO!$E$37="Non-endemic",0,IF(COUNTRY_INFO!$H53=1,COUNTRY_INFO!F53,0))) -> 0 | F53: =IF(INTRO!$E$39<>"Non-endemic", 0, IF(INTRO!$E$37="Non-endemic",0,IF(COUNTRY_INFO!$H53=1,COUNTRY_INFO!G53,0))) -> 0 | G53: 0 | H53: =IF(INTRO!$E$39="Non-endemic",IF(INTRO!$E$37="Non-endemic","Not required",COUNTRY_INFO!V53),"Treat with IVM") -> Not required | I53: 0 | J53: 0 | L53: 0
A54: =IF(INTRO!$E$39<>"Non-endemic", " ", IF(INTRO!$E$37="Non-endemic"," ", IF(COUNTRY_INFO!A54=0," ",COUNTRY_INFO!A54))) ->  | B54: =IF(INTRO!$E$39<>"Non-endemic", " ", IF(INTRO!$E$37="Non-endemic"," ", IF(COUNTRY_INFO!B54=0," ",COUNTRY_INFO!B54))) ->  | C54: =IF(INTRO!$E$39<>"Non-endemic", " ", IF(INTRO!$E$37="Non-endemic"," ", IF(COUNTRY_INFO!C54=0," ",COUNTRY_INFO!C54))) ->  | D54: =IF(INTRO!$E$39<>"Non-endemic", 0, IF(INTRO!$E$37="Non-endemic",0,IF(COUNTRY_INFO!$H54=1,COUNTRY_INFO!E54,0))) -> 0 | E54: =IF(INTRO!$E$39<>"Non-endemic", 0, IF(INTRO!$E$37="Non-endemic",0,IF(COUNTRY_INFO!$H54=1,COUNTRY_INFO!F54,0))) -> 0 | F54: =IF(INTRO!$E$39<>"Non-endemic", 0, IF(INTRO!$E$37="Non-endemic",0,IF(COUNTRY_INFO!$H54=1,COUNTRY_INFO!G54,0))) -> 0 | G54: 0 | H54: =IF(INTRO!$E$39="Non-endemic",IF(INTRO!$E$37="Non-endemic","Not required",COUNTRY_INFO!V54),"Treat with IVM") -> Not required | I54: 0 | J54: 0 | L54: 0
A55: =IF(INTRO!$E$39<>"Non-endemic", " ", IF(INTRO!$E$37="Non-endemic"," ", IF(COUNTRY_INFO!A55=0," ",COUNTRY_INFO!A55))) ->  | B55: =IF(INTRO!$E$39<>"Non-endemic", " ", IF(INTRO!$E$37="Non-endemic"," ", IF(COUNTRY_INFO!B55=0," ",COUNTRY_INFO!B55))) ->  | C55: =IF(INTRO!$E$39<>"Non-endemic", " ", IF(INTRO!$E$37="Non-endemic"," ", IF(COUNTRY_INFO!C55=0," ",COUNTRY_INFO!C55))) ->  | D55: =IF(INTRO!$E$39<>"Non-endemic", 0, IF(INTRO!$E$37="Non-endemic",0,IF(COUNTRY_INFO!$H55=1,COUNTRY_INFO!E55,0))) -> 0 | E55: =IF(INTRO!$E$39<>"Non-endemic", 0, IF(INTRO!$E$37="Non-endemic",0,IF(COUNTRY_INFO!$H55=1,COUNTRY_INFO!F55,0))) -> 0 | F55: =IF(INTRO!$E$39<>"Non-endemic", 0, IF(INTRO!$E$37="Non-endemic",0,IF(COUNTRY_INFO!$H55=1,COUNTRY_INFO!G55,0))) -> 0 | G55: 0 | H55: =IF(INTRO!$E$39="Non-endemic",IF(INTRO!$E$37="Non-endemic","Not required",COUNTRY_INFO!V55),"Treat with IVM") -> Not required | I55: 0 | J55: 0 | L55: 0
A56: =IF(INTRO!$E$39<>"Non-endemic", " ", IF(INTRO!$E$37="Non-endemic"," ", IF(COUNTRY_INFO!A56=0," ",COUNTRY_INFO!A56))) ->  | B56: =IF(INTRO!$E$39<>"Non-endemic", " ", IF(INTRO!$E$37="Non-endemic"," ", IF(COUNTRY_INFO!B56=0," ",COUNTRY_INFO!B56))) ->  | C56: =IF(INTRO!$E$39<>"Non-endemic", " ", IF(INTRO!$E$37="Non-endemic"," ", IF(COUNTRY_INFO!C56=0," ",COUNTRY_INFO!C56))) ->  | D56: =IF(INTRO!$E$39<>"Non-endemic", 0, IF(INTRO!$E$37="Non-endemic",0,IF(COUNTRY_INFO!$H56=1,COUNTRY_INFO!E56,0))) -> 0 | E56: =IF(INTRO!$E$39<>"Non-endemic", 0, IF(INTRO!$E$37="Non-endemic",0,IF(COUNTRY_INFO!$H56=1,COUNTRY_INFO!F56,0))) -> 0 | F56: =IF(INTRO!$E$39<>"Non-endemic", 0, IF(INTRO!$E$37="Non-endemic",0,IF(COUNTRY_INFO!$H56=1,COUNTRY_INFO!G56,0))) -> 0 | G56: 0 | H56: =IF(INTRO!$E$39="Non-endemic",IF(INTRO!$E$37="Non-endemic","Not required",COUNTRY_INFO!V56),"Treat with IVM") -> Not required | I56: 0 | J56: 0 | L56: 0
A57: =IF(INTRO!$E$39<>"Non-endemic", " ", IF(INTRO!$E$37="Non-endemic"," ", IF(COUNTRY_INFO!A57=0," ",COUNTRY_INFO!A57))) ->  | B57: =IF(INTRO!$E$39<>"Non-endemic", " ", IF(INTRO!$E$37="Non-endemic"," ", IF(COUNTRY_INFO!B57=0," ",COUNTRY_INFO!B57))) ->  | C57: =IF(INTRO!$E$39<>"Non-endemic", " ", IF(INTRO!$E$37="Non-endemic"," ", IF(COUNTRY_INFO!C57=0," ",COUNTRY_INFO!C57))) ->  | D57: =IF(INTRO!$E$39<>"Non-endemic", 0, IF(INTRO!$E$37="Non-endemic",0,IF(COUNTRY_INFO!$H57=1,COUNTRY_INFO!E57,0))) -> 0 | E57: =IF(INTRO!$E$39<>"Non-endemic", 0, IF(INTRO!$E$37="Non-endemic",0,IF(COUNTRY_INFO!$H57=1,COUNTRY_INFO!F57,0))) -> 0 | F57: =IF(INTRO!$E$39<>"Non-endemic", 0, IF(INTRO!$E$37="Non-endemic",0,IF(COUNTRY_INFO!$H57=1,COUNTRY_INFO!G57,0))) -> 0 | G57: 0 | H57: =IF(INTRO!$E$39="Non-endemic",IF(INTRO!$E$37="Non-endemic","Not required",COUNTRY_INFO!V57),"Treat with IVM") -> Not required | I57: 0 | J57: 0 | L57: 0
A58: =IF(INTRO!$E$39<>"Non-endemic", " ", IF(INTRO!$E$37="Non-endemic"," ", IF(COUNTRY_INFO!A58=0," ",COUNTRY_INFO!A58))) ->  | B58: =IF(INTRO!$E$39<>"Non-endemic", " ", IF(INTRO!$E$37="Non-endemic"," ", IF(COUNTRY_INFO!B58=0," ",COUNTRY_INFO!B58))) ->  | C58: =IF(INTRO!$E$39<>"Non-endemic", " ", IF(INTRO!$E$37="Non-endemic"," ", IF(COUNTRY_INFO!C58=0," ",COUNTRY_INFO!C58))) ->  | D58: =IF(INTRO!$E$39<>"Non-endemic", 0, IF(INTRO!$E$37="Non-endemic",0,IF(COUNTRY_INFO!$H58=1,COUNTRY_INFO!E58,0))) -> 0 | E58: =IF(INTRO!$E$39<>"Non-endemic", 0, IF(INTRO!$E$37="Non-endemic",0,IF(COUNTRY_INFO!$H58=1,COUNTRY_INFO!F58,0))) -> 0 | F58: =IF(INTRO!$E$39<>"Non-endemic", 0, IF(INTRO!$E$37="Non-endemic",0,IF(COUNTRY_INFO!$H58=1,COUNTRY_INFO!G58,0))) -> 0 | G58: 0 | H58: =IF(INTRO!$E$39="Non-endemic",IF(INTRO!$E$37="Non-endemic","Not required",COUNTRY_INFO!V58),"Treat with IVM") -> Not required | I58: 0 | J58: 0 | L58: 0
A59: =IF(INTRO!$E$39<>"Non-endemic", " ", IF(INTRO!$E$37="Non-endemic"," ", IF(COUNTRY_INFO!A59=0," ",COUNTRY_INFO!A59))) ->  | B59: =IF(INTRO!$E$39<>"Non-endemic", " ", IF(INTRO!$E$37="Non-endemic"," ", IF(COUNTRY_INFO!B59=0," ",COUNTRY_INFO!B59))) ->  | C59: =IF(INTRO!$E$39<>"Non-endemic", " ", IF(INTRO!$E$37="Non-endemic"," ", IF(COUNTRY_INFO!C59=0," ",COUNTRY_INFO!C59))) ->  | D59: =IF(INTRO!$E$39<>"Non-endemic", 0, IF(INTRO!$E$37="Non-endemic",0,IF(COUNTRY_INFO!$H59=1,COUNTRY_INFO!E59,0))) -> 0 | E59: =IF(INTRO!$E$39<>"Non-endemic", 0, IF(INTRO!$E$37="Non-endemic",0,IF(COUNTRY_INFO!$H59=1,COUNTRY_INFO!F59,0))) -> 0 | F59: =IF(INTRO!$E$39<>"Non-endemic", 0, IF(INTRO!$E$37="Non-endemic",0,IF(COUNTRY_INFO!$H59=1,COUNTRY_INFO!G59,0))) -> 0 | G59: 0 | H59: =IF(INTRO!$E$39="Non-endemic",IF(INTRO!$E$37="Non-endemic","Not required",COUNTRY_INFO!V59),"Treat with IVM") -> Not required | I59: 0 | J59: 0 | L59: 0
A60: =IF(INTRO!$E$39<>"Non-endemic", " ", IF(INTRO!$E$37="Non-endemic"," ", IF(COUNTRY_INFO!A60=0," ",COUNTRY_INFO!A60))) ->  | B60: =IF(INTRO!$E$39<>"Non-endemic", " ", IF(INTRO!$E$37="Non-endemic"," ", IF(COUNTRY_INFO!B60=0," ",COUNTRY_INFO!B60))) ->  | C60: =IF(INTRO!$E$39<>"Non-endemic", " ", IF(INTRO!$E$37="Non-endemic"," ", IF(COUNTRY_INFO!C60=0," ",COUNTRY_INFO!C60))) ->  | D60: =IF(INTRO!$E$39<>"Non-endemic", 0, IF(INTRO!$E$37="Non-endemic",0,IF(COUNTRY_INFO!$H60=1,COUNTRY_INFO!E60,0))) -> 0 | E60: =IF(INTRO!$E$39<>"Non-endemic", 0, IF(INTRO!$E$37="Non-endemic",0,IF(COUNTRY_INFO!$H60=1,COUNTRY_INFO!F60,0))) -> 0 | F60: =IF(INTRO!$E$39<>"Non-endemic", 0, IF(INTRO!$E$37="Non-endemic",0,IF(COUNTRY_INFO!$H60=1,COUNTRY_INFO!G60,0))) -> 0 | G60: 0 | H60: =IF(INTRO!$E$39="Non-endemic",IF(INTRO!$E$37="Non-endemic","Not required",COUNTRY_INFO!V60),"Treat with IVM") -> Not required | I60: 0 | J60: 0 | L60: 0
A61: =IF(INTRO!$E$39<>"Non-endemic", " ", IF(INTRO!$E$37="Non-endemic"," ", IF(COUNTRY_INFO!A61=0," ",COUNTRY_INFO!A61))) ->  | B61: =IF(INTRO!$E$39<>"Non-endemic", " ", IF(INTRO!$E$37="Non-endemic"," ", IF(COUNTRY_INFO!B61=0," ",COUNTRY_INFO!B61))) ->  | C61: =IF(INTRO!$E$39<>"Non-endemic", " ", IF(INTRO!$E$37="Non-endemic"," ", IF(COUNTRY_INFO!C61=0," ",COUNTRY_INFO!C61))) ->  | D61: =IF(INTRO!$E$39<>"Non-endemic", 0, IF(INTRO!$E$37="Non-endemic",0,IF(COUNTRY_INFO!$H61=1,COUNTRY_INFO!E61,0))) -> 0 | E61: =IF(INTRO!$E$39<>"Non-endemic", 0, IF(INTRO!$E$37="Non-endemic",0,IF(COUNTRY_INFO!$H61=1,COUNTRY_INFO!F61,0))) -> 0 | F61: =IF(INTRO!$E$39<>"Non-endemic", 0, IF(INTRO!$E$37="Non-endemic",0,IF(COUNTRY_INFO!$H61=1,COUNTRY_INFO!G61,0))) -> 0 | G61: 0 | H61: =IF(INTRO!$E$39="Non-endemic",IF(INTRO!$E$37="Non-endemic","Not required",COUNTRY_INFO!V61),"Treat with IVM") -> Not required | I61: 0 | J61: 0 | L61: 0
A62: =IF(INTRO!$E$39<>"Non-endemic", " ", IF(INTRO!$E$37="Non-endemic"," ", IF(COUNTRY_INFO!A62=0," ",COUNTRY_INFO!A62))) ->  | B62: =IF(INTRO!$E$39<>"Non-endemic", " ", IF(INTRO!$E$37="Non-endemic"," ", IF(COUNTRY_INFO!B62=0," ",COUNTRY_INFO!B62))) ->  | C62: =IF(INTRO!$E$39<>"Non-endemic", " ", IF(INTRO!$E$37="Non-endemic"," ", IF(COUNTRY_INFO!C62=0," ",COUNTRY_INFO!C62))) ->  | D62: =IF(INTRO!$E$39<>"Non-endemic", 0, IF(INTRO!$E$37="Non-endemic",0,IF(COUNTRY_INFO!$H62=1,COUNTRY_INFO!E62,0))) -> 0 | E62: =IF(INTRO!$E$39<>"Non-endemic", 0, IF(INTRO!$E$37="Non-endemic",0,IF(COUNTRY_INFO!$H62=1,COUNTRY_INFO!F62,0))) -> 0 | F62: =IF(INTRO!$E$39<>"Non-endemic", 0, IF(INTRO!$E$37="Non-endemic",0,IF(COUNTRY_INFO!$H62=1,COUNTRY_INFO!G62,0))) -> 0 | G62: 0 | H62: =IF(INTRO!$E$39="Non-endemic",IF(INTRO!$E$37="Non-endemic","Not required",COUNTRY_INFO!V62),"Treat with IVM") -> Not required | I62: 0 | J62: 0 | L62: 0
A63: =IF(INTRO!$E$39<>"Non-endemic", " ", IF(INTRO!$E$37="Non-endemic"," ", IF(COUNTRY_INFO!A63=0," ",COUNTRY_INFO!A63))) ->  | B63: =IF(INTRO!$E$39<>"Non-endemic", " ", IF(INTRO!$E$37="Non-endemic"," ", IF(COUNTRY_INFO!B63=0," ",COUNTRY_INFO!B63))) ->  | C63: =IF(INTRO!$E$39<>"Non-endemic", " ", IF(INTRO!$E$37="Non-endemic"," ", IF(COUNTRY_INFO!C63=0," ",COUNTRY_INFO!C63))) ->  | D63: =IF(INTRO!$E$39<>"Non-endemic", 0, IF(INTRO!$E$37="Non-endemic",0,IF(COUNTRY_INFO!$H63=1,COUNTRY_INFO!E63,0))) -> 0 | E63: =IF(INTRO!$E$39<>"Non-endemic", 0, IF(INTRO!$E$37="Non-endemic",0,IF(COUNTRY_INFO!$H63=1,COUNTRY_INFO!F63,0))) -> 0 | F63: =IF(INTRO!$E$39<>"Non-endemic", 0, IF(INTRO!$E$37="Non-endemic",0,IF(COUNTRY_INFO!$H63=1,COUNTRY_INFO!G63,0))) -> 0 | G63: 0 | H63: =IF(INTRO!$E$39="Non-endemic",IF(INTRO!$E$37="Non-endemic","Not required",COUNTRY_INFO!V63),"Treat with IVM") -> Not required | I63: 0 | J63: 0 | L63: 0
A64: =IF(INTRO!$E$39<>"Non-endemic", " ", IF(INTRO!$E$37="Non-endemic"," ", IF(COUNTRY_INFO!A64=0," ",COUNTRY_INFO!A64))) ->  | B64: =IF(INTRO!$E$39<>"Non-endemic", " ", IF(INTRO!$E$37="Non-endemic"," ", IF(COUNTRY_INFO!B64=0," ",COUNTRY_INFO!B64))) ->  | C64: =IF(INTRO!$E$39<>"Non-endemic", " ", IF(INTRO!$E$37="Non-endemic"," ", IF(COUNTRY_INFO!C64=0," ",COUNTRY_INFO!C64))) ->  | D64: =IF(INTRO!$E$39<>"Non-endemic", 0, IF(INTRO!$E$37="Non-endemic",0,IF(COUNTRY_INFO!$H64=1,COUNTRY_INFO!E64,0))) -> 0 | E64: =IF(INTRO!$E$39<>"Non-endemic", 0, IF(INTRO!$E$37="Non-endemic",0,IF(COUNTRY_INFO!$H64=1,COUNTRY_INFO!F64,0))) -> 0 | F64: =IF(INTRO!$E$39<>"Non-endemic", 0, IF(INTRO!$E$37="Non-endemic",0,IF(COUNTRY_INFO!$H64=1,COUNTRY_INFO!G64,0))) -> 0 | G64: 0 | H64: =IF(INTRO!$E$39="Non-endemic",IF(INTRO!$E$37="Non-endemic","Not required",COUNTRY_INFO!V64),"Treat with IVM") -> Not required | I64: 0 | J64: 0 | L64: 0
A65: =IF(INTRO!$E$39<>"Non-endemic", " ", IF(INTRO!$E$37="Non-endemic"," ", IF(COUNTRY_INFO!A65=0," ",COUNTRY_INFO!A65))) ->  | B65: =IF(INTRO!$E$39<>"Non-endemic", " ", IF(INTRO!$E$37="Non-endemic"," ", IF(COUNTRY_INFO!B65=0," ",COUNTRY_INFO!B65))) ->  | C65: =IF(INTRO!$E$39<>"Non-endemic", " ", IF(INTRO!$E$37="Non-endemic"," ", IF(COUNTRY_INFO!C65=0," ",COUNTRY_INFO!C65))) ->  | D65: =IF(INTRO!$E$39<>"Non-endemic", 0, IF(INTRO!$E$37="Non-endemic",0,IF(COUNTRY_INFO!$H65=1,COUNTRY_INFO!E65,0))) -> 0 | E65: =IF(INTRO!$E$39<>"Non-endemic", 0, IF(INTRO!$E$37="Non-endemic",0,IF(COUNTRY_INFO!$H65=1,COUNTRY_INFO!F65,0))) -> 0 | F65: =IF(INTRO!$E$39<>"Non-endemic", 0, IF(INTRO!$E$37="Non-endemic",0,IF(COUNTRY_INFO!$H65=1,COUNTRY_INFO!G65,0))) -> 0 | G65: 0 | H65: =IF(INTRO!$E$39="Non-endemic",IF(INTRO!$E$37="Non-endemic","Not required",COUNTRY_INFO!V65),"Treat with IVM") -> Not required | I65: 0 | J65: 0 | L65: 0
A66: =IF(INTRO!$E$39<>"Non-endemic", " ", IF(INTRO!$E$37="Non-endemic"," ", IF(COUNTRY_INFO!A66=0," ",COUNTRY_INFO!A66))) ->  | B66: =IF(INTRO!$E$39<>"Non-endemic", " ", IF(INTRO!$E$37="Non-endemic"," ", IF(COUNTRY_INFO!B66=0," ",COUNTRY_INFO!B66))) ->  | C66: =IF(INTRO!$E$39<>"Non-endemic", " ", IF(INTRO!$E$37="Non-endemic"," ", IF(COUNTRY_INFO!C66=0," ",COUNTRY_INFO!C66))) ->  | D66: =IF(INTRO!$E$39<>"Non-endemic", 0, IF(INTRO!$E$37="Non-endemic",0,IF(COUNTRY_INFO!$H66=1,COUNTRY_INFO!E66,0))) -> 0 | E66: =IF(INTRO!$E$39<>"Non-endemic", 0, IF(INTRO!$E$37="Non-endemic",0,IF(COUNTRY_INFO!$H66=1,COUNTRY_INFO!F66,0))) -> 0 | F66: =IF(INTRO!$E$39<>"Non-endemic", 0, IF(INTRO!$E$37="Non-endemic",0,IF(COUNTRY_INFO!$H66=1,COUNTRY_INFO!G66,0))) -> 0 | G66: 0 | H66: =IF(INTRO!$E$39="Non-endemic",IF(INTRO!$E$37="Non-endemic","Not required",COUNTRY_INFO!V66),"Treat with IVM") -> Not required | I66: 0 | J66: 0 | L66: 0
A67: =IF(INTRO!$E$39<>"Non-endemic", " ", IF(INTRO!$E$37="Non-endemic"," ", IF(COUNTRY_INFO!A67=0," ",COUNTRY_INFO!A67))) ->  | B67: =IF(INTRO!$E$39<>"Non-endemic", " ", IF(INTRO!$E$37="Non-endemic"," ", IF(COUNTRY_INFO!B67=0," ",COUNTRY_INFO!B67))) ->  | C67: =IF(INTRO!$E$39<>"Non-endemic", " ", IF(INTRO!$E$37="Non-endemic"," ", IF(COUNTRY_INFO!C67=0," ",COUNTRY_INFO!C67))) ->  | D67: =IF(INTRO!$E$39<>"Non-endemic", 0, IF(INTRO!$E$37="Non-endemic",0,IF(COUNTRY_INFO!$H67=1,COUNTRY_INFO!E67,0))) -> 0 | E67: =IF(INTRO!$E$39<>"Non-endemic", 0, IF(INTRO!$E$37="Non-endemic",0,IF(COUNTRY_INFO!$H67=1,COUNTRY_INFO!F67,0))) -> 0 | F67: =IF(INTRO!$E$39<>"Non-endemic", 0, IF(INTRO!$E$37="Non-endemic",0,IF(COUNTRY_INFO!$H67=1,COUNTRY_INFO!G67,0))) -> 0 | G67: 0 | H67: =IF(INTRO!$E$39="Non-endemic",IF(INTRO!$E$37="Non-endemic","Not required",COUNTRY_INFO!V67),"Treat with IVM") -> Not required | I67: 0 | J67: 0 | L67: 0
A68: =IF(INTRO!$E$39<>"Non-endemic", " ", IF(INTRO!$E$37="Non-endemic"," ", IF(COUNTRY_INFO!A68=0," ",COUNTRY_INFO!A68))) ->  | B68: =IF(INTRO!$E$39<>"Non-endemic", " ", IF(INTRO!$E$37="Non-endemic"," ", IF(COUNTRY_INFO!B68=0," ",COUNTRY_INFO!B68))) ->  | C68: =IF(INTRO!$E$39<>"Non-endemic", " ", IF(INTRO!$E$37="Non-endemic"," ", IF(COUNTRY_INFO!C68=0," ",COUNTRY_INFO!C68))) ->  | D68: =IF(INTRO!$E$39<>"Non-endemic", 0, IF(INTRO!$E$37="Non-endemic",0,IF(COUNTRY_INFO!$H68=1,COUNTRY_INFO!E68,0))) -> 0 | E68: =IF(INTRO!$E$39<>"Non-endemic", 0, IF(INTRO!$E$37="Non-endemic",0,IF(COUNTRY_INFO!$H68=1,COUNTRY_INFO!F68,0))) -> 0 | F68: =IF(INTRO!$E$39<>"Non-endemic", 0, IF(INTRO!$E$37="Non-endemic",0,IF(COUNTRY_INFO!$H68=1,COUNTRY_INFO!G68,0))) -> 0 | G68: 0 | H68: =IF(INTRO!$E$39="Non-endemic",IF(INTRO!$E$37="Non-endemic","Not required",COUNTRY_INFO!V68),"Treat with IVM") -> Not required | I68: 0 | J68: 0 | L68: 0

Sheet ALB_MBD
A1: Albendazole (ALB) and Mebendazole (MBD) | G1: Select medicine for treatment of STH for each age group
A2: Administrative structure, eligible population by age group, treatment plan and information about tablets | I2: ALB
A4: TOTAL | F4: =SUBTOTAL(9,F$10:F$1010) -> 0 | H4: =SUBTOTAL(9,H$10:H$1010) -> 7819 | I4: 19383 | K4: 21590 | L4: 48792 | M4: 0 | N4: 0 | O4: 0 | P4: 19383 | Q4: 0 | R4: 19383 | S4: 0 | T4: 0 | U4: 0
A6: Country administrative structure | D6: Treatment plan | F6: People targeted by PELF with ALB | G6: Target population for STH | M6: Albendazole (ALB) | S6: Mebendazole (MBD)
A7: Country | B7: Province/State | C7: District | D7: LF | E7: STH | G7: PreSAC | I7: SAC | J7: WRA | L7: Total | M7: Total required | N7: Remaining in stock (LF) | O7: Tablets to be procured (LF) | P7: Total required | Q7: Remaining in stock (STH) | R7: Tablets to be procured (STH) | S7: Total required | T7: Remaining in stock | U7: Tablets to be procured
G8: Rounds | H8: People | I8: People | J8: Rounds | K8: People
A10: =IF(AND(INTRO!$E$37="Non-endemic",INTRO!$E$41="Non-endemic")," ",IF(COUNTRY_INFO!A10=0," ",COUNTRY_INFO!A10)) -> Eswatini | B10: =IF(AND(INTRO!$E$37="Non-endemic",INTRO!$E$41="Non-endemic")," ",IF(COUNTRY_INFO!B10=0," ",COUNTRY_INFO!B10)) -> HHOHHO | C10: =IF(AND(INTRO!$E$37="Non-endemic",INTRO!$E$41="Non-endemic")," ",IF(COUNTRY_INFO!C10=0," ",COUNTRY_INFO!C10)) -> Hhukwini | D10: =IF(AND(INTRO!$E$37="Non-endemic",INTRO!$E$41="Non-endemic"),0,COUNTRY_INFO!V10) -> 0 | E10: =IF(AND(INTRO!$E$37="Non-endemic",INTRO!$E$41="Non-endemic"),0,COUNTRY_INFO!X10) -> 1 | F10: =IF(INTRO!$E$39="Non-endemic",IF($D10=1,DEC!I10,0),IF($D10=1,IVM!G10,0)) -> 0 | H10: =IF(OR(COUNTRY_INFO!N10="Unknown",COUNTRY_INFO!N10="Surveillance",COUNTRY_INFO!N10="Not required",COUNTRY_INFO!N10=0),0,IF(INTRO!$E$39="Non-endemic",IF(AND($E10<>0,$G10=""),IF($F10=0,COUNTRY_INFO!N10*$E10,COUNTRY_INFO!N10*($E10-$D10)),IF(AND($E10<>0,$G10<>0),IF($F10=0,COUNTRY_INFO!N10*$G10,COUNTRY_INFO!N10*($G10-$D10)),0)),IF($G10="",COUNTRY_INFO!N10*$E10,COUNTRY_INFO!N10*$G10))) -> 1196 | I10: =IF(OR(COUNTRY_INFO!O10="Unknown",COUNTRY_INFO!O10="Surveillance",COUNTRY_INFO!O10="Not required",COUNTRY_INFO!O10=0),0,IF($E10<>0, IF($F10=0,COUNTRY_INFO!O10*$E10,COUNTRY_INFO!O10*($E10-$D10)),COUNTRY_INFO!O10*$E10)) -> 2965 | K10: =IF(OR(COUNTRY_INFO!P10="Unknown",COUNTRY_INFO!P10="Surveillance",COUNTRY_INFO!P10="Not required",COUNTRY_INFO!P10=0),0,IF(AND($E10<>0,$J10=""),IF($F10=0,COUNTRY_INFO!P10*$E10,COUNTRY_INFO!P10*($E10-$D10)), IF(AND($E10<>0,$J10<>0),IF($F10=0,COUNTRY_INFO!P10*$J10,COUNTRY_INFO!P10*($J10-$D10)), COUNTRY_INFO!P10*$J10))) -> 3302 | L10: =ROUND($H10,0)+ROUND($I10,0)+ROUND($K10,0) -> 7463 | M10: =$F10 -> 0 | O10: =IF($M10>$N10, $M10-$N10,0) -> 0 | P10: =ROUND((IF($G$2="ALB",$H10,0)+IF($I$2="ALB",$I10,0)+IF($J$2="ALB",$K10,0)),0) -> 2965 | R10: =IF($P10>$Q10,$P10-$Q10,0) -> 2965 | S10: =ROUND((IF($G$2="MBD",$H10,0)+IF($I$2="MBD",$I10,0)+IF($J$2="MBD",$K10,0)),0) -> 0 | U10: =IF($S10>$T10,$S10-$T10,0) -> 0
A11: =IF(AND(INTRO!$E$37="Non-endemic",INTRO!$E$41="Non-endemic")," ",IF(COUNTRY_INFO!A11=0," ",COUNTRY_INFO!A11)) -> Eswatini | B11: =IF(AND(INTRO!$E$37="Non-endemic",INTRO!$E$41="Non-endemic")," ",IF(COUNTRY_INFO!B11=0," ",COUNTRY_INFO!B11)) -> HHOHHO | C11: =IF(AND(INTRO!$E$37="Non-endemic",INTRO!$E$41="Non-endemic")," ",IF(COUNTRY_INFO!C11=0," ",COUNTRY_INFO!C11)) -> Lobamba | D11: =IF(AND(INTRO!$E$37="Non-endemic",INTRO!$E$41="Non-endemic"),0,COUNTRY_INFO!V11) -> 0 | E11: =IF(AND(INTRO!$E$37="Non-endemic",INTRO!$E$41="Non-endemic"),0,COUNTRY_INFO!X11) -> 0 | F11: =IF(INTRO!$E$39="Non-endemic",IF($D11=1,DEC!I11,0),IF($D11=1,IVM!G11,0)) -> 0 | H11: =IF(OR(COUNTRY_INFO!N11="Unknown",COUNTRY_INFO!N11="Surveillance",COUNTRY_INFO!N11="Not required",COUNTRY_INFO!N11=0),0,IF(INTRO!$E$39="Non-endemic",IF(AND($E11<>0,$G11=""),IF($F11=0,COUNTRY_INFO!N11*$E11,COUNTRY_INFO!N11*($E11-$D11)),IF(AND($E11<>0,$G11<>0),IF($F11=0,COUNTRY_INFO!N11*$G11,COUNTRY_INFO!N11*($G11-$D11)),0)),IF($G11="",COUNTRY_INFO!N11*$E11,COUNTRY_INFO!N11*$G11))) -> 0 | I11: =IF(OR(COUNTRY_INFO!O11="Unknown",COUNTRY_INFO!O11="Surveillance",COUNTRY_INFO!O11="Not required",COUNTRY_INFO!O11=0),0,IF($E11<>0, IF($F11=0,COUNTRY_INFO!O11*$E11,COUNTRY_INFO!O11*($E11-$D11)),COUNTRY_INFO!O11*$E11)) -> 0 | K11: =IF(OR(COUNTRY_INFO!P11="Unknown",COUNTRY_INFO!P11="Surveillance",COUNTRY_INFO!P11="Not required",COUNTRY_INFO!P11=0),0,IF(AND($E11<>0,$J11=""),IF($F11=0,COUNTRY_INFO!P11*$E11,COUNTRY_INFO!P11*($E11-$D11)), IF(AND($E11<>0,$J11<>0),IF($F11=0,COUNTRY_INFO!P11*$J11,COUNTRY_INFO!P11*($J11-$D11)), COUNTRY_INFO!P11*$J11))) -> 0 | L11: 0 | M11: 0 | O11: 0 | P11: 0 | R11: 0 | S11: 0 | U11: 0
A12: =IF(AND(INTRO!$E$37="Non-endemic",INTRO!$E$41="Non-endemic")," ",IF(COUNTRY_INFO!A12=0," ",COUNTRY_INFO!A12)) -> Eswatini | B12: =IF(AND(INTRO!$E$37="Non-endemic",INTRO!$E$41="Non-endemic")," ",IF(COUNTRY_INFO!B12=0," ",COUNTRY_INFO!B12)) -> HHOHHO | C12: =IF(AND(INTRO!$E$37="Non-endemic",INTRO!$E$41="Non-endemic")," ",IF(COUNTRY_INFO!C12=0," ",COUNTRY_INFO!C12)) -> Madlangempisi | D12: =IF(AND(INTRO!$E$37="Non-endemic",INTRO!$E$41="Non-endemic"),0,COUNTRY_INFO!V12) -> 0 | E12: =IF(AND(INTRO!$E$37="Non-endemic",INTRO!$E$41="Non-endemic"),0,COUNTRY_INFO!X12) -> 0 | F12: =IF(INTRO!$E$39="Non-endemic",IF($D12=1,DEC!I12,0),IF($D12=1,IVM!G12,0)) -> 0 | H12: =IF(OR(COUNTRY_INFO!N12="Unknown",COUNTRY_INFO!N12="Surveillance",COUNTRY_INFO!N12="Not required",COUNTRY_INFO!N12=0),0,IF(INTRO!$E$39="Non-endemic",IF(AND($E12<>0,$G12=""),IF($F12=0,COUNTRY_INFO!N12*$E12,COUNTRY_INFO!N12*($E12-$D12)),IF(AND($E12<>0,$G12<>0),IF($F12=0,COUNTRY_INFO!N12*$G12,COUNTRY_INFO!N12*($G12-$D12)),0)),IF($G12="",COUNTRY_INFO!N12*$E12,COUNTRY_INFO!N12*$G12))) -> 0 | I12: =IF(OR(COUNTRY_INFO!O12="Unknown",COUNTRY_INFO!O12="Surveillance",COUNTRY_INFO!O12="Not required",COUNTRY_INFO!O12=0),0,IF($E12<>0, IF($F12=0,COUNTRY_INFO!O12*$E12,COUNTRY_INFO!O12*($E12-$D12)),COUNTRY_INFO!O12*$E12)) -> 0 | K12: =IF(OR(COUNTRY_INFO!P12="Unknown",COUNTRY_INFO!P12="Surveillance",COUNTRY_INFO!P12="Not required",COUNTRY_INFO!P12=0),0,IF(AND($E12<>0,$J12=""),IF($F12=0,COUNTRY_INFO!P12*$E12,COUNTRY_INFO!P12*($E12-$D12)), IF(AND($E12<>0,$J12<>0),IF($F12=0,COUNTRY_INFO!P12*$J12,COUNTRY_INFO!P12*($J12-$D12)), COUNTRY_INFO!P12*$J12))) -> 0 | L12: 0 | M12: 0 | O12: 0 | P12: 0 | R12: 0 | S12: 0 | U12: 0
A13: =IF(AND(INTRO!$E$37="Non-endemic",INTRO!$E$41="Non-endemic")," ",IF(COUNTRY_INFO!A13=0," ",COUNTRY_INFO!A13)) -> Eswatini | B13: =IF(AND(INTRO!$E$37="Non-endemic",INTRO!$E$41="Non-endemic")," ",IF(COUNTRY_INFO!B13=0," ",COUNTRY_INFO!B13)) -> HHOHHO | C13: =IF(AND(INTRO!$E$37="Non-endemic",INTRO!$E$41="Non-endemic")," ",IF(COUNTRY_INFO!C13=0," ",COUNTRY_INFO!C13)) -> Maphalaleni | D13: =IF(AND(INTRO!$E$37="Non-endemic",INTRO!$E$41="Non-endemic"),0,COUNTRY_INFO!V13) -> 0 | E13: =IF(AND(INTRO!$E$37="Non-endemic",INTRO!$E$41="Non-endemic"),0,COUNTRY_INFO!X13) -> 0 | F13: =IF(INTRO!$E$39="Non-endemic",IF($D13=1,DEC!I13,0),IF($D13=1,IVM!G13,0)) -> 0 | H13: =IF(OR(COUNTRY_INFO!N13="Unknown",COUNTRY_INFO!N13="Surveillance",COUNTRY_INFO!N13="Not required",COUNTRY_INFO!N13=0),0,IF(INTRO!$E$39="Non-endemic",IF(AND($E13<>0,$G13=""),IF($F13=0,COUNTRY_INFO!N13*$E13,COUNTRY_INFO!N13*($E13-$D13)),IF(AND($E13<>0,$G13<>0),IF($F13=0,COUNTRY_INFO!N13*$G13,COUNTRY_INFO!N13*($G13-$D13)),0)),IF($G13="",COUNTRY_INFO!N13*$E13,COUNTRY_INFO!N13*$G13))) -> 0 | I13: =IF(OR(COUNTRY_INFO!O13="Unknown",COUNTRY_INFO!O13="Surveillance",COUNTRY_INFO!O13="Not required",COUNTRY_INFO!O13=0),0,IF($E13<>0, IF($F13=0,COUNTRY_INFO!O13*$E13,COUNTRY_INFO!O13*($E13-$D13)),COUNTRY_INFO!O13*$E13)) -> 0 | K13: =IF(OR(COUNTRY_INFO!P13="Unknown",COUNTRY_INFO!P13="Surveillance",COUNTRY_INFO!P13="Not required",COUNTRY_INFO!P13=0),0,IF(AND($E13<>0,$J13=""),IF($F13=0,COUNTRY_INFO!P13*$E13,COUNTRY_INFO!P13*($E13-$D13)), IF(AND($E13<>0,$J13<>0),IF($F13=0,COUNTRY_INFO!P13*$J13,COUNTRY_INFO!P13*($J13-$D13)), COUNTRY_INFO!P13*$J13))) -> 0 | L13: 0 | M13: 0 | O13: 0 | P13: 0 | R13: 0 | S13: 0 | U13: 0
A14: =IF(AND(INTRO!$E$37="Non-endemic",INTRO!$E$41="Non-endemic")," ",IF(COUNTRY_INFO!A14=0," ",COUNTRY_INFO!A14)) -> Eswatini | B14: =IF(AND(INTRO!$E$37="Non-endemic",INTRO!$E$41="Non-endemic")," ",IF(COUNTRY_INFO!B14=0," ",COUNTRY_INFO!B14)) -> HHOHHO | C14: =IF(AND(INTRO!$E$37="Non-endemic",INTRO!$E$41="Non-endemic")," ",IF(COUNTRY_INFO!C14=0," ",COUNTRY_INFO!C14)) -> Mayiwane | D14: =IF(AND(INTRO!$E$37="Non-endemic",INTRO!$E$41="Non-endemic"),0,COUNTRY_INFO!V14) -> 0 | E14: =IF(AND(INTRO!$E$37="Non-endemic",INTRO!$E$41="Non-endemic"),0,COUNTRY_INFO!X14) -> 0 | F14: =IF(INTRO!$E$39="Non-endemic",IF($D14=1,DEC!I14,0),IF($D14=1,IVM!G14,0)) -> 0 | H14: =IF(OR(COUNTRY_INFO!N14="Unknown",COUNTRY_INFO!N14="Surveillance",COUNTRY_INFO!N14="Not required",COUNTRY_INFO!N14=0),0,IF(INTRO!$E$39="Non-endemic",IF(AND($E14<>0,$G14=""),IF($F14=0,COUNTRY_INFO!N14*$E14,COUNTRY_INFO!N14*($E14-$D14)),IF(AND($E14<>0,$G14<>0),IF($F14=0,COUNTRY_INFO!N14*$G14,COUNTRY_INFO!N14*($G14-$D14)),0)),IF($G14="",COUNTRY_INFO!N14*$E14,COUNTRY_INFO!N14*$G14))) -> 0 | I14: =IF(OR(COUNTRY_INFO!O14="Unknown",COUNTRY_INFO!O14="Surveillance",COUNTRY_INFO!O14="Not required",COUNTRY_INFO!O14=0),0,IF($E14<>0, IF($F14=0,COUNTRY_INFO!O14*$E14,COUNTRY_INFO!O14*($E14-$D14)),COUNTRY_INFO!O14*$E14)) -> 0 | K14: =IF(OR(COUNTRY_INFO!P14="Unknown",COUNTRY_INFO!P14="Surveillance",COUNTRY_INFO!P14="Not required",COUNTRY_INFO!P14=0),0,IF(AND($E14<>0,$J14=""),IF($F14=0,COUNTRY_INFO!P14*$E14,COUNTRY_INFO!P14*($E14-$D14)), IF(AND($E14<>0,$J14<>0),IF($F14=0,COUNTRY_INFO!P14*$J14,COUNTRY_INFO!P14*($J14-$D14)), COUNTRY_INFO!P14*$J14))) -> 0 | L14: 0 | M14: 0 | O14: 0 | P14: 0 | R14: 0 | S14: 0 | U14: 0
A15: =IF(AND(INTRO!$E$37="Non-endemic",INTRO!$E$41="Non-endemic")," ",IF(COUNTRY_INFO!A15=0," ",COUNTRY_INFO!A15)) -> Eswatini | B15: =IF(AND(INTRO!$E$37="Non-endemic",INTRO!$E$41="Non-endemic")," ",IF(COUNTRY_INFO!B15=0," ",COUNTRY_INFO!B15)) -> HHOHHO | C15: =IF(AND(INTRO!$E$37="Non-endemic",INTRO!$E$41="Non-endemic")," ",IF(COUNTRY_INFO!C15=0," ",COUNTRY_INFO!C15)) -> Mbabane East | D15: =IF(AND(INTRO!$E$37="Non-endemic",INTRO!$E$41="Non-endemic"),0,COUNTRY_INFO!V15) -> 0 | E15: =IF(AND(INTRO!$E$37="Non-endemic",INTRO!$E$41="Non-endemic"),0,COUNTRY_INFO!X15) -> 0 | F15: =IF(INTRO!$E$39="Non-endemic",IF($D15=1,DEC!I15,0),IF($D15=1,IVM!G15,0)) -> 0 | H15: =IF(OR(COUNTRY_INFO!N15="Unknown",COUNTRY_INFO!N15="Surveillance",COUNTRY_INFO!N15="Not required",COUNTRY_INFO!N15=0),0,IF(INTRO!$E$39="Non-endemic",IF(AND($E15<>0,$G15=""),IF($F15=0,COUNTRY_INFO!N15*$E15,COUNTRY_INFO!N15*($E15-$D15)),IF(AND($E15<>0,$G15<>0),IF($F15=0,COUNTRY_INFO!N15*$G15,COUNTRY_INFO!N15*($G15-$D15)),0)),IF($G15="",COUNTRY_INFO!N15*$E15,COUNTRY_INFO!N15*$G15))) -> 0 | I15: =IF(OR(COUNTRY_INFO!O15="Unknown",COUNTRY_INFO!O15="Surveillance",COUNTRY_INFO!O15="Not required",COUNTRY_INFO!O15=0),0,IF($E15<>0, IF($F15=0,COUNTRY_INFO!O15*$E15,COUNTRY_INFO!O15*($E15-$D15)),COUNTRY_INFO!O15*$E15)) -> 0 | K15: =IF(OR(COUNTRY_INFO!P15="Unknown",COUNTRY_INFO!P15="Surveillance",COUNTRY_INFO!P15="Not required",COUNTRY_INFO!P15=0),0,IF(AND($E15<>0,$J15=""),IF($F15=0,COUNTRY_INFO!P15*$E15,COUNTRY_INFO!P15*($E15-$D15)), IF(AND($E15<>0,$J15<>0),IF($F15=0,COUNTRY_INFO!P15*$J15,COUNTRY_INFO!P15*($J15-$D15)), COUNTRY_INFO!P15*$J15))) -> 0 | L15: 0 | M15: 0 | O15: 0 | P15: 0 | R15: 0 | S15: 0 | U15: 0
A16: =IF(AND(INTRO!$E$37="Non-endemic",INTRO!$E$41="Non-endemic")," ",IF(COUNTRY_INFO!A16=0," ",COUNTRY_INFO!A16)) -> Eswatini | B16: =IF(AND(INTRO!$E$37="Non-endemic",INTRO!$E$41="Non-endemic")," ",IF(COUNTRY_INFO!B16=0," ",COUNTRY_INFO!B16)) -> HHOHHO | C16: =IF(AND(INTRO!$E$37="Non-endemic",INTRO!$E$41="Non-endemic")," ",IF(COUNTRY_INFO!C16=0," ",COUNTRY_INFO!C16)) -> Mbabane West | D16: =IF(AND(INTRO!$E$37="Non-endemic",INTRO!$E$41="Non-endemic"),0,COUNTRY_INFO!V16) -> 0 | E16: =IF(AND(INTRO!$E$37="Non-endemic",INTRO!$E$41="Non-endemic"),0,COUNTRY_INFO!X16) -> 0 | F16: =IF(INTRO!$E$39="Non-endemic",IF($D16=1,DEC!I16,0),IF($D16=1,IVM!G16,0)) -> 0 | H16: =IF(OR(COUNTRY_INFO!N16="Unknown",COUNTRY_INFO!N16="Surveillance",COUNTRY_INFO!N16="Not required",COUNTRY_INFO!N16=0),0,IF(INTRO!$E$39="Non-endemic",IF(AND($E16<>0,$G16=""),IF($F16=0,COUNTRY_INFO!N16*$E16,COUNTRY_INFO!N16*($E16-$D16)),IF(AND($E16<>0,$G16<>0),IF($F16=0,COUNTRY_INFO!N16*$G16,COUNTRY_INFO!N16*($G16-$D16)),0)),IF($G16="",COUNTRY_INFO!N16*$E16,COUNTRY_INFO!N16*$G16))) -> 0 | I16: =IF(OR(COUNTRY_INFO!O16="Unknown",COUNTRY_INFO!O16="Surveillance",COUNTRY_INFO!O16="Not required",COUNTRY_INFO!O16=0),0,IF($E16<>0, IF($F16=0,COUNTRY_INFO!O16*$E16,COUNTRY_INFO!O16*($E16-$D16)),COUNTRY_INFO!O16*$E16)) -> 0 | K16: =IF(OR(COUNTRY_INFO!P16="Unknown",COUNTRY_INFO!P16="Surveillance",COUNTRY_INFO!P16="Not required",COUNTRY_INFO!P16=0),0,IF(AND($E16<>0,$J16=""),IF($F16=0,COUNTRY_INFO!P16*$E16,COUNTRY_INFO!P16*($E16-$D16)), IF(AND($E16<>0,$J16<>0),IF($F16=0,COUNTRY_INFO!P16*$J16,COUNTRY_INFO!P16*($J16-$D16)), COUNTRY_INFO!P16*$J16))) -> 0 | L16: 0 | M16: 0 | O16: 0 | P16: 0 | R16: 0 | S16: 0 | U16: 0
A17: =IF(AND(INTRO!$E$37="Non-endemic",INTRO!$E$41="Non-endemic")," ",IF(COUNTRY_INFO!A17=0," ",COUNTRY_INFO!A17)) -> Eswatini | B17: =IF(AND(INTRO!$E$37="Non-endemic",INTRO!$E$41="Non-endemic")," ",IF(COUNTRY_INFO!B17=0," ",COUNTRY_INFO!B17)) -> HHOHHO | C17: =IF(AND(INTRO!$E$37="Non-endemic",INTRO!$E$41="Non-endemic")," ",IF(COUNTRY_INFO!C17=0," ",COUNTRY_INFO!C17)) -> Mhlangatane | D17: =IF(AND(INTRO!$E$37="Non-endemic",INTRO!$E$41="Non-endemic"),0,COUNTRY_INFO!V17) -> 0 | E17: =IF(AND(INTRO!$E$37="Non-endemic",INTRO!$E$41="Non-endemic"),0,COUNTRY_INFO!X17) -> 0 | F17: =IF(INTRO!$E$39="Non-endemic",IF($D17=1,DEC!I17,0),IF($D17=1,IVM!G17,0)) -> 0 | H17: =IF(OR(COUNTRY_INFO!N17="Unknown",COUNTRY_INFO!N17="Surveillance",COUNTRY_INFO!N17="Not required",COUNTRY_INFO!N17=0),0,IF(INTRO!$E$39="Non-endemic",IF(AND($E17<>0,$G17=""),IF($F17=0,COUNTRY_INFO!N17*$E17,COUNTRY_INFO!N17*($E17-$D17)),IF(AND($E17<>0,$G17<>0),IF($F17=0,COUNTRY_INFO!N17*$G17,COUNTRY_INFO!N17*($G17-$D17)),0)),IF($G17="",COUNTRY_INFO!N17*$E17,COUNTRY_INFO!N17*$G17))) -> 0 | I17: =IF(OR(COUNTRY_INFO!O17="Unknown",COUNTRY_INFO!O17="Surveillance",COUNTRY_INFO!O17="Not required",COUNTRY_INFO!O17=0),0,IF($E17<>0, IF($F17=0,COUNTRY_INFO!O17*$E17,COUNTRY_INFO!O17*($E17-$D17)),COUNTRY_INFO!O17*$E17)) -> 0 | K17: =IF(OR(COUNTRY_INFO!P17="Unknown",COUNTRY_INFO!P17="Surveillance",COUNTRY_INFO!P17="Not required",COUNTRY_INFO!P17=0),0,IF(AND($E17<>0,$J17=""),IF($F17=0,COUNTRY_INFO!P17*$E17,COUNTRY_INFO!P17*($E17-$D17)), IF(AND($E17<>0,$J17<>0),IF($F17=0,COUNTRY_INFO!P17*$J17,COUNTRY_INFO!P17*($J17-$D17)), COUNTRY_INFO!P17*$J17))) -> 0 | L17: 0 | M17: 0 | O17: 0 | P17: 0 | R17: 0 | S17: 0 | U17: 0
A18: =IF(AND(INTRO!$E$37="Non-endemic",INTRO!$E$41="Non-endemic")," ",IF(COUNTRY_INFO!A18=0," ",COUNTRY_INFO!A18)) -> Eswatini | B18: =IF(AND(INTRO!$E$37="Non-endemic",INTRO!$E$41="Non-endemic")," ",IF(COUNTRY_INFO!B18=0," ",COUNTRY_INFO!B18)) -> HHOHHO | C18: =IF(AND(INTRO!$E$37="Non-endemic",INTRO!$E$41="Non-endemic")," ",IF(COUNTRY_INFO!C18=0," ",COUNTRY_INFO!C18)) -> Motshane | D18: =IF(AND(INTRO!$E$37="Non-endemic",INTRO!$E$41="Non-endemic"),0,COUNTRY_INFO!V18) -> 0 | E18: =IF(AND(INTRO!$E$37="Non-endemic",INTRO!$E$41="Non-endemic"),0,COUNTRY_INFO!X18) -> 1 | F18: =IF(INTRO!$E$39="Non-endemic",IF($D18=1,DEC!I18,0),IF($D18=1,IVM!G18,0)) -> 0 | H18: =IF(OR(COUNTRY_INFO!N18="Unknown",COUNTRY_INFO!N18="Surveillance",COUNTRY_INFO!N18="Not required",COUNTRY_INFO!N18=0),0,IF(INTRO!$E$39="Non-endemic",IF(AND($E18<>0,$G18=""),IF($F18=0,COUNTRY_INFO!N18*$E18,COUNTRY_INFO!N18*($E18-$D18)),IF(AND($E18<>0,$G18<>0),IF($F18=0,COUNTRY_INFO!N18*$G18,COUNTRY_INFO!N18*($G18-$D18)),0)),IF($G18="",COUNTRY_INFO!N18*$E18,COUNTRY_INFO!N18*$G18))) -> 2756 | I18: =IF(OR(COUNTRY_INFO!O18="Unknown",COUNTRY_INFO!O18="Surveillance",COUNTRY_INFO!O18="Not required",COUNTRY_INFO!O18=0),0,IF($E18<>0, IF($F18=0,COUNTRY_INFO!O18*$E18,COUNTRY_INFO!O18*($E18-$D18)),COUNTRY_INFO!O18*$E18)) -> 6832 | K18: =IF(OR(COUNTRY_INFO!P18="Unknown",COUNTRY_INFO!P18="Surveillance",COUNTRY_INFO!P18="Not required",COUNTRY_INFO!P18=0),0,IF(AND($E18<>0,$J18=""),IF($F18=0,COUNTRY_INFO!P18*$E18,COUNTRY_INFO!P18*($E18-$D18)), IF(AND($E18<>0,$J18<>0),IF($F18=0,COUNTRY_INFO!P18*$J18,COUNTRY_INFO!P18*($J18-$D18)), COUNTRY_INFO!P18*$J18))) -> 7610 | L18: 17198 | M18: 0 | O18: 0 | P18: 6832 | R18: 6832 | S18: 0 | U18: 0
A19: =IF(AND(INTRO!$E$37="Non-endemic",INTRO!$E$41="Non-endemic")," ",IF(COUNTRY_INFO!A19=0," ",COUNTRY_INFO!A19)) -> Eswatini | B19: =IF(AND(INTRO!$E$37="Non-endemic",INTRO!$E$41="Non-endemic")," ",IF(COUNTRY_INFO!B19=0," ",COUNTRY_INFO!B19)) -> HHOHHO | C19: =IF(AND(INTRO!$E$37="Non-endemic",INTRO!$E$41="Non-endemic")," ",IF(COUNTRY_INFO!C19=0," ",COUNTRY_INFO!C19)) -> Ndzingeni | D19: =IF(AND(INTRO!$E$37="Non-endemic",INTRO!$E$41="Non-endemic"),0,COUNTRY_INFO!V19) -> 0 | E19: =IF(AND(INTRO!$E$37="Non-endemic",INTRO!$E$41="Non-endemic"),0,COUNTRY_INFO!X19) -> 0 | F19: =IF(INTRO!$E$39="Non-endemic",IF($D19=1,DEC!I19,0),IF($D19=1,IVM!G19,0)) -> 0 | H19: =IF(OR(COUNTRY_INFO!N19="Unknown",COUNTRY_INFO!N19="Surveillance",COUNTRY_INFO!N19="Not required",COUNTRY_INFO!N19=0),0,IF(INTRO!$E$39="Non-endemic",IF(AND($E19<>0,$G19=""),IF($F19=0,COUNTRY_INFO!N19*$E19,COUNTRY_INFO!N19*($E19-$D19)),IF(AND($E19<>0,$G19<>0),IF($F19=0,COUNTRY_INFO!N19*$G19,COUNTRY_INFO!N19*($G19-$D19)),0)),IF($G19="",COUNTRY_INFO!N19*$E19,COUNTRY_INFO!N19*$G19))) -> 0 | I19: =IF(OR(COUNTRY_INFO!O19="Unknown",COUNTRY_INFO!O19="Surveillance",COUNTRY_INFO!O19="Not required",COUNTRY_INFO!O19=0),0,IF($E19<>0, IF($F19=0,COUNTRY_INFO!O19*$E19,COUNTRY_INFO!O19*($E19-$D19)),COUNTRY_INFO!O19*$E19)) -> 0 | K19: =IF(OR(COUNTRY_INFO!P19="Unknown",COUNTRY_INFO!P19="Surveillance",COUNTRY_INFO!P19="Not required",COUNTRY_INFO!P19=0),0,IF(AND($E19<>0,$J19=""),IF($F19=0,COUNTRY_INFO!P19*$E19,COUNTRY_INFO!P19*($E19-$D19)), IF(AND($E19<>0,$J19<>0),IF($F19=0,COUNTRY_INFO!P19*$J19,COUNTRY_INFO!P19*($J19-$D19)), COUNTRY_INFO!P19*$J19))) -> 0 | L19: 0 | M19: 0 | O19: 0 | P19: 0 | R19: 0 | S19: 0 | U19: 0
A20: =IF(AND(INTRO!$E$37="Non-endemic",INTRO!$E$41="Non-endemic")," ",IF(COUNTRY_INFO!A20=0," ",COUNTRY_INFO!A20)) -> Eswatini | B20: =IF(AND(INTRO!$E$37="Non-endemic",INTRO!$E$41="Non-endemic")," ",IF(COUNTRY_INFO!B20=0," ",COUNTRY_INFO!B20)) -> HHOHHO | C20: =IF(AND(INTRO!$E$37="Non-endemic",INTRO!$E$41="Non-endemic")," ",IF(COUNTRY_INFO!C20=0," ",COUNTRY_INFO!C20)) -> Nkhaba | D20: =IF(AND(INTRO!$E$37="Non-endemic",INTRO!$E$41="Non-endemic"),0,COUNTRY_INFO!V20) -> 0 | E20: =IF(AND(INTRO!$E$37="Non-endemic",INTRO!$E$41="Non-endemic"),0,COUNTRY_INFO!X20) -> 0 | F20: =IF(INTRO!$E$39="Non-endemic",IF($D20=1,DEC!I20,0),IF($D20=1,IVM!G20,0)) -> 0 | H20: =IF(OR(COUNTRY_INFO!N20="Unknown",COUNTRY_INFO!N20="Surveillance",COUNTRY_INFO!N20="Not required",COUNTRY_INFO!N20=0),0,IF(INTRO!$E$39="Non-endemic",IF(AND($E20<>0,$G20=""),IF($F20=0,COUNTRY_INFO!N20*$E20,COUNTRY_INFO!N20*($E20-$D20)),IF(AND($E20<>0,$G20<>0),IF($F20=0,COUNTRY_INFO!N20*$G20,COUNTRY_INFO!N20*($G20-$D20)),0)),IF($G20="",COUNTRY_INFO!N20*$E20,COUNTRY_INFO!N20*$G20))) -> 0 | I20: =IF(OR(COUNTRY_INFO!O20="Unknown",COUNTRY_INFO!O20="Surveillance",COUNTRY_INFO!O20="Not required",COUNTRY_INFO!O20=0),0,IF($E20<>0, IF($F20=0,COUNTRY_INFO!O20*$E20,COUNTRY_INFO!O20*($E20-$D20)),COUNTRY_INFO!O20*$E20)) -> 0 | K20: =IF(OR(COUNTRY_INFO!P20="Unknown",COUNTRY_INFO!P20="Surveillance",COUNTRY_INFO!P20="Not required",COUNTRY_INFO!P20=0),0,IF(AND($E20<>0,$J20=""),IF($F20=0,COUNTRY_INFO!P20*$E20,COUNTRY_INFO!P20*($E20-$D20)), IF(AND($E20<>0,$J20<>0),IF($F20=0,COUNTRY_INFO!P20*$J20,COUNTRY_INFO!P20*($J20-$D20)), COUNTRY_INFO!P20*$J20))) -> 0 | L20: 0 | M20: 0 | O20: 0 | P20: 0 | R20: 0 | S20: 0 | U20: 0
A21: =IF(AND(INTRO!$E$37="Non-endemic",INTRO!$E$41="Non-endemic")," ",IF(COUNTRY_INFO!A21=0," ",COUNTRY_INFO!A21)) -> Eswatini | B21: =IF(AND(INTRO!$E$37="Non-endemic",INTRO!$E$41="Non-endemic")," ",IF(COUNTRY_INFO!B21=0," ",COUNTRY_INFO!B21)) -> HHOHHO | C21: =IF(AND(INTRO!$E$37="Non-endemic",INTRO!$E$41="Non-endemic")," ",IF(COUNTRY_INFO!C21=0," ",COUNTRY_INFO!C21)) -> Ntfonjeni | D21: =IF(AND(INTRO!$E$37="Non-endemic",INTRO!$E$41="Non-endemic"),0,COUNTRY_INFO!V21) -> 0 | E21: =IF(AND(INTRO!$E$37="Non-endemic",INTRO!$E$41="Non-endemic"),0,COUNTRY_INFO!X21) -> 0 | F21: =IF(INTRO!$E$39="Non-endemic",IF($D21=1,DEC!I21,0),IF($D21=1,IVM!G21,0)) -> 0 | H21: =IF(OR(COUNTRY_INFO!N21="Unknown",COUNTRY_INFO!N21="Surveillance",COUNTRY_INFO!N21="Not required",COUNTRY_INFO!N21=0),0,IF(INTRO!$E$39="Non-endemic",IF(AND($E21<>0,$G21=""),IF($F21=0,COUNTRY_INFO!N21*$E21,COUNTRY_INFO!N21*($E21-$D21)),IF(AND($E21<>0,$G21<>0),IF($F21=0,COUNTRY_INFO!N21*$G21,COUNTRY_INFO!N21*($G21-$D21)),0)),IF($G21="",COUNTRY_INFO!N21*$E21,COUNTRY_INFO!N21*$G21))) -> 0 | I21: =IF(OR(COUNTRY_INFO!O21="Unknown",COUNTRY_INFO!O21="Surveillance",COUNTRY_INFO!O21="Not required",COUNTRY_INFO!O21=0),0,IF($E21<>0, IF($F21=0,COUNTRY_INFO!O21*$E21,COUNTRY_INFO!O21*($E21-$D21)),COUNTRY_INFO!O21*$E21)) -> 0 | K21: =IF(OR(COUNTRY_INFO!P21="Unknown",COUNTRY_INFO!P21="Surveillance",COUNTRY_INFO!P21="Not required",COUNTRY_INFO!P21=0),0,IF(AND($E21<>0,$J21=""),IF($F21=0,COUNTRY_INFO!P21*$E21,COUNTRY_INFO!P21*($E21-$D21)), IF(AND($E21<>0,$J21<>0),IF($F21=0,COUNTRY_INFO!P21*$J21,COUNTRY_INFO!P21*($J21-$D21)), COUNTRY_INFO!P21*$J21))) -> 0 | L21: 0 | M21: 0 | O21: 0 | P21: 0 | R21: 0 | S21: 0 | U21: 0
A22: =IF(AND(INTRO!$E$37="Non-endemic",INTRO!$E$41="Non-endemic")," ",IF(COUNTRY_INFO!A22=0," ",COUNTRY_INFO!A22)) -> Eswatini | B22: =IF(AND(INTRO!$E$37="Non-endemic",INTRO!$E$41="Non-endemic")," ",IF(COUNTRY_INFO!B22=0," ",COUNTRY_INFO!B22)) -> HHOHHO | C22: =IF(AND(INTRO!$E$37="Non-endemic",INTRO!$E$41="Non-endemic")," ",IF(COUNTRY_INFO!C22=0," ",COUNTRY_INFO!C22)) -> Pigg's Peak | D22: =IF(AND(INTRO!$E$37="Non-endemic",INTRO!$E$41="Non-endemic"),0,COUNTRY_INFO!V22) -> 0 | E22: =IF(AND(INTRO!$E$37="Non-endemic",INTRO!$E$41="Non-endemic"),0,COUNTRY_INFO!X22) -> 0 | F22: =IF(INTRO!$E$39="Non-endemic",IF($D22=1,DEC!I22,0),IF($D22=1,IVM!G22,0)) -> 0 | H22: =IF(OR(COUNTRY_INFO!N22="Unknown",COUNTRY_INFO!N22="Surveillance",COUNTRY_INFO!N22="Not required",COUNTRY_INFO!N22=0),0,IF(INTRO!$E$39="Non-endemic",IF(AND($E22<>0,$G22=""),IF($F22=0,COUNTRY_INFO!N22*$E22,COUNTRY_INFO!N22*($E22-$D22)),IF(AND($E22<>0,$G22<>0),IF($F22=0,COUNTRY_INFO!N22*$G22,COUNTRY_INFO!N22*($G22-$D22)),0)),IF($G22="",COUNTRY_INFO!N22*$E22,COUNTRY_INFO!N22*$G22))) -> 0 | I22: =IF(OR(COUNTRY_INFO!O22="Unknown",COUNTRY_INFO!O22="Surveillance",COUNTRY_INFO!O22="Not required",COUNTRY_INFO!O22=0),0,IF($E22<>0, IF($F22=0,COUNTRY_INFO!O22*$E22,COUNTRY_INFO!O22*($E22-$D22)),COUNTRY_INFO!O22*$E22)) -> 0 | K22: =IF(OR(COUNTRY_INFO!P22="Unknown",COUNTRY_INFO!P22="Surveillance",COUNTRY_INFO!P22="Not required",COUNTRY_INFO!P22=0),0,IF(AND($E22<>0,$J22=""),IF($F22=0,COUNTRY_INFO!P22*$E22,COUNTRY_INFO!P22*($E22-$D22)), IF(AND($E22<>0,$J22<>0),IF($F22=0,COUNTRY_INFO!P22*$J22,COUNTRY_INFO!P22*($J22-$D22)), COUNTRY_INFO!P22*$J22))) -> 0 | L22: 0 | M22: 0 | O22: 0 | P22: 0 | R22: 0 | S22: 0 | U22: 0
A23: =IF(AND(INTRO!$E$37="Non-endemic",INTRO!$E$41="Non-endemic")," ",IF(COUNTRY_INFO!A23=0," ",COUNTRY_INFO!A23)) -> Eswatini | B23: =IF(AND(INTRO!$E$37="Non-endemic",INTRO!$E$41="Non-endemic")," ",IF(COUNTRY_INFO!B23=0," ",COUNTRY_INFO!B23)) -> HHOHHO | C23: =IF(AND(INTRO!$E$37="Non-endemic",INTRO!$E$41="Non-endemic")," ",IF(COUNTRY_INFO!C23=0," ",COUNTRY_INFO!C23)) -> Siphocosini | D23: =IF(AND(INTRO!$E$37="Non-endemic",INTRO!$E$41="Non-endemic"),0,COUNTRY_INFO!V23) -> 0 | E23: =IF(AND(INTRO!$E$37="Non-endemic",INTRO!$E$41="Non-endemic"),0,COUNTRY_INFO!X23) -> 1 | F23: =IF(INTRO!$E$39="Non-endemic",IF($D23=1,DEC!I23,0),IF($D23=1,IVM!G23,0)) -> 0 | H23: =IF(OR(COUNTRY_INFO!N23="Unknown",COUNTRY_INFO!N23="Surveillance",COUNTRY_INFO!N23="Not required",COUNTRY_INFO!N23=0),0,IF(INTRO!$E$39="Non-endemic",IF(AND($E23<>0,$G23=""),IF($F23=0,COUNTRY_INFO!N23*$E23,COUNTRY_INFO!N23*($E23-$D23)),IF(AND($E23<>0,$G23<>0),IF($F23=0,COUNTRY_INFO!N23*$G23,COUNTRY_INFO!N23*($G23-$D23)),0)),IF($G23="",COUNTRY_INFO!N23*$E23,COUNTRY_INFO!N23*$G23))) -> 2604 | I23: =IF(OR(COUNTRY_INFO!O23="Unknown",COUNTRY_INFO!O23="Surveillance",COUNTRY_INFO!O23="Not required",COUNTRY_INFO!O23=0),0,IF($E23<>0, IF($F23=0,COUNTRY_INFO!O23*$E23,COUNTRY_INFO!O23*($E23-$D23)),COUNTRY_INFO!O23*$E23)) -> 6456 | K23: =IF(OR(COUNTRY_INFO!P23="Unknown",COUNTRY_INFO!P23="Surveillance",COUNTRY_INFO!P23="Not required",COUNTRY_INFO!P23=0),0,IF(AND($E23<>0,$J23=""),IF($F23=0,COUNTRY_INFO!P23*$E23,COUNTRY_INFO!P23*($E23-$D23)), IF(AND($E23<>0,$J23<>0),IF($F23=0,COUNTRY_INFO!P23*$J23,COUNTRY_INFO!P23*($J23-$D23)), COUNTRY_INFO!P23*$J23))) -> 7191 | L23: 16251 | M23: 0 | O23: 0 | P23: 6456 | R23: 6456 | S23: 0 | U23: 0
A24: =IF(AND(INTRO!$E$37="Non-endemic",INTRO!$E$41="Non-endemic")," ",IF(COUNTRY_INFO!A24=0," ",COUNTRY_INFO!A24)) -> Eswatini | B24: =IF(AND(INTRO!$E$37="Non-endemic",INTRO!$E$41="Non-endemic")," ",IF(COUNTRY_INFO!B24=0," ",COUNTRY_INFO!B24)) -> HHOHHO | C24: =IF(AND(INTRO!$E$37="Non-endemic",INTRO!$E$41="Non-endemic")," ",IF(COUNTRY_INFO!C24=0," ",COUNTRY_INFO!C24)) -> Timphisini | D24: =IF(AND(INTRO!$E$37="Non-endemic",INTRO!$E$41="Non-endemic"),0,COUNTRY_INFO!V24) -> 0 | E24: =IF(AND(INTRO!$E$37="Non-endemic",INTRO!$E$41="Non-endemic"),0,COUNTRY_INFO!X24) -> 1 | F24: =IF(INTRO!$E$39="Non-endemic",IF($D24=1,DEC!I24,0),IF($D24=1,IVM!G24,0)) -> 0 | H24: =IF(OR(COUNTRY_INFO!N24="Unknown",COUNTRY_INFO!N24="Surveillance",COUNTRY_INFO!N24="Not required",COUNTRY_INFO!N24=0),0,IF(INTRO!$E$39="Non-endemic",IF(AND($E24<>0,$G24=""),IF($F24=0,COUNTRY_INFO!N24*$E24,COUNTRY_INFO!N24*($E24-$D24)),IF(AND($E24<>0,$G24<>0),IF($F24=0,COUNTRY_INFO!N24*$G24,COUNTRY_INFO!N24*($G24-$D24)),0)),IF($G24="",COUNTRY_INFO!N24*$E24,COUNTRY_INFO!N24*$G24))) -> 1263 | I24: =IF(OR(COUNTRY_INFO!O24="Unknown",COUNTRY_INFO!O24="Surveillance",COUNTRY_INFO!O24="Not required",COUNTRY_INFO!O24=0),0,IF($E24<>0, IF($F24=0,COUNTRY_INFO!O24*$E24,COUNTRY_INFO!O24*($E24-$D24)),COUNTRY_INFO!O24*$E24)) -> 3130 | K24: =IF(OR(COUNTRY_INFO!P24="Unknown",COUNTRY_INFO!P24="Surveillance",COUNTRY_INFO!P24="Not required",COUNTRY_INFO!P24=0),0,IF(AND($E24<>0,$J24=""),IF($F24=0,COUNTRY_INFO!P24*$E24,COUNTRY_INFO!P24*($E24-$D24)), IF(AND($E24<>0,$J24<>0),IF($F24=0,COUNTRY_INFO!P24*$J24,COUNTRY_INFO!P24*($J24-$D24)), COUNTRY_INFO!P24*$J24))) -> 3487 | L24: 7880 | M24: 0 | O24: 0 | P24: 3130 | R24: 3130 | S24: 0 | U24: 0
A25: =IF(AND(INTRO!$E$37="Non-endemic",INTRO!$E$41="Non-endemic")," ",IF(COUNTRY_INFO!A25=0," ",COUNTRY_INFO!A25)) -> Eswatini | B25: =IF(AND(INTRO!$E$37="Non-endemic",INTRO!$E$41="Non-endemic")," ",IF(COUNTRY_INFO!B25=0," ",COUNTRY_INFO!B25)) -> LUBOMBO | C25: =IF(AND(INTRO!$E$37="Non-endemic",INTRO!$E$41="Non-endemic")," ",IF(COUNTRY_INFO!C25=0," ",COUNTRY_INFO!C25)) -> Dvokodvweni | D25: =IF(AND(INTRO!$E$37="Non-endemic",INTRO!$E$41="Non-endemic"),0,COUNTRY_INFO!V25) -> 0 | E25: =IF(AND(INTRO!$E$37="Non-endemic",INTRO!$E$41="Non-endemic"),0,COUNTRY_INFO!X25) -> 0 | F25: =IF(INTRO!$E$39="Non-endemic",IF($D25=1,DEC!I25,0),IF($D25=1,IVM!G25,0)) -> 0 | H25: =IF(OR(COUNTRY_INFO!N25="Unknown",COUNTRY_INFO!N25="Surveillance",COUNTRY_INFO!N25="Not required",COUNTRY_INFO!N25=0),0,IF(INTRO!$E$39="Non-endemic",IF(AND($E25<>0,$G25=""),IF($F25=0,COUNTRY_INFO!N25*$E25,COUNTRY_INFO!N25*($E25-$D25)),IF(AND($E25<>0,$G25<>0),IF($F25=0,COUNTRY_INFO!N25*$G25,COUNTRY_INFO!N25*($G25-$D25)),0)),IF($G25="",COUNTRY_INFO!N25*$E25,COUNTRY_INFO!N25*$G25))) -> 0 | I25: =IF(OR(COUNTRY_INFO!O25="Unknown",COUNTRY_INFO!O25="Surveillance",COUNTRY_INFO!O25="Not required",COUNTRY_INFO!O25=0),0,IF($E25<>0, IF($F25=0,COUNTRY_INFO!O25*$E25,COUNTRY_INFO!O25*($E25-$D25)),COUNTRY_INFO!O25*$E25)) -> 0 | K25: =IF(OR(COUNTRY_INFO!P25="Unknown",COUNTRY_INFO!P25="Surveillance",COUNTRY_INFO!P25="Not required",COUNTRY_INFO!P25=0),0,IF(AND($E25<>0,$J25=""),IF($F25=0,COUNTRY_INFO!P25*$E25,COUNTRY_INFO!P25*($E25-$D25)), IF(AND($E25<>0,$J25<>0),IF($F25=0,COUNTRY_INFO!P25*$J25,COUNTRY_INFO!P25*($J25-$D25)), COUNTRY_INFO!P25*$J25))) -> 0 | L25: 0 | M25: 0 | O25: 0 | P25: 0 | R25: 0 | S25: 0 | U25: 0
A26: =IF(AND(INTRO!$E$37="Non-endemic",INTRO!$E$41="Non-endemic")," ",IF(COUNTRY_INFO!A26=0," ",COUNTRY_INFO!A26)) -> Eswatini | B26: =IF(AND(INTRO!$E$37="Non-endemic",INTRO!$E$41="Non-endemic")," ",IF(COUNTRY_INFO!B26=0," ",COUNTRY_INFO!B26)) -> LUBOMBO | C26: =IF(AND(INTRO!$E$37="Non-endemic",INTRO!$E$41="Non-endemic")," ",IF(COUNTRY_INFO!C26=0," ",COUNTRY_INFO!C26)) -> Gigal | D26: =IF(AND(INTRO!$E$37="Non-endemic",INTRO!$E$41="Non-endemic"),0,COUNTRY_INFO!V26) -> 0 | E26: =IF(AND(INTRO!$E$37="Non-endemic",INTRO!$E$41="Non-endemic"),0,COUNTRY_INFO!X26) -> 0 | F26: =IF(INTRO!$E$39="Non-endemic",IF($D26=1,DEC!I26,0),IF($D26=1,IVM!G26,0)) -> 0 | H26: =IF(OR(COUNTRY_INFO!N26="Unknown",COUNTRY_INFO!N26="Surveillance",COUNTRY_INFO!N26="Not required",COUNTRY_INFO!N26=0),0,IF(INTRO!$E$39="Non-endemic",IF(AND($E26<>0,$G26=""),IF($F26=0,COUNTRY_INFO!N26*$E26,COUNTRY_INFO!N26*($E26-$D26)),IF(AND($E26<>0,$G26<>0),IF($F26=0,COUNTRY_INFO!N26*$G26,COUNTRY_INFO!N26*($G26-$D26)),0)),IF($G26="",COUNTRY_INFO!N26*$E26,COUNTRY_INFO!N26*$G26))) -> 0 | I26: =IF(OR(COUNTRY_INFO!O26="Unknown",COUNTRY_INFO!O26="Surveillance",COUNTRY_INFO!O26="Not required",COUNTRY_INFO!O26=0),0,IF($E26<>0, IF($F26=0,COUNTRY_INFO!O26*$E26,COUNTRY_INFO!O26*($E26-$D26)),COUNTRY_INFO!O26*$E26)) -> 0 | K26: =IF(OR(COUNTRY_INFO!P26="Unknown",COUNTRY_INFO!P26="Surveillance",COUNTRY_INFO!P26="Not required",COUNTRY_INFO!P26=0),0,IF(AND($E26<>0,$J26=""),IF($F26=0,COUNTRY_INFO!P26*$E26,COUNTRY_INFO!P26*($E26-$D26)), IF(AND($E26<>0,$J26<>0),IF($F26=0,COUNTRY_INFO!P26*$J26,COUNTRY_INFO!P26*($J26-$D26)), COUNTRY_INFO!P26*$J26))) -> 0 | L26: 0 | M26: 0 | O26: 0 | P26: 0 | R26: 0 | S26: 0 | U26: 0
A27: =IF(AND(INTRO!$E$37="Non-endemic",INTRO!$E$41="Non-endemic")," ",IF(COUNTRY_INFO!A27=0," ",COUNTRY_INFO!A27)) -> Eswatini | B27: =IF(AND(INTRO!$E$37="Non-endemic",INTRO!$E$41="Non-endemic")," ",IF(COUNTRY_INFO!B27=0," ",COUNTRY_INFO!B27)) -> LUBOMBO | C27: =IF(AND(INTRO!$E$37="Non-endemic",INTRO!$E$41="Non-endemic")," ",IF(COUNTRY_INFO!C27=0," ",COUNTRY_INFO!C27)) -> Lomahasha | D27: =IF(AND(INTRO!$E$37="Non-endemic",INTRO!$E$41="Non-endemic"),0,COUNTRY_INFO!V27) -> 0 | E27: =IF(AND(INTRO!$E$37="Non-endemic",INTRO!$E$41="Non-endemic"),0,COUNTRY_INFO!X27) -> 0 | F27: =IF(INTRO!$E$39="Non-endemic",IF($D27=1,DEC!I27,0),IF($D27=1,IVM!G27,0)) -> 0 | H27: =IF(OR(COUNTRY_INFO!N27="Unknown",COUNTRY_INFO!N27="Surveillance",COUNTRY_INFO!N27="Not required",COUNTRY_INFO!N27=0),0,IF(INTRO!$E$39="Non-endemic",IF(AND($E27<>0,$G27=""),IF($F27=0,COUNTRY_INFO!N27*$E27,COUNTRY_INFO!N27*($E27-$D27)),IF(AND($E27<>0,$G27<>0),IF($F27=0,COUNTRY_INFO!N27*$G27,COUNTRY_INFO!N27*($G27-$D27)),0)),IF($G27="",COUNTRY_INFO!N27*$E27,COUNTRY_INFO!N27*$G27))) -> 0 | I27: =IF(OR(COUNTRY_INFO!O27="Unknown",COUNTRY_INFO!O27="Surveillance",COUNTRY_INFO!O27="Not required",COUNTRY_INFO!O27=0),0,IF($E27<>0, IF($F27=0,COUNTRY_INFO!O27*$E27,COUNTRY_INFO!O27*($E27-$D27)),COUNTRY_INFO!O27*$E27)) -> 0 | K27: =IF(OR(COUNTRY_INFO!P27="Unknown",COUNTRY_INFO!P27="Surveillance",COUNTRY_INFO!P27="Not required",COUNTRY_INFO!P27=0),0,IF(AND($E27<>0,$J27=""),IF($F27=0,COUNTRY_INFO!P27*$E27,COUNTRY_INFO!P27*($E27-$D27)), IF(AND($E27<>0,$J27<>0),IF($F27=0,COUNTRY_INFO!P27*$J27,COUNTRY_INFO!P27*($J27-$D27)), COUNTRY_INFO!P27*$J27))) -> 0 | L27: 0 | M27: 0 | O27: 0 | P27: 0 | R27: 0 | S27: 0 | U27: 0
A28: =IF(AND(INTRO!$E$37="Non-endemic",INTRO!$E$41="Non-endemic")," ",IF(COUNTRY_INFO!A28=0," ",COUNTRY_INFO!A28)) -> Eswatini | B28: =IF(AND(INTRO!$E$37="Non-endemic",INTRO!$E$41="Non-endemic")," ",IF(COUNTRY_INFO!B28=0," ",COUNTRY_INFO!B28)) -> LUBOMBO | C28: =IF(AND(INTRO!$E$37="Non-endemic",INTRO!$E$41="Non-endemic")," ",IF(COUNTRY_INFO!C28=0," ",COUNTRY_INFO!C28)) -> Lubuli | D28: =IF(AND(INTRO!$E$37="Non-endemic",INTRO!$E$41="Non-endemic"),0,COUNTRY_INFO!V28) -> 0 | E28: =IF(AND(INTRO!$E$37="Non-endemic",INTRO!$E$41="Non-endemic"),0,COUNTRY_INFO!X28) -> 0 | F28: =IF(INTRO!$E$39="Non-endemic",IF($D28=1,DEC!I28,0),IF($D28=1,IVM!G28,0)) -> 0 | H28: =IF(OR(COUNTRY_INFO!N28="Unknown",COUNTRY_INFO!N28="Surveillance",COUNTRY_INFO!N28="Not required",COUNTRY_INFO!N28=0),0,IF(INTRO!$E$39="Non-endemic",IF(AND($E28<>0,$G28=""),IF($F28=0,COUNTRY_INFO!N28*$E28,COUNTRY_INFO!N28*($E28-$D28)),IF(AND($E28<>0,$G28<>0),IF($F28=0,COUNTRY_INFO!N28*$G28,COUNTRY_INFO!N28*($G28-$D28)),0)),IF($G28="",COUNTRY_INFO!N28*$E28,COUNTRY_INFO!N28*$G28))) -> 0 | I28: =IF(OR(COUNTRY_INFO!O28="Unknown",COUNTRY_INFO!O28="Surveillance",COUNTRY_INFO!O28="Not required",COUNTRY_INFO!O28=0),0,IF($E28<>0, IF($F28=0,COUNTRY_INFO!O28*$E28,COUNTRY_INFO!O28*($E28-$D28)),COUNTRY_INFO!O28*$E28)) -> 0 | K28: =IF(OR(COUNTRY_INFO!P28="Unknown",COUNTRY_INFO!P28="Surveillance",COUNTRY_INFO!P28="Not required",COUNTRY_INFO!P28=0),0,IF(AND($E28<>0,$J28=""),IF($F28=0,COUNTRY_INFO!P28*$E28,COUNTRY_INFO!P28*($E28-$D28)), IF(AND($E28<>0,$J28<>0),IF($F28=0,COUNTRY_INFO!P28*$J28,COUNTRY_INFO!P28*($J28-$D28)), COUNTRY_INFO!P28*$J28))) -> 0 | L28: 0 | M28: 0 | O28: 0 | P28: 0 | R28: 0 | S28: 0 | U28: 0
A29: =IF(AND(INTRO!$E$37="Non-endemic",INTRO!$E$41="Non-endemic")," ",IF(COUNTRY_INFO!A29=0," ",COUNTRY_INFO!A29)) -> Eswatini | B29: =IF(AND(INTRO!$E$37="Non-endemic",INTRO!$E$41="Non-endemic")," ",IF(COUNTRY_INFO!B29=0," ",COUNTRY_INFO!B29)) -> LUBOMBO | C29: =IF(AND(INTRO!$E$37="Non-endemic",INTRO!$E$41="Non-endemic")," ",IF(COUNTRY_INFO!C29=0," ",COUNTRY_INFO!C29)) -> Lugongolweni | D29: =IF(AND(INTRO!$E$37="Non-endemic",INTRO!$E$41="Non-endemic"),0,COUNTRY_INFO!V29) -> 0 | E29: =IF(AND(INTRO!$E$37="Non-endemic",INTRO!$E$41="Non-endemic"),0,COUNTRY_INFO!X29) -> 0 | F29: =IF(INTRO!$E$39="Non-endemic",IF($D29=1,DEC!I29,0),IF($D29=1,IVM!G29,0)) -> 0 | H29: =IF(OR(COUNTRY_INFO!N29="Unknown",COUNTRY_INFO!N29="Surveillance",COUNTRY_INFO!N29="Not required",COUNTRY_INFO!N29=0),0,IF(INTRO!$E$39="Non-endemic",IF(AND($E29<>0,$G29=""),IF($F29=0,COUNTRY_INFO!N29*$E29,COUNTRY_INFO!N29*($E29-$D29)),IF(AND($E29<>0,$G29<>0),IF($F29=0,COUNTRY_INFO!N29*$G29,COUNTRY_INFO!N29*($G29-$D29)),0)),IF($G29="",COUNTRY_INFO!N29*$E29,COUNTRY_INFO!N29*$G29))) -> 0 | I29: =IF(OR(COUNTRY_INFO!O29="Unknown",COUNTRY_INFO!O29="Surveillance",COUNTRY_INFO!O29="Not required",COUNTRY_INFO!O29=0),0,IF($E29<>0, IF($F29=0,COUNTRY_INFO!O29*$E29,COUNTRY_INFO!O29*($E29-$D29)),COUNTRY_INFO!O29*$E29)) -> 0 | K29: =IF(OR(COUNTRY_INFO!P29="Unknown",COUNTRY_INFO!P29="Surveillance",COUNTRY_INFO!P29="Not required",COUNTRY_INFO!P29=0),0,IF(AND($E29<>0,$J29=""),IF($F29=0,COUNTRY_INFO!P29*$E29,COUNTRY_INFO!P29*($E29-$D29)), IF(AND($E29<>0,$J29<>0),IF($F29=0,COUNTRY_INFO!P29*$J29,COUNTRY_INFO!P29*($J29-$D29)), COUNTRY_INFO!P29*$J29))) -> 0 | L29: 0 | M29: 0 | O29: 0 | P29: 0 | R29: 0 | S29: 0 | U29: 0
A30: =IF(AND(INTRO!$E$37="Non-endemic",INTRO!$E$41="Non-endemic")," ",IF(COUNTRY_INFO!A30=0," ",COUNTRY_INFO!A30)) -> Eswatini | B30: =IF(AND(INTRO!$E$37="Non-endemic",INTRO!$E$41="Non-endemic")," ",IF(COUNTRY_INFO!B30=0," ",COUNTRY_INFO!B30)) -> LUBOMBO | C30: =IF(AND(INTRO!$E$37="Non-endemic",INTRO!$E$41="Non-endemic")," ",IF(COUNTRY_INFO!C30=0," ",COUNTRY_INFO!C30)) -> Matsanjeni North | D30: =IF(AND(INTRO!$E$37="Non-endemic",INTRO!$E$41="Non-endemic"),0,COUNTRY_INFO!V30) -> 0 | E30: =IF(AND(INTRO!$E$37="Non-endemic",INTRO!$E$41="Non-endemic"),0,COUNTRY_INFO!X30) -> 0 | F30: =IF(INTRO!$E$39="Non-endemic",IF($D30=1,DEC!I30,0),IF($D30=1,IVM!G30,0)) -> 0 | H30: =IF(OR(COUNTRY_INFO!N30="Unknown",COUNTRY_INFO!N30="Surveillance",COUNTRY_INFO!N30="Not required",COUNTRY_INFO!N30=0),0,IF(INTRO!$E$39="Non-endemic",IF(AND($E30<>0,$G30=""),IF($F30=0,COUNTRY_INFO!N30*$E30,COUNTRY_INFO!N30*($E30-$D30)),IF(AND($E30<>0,$G30<>0),IF($F30=0,COUNTRY_INFO!N30*$G30,COUNTRY_INFO!N30*($G30-$D30)),0)),IF($G30="",COUNTRY_INFO!N30*$E30,COUNTRY_INFO!N30*$G30))) -> 0 | I30: =IF(OR(COUNTRY_INFO!O30="Unknown",COUNTRY_INFO!O30="Surveillance",COUNTRY_INFO!O30="Not required",COUNTRY_INFO!O30=0),0,IF($E30<>0, IF($F30=0,COUNTRY_INFO!O30*$E30,COUNTRY_INFO!O30*($E30-$D30)),COUNTRY_INFO!O30*$E30)) -> 0 | K30: =IF(OR(COUNTRY_INFO!P30="Unknown",COUNTRY_INFO!P30="Surveillance",COUNTRY_INFO!P30="Not required",COUNTRY_INFO!P30=0),0,IF(AND($E30<>0,$J30=""),IF($F30=0,COUNTRY_INFO!P30*$E30,COUNTRY_INFO!P30*($E30-$D30)), IF(AND($E30<>0,$J30<>0),IF($F30=0,COUNTRY_INFO!P30*$J30,COUNTRY_INFO!P30*($J30-$D30)), COUNTRY_INFO!P30*$J30))) -> 0 | L30: 0 | M30: 0 | O30: 0 | P30: 0 | R30: 0 | S30: 0 | U30: 0
A31: =IF(AND(INTRO!$E$37="Non-endemic",INTRO!$E$41="Non-endemic")," ",IF(COUNTRY_INFO!A31=0," ",COUNTRY_INFO!A31)) -> Eswatini | B31: =IF(AND(INTRO!$E$37="Non-endemic",INTRO!$E$41="Non-endemic")," ",IF(COUNTRY_INFO!B31=0," ",COUNTRY_INFO!B31)) -> LUBOMBO | C31: =IF(AND(INTRO!$E$37="Non-endemic",INTRO!$E$41="Non-endemic")," ",IF(COUNTRY_INFO!C31=0," ",COUNTRY_INFO!C31)) -> Mhlume | D31: =IF(AND(INTRO!$E$37="Non-endemic",INTRO!$E$41="Non-endemic"),0,COUNTRY_INFO!V31) -> 0 | E31: =IF(AND(INTRO!$E$37="Non-endemic",INTRO!$E$41="Non-endemic"),0,COUNTRY_INFO!X31) -> 0 | F31: =IF(INTRO!$E$39="Non-endemic",IF($D31=1,DEC!I31,0),IF($D31=1,IVM!G31,0)) -> 0 | H31: =IF(OR(COUNTRY_INFO!N31="Unknown",COUNTRY_INFO!N31="Surveillance",COUNTRY_INFO!N31="Not required",COUNTRY_INFO!N31=0),0,IF(INTRO!$E$39="Non-endemic",IF(AND($E31<>0,$G31=""),IF($F31=0,COUNTRY_INFO!N31*$E31,COUNTRY_INFO!N31*($E31-$D31)),IF(AND($E31<>0,$G31<>0),IF($F31=0,COUNTRY_INFO!N31*$G31,COUNTRY_INFO!N31*($G31-$D31)),0)),IF($G31="",COUNTRY_INFO!N31*$E31,COUNTRY_INFO!N31*$G31))) -> 0 | I31: =IF(OR(COUNTRY_INFO!O31="Unknown",COUNTRY_INFO!O31="Surveillance",COUNTRY_INFO!O31="Not required",COUNTRY_INFO!O31=0),0,IF($E31<>0, IF($F31=0,COUNTRY_INFO!O31*$E31,COUNTRY_INFO!O31*($E31-$D31)),COUNTRY_INFO!O31*$E31)) -> 0 | K31: =IF(OR(COUNTRY_INFO!P31="Unknown",COUNTRY_INFO!P31="Surveillance",COUNTRY_INFO!P31="Not required",COUNTRY_INFO!P31=0),0,IF(AND($E31<>0,$J31=""),IF($F31=0,COUNTRY_INFO!P31*$E31,COUNTRY_INFO!P31*($E31-$D31)), IF(AND($E31<>0,$J31<>0),IF($F31=0,COUNTRY_INFO!P31*$J31,COUNTRY_INFO!P31*($J31-$D31)), COUNTRY_INFO!P31*$J31))) -> 0 | L31: 0 | M31: 0 | O31: 0 | P31: 0 | R31: 0 | S31: 0 | U31: 0
A32: =IF(AND(INTRO!$E$37="Non-endemic",INTRO!$E$41="Non-endemic")," ",IF(COUNTRY_INFO!A32=0," ",COUNTRY_INFO!A32)) -> Eswatini | B32: =IF(AND(INTRO!$E$37="Non-endemic",INTRO!$E$41="Non-endemic")," ",IF(COUNTRY_INFO!B32=0," ",COUNTRY_INFO!B32)) -> LUBOMBO | C32: =IF(AND(INTRO!$E$37="Non-endemic",INTRO!$E$41="Non-endemic")," ",IF(COUNTRY_INFO!C32=0," ",COUNTRY_INFO!C32)) -> Mpolonjeni | D32: =IF(AND(INTRO!$E$37="Non-endemic",INTRO!$E$41="Non-endemic"),0,COUNTRY_INFO!V32) -> 0 | E32: =IF(AND(INTRO!$E$37="Non-endemic",INTRO!$E$41="Non-endemic"),0,COUNTRY_INFO!X32) -> 0 | F32: =IF(INTRO!$E$39="Non-endemic",IF($D32=1,DEC!I32,0),IF($D32=1,IVM!G32,0)) -> 0 | H32: =IF(OR(COUNTRY_INFO!N32="Unknown",COUNTRY_INFO!N32="Surveillance",COUNTRY_INFO!N32="Not required",COUNTRY_INFO!N32=0),0,IF(INTRO!$E$39="Non-endemic",IF(AND($E32<>0,$G32=""),IF($F32=0,COUNTRY_INFO!N32*$E32,COUNTRY_INFO!N32*($E32-$D32)),IF(AND($E32<>0,$G32<>0),IF($F32=0,COUNTRY_INFO!N32*$G32,COUNTRY_INFO!N32*($G32-$D32)),0)),IF($G32="",COUNTRY_INFO!N32*$E32,COUNTRY_INFO!N32*$G32))) -> 0 | I32: =IF(OR(COUNTRY_INFO!O32="Unknown",COUNTRY_INFO!O32="Surveillance",COUNTRY_INFO!O32="Not required",COUNTRY_INFO!O32=0),0,IF($E32<>0, IF($F32=0,COUNTRY_INFO!O32*$E32,COUNTRY_INFO!O32*($E32-$D32)),COUNTRY_INFO!O32*$E32)) -> 0 | K32: =IF(OR(COUNTRY_INFO!P32="Unknown",COUNTRY_INFO!P32="Surveillance",COUNTRY_INFO!P32="Not required",COUNTRY_INFO!P32=0),0,IF(AND($E32<>0,$J32=""),IF($F32=0,COUNTRY_INFO!P32*$E32,COUNTRY_INFO!P32*($E32-$D32)), IF(AND($E32<>0,$J32<>0),IF($F32=0,COUNTRY_INFO!P32*$J32,COUNTRY_INFO!P32*($J32-$D32)), COUNTRY_INFO!P32*$J32))) -> 0 | L32: 0 | M32: 0 | O32: 0 | P32: 0 | R32: 0 | S32: 0 | U32: 0
A33: =IF(AND(INTRO!$E$37="Non-endemic",INTRO!$E$41="Non-endemic")," ",IF(COUNTRY_INFO!A33=0," ",COUNTRY_INFO!A33)) -> Eswatini | B33: =IF(AND(INTRO!$E$37="Non-endemic",INTRO!$E$41="Non-endemic")," ",IF(COUNTRY_INFO!B33=0," ",COUNTRY_INFO!B33)) -> LUBOMBO | C33: =IF(AND(INTRO!$E$37="Non-endemic",INTRO!$E$41="Non-endemic")," ",IF(COUNTRY_INFO!C33=0," ",COUNTRY_INFO!C33)) -> Nkilongo | D33: =IF(AND(INTRO!$E$37="Non-endemic",INTRO!$E$41="Non-endemic"),0,COUNTRY_INFO!V33) -> 0 | E33: =IF(AND(INTRO!$E$37="Non-endemic",INTRO!$E$41="Non-endemic"),0,COUNTRY_INFO!X33) -> 0 | F33: =IF(INTRO!$E$39="Non-endemic",IF($D33=1,DEC!I33,0),IF($D33=1,IVM!G33,0)) -> 0 | H33: =IF(OR(COUNTRY_INFO!N33="Unknown",COUNTRY_INFO!N33="Surveillance",COUNTRY_INFO!N33="Not required",COUNTRY_INFO!N33=0),0,IF(INTRO!$E$39="Non-endemic",IF(AND($E33<>0,$G33=""),IF($F33=0,COUNTRY_INFO!N33*$E33,COUNTRY_INFO!N33*($E33-$D33)),IF(AND($E33<>0,$G33<>0),IF($F33=0,COUNTRY_INFO!N33*$G33,COUNTRY_INFO!N33*($G33-$D33)),0)),IF($G33="",COUNTRY_INFO!N33*$E33,COUNTRY_INFO!N33*$G33))) -> 0 | I33: =IF(OR(COUNTRY_INFO!O33="Unknown",COUNTRY_INFO!O33="Surveillance",COUNTRY_INFO!O33="Not required",COUNTRY_INFO!O33=0),0,IF($E33<>0, IF($F33=0,COUNTRY_INFO!O33*$E33,COUNTRY_INFO!O33*($E33-$D33)),COUNTRY_INFO!O33*$E33)) -> 0 | K33: =IF(OR(COUNTRY_INFO!P33="Unknown",COUNTRY_INFO!P33="Surveillance",COUNTRY_INFO!P33="Not required",COUNTRY_INFO!P33=0),0,IF(AND($E33<>0,$J33=""),IF($F33=0,COUNTRY_INFO!P33*$E33,COUNTRY_INFO!P33*($E33-$D33)), IF(AND($E33<>0,$J33<>0),IF($F33=0,COUNTRY_INFO!P33*$J33,COUNTRY_INFO!P33*($J33-$D33)), COUNTRY_INFO!P33*$J33))) -> 0 | L33: 0 | M33: 0 | O33: 0 | P33: 0 | R33: 0 | S33: 0 | U33: 0
A34: =IF(AND(INTRO!$E$37="Non-endemic",INTRO!$E$41="Non-endemic")," ",IF(COUNTRY_INFO!A34=0," ",COUNTRY_INFO!A34)) -> Eswatini | B34: =IF(AND(INTRO!$E$37="Non-endemic",INTRO!$E$41="Non-endemic")," ",IF(COUNTRY_INFO!B34=0," ",COUNTRY_INFO!B34)) -> LUBOMBO | C34: =IF(AND(INTRO!$E$37="Non-endemic",INTRO!$E$41="Non-endemic")," ",IF(COUNTRY_INFO!C34=0," ",COUNTRY_INFO!C34)) -> Siphofaneni | D34: =IF(AND(INTRO!$E$37="Non-endemic",INTRO!$E$41="Non-endemic"),0,COUNTRY_INFO!V34) -> 0 | E34: =IF(AND(INTRO!$E$37="Non-endemic",INTRO!$E$41="Non-endemic"),0,COUNTRY_INFO!X34) -> 0 | F34: =IF(INTRO!$E$39="Non-endemic",IF($D34=1,DEC!I34,0),IF($D34=1,IVM!G34,0)) -> 0 | H34: =IF(OR(COUNTRY_INFO!N34="Unknown",COUNTRY_INFO!N34="Surveillance",COUNTRY_INFO!N34="Not required",COUNTRY_INFO!N34=0),0,IF(INTRO!$E$39="Non-endemic",IF(AND($E34<>0,$G34=""),IF($F34=0,COUNTRY_INFO!N34*$E34,COUNTRY_INFO!N34*($E34-$D34)),IF(AND($E34<>0,$G34<>0),IF($F34=0,COUNTRY_INFO!N34*$G34,COUNTRY_INFO!N34*($G34-$D34)),0)),IF($G34="",COUNTRY_INFO!N34*$E34,COUNTRY_INFO!N34*$G34))) -> 0 | I34: =IF(OR(COUNTRY_INFO!O34="Unknown",COUNTRY_INFO!O34="Surveillance",COUNTRY_INFO!O34="Not required",COUNTRY_INFO!O34=0),0,IF($E34<>0, IF($F34=0,COUNTRY_INFO!O34*$E34,COUNTRY_INFO!O34*($E34-$D34)),COUNTRY_INFO!O34*$E34)) -> 0 | K34: =IF(OR(COUNTRY_INFO!P34="Unknown",COUNTRY_INFO!P34="Surveillance",COUNTRY_INFO!P34="Not required",COUNTRY_INFO!P34=0),0,IF(AND($E34<>0,$J34=""),IF($F34=0,COUNTRY_INFO!P34*$E34,COUNTRY_INFO!P34*($E34-$D34)), IF(AND($E34<>0,$J34<>0),IF($F34=0,COUNTRY_INFO!P34*$J34,COUNTRY_INFO!P34*($J34-$D34)), COUNTRY_INFO!P34*$J34))) -> 0 | L34: 0 | M34: 0 | O34: 0 | P34: 0 | R34: 0 | S34: 0 | U34: 0
A35: =IF(AND(INTRO!$E$37="Non-endemic",INTRO!$E$41="Non-endemic")," ",IF(COUNTRY_INFO!A35=0," ",COUNTRY_INFO!A35)) -> Eswatini | B35: =IF(AND(INTRO!$E$37="Non-endemic",INTRO!$E$41="Non-endemic")," ",IF(COUNTRY_INFO!B35=0," ",COUNTRY_INFO!B35)) -> LUBOMBO | C35: =IF(AND(INTRO!$E$37="Non-endemic",INTRO!$E$41="Non-endemic")," ",IF(COUNTRY_INFO!C35=0," ",COUNTRY_INFO!C35)) -> Sithobela | D35: =IF(AND(INTRO!$E$37="Non-endemic",INTRO!$E$41="Non-endemic"),0,COUNTRY_INFO!V35) -> 0 | E35: =IF(AND(INTRO!$E$37="Non-endemic",INTRO!$E$41="Non-endemic"),0,COUNTRY_INFO!X35) -> 0 | F35: =IF(INTRO!$E$39="Non-endemic",IF($D35=1,DEC!I35,0),IF($D35=1,IVM!G35,0)) -> 0 | H35: =IF(OR(COUNTRY_INFO!N35="Unknown",COUNTRY_INFO!N35="Surveillance",COUNTRY_INFO!N35="Not required",COUNTRY_INFO!N35=0),0,IF(INTRO!$E$39="Non-endemic",IF(AND($E35<>0,$G35=""),IF($F35=0,COUNTRY_INFO!N35*$E35,COUNTRY_INFO!N35*($E35-$D35)),IF(AND($E35<>0,$G35<>0),IF($F35=0,COUNTRY_INFO!N35*$G35,COUNTRY_INFO!N35*($G35-$D35)),0)),IF($G35="",COUNTRY_INFO!N35*$E35,COUNTRY_INFO!N35*$G35))) -> 0 | I35: =IF(OR(COUNTRY_INFO!O35="Unknown",COUNTRY_INFO!O35="Surveillance",COUNTRY_INFO!O35="Not required",COUNTRY_INFO!O35=0),0,IF($E35<>0, IF($F35=0,COUNTRY_INFO!O35*$E35,COUNTRY_INFO!O35*($E35-$D35)),COUNTRY_INFO!O35*$E35)) -> 0 | K35: =IF(OR(COUNTRY_INFO!P35="Unknown",COUNTRY_INFO!P35="Surveillance",COUNTRY_INFO!P35="Not required",COUNTRY_INFO!P35=0),0,IF(AND($E35<>0,$J35=""),IF($F35=0,COUNTRY_INFO!P35*$E35,COUNTRY_INFO!P35*($E35-$D35)), IF(AND($E35<>0,$J35<>0),IF($F35=0,COUNTRY_INFO!P35*$J35,COUNTRY_INFO!P35*($J35-$D35)), COUNTRY_INFO!P35*$J35))) -> 0 | L35: 0 | M35: 0 | O35: 0 | P35: 0 | R35: 0 | S35: 0 | U35: 0
A36: =IF(AND(INTRO!$E$37="Non-endemic",INTRO!$E$41="Non-endemic")," ",IF(COUNTRY_INFO!A36=0," ",COUNTRY_INFO!A36)) -> Eswatini | B36: =IF(AND(INTRO!$E$37="Non-endemic",INTRO!$E$41="Non-endemic")," ",IF(COUNTRY_INFO!B36=0," ",COUNTRY_INFO!B36)) -> MANZINI | C36: =IF(AND(INTRO!$E$37="Non-endemic",INTRO!$E$41="Non-endemic")," ",IF(COUNTRY_INFO!C36=0," ",COUNTRY_INFO!C36)) -> Kukhanyeni | D36: =IF(AND(INTRO!$E$37="Non-endemic",INTRO!$E$41="Non-endemic"),0,COUNTRY_INFO!V36) -> 0 | E36: =IF(AND(INTRO!$E$37="Non-endemic",INTRO!$E$41="Non-endemic"),0,COUNTRY_INFO!X36) -> 0 | F36: =IF(INTRO!$E$39="Non-endemic",IF($D36=1,DEC!I36,0),IF($D36=1,IVM!G36,0)) -> 0 | H36: =IF(OR(COUNTRY_INFO!N36="Unknown",COUNTRY_INFO!N36="Surveillance",COUNTRY_INFO!N36="Not required",COUNTRY_INFO!N36=0),0,IF(INTRO!$E$39="Non-endemic",IF(AND($E36<>0,$G36=""),IF($F36=0,COUNTRY_INFO!N36*$E36,COUNTRY_INFO!N36*($E36-$D36)),IF(AND($E36<>0,$G36<>0),IF($F36=0,COUNTRY_INFO!N36*$G36,COUNTRY_INFO!N36*($G36-$D36)),0)),IF($G36="",COUNTRY_INFO!N36*$E36,COUNTRY_INFO!N36*$G36))) -> 0 | I36: =IF(OR(COUNTRY_INFO!O36="Unknown",COUNTRY_INFO!O36="Surveillance",COUNTRY_INFO!O36="Not required",COUNTRY_INFO!O36=0),0,IF($E36<>0, IF($F36=0,COUNTRY_INFO!O36*$E36,COUNTRY_INFO!O36*($E36-$D36)),COUNTRY_INFO!O36*$E36)) -> 0 | K36: =IF(OR(COUNTRY_INFO!P36="Unknown",COUNTRY_INFO!P36="Surveillance",COUNTRY_INFO!P36="Not required",COUNTRY_INFO!P36=0),0,IF(AND($E36<>0,$J36=""),IF($F36=0,COUNTRY_INFO!P36*$E36,COUNTRY_INFO!P36*($E36-$D36)), IF(AND($E36<>0,$J36<>0),IF($F36=0,COUNTRY_INFO!P36*$J36,COUNTRY_INFO!P36*($J36-$D36)), COUNTRY_INFO!P36*$J36))) -> 0 | L36: 0 | M36: 0 | O36: 0 | P36: 0 | R36: 0 | S36: 0 | U36: 0
A37: =IF(AND(INTRO!$E$37="Non-endemic",INTRO!$E$41="Non-endemic")," ",IF(COUNTRY_INFO!A37=0," ",COUNTRY_INFO!A37)) -> Eswatini | B37: =IF(AND(INTRO!$E$37="Non-endemic",INTRO!$E$41="Non-endemic")," ",IF(COUNTRY_INFO!B37=0," ",COUNTRY_INFO!B37)) -> MANZINI | C37: =IF(AND(INTRO!$E$37="Non-endemic",INTRO!$E$41="Non-endemic")," ",IF(COUNTRY_INFO!C37=0," ",COUNTRY_INFO!C37)) -> Kwaluseni | D37: =IF(AND(INTRO!$E$37="Non-endemic",INTRO!$E$41="Non-endemic"),0,COUNTRY_INFO!V37) -> 0 | E37: =IF(AND(INTRO!$E$37="Non-endemic",INTRO!$E$41="Non-endemic"),0,COUNTRY_INFO!X37) -> 0 | F37: =IF(INTRO!$E$39="Non-endemic",IF($D37=1,DEC!I37,0),IF($D37=1,IVM!G37,0)) -> 0 | H37: =IF(OR(COUNTRY_INFO!N37="Unknown",COUNTRY_INFO!N37="Surveillance",COUNTRY_INFO!N37="Not required",COUNTRY_INFO!N37=0),0,IF(INTRO!$E$39="Non-endemic",IF(AND($E37<>0,$G37=""),IF($F37=0,COUNTRY_INFO!N37*$E37,COUNTRY_INFO!N37*($E37-$D37)),IF(AND($E37<>0,$G37<>0),IF($F37=0,COUNTRY_INFO!N37*$G37,COUNTRY_INFO!N37*($G37-$D37)),0)),IF($G37="",COUNTRY_INFO!N37*$E37,COUNTRY_INFO!N37*$G37))) -> 0 | I37: =IF(OR(COUNTRY_INFO!O37="Unknown",COUNTRY_INFO!O37="Surveillance",COUNTRY_INFO!O37="Not required",COUNTRY_INFO!O37=0),0,IF($E37<>0, IF($F37=0,COUNTRY_INFO!O37*$E37,COUNTRY_INFO!O37*($E37-$D37)),COUNTRY_INFO!O37*$E37)) -> 0 | K37: =IF(OR(COUNTRY_INFO!P37="Unknown",COUNTRY_INFO!P37="Surveillance",COUNTRY_INFO!P37="Not required",COUNTRY_INFO!P37=0),0,IF(AND($E37<>0,$J37=""),IF($F37=0,COUNTRY_INFO!P37*$E37,COUNTRY_INFO!P37*($E37-$D37)), IF(AND($E37<>0,$J37<>0),IF($F37=0,COUNTRY_INFO!P37*$J37,COUNTRY_INFO!P37*($J37-$D37)), COUNTRY_INFO!P37*$J37))) -> 0 | L37: 0 | M37: 0 | O37: 0 | P37: 0 | R37: 0 | S37: 0 | U37: 0
A38: =IF(AND(INTRO!$E$37="Non-endemic",INTRO!$E$41="Non-endemic")," ",IF(COUNTRY_INFO!A38=0," ",COUNTRY_INFO!A38)) -> Eswatini | B38: =IF(AND(INTRO!$E$37="Non-endemic",INTRO!$E$41="Non-endemic")," ",IF(COUNTRY_INFO!B38=0," ",COUNTRY_INFO!B38)) -> MANZINI | C38: =IF(AND(INTRO!$E$37="Non-endemic",INTRO!$E$41="Non-endemic")," ",IF(COUNTRY_INFO!C38=0," ",COUNTRY_INFO!C38)) -> LaMgabhi | D38: =IF(AND(INTRO!$E$37="Non-endemic",INTRO!$E$41="Non-endemic"),0,COUNTRY_INFO!V38) -> 0 | E38: =IF(AND(INTRO!$E$37="Non-endemic",INTRO!$E$41="Non-endemic"),0,COUNTRY_INFO!X38) -> 0 | F38: =IF(INTRO!$E$39="Non-endemic",IF($D38=1,DEC!I38,0),IF($D38=1,IVM!G38,0)) -> 0 | H38: =IF(OR(COUNTRY_INFO!N38="Unknown",COUNTRY_INFO!N38="Surveillance",COUNTRY_INFO!N38="Not required",COUNTRY_INFO!N38=0),0,IF(INTRO!$E$39="Non-endemic",IF(AND($E38<>0,$G38=""),IF($F38=0,COUNTRY_INFO!N38*$E38,COUNTRY_INFO!N38*($E38-$D38)),IF(AND($E38<>0,$G38<>0),IF($F38=0,COUNTRY_INFO!N38*$G38,COUNTRY_INFO!N38*($G38-$D38)),0)),IF($G38="",COUNTRY_INFO!N38*$E38,COUNTRY_INFO!N38*$G38))) -> 0 | I38: =IF(OR(COUNTRY_INFO!O38="Unknown",COUNTRY_INFO!O38="Surveillance",COUNTRY_INFO!O38="Not required",COUNTRY_INFO!O38=0),0,IF($E38<>0, IF($F38=0,COUNTRY_INFO!O38*$E38,COUNTRY_INFO!O38*($E38-$D38)),COUNTRY_INFO!O38*$E38)) -> 0 | K38: =IF(OR(COUNTRY_INFO!P38="Unknown",COUNTRY_INFO!P38="Surveillance",COUNTRY_INFO!P38="Not required",COUNTRY_INFO!P38=0),0,IF(AND($E38<>0,$J38=""),IF($F38=0,COUNTRY_INFO!P38*$E38,COUNTRY_INFO!P38*($E38-$D38)), IF(AND($E38<>0,$J38<>0),IF($F38=0,COUNTRY_INFO!P38*$J38,COUNTRY_INFO!P38*($J38-$D38)), COUNTRY_INFO!P38*$J38))) -> 0 | L38: 0 | M38: 0 | O38: 0 | P38: 0 | R38: 0 | S38: 0 | U38: 0
A39: =IF(AND(INTRO!$E$37="Non-endemic",INTRO!$E$41="Non-endemic")," ",IF(COUNTRY_INFO!A39=0," ",COUNTRY_INFO!A39)) -> Eswatini | B39: =IF(AND(INTRO!$E$37="Non-endemic",INTRO!$E$41="Non-endemic")," ",IF(COUNTRY_INFO!B39=0," ",COUNTRY_INFO!B39)) -> MANZINI | C39: =IF(AND(INTRO!$E$37="Non-endemic",INTRO!$E$41="Non-endemic")," ",IF(COUNTRY_INFO!C39=0," ",COUNTRY_INFO!C39)) -> Lobamba Lomdzala | D39: =IF(AND(INTRO!$E$37="Non-endemic",INTRO!$E$41="Non-endemic"),0,COUNTRY_INFO!V39) -> 0 | E39: =IF(AND(INTRO!$E$37="Non-endemic",INTRO!$E$41="Non-endemic"),0,COUNTRY_INFO!X39) -> 0 | F39: =IF(INTRO!$E$39="Non-endemic",IF($D39=1,DEC!I39,0),IF($D39=1,IVM!G39,0)) -> 0 | H39: =IF(OR(COUNTRY_INFO!N39="Unknown",COUNTRY_INFO!N39="Surveillance",COUNTRY_INFO!N39="Not required",COUNTRY_INFO!N39=0),0,IF(INTRO!$E$39="Non-endemic",IF(AND($E39<>0,$G39=""),IF($F39=0,COUNTRY_INFO!N39*$E39,COUNTRY_INFO!N39*($E39-$D39)),IF(AND($E39<>0,$G39<>0),IF($F39=0,COUNTRY_INFO!N39*$G39,COUNTRY_INFO!N39*($G39-$D39)),0)),IF($G39="",COUNTRY_INFO!N39*$E39,COUNTRY_INFO!N39*$G39))) -> 0 | I39: =IF(OR(COUNTRY_INFO!O39="Unknown",COUNTRY_INFO!O39="Surveillance",COUNTRY_INFO!O39="Not required",COUNTRY_INFO!O39=0),0,IF($E39<>0, IF($F39=0,COUNTRY_INFO!O39*$E39,COUNTRY_INFO!O39*($E39-$D39)),COUNTRY_INFO!O39*$E39)) -> 0 | K39: =IF(OR(COUNTRY_INFO!P39="Unknown",COUNTRY_INFO!P39="Surveillance",COUNTRY_INFO!P39="Not required",COUNTRY_INFO!P39=0),0,IF(AND($E39<>0,$J39=""),IF($F39=0,COUNTRY_INFO!P39*$E39,COUNTRY_INFO!P39*($E39-$D39)), IF(AND($E39<>0,$J39<>0),IF($F39=0,COUNTRY_INFO!P39*$J39,COUNTRY_INFO!P39*($J39-$D39)), COUNTRY_INFO!P39*$J39))) -> 0 | L39: 0 | M39: 0 | O39: 0 | P39: 0 | R39: 0 | S39: 0 | U39: 0
A40: =IF(AND(INTRO!$E$37="Non-endemic",INTRO!$E$41="Non-endemic")," ",IF(COUNTRY_INFO!A40=0," ",COUNTRY_INFO!A40)) -> Eswatini | B40: =IF(AND(INTRO!$E$37="Non-endemic",INTRO!$E$41="Non-endemic")," ",IF(COUNTRY_INFO!B40=0," ",COUNTRY_INFO!B40)) -> MANZINI | C40: =IF(AND(INTRO!$E$37="Non-endemic",INTRO!$E$41="Non-endemic")," ",IF(COUNTRY_INFO!C40=0," ",COUNTRY_INFO!C40)) -> Ludzeludze | D40: =IF(AND(INTRO!$E$37="Non-endemic",INTRO!$E$41="Non-endemic"),0,COUNTRY_INFO!V40) -> 0 | E40: =IF(AND(INTRO!$E$37="Non-endemic",INTRO!$E$41="Non-endemic"),0,COUNTRY_INFO!X40) -> 0 | F40: =IF(INTRO!$E$39="Non-endemic",IF($D40=1,DEC!I40,0),IF($D40=1,IVM!G40,0)) -> 0 | H40: =IF(OR(COUNTRY_INFO!N40="Unknown",COUNTRY_INFO!N40="Surveillance",COUNTRY_INFO!N40="Not required",COUNTRY_INFO!N40=0),0,IF(INTRO!$E$39="Non-endemic",IF(AND($E40<>0,$G40=""),IF($F40=0,COUNTRY_INFO!N40*$E40,COUNTRY_INFO!N40*($E40-$D40)),IF(AND($E40<>0,$G40<>0),IF($F40=0,COUNTRY_INFO!N40*$G40,COUNTRY_INFO!N40*($G40-$D40)),0)),IF($G40="",COUNTRY_INFO!N40*$E40,COUNTRY_INFO!N40*$G40))) -> 0 | I40: =IF(OR(COUNTRY_INFO!O40="Unknown",COUNTRY_INFO!O40="Surveillance",COUNTRY_INFO!O40="Not required",COUNTRY_INFO!O40=0),0,IF($E40<>0, IF($F40=0,COUNTRY_INFO!O40*$E40,COUNTRY_INFO!O40*($E40-$D40)),COUNTRY_INFO!O40*$E40)) -> 0 | K40: =IF(OR(COUNTRY_INFO!P40="Unknown",COUNTRY_INFO!P40="Surveillance",COUNTRY_INFO!P40="Not required",COUNTRY_INFO!P40=0),0,IF(AND($E40<>0,$J40=""),IF($F40=0,COUNTRY_INFO!P40*$E40,COUNTRY_INFO!P40*($E40-$D40)), IF(AND($E40<>0,$J40<>0),IF($F40=0,COUNTRY_INFO!P40*$J40,COUNTRY_INFO!P40*($J40-$D40)), COUNTRY_INFO!P40*$J40))) -> 0 | L40: 0 | M40: 0 | O40: 0 | P40: 0 | R40: 0 | S40: 0 | U40: 0
A41: =IF(AND(INTRO!$E$37="Non-endemic",INTRO!$E$41="Non-endemic")," ",IF(COUNTRY_INFO!A41=0," ",COUNTRY_INFO!A41)) -> Eswatini | B41: =IF(AND(INTRO!$E$37="Non-endemic",INTRO!$E$41="Non-endemic")," ",IF(COUNTRY_INFO!B41=0," ",COUNTRY_INFO!B41)) -> MANZINI | C41: =IF(AND(INTRO!$E$37="Non-endemic",INTRO!$E$41="Non-endemic")," ",IF(COUNTRY_INFO!C41=0," ",COUNTRY_INFO!C41)) -> Mafutseni | D41: =IF(AND(INTRO!$E$37="Non-endemic",INTRO!$E$41="Non-endemic"),0,COUNTRY_INFO!V41) -> 0 | E41: =IF(AND(INTRO!$E$37="Non-endemic",INTRO!$E$41="Non-endemic"),0,COUNTRY_INFO!X41) -> 0 | F41: =IF(INTRO!$E$39="Non-endemic",IF($D41=1,DEC!I41,0),IF($D41=1,IVM!G41,0)) -> 0 | H41: =IF(OR(COUNTRY_INFO!N41="Unknown",COUNTRY_INFO!N41="Surveillance",COUNTRY_INFO!N41="Not required",COUNTRY_INFO!N41=0),0,IF(INTRO!$E$39="Non-endemic",IF(AND($E41<>0,$G41=""),IF($F41=0,COUNTRY_INFO!N41*$E41,COUNTRY_INFO!N41*($E41-$D41)),IF(AND($E41<>0,$G41<>0),IF($F41=0,COUNTRY_INFO!N41*$G41,COUNTRY_INFO!N41*($G41-$D41)),0)),IF($G41="",COUNTRY_INFO!N41*$E41,COUNTRY_INFO!N41*$G41))) -> 0 | I41: =IF(OR(COUNTRY_INFO!O41="Unknown",COUNTRY_INFO!O41="Surveillance",COUNTRY_INFO!O41="Not required",COUNTRY_INFO!O41=0),0,IF($E41<>0, IF($F41=0,COUNTRY_INFO!O41*$E41,COUNTRY_INFO!O41*($E41-$D41)),COUNTRY_INFO!O41*$E41)) -> 0 | K41: =IF(OR(COUNTRY_INFO!P41="Unknown",COUNTRY_INFO!P41="Surveillance",COUNTRY_INFO!P41="Not required",COUNTRY_INFO!P41=0),0,IF(AND($E41<>0,$J41=""),IF($F41=0,COUNTRY_INFO!P41*$E41,COUNTRY_INFO!P41*($E41-$D41)), IF(AND($E41<>0,$J41<>0),IF($F41=0,COUNTRY_INFO!P41*$J41,COUNTRY_INFO!P41*($J41-$D41)), COUNTRY_INFO!P41*$J41))) -> 0 | L41: 0 | M41: 0 | O41: 0 | P41: 0 | R41: 0 | S41: 0 | U41: 0
A42: =IF(AND(INTRO!$E$37="Non-endemic",INTRO!$E$41="Non-endemic")," ",IF(COUNTRY_INFO!A42=0," ",COUNTRY_INFO!A42)) -> Eswatini | B42: =IF(AND(INTRO!$E$37="Non-endemic",INTRO!$E$41="Non-endemic")," ",IF(COUNTRY_INFO!B42=0," ",COUNTRY_INFO!B42)) -> MANZINI | C42: =IF(AND(INTRO!$E$37="Non-endemic",INTRO!$E$41="Non-endemic")," ",IF(COUNTRY_INFO!C42=0," ",COUNTRY_INFO!C42)) -> Mahlangatsha | D42: =IF(AND(INTRO!$E$37="Non-endemic",INTRO!$E$41="Non-endemic"),0,COUNTRY_INFO!V42) -> 0 | E42: =IF(AND(INTRO!$E$37="Non-endemic",INTRO!$E$41="Non-endemic"),0,COUNTRY_INFO!X42) -> 0 | F42: =IF(INTRO!$E$39="Non-endemic",IF($D42=1,DEC!I42,0),IF($D42=1,IVM!G42,0)) -> 0 | H42: =IF(OR(COUNTRY_INFO!N42="Unknown",COUNTRY_INFO!N42="Surveillance",COUNTRY_INFO!N42="Not required",COUNTRY_INFO!N42=0),0,IF(INTRO!$E$39="Non-endemic",IF(AND($E42<>0,$G42=""),IF($F42=0,COUNTRY_INFO!N42*$E42,COUNTRY_INFO!N42*($E42-$D42)),IF(AND($E42<>0,$G42<>0),IF($F42=0,COUNTRY_INFO!N42*$G42,COUNTRY_INFO!N42*($G42-$D42)),0)),IF($G42="",COUNTRY_INFO!N42*$E42,COUNTRY_INFO!N42*$G42))) -> 0 | I42: =IF(OR(COUNTRY_INFO!O42="Unknown",COUNTRY_INFO!O42="Surveillance",COUNTRY_INFO!O42="Not required",COUNTRY_INFO!O42=0),0,IF($E42<>0, IF($F42=0,COUNTRY_INFO!O42*$E42,COUNTRY_INFO!O42*($E42-$D42)),COUNTRY_INFO!O42*$E42)) -> 0 | K42: =IF(OR(COUNTRY_INFO!P42="Unknown",COUNTRY_INFO!P42="Surveillance",COUNTRY_INFO!P42="Not required",COUNTRY_INFO!P42=0),0,IF(AND($E42<>0,$J42=""),IF($F42=0,COUNTRY_INFO!P42*$E42,COUNTRY_INFO!P42*($E42-$D42)), IF(AND($E42<>0,$J42<>0),IF($F42=0,COUNTRY_INFO!P42*$J42,COUNTRY_INFO!P42*($J42-$D42)), COUNTRY_INFO!P42*$J42))) -> 0 | L42: 0 | M42: 0 | O42: 0 | P42: 0 | R42: 0 | S42: 0 | U42: 0
A43: =IF(AND(INTRO!$E$37="Non-endemic",INTRO!$E$41="Non-endemic")," ",IF(COUNTRY_INFO!A43=0," ",COUNTRY_INFO!A43)) -> Eswatini | B43: =IF(AND(INTRO!$E$37="Non-endemic",INTRO!$E$41="Non-endemic")," ",IF(COUNTRY_INFO!B43=0," ",COUNTRY_INFO!B43)) -> MANZINI | C43: =IF(AND(INTRO!$E$37="Non-endemic",INTRO!$E$41="Non-endemic")," ",IF(COUNTRY_INFO!C43=0," ",COUNTRY_INFO!C43)) -> Mangcongco | D43: =IF(AND(INTRO!$E$37="Non-endemic",INTRO!$E$41="Non-endemic"),0,COUNTRY_INFO!V43) -> 0 | E43: =IF(AND(INTRO!$E$37="Non-endemic",INTRO!$E$41="Non-endemic"),0,COUNTRY_INFO!X43) -> 0 | F43: =IF(INTRO!$E$39="Non-endemic",IF($D43=1,DEC!I43,0),IF($D43=1,IVM!G43,0)) -> 0 | H43: =IF(OR(COUNTRY_INFO!N43="Unknown",COUNTRY_INFO!N43="Surveillance",COUNTRY_INFO!N43="Not required",COUNTRY_INFO!N43=0),0,IF(INTRO!$E$39="Non-endemic",IF(AND($E43<>0,$G43=""),IF($F43=0,COUNTRY_INFO!N43*$E43,COUNTRY_INFO!N43*($E43-$D43)),IF(AND($E43<>0,$G43<>0),IF($F43=0,COUNTRY_INFO!N43*$G43,COUNTRY_INFO!N43*($G43-$D43)),0)),IF($G43="",COUNTRY_INFO!N43*$E43,COUNTRY_INFO!N43*$G43))) -> 0 | I43: =IF(OR(COUNTRY_INFO!O43="Unknown",COUNTRY_INFO!O43="Surveillance",COUNTRY_INFO!O43="Not required",COUNTRY_INFO!O43=0),0,IF($E43<>0, IF($F43=0,COUNTRY_INFO!O43*$E43,COUNTRY_INFO!O43*($E43-$D43)),COUNTRY_INFO!O43*$E43)) -> 0 | K43: =IF(OR(COUNTRY_INFO!P43="Unknown",COUNTRY_INFO!P43="Surveillance",COUNTRY_INFO!P43="Not required",COUNTRY_INFO!P43=0),0,IF(AND($E43<>0,$J43=""),IF($F43=0,COUNTRY_INFO!P43*$E43,COUNTRY_INFO!P43*($E43-$D43)), IF(AND($E43<>0,$J43<>0),IF($F43=0,COUNTRY_INFO!P43*$J43,COUNTRY_INFO!P43*($J43-$D43)), COUNTRY_INFO!P43*$J43))) -> 0 | L43: 0 | M43: 0 | O43: 0 | P43: 0 | R43: 0 | S43: 0 | U43: 0
A44: =IF(AND(INTRO!$E$37="Non-endemic",INTRO!$E$41="Non-endemic")," ",IF(COUNTRY_INFO!A44=0," ",COUNTRY_INFO!A44)) -> Eswatini | B44: =IF(AND(INTRO!$E$37="Non-endemic",INTRO!$E$41="Non-endemic")," ",IF(COUNTRY_INFO!B44=0," ",COUNTRY_INFO!B44)) -> MANZINI | C44: =IF(AND(INTRO!$E$37="Non-endemic",INTRO!$E$41="Non-endemic")," ",IF(COUNTRY_INFO!C44=0," ",COUNTRY_INFO!C44)) -> Manzini North | D44: =IF(AND(INTRO!$E$37="Non-endemic",INTRO!$E$41="Non-endemic"),0,COUNTRY_INFO!V44) -> 0 | E44: =IF(AND(INTRO!$E$37="Non-endemic",INTRO!$E$41="Non-endemic"),0,COUNTRY_INFO!X44) -> 0 | F44: =IF(INTRO!$E$39="Non-endemic",IF($D44=1,DEC!I44,0),IF($D44=1,IVM!G44,0)) -> 0 | H44: =IF(OR(COUNTRY_INFO!N44="Unknown",COUNTRY_INFO!N44="Surveillance",COUNTRY_INFO!N44="Not required",COUNTRY_INFO!N44=0),0,IF(INTRO!$E$39="Non-endemic",IF(AND($E44<>0,$G44=""),IF($F44=0,COUNTRY_INFO!N44*$E44,COUNTRY_INFO!N44*($E44-$D44)),IF(AND($E44<>0,$G44<>0),IF($F44=0,COUNTRY_INFO!N44*$G44,COUNTRY_INFO!N44*($G44-$D44)),0)),IF($G44="",COUNTRY_INFO!N44*$E44,COUNTRY_INFO!N44*$G44))) -> 0 | I44: =IF(OR(COUNTRY_INFO!O44="Unknown",COUNTRY_INFO!O44="Surveillance",COUNTRY_INFO!O44="Not required",COUNTRY_INFO!O44=0),0,IF($E44<>0, IF($F44=0,COUNTRY_INFO!O44*$E44,COUNTRY_INFO!O44*($E44-$D44)),COUNTRY_INFO!O44*$E44)) -> 0 | K44: =IF(OR(COUNTRY_INFO!P44="Unknown",COUNTRY_INFO!P44="Surveillance",COUNTRY_INFO!P44="Not required",COUNTRY_INFO!P44=0),0,IF(AND($E44<>0,$J44=""),IF($F44=0,COUNTRY_INFO!P44*$E44,COUNTRY_INFO!P44*($E44-$D44)), IF(AND($E44<>0,$J44<>0),IF($F44=0,COUNTRY_INFO!P44*$J44,COUNTRY_INFO!P44*($J44-$D44)), COUNTRY_INFO!P44*$J44))) -> 0 | L44: 0 | M44: 0 | O44: 0 | P44: 0 | R44: 0 | S44: 0 | U44: 0
A45: =IF(AND(INTRO!$E$37="Non-endemic",INTRO!$E$41="Non-endemic")," ",IF(COUNTRY_INFO!A45=0," ",COUNTRY_INFO!A45)) -> Eswatini | B45: =IF(AND(INTRO!$E$37="Non-endemic",INTRO!$E$41="Non-endemic")," ",IF(COUNTRY_INFO!B45=0," ",COUNTRY_INFO!B45)) -> MANZINI | C45: =IF(AND(INTRO!$E$37="Non-endemic",INTRO!$E$41="Non-endemic")," ",IF(COUNTRY_INFO!C45=0," ",COUNTRY_INFO!C45)) -> Manzini South | D45: =IF(AND(INTRO!$E$37="Non-endemic",INTRO!$E$41="Non-endemic"),0,COUNTRY_INFO!V45) -> 0 | E45: =IF(AND(INTRO!$E$37="Non-endemic",INTRO!$E$41="Non-endemic"),0,COUNTRY_INFO!X45) -> 0 | F45: =IF(INTRO!$E$39="Non-endemic",IF($D45=1,DEC!I45,0),IF($D45=1,IVM!G45,0)) -> 0 | H45: =IF(OR(COUNTRY_INFO!N45="Unknown",COUNTRY_INFO!N45="Surveillance",COUNTRY_INFO!N45="Not required",COUNTRY_INFO!N45=0),0,IF(INTRO!$E$39="Non-endemic",IF(AND($E45<>0,$G45=""),IF($F45=0,COUNTRY_INFO!N45*$E45,COUNTRY_INFO!N45*($E45-$D45)),IF(AND($E45<>0,$G45<>0),IF($F45=0,COUNTRY_INFO!N45*$G45,COUNTRY_INFO!N45*($G45-$D45)),0)),IF($G45="",COUNTRY_INFO!N45*$E45,COUNTRY_INFO!N45*$G45))) -> 0 | I45: =IF(OR(COUNTRY_INFO!O45="Unknown",COUNTRY_INFO!O45="Surveillance",COUNTRY_INFO!O45="Not required",COUNTRY_INFO!O45=0),0,IF($E45<>0, IF($F45=0,COUNTRY_INFO!O45*$E45,COUNTRY_INFO!O45*($E45-$D45)),COUNTRY_INFO!O45*$E45)) -> 0 | K45: =IF(OR(COUNTRY_INFO!P45="Unknown",COUNTRY_INFO!P45="Surveillance",COUNTRY_INFO!P45="Not required",COUNTRY_INFO!P45=0),0,IF(AND($E45<>0,$J45=""),IF($F45=0,COUNTRY_INFO!P45*$E45,COUNTRY_INFO!P45*($E45-$D45)), IF(AND($E45<>0,$J45<>0),IF($F45=0,COUNTRY_INFO!P45*$J45,COUNTRY_INFO!P45*($J45-$D45)), COUNTRY_INFO!P45*$J45))) -> 0 | L45: 0 | M45: 0 | O45: 0 | P45: 0 | R45: 0 | S45: 0 | U45: 0
A46: =IF(AND(INTRO!$E$37="Non-endemic",INTRO!$E$41="Non-endemic")," ",IF(COUNTRY_INFO!A46=0," ",COUNTRY_INFO!A46)) -> Eswatini | B46: =IF(AND(INTRO!$E$37="Non-endemic",INTRO!$E$41="Non-endemic")," ",IF(COUNTRY_INFO!B46=0," ",COUNTRY_INFO!B46)) -> MANZINI | C46: =IF(AND(INTRO!$E$37="Non-endemic",INTRO!$E$41="Non-endemic")," ",IF(COUNTRY_INFO!C46=0," ",COUNTRY_INFO!C46)) -> Mhlambanyatsi | D46: =IF(AND(INTRO!$E$37="Non-endemic",INTRO!$E$41="Non-endemic"),0,COUNTRY_INFO!V46) -> 0 | E46: =IF(AND(INTRO!$E$37="Non-endemic",INTRO!$E$41="Non-endemic"),0,COUNTRY_INFO!X46) -> 0 | F46: =IF(INTRO!$E$39="Non-endemic",IF($D46=1,DEC!I46,0),IF($D46=1,IVM!G46,0)) -> 0 | H46: =IF(OR(COUNTRY_INFO!N46="Unknown",COUNTRY_INFO!N46="Surveillance",COUNTRY_INFO!N46="Not required",COUNTRY_INFO!N46=0),0,IF(INTRO!$E$39="Non-endemic",IF(AND($E46<>0,$G46=""),IF($F46=0,COUNTRY_INFO!N46*$E46,COUNTRY_INFO!N46*($E46-$D46)),IF(AND($E46<>0,$G46<>0),IF($F46=0,COUNTRY_INFO!N46*$G46,COUNTRY_INFO!N46*($G46-$D46)),0)),IF($G46="",COUNTRY_INFO!N46*$E46,COUNTRY_INFO!N46*$G46))) -> 0 | I46: =IF(OR(COUNTRY_INFO!O46="Unknown",COUNTRY_INFO!O46="Surveillance",COUNTRY_INFO!O46="Not required",COUNTRY_INFO!O46=0),0,IF($E46<>0, IF($F46=0,COUNTRY_INFO!O46*$E46,COUNTRY_INFO!O46*($E46-$D46)),COUNTRY_INFO!O46*$E46)) -> 0 | K46: =IF(OR(COUNTRY_INFO!P46="Unknown",COUNTRY_INFO!P46="Surveillance",COUNTRY_INFO!P46="Not required",COUNTRY_INFO!P46=0),0,IF(AND($E46<>0,$J46=""),IF($F46=0,COUNTRY_INFO!P46*$E46,COUNTRY_INFO!P46*($E46-$D46)), IF(AND($E46<>0,$J46<>0),IF($F46=0,COUNTRY_INFO!P46*$J46,COUNTRY_INFO!P46*($J46-$D46)), COUNTRY_INFO!P46*$J46))) -> 0 | L46: 0 | M46: 0 | O46: 0 | P46: 0 | R46: 0 | S46: 0 | U46: 0
A47: =IF(AND(INTRO!$E$37="Non-endemic",INTRO!$E$41="Non-endemic")," ",IF(COUNTRY_INFO!A47=0," ",COUNTRY_INFO!A47)) -> Eswatini | B47: =IF(AND(INTRO!$E$37="Non-endemic",INTRO!$E$41="Non-endemic")," ",IF(COUNTRY_INFO!B47=0," ",COUNTRY_INFO!B47)) -> MANZINI | C47: =IF(AND(INTRO!$E$37="Non-endemic",INTRO!$E$41="Non-endemic")," ",IF(COUNTRY_INFO!C47=0," ",COUNTRY_INFO!C47)) -> Mkhiweni | D47: =IF(AND(INTRO!$E$37="Non-endemic",INTRO!$E$41="Non-endemic"),0,COUNTRY_INFO!V47) -> 0 | E47: =IF(AND(INTRO!$E$37="Non-endemic",INTRO!$E$41="Non-endemic"),0,COUNTRY_INFO!X47) -> 0 | F47: =IF(INTRO!$E$39="Non-endemic",IF($D47=1,DEC!I47,0),IF($D47=1,IVM!G47,0)) -> 0 | H47: =IF(OR(COUNTRY_INFO!N47="Unknown",COUNTRY_INFO!N47="Surveillance",COUNTRY_INFO!N47="Not required",COUNTRY_INFO!N47=0),0,IF(INTRO!$E$39="Non-endemic",IF(AND($E47<>0,$G47=""),IF($F47=0,COUNTRY_INFO!N47*$E47,COUNTRY_INFO!N47*($E47-$D47)),IF(AND($E47<>0,$G47<>0),IF($F47=0,COUNTRY_INFO!N47*$G47,COUNTRY_INFO!N47*($G47-$D47)),0)),IF($G47="",COUNTRY_INFO!N47*$E47,COUNTRY_INFO!N47*$G47))) -> 0 | I47: =IF(OR(COUNTRY_INFO!O47="Unknown",COUNTRY_INFO!O47="Surveillance",COUNTRY_INFO!O47="Not required",COUNTRY_INFO!O47=0),0,IF($E47<>0, IF($F47=0,COUNTRY_INFO!O47*$E47,COUNTRY_INFO!O47*($E47-$D47)),COUNTRY_INFO!O47*$E47)) -> 0 | K47: =IF(OR(COUNTRY_INFO!P47="Unknown",COUNTRY_INFO!P47="Surveillance",COUNTRY_INFO!P47="Not required",COUNTRY_INFO!P47=0),0,IF(AND($E47<>0,$J47=""),IF($F47=0,COUNTRY_INFO!P47*$E47,COUNTRY_INFO!P47*($E47-$D47)), IF(AND($E47<>0,$J47<>0),IF($F47=0,COUNTRY_INFO!P47*$J47,COUNTRY_INFO!P47*($J47-$D47)), COUNTRY_INFO!P47*$J47))) -> 0 | L47: 0 | M47: 0 | O47: 0 | P47: 0 | R47: 0 | S47: 0 | U47: 0
A48: =IF(AND(INTRO!$E$37="Non-endemic",INTRO!$E$41="Non-endemic")," ",IF(COUNTRY_INFO!A48=0," ",COUNTRY_INFO!A48)) -> Eswatini | B48: =IF(AND(INTRO!$E$37="Non-endemic",INTRO!$E$41="Non-endemic")," ",IF(COUNTRY_INFO!B48=0," ",COUNTRY_INFO!B48)) -> MANZINI | C48: =IF(AND(INTRO!$E$37="Non-endemic",INTRO!$E$41="Non-endemic")," ",IF(COUNTRY_INFO!C48=0," ",COUNTRY_INFO!C48)) -> Mtfongwaneni | D48: =IF(AND(INTRO!$E$37="Non-endemic",INTRO!$E$41="Non-endemic"),0,COUNTRY_INFO!V48) -> 0 | E48: =IF(AND(INTRO!$E$37="Non-endemic",INTRO!$E$41="Non-endemic"),0,COUNTRY_INFO!X48) -> 0 | F48: =IF(INTRO!$E$39="Non-endemic",IF($D48=1,DEC!I48,0),IF($D48=1,IVM!G48,0)) -> 0 | H48: =IF(OR(COUNTRY_INFO!N48="Unknown",COUNTRY_INFO!N48="Surveillance",COUNTRY_INFO!N48="Not required",COUNTRY_INFO!N48=0),0,IF(INTRO!$E$39="Non-endemic",IF(AND($E48<>0,$G48=""),IF($F48=0,COUNTRY_INFO!N48*$E48,COUNTRY_INFO!N48*($E48-$D48)),IF(AND($E48<>0,$G48<>0),IF($F48=0,COUNTRY_INFO!N48*$G48,COUNTRY_INFO!N48*($G48-$D48)),0)),IF($G48="",COUNTRY_INFO!N48*$E48,COUNTRY_INFO!N48*$G48))) -> 0 | I48: =IF(OR(COUNTRY_INFO!O48="Unknown",COUNTRY_INFO!O48="Surveillance",COUNTRY_INFO!O48="Not required",COUNTRY_INFO!O48=0),0,IF($E48<>0, IF($F48=0,COUNTRY_INFO!O48*$E48,COUNTRY_INFO!O48*($E48-$D48)),COUNTRY_INFO!O48*$E48)) -> 0 | K48: =IF(OR(COUNTRY_INFO!P48="Unknown",COUNTRY_INFO!P48="Surveillance",COUNTRY_INFO!P48="Not required",COUNTRY_INFO!P48=0),0,IF(AND($E48<>0,$J48=""),IF($F48=0,COUNTRY_INFO!P48*$E48,COUNTRY_INFO!P48*($E48-$D48)), IF(AND($E48<>0,$J48<>0),IF($F48=0,COUNTRY_INFO!P48*$J48,COUNTRY_INFO!P48*($J48-$D48)), COUNTRY_INFO!P48*$J48))) -> 0 | L48: 0 | M48: 0 | O48: 0 | P48: 0 | R48: 0 | S48: 0 | U48: 0
A49: =IF(AND(INTRO!$E$37="Non-endemic",INTRO!$E$41="Non-endemic")," ",IF(COUNTRY_INFO!A49=0," ",COUNTRY_INFO!A49)) -> Eswatini | B49: =IF(AND(INTRO!$E$37="Non-endemic",INTRO!$E$41="Non-endemic")," ",IF(COUNTRY_INFO!B49=0," ",COUNTRY_INFO!B49)) -> MANZINI | C49: =IF(AND(INTRO!$E$37="Non-endemic",INTRO!$E$41="Non-endemic")," ",IF(COUNTRY_INFO!C49=0," ",COUNTRY_INFO!C49)) -> Ngwemphisi | D49: =IF(AND(INTRO!$E$37="Non-endemic",INTRO!$E$41="Non-endemic"),0,COUNTRY_INFO!V49) -> 0 | E49: =IF(AND(INTRO!$E$37="Non-endemic",INTRO!$E$41="Non-endemic"),0,COUNTRY_INFO!X49) -> 0 | F49: =IF(INTRO!$E$39="Non-endemic",IF($D49=1,DEC!I49,0),IF($D49=1,IVM!G49,0)) -> 0 | H49: =IF(OR(COUNTRY_INFO!N49="Unknown",COUNTRY_INFO!N49="Surveillance",COUNTRY_INFO!N49="Not required",COUNTRY_INFO!N49=0),0,IF(INTRO!$E$39="Non-endemic",IF(AND($E49<>0,$G49=""),IF($F49=0,COUNTRY_INFO!N49*$E49,COUNTRY_INFO!N49*($E49-$D49)),IF(AND($E49<>0,$G49<>0),IF($F49=0,COUNTRY_INFO!N49*$G49,COUNTRY_INFO!N49*($G49-$D49)),0)),IF($G49="",COUNTRY_INFO!N49*$E49,COUNTRY_INFO!N49*$G49))) -> 0 | I49: =IF(OR(COUNTRY_INFO!O49="Unknown",COUNTRY_INFO!O49="Surveillance",COUNTRY_INFO!O49="Not required",COUNTRY_INFO!O49=0),0,IF($E49<>0, IF($F49=0,COUNTRY_INFO!O49*$E49,COUNTRY_INFO!O49*($E49-$D49)),COUNTRY_INFO!O49*$E49)) -> 0 | K49: =IF(OR(COUNTRY_INFO!P49="Unknown",COUNTRY_INFO!P49="Surveillance",COUNTRY_INFO!P49="Not required",COUNTRY_INFO!P49=0),0,IF(AND($E49<>0,$J49=""),IF($F49=0,COUNTRY_INFO!P49*$E49,COUNTRY_INFO!P49*($E49-$D49)), IF(AND($E49<>0,$J49<>0),IF($F49=0,COUNTRY_INFO!P49*$J49,COUNTRY_INFO!P49*($J49-$D49)), COUNTRY_INFO!P49*$J49))) -> 0 | L49: 0 | M49: 0 | O49: 0 | P49: 0 | R49: 0 | S49: 0 | U49: 0
A50: =IF(AND(INTRO!$E$37="Non-endemic",INTRO!$E$41="Non-endemic")," ",IF(COUNTRY_INFO!A50=0," ",COUNTRY_INFO!A50)) -> Eswatini | B50: =IF(AND(INTRO!$E$37="Non-endemic",INTRO!$E$41="Non-endemic")," ",IF(COUNTRY_INFO!B50=0," ",COUNTRY_INFO!B50)) -> MANZINI | C50: =IF(AND(INTRO!$E$37="Non-endemic",INTRO!$E$41="Non-endemic")," ",IF(COUNTRY_INFO!C50=0," ",COUNTRY_INFO!C50)) -> Nhlambeni | D50: =IF(AND(INTRO!$E$37="Non-endemic",INTRO!$E$41="Non-endemic"),0,COUNTRY_INFO!V50) -> 0 | E50: =IF(AND(INTRO!$E$37="Non-endemic",INTRO!$E$41="Non-endemic"),0,COUNTRY_INFO!X50) -> 0 | F50: =IF(INTRO!$E$39="Non-endemic",IF($D50=1,DEC!I50,0),IF($D50=1,IVM!G50,0)) -> 0 | H50: =IF(OR(COUNTRY_INFO!N50="Unknown",COUNTRY_INFO!N50="Surveillance",COUNTRY_INFO!N50="Not required",COUNTRY_INFO!N50=0),0,IF(INTRO!$E$39="Non-endemic",IF(AND($E50<>0,$G50=""),IF($F50=0,COUNTRY_INFO!N50*$E50,COUNTRY_INFO!N50*($E50-$D50)),IF(AND($E50<>0,$G50<>0),IF($F50=0,COUNTRY_INFO!N50*$G50,COUNTRY_INFO!N50*($G50-$D50)),0)),IF($G50="",COUNTRY_INFO!N50*$E50,COUNTRY_INFO!N50*$G50))) -> 0 | I50: =IF(OR(COUNTRY_INFO!O50="Unknown",COUNTRY_INFO!O50="Surveillance",COUNTRY_INFO!O50="Not required",COUNTRY_INFO!O50=0),0,IF($E50<>0, IF($F50=0,COUNTRY_INFO!O50*$E50,COUNTRY_INFO!O50*($E50-$D50)),COUNTRY_INFO!O50*$E50)) -> 0 | K50: =IF(OR(COUNTRY_INFO!P50="Unknown",COUNTRY_INFO!P50="Surveillance",COUNTRY_INFO!P50="Not required",COUNTRY_INFO!P50=0),0,IF(AND($E50<>0,$J50=""),IF($F50=0,COUNTRY_INFO!P50*$E50,COUNTRY_INFO!P50*($E50-$D50)), IF(AND($E50<>0,$J50<>0),IF($F50=0,COUNTRY_INFO!P50*$J50,COUNTRY_INFO!P50*($J50-$D50)), COUNTRY_INFO!P50*$J50))) -> 0 | L50: 0 | M50: 0 | O50: 0 | P50: 0 | R50: 0 | S50: 0 | U50: 0
A51: =IF(AND(INTRO!$E$37="Non-endemic",INTRO!$E$41="Non-endemic")," ",IF(COUNTRY_INFO!A51=0," ",COUNTRY_INFO!A51)) -> Eswatini | B51: =IF(AND(INTRO!$E$37="Non-endemic",INTRO!$E$41="Non-endemic")," ",IF(COUNTRY_INFO!B51=0," ",COUNTRY_INFO!B51)) -> MANZINI | C51: =IF(AND(INTRO!$E$37="Non-endemic",INTRO!$E$41="Non-endemic")," ",IF(COUNTRY_INFO!C51=0," ",COUNTRY_INFO!C51)) -> Ntondozi | D51: =IF(AND(INTRO!$E$37="Non-endemic",INTRO!$E$41="Non-endemic"),0,COUNTRY_INFO!V51) -> 0 | E51: =IF(AND(INTRO!$E$37="Non-endemic",INTRO!$E$41="Non-endemic"),0,COUNTRY_INFO!X51) -> 0 | F51: =IF(INTRO!$E$39="Non-endemic",IF($D51=1,DEC!I51,0),IF($D51=1,IVM!G51,0)) -> 0 | H51: =IF(OR(COUNTRY_INFO!N51="Unknown",COUNTRY_INFO!N51="Surveillance",COUNTRY_INFO!N51="Not required",COUNTRY_INFO!N51=0),0,IF(INTRO!$E$39="Non-endemic",IF(AND($E51<>0,$G51=""),IF($F51=0,COUNTRY_INFO!N51*$E51,COUNTRY_INFO!N51*($E51-$D51)),IF(AND($E51<>0,$G51<>0),IF($F51=0,COUNTRY_INFO!N51*$G51,COUNTRY_INFO!N51*($G51-$D51)),0)),IF($G51="",COUNTRY_INFO!N51*$E51,COUNTRY_INFO!N51*$G51))) -> 0 | I51: =IF(OR(COUNTRY_INFO!O51="Unknown",COUNTRY_INFO!O51="Surveillance",COUNTRY_INFO!O51="Not required",COUNTRY_INFO!O51=0),0,IF($E51<>0, IF($F51=0,COUNTRY_INFO!O51*$E51,COUNTRY_INFO!O51*($E51-$D51)),COUNTRY_INFO!O51*$E51)) -> 0 | K51: =IF(OR(COUNTRY_INFO!P51="Unknown",COUNTRY_INFO!P51="Surveillance",COUNTRY_INFO!P51="Not required",COUNTRY_INFO!P51=0),0,IF(AND($E51<>0,$J51=""),IF($F51=0,COUNTRY_INFO!P51*$E51,COUNTRY_INFO!P51*($E51-$D51)), IF(AND($E51<>0,$J51<>0),IF($F51=0,COUNTRY_INFO!P51*$J51,COUNTRY_INFO!P51*($J51-$D51)), COUNTRY_INFO!P51*$J51))) -> 0 | L51: 0 | M51: 0 | O51: 0 | P51: 0 | R51: 0 | S51: 0 | U51: 0
A52: =IF(AND(INTRO!$E$37="Non-endemic",INTRO!$E$41="Non-endemic")," ",IF(COUNTRY_INFO!A52=0," ",COUNTRY_INFO!A52)) -> Eswatini | B52: =IF(AND(INTRO!$E$37="Non-endemic",INTRO!$E$41="Non-endemic")," ",IF(COUNTRY_INFO!B52=0," ",COUNTRY_INFO!B52)) -> MANZINI | C52: =IF(AND(INTRO!$E$37="Non-endemic",INTRO!$E$41="Non-endemic")," ",IF(COUNTRY_INFO!C52=0," ",COUNTRY_INFO!C52)) -> Nkomiyahlaba | D52: =IF(AND(INTRO!$E$37="Non-endemic",INTRO!$E$41="Non-endemic"),0,COUNTRY_INFO!V52) -> 0 | E52: =IF(AND(INTRO!$E$37="Non-endemic",INTRO!$E$41="Non-endemic"),0,COUNTRY_INFO!X52) -> 0 | F52: =IF(INTRO!$E$39="Non-endemic",IF($D52=1,DEC!I52,0),IF($D52=1,IVM!G52,0)) -> 0 | H52: =IF(OR(COUNTRY_INFO!N52="Unknown",COUNTRY_INFO!N52="Surveillance",COUNTRY_INFO!N52="Not required",COUNTRY_INFO!N52=0),0,IF(INTRO!$E$39="Non-endemic",IF(AND($E52<>0,$G52=""),IF($F52=0,COUNTRY_INFO!N52*$E52,COUNTRY_INFO!N52*($E52-$D52)),IF(AND($E52<>0,$G52<>0),IF($F52=0,COUNTRY_INFO!N52*$G52,COUNTRY_INFO!N52*($G52-$D52)),0)),IF($G52="",COUNTRY_INFO!N52*$E52,COUNTRY_INFO!N52*$G52))) -> 0 | I52: =IF(OR(COUNTRY_INFO!O52="Unknown",COUNTRY_INFO!O52="Surveillance",COUNTRY_INFO!O52="Not required",COUNTRY_INFO!O52=0),0,IF($E52<>0, IF($F52=0,COUNTRY_INFO!O52*$E52,COUNTRY_INFO!O52*($E52-$D52)),COUNTRY_INFO!O52*$E52)) -> 0 | K52: =IF(OR(COUNTRY_INFO!P52="Unknown",COUNTRY_INFO!P52="Surveillance",COUNTRY_INFO!P52="Not required",COUNTRY_INFO!P52=0),0,IF(AND($E52<>0,$J52=""),IF($F52=0,COUNTRY_INFO!P52*$E52,COUNTRY_INFO!P52*($E52-$D52)), IF(AND($E52<>0,$J52<>0),IF($F52=0,COUNTRY_INFO!P52*$J52,COUNTRY_INFO!P52*($J52-$D52)), COUNTRY_INFO!P52*$J52))) -> 0 | L52: 0 | M52: 0 | O52: 0 | P52: 0 | R52: 0 | S52: 0 | U52: 0
A53: =IF(AND(INTRO!$E$37="Non-endemic",INTRO!$E$41="Non-endemic")," ",IF(COUNTRY_INFO!A53=0," ",COUNTRY_INFO!A53)) -> Eswatini | B53: =IF(AND(INTRO!$E$37="Non-endemic",INTRO!$E$41="Non-endemic")," ",IF(COUNTRY_INFO!B53=0," ",COUNTRY_INFO!B53)) -> MANZINI | C53: =IF(AND(INTRO!$E$37="Non-endemic",INTRO!$E$41="Non-endemic")," ",IF(COUNTRY_INFO!C53=0," ",COUNTRY_INFO!C53)) -> Phondo | D53: =IF(AND(INTRO!$E$37="Non-endemic",INTRO!$E$41="Non-endemic"),0,COUNTRY_INFO!V53) -> 0 | E53: =IF(AND(INTRO!$E$37="Non-endemic",INTRO!$E$41="Non-endemic"),0,COUNTRY_INFO!X53) -> 0 | F53: =IF(INTRO!$E$39="Non-endemic",IF($D53=1,DEC!I53,0),IF($D53=1,IVM!G53,0)) -> 0 | H53: =IF(OR(COUNTRY_INFO!N53="Unknown",COUNTRY_INFO!N53="Surveillance",COUNTRY_INFO!N53="Not required",COUNTRY_INFO!N53=0),0,IF(INTRO!$E$39="Non-endemic",IF(AND($E53<>0,$G53=""),IF($F53=0,COUNTRY_INFO!N53*$E53,COUNTRY_INFO!N53*($E53-$D53)),IF(AND($E53<>0,$G53<>0),IF($F53=0,COUNTRY_INFO!N53*$G53,COUNTRY_INFO!N53*($G53-$D53)),0)),IF($G53="",COUNTRY_INFO!N53*$E53,COUNTRY_INFO!N53*$G53))) -> 0 | I53: =IF(OR(COUNTRY_INFO!O53="Unknown",COUNTRY_INFO!O53="Surveillance",COUNTRY_INFO!O53="Not required",COUNTRY_INFO!O53=0),0,IF($E53<>0, IF($F53=0,COUNTRY_INFO!O53*$E53,COUNTRY_INFO!O53*($E53-$D53)),COUNTRY_INFO!O53*$E53)) -> 0 | K53: =IF(OR(COUNTRY_INFO!P53="Unknown",COUNTRY_INFO!P53="Surveillance",COUNTRY_INFO!P53="Not required",COUNTRY_INFO!P53=0),0,IF(AND($E53<>0,$J53=""),IF($F53=0,COUNTRY_INFO!P53*$E53,COUNTRY_INFO!P53*($E53-$D53)), IF(AND($E53<>0,$J53<>0),IF($F53=0,COUNTRY_INFO!P53*$J53,COUNTRY_INFO!P53*($J53-$D53)), COUNTRY_INFO!P53*$J53))) -> 0 | L53: 0 | M53: 0 | O53: 0 | P53: 0 | R53: 0 | S53: 0 | U53: 0
A54: =IF(AND(INTRO!$E$37="Non-endemic",INTRO!$E$41="Non-endemic")," ",IF(COUNTRY_INFO!A54=0," ",COUNTRY_INFO!A54)) -> Eswatini | B54: =IF(AND(INTRO!$E$37="Non-endemic",INTRO!$E$41="Non-endemic")," ",IF(COUNTRY_INFO!B54=0," ",COUNTRY_INFO!B54)) -> SHISELWENI | C54: =IF(AND(INTRO!$E$37="Non-endemic",INTRO!$E$41="Non-endemic")," ",IF(COUNTRY_INFO!C54=0," ",COUNTRY_INFO!C54)) -> Gege | D54: =IF(AND(INTRO!$E$37="Non-endemic",INTRO!$E$41="Non-endemic"),0,COUNTRY_INFO!V54) -> 0 | E54: =IF(AND(INTRO!$E$37="Non-endemic",INTRO!$E$41="Non-endemic"),0,COUNTRY_INFO!X54) -> 0 | F54: =IF(INTRO!$E$39="Non-endemic",IF($D54=1,DEC!I54,0),IF($D54=1,IVM!G54,0)) -> 0 | H54: =IF(OR(COUNTRY_INFO!N54="Unknown",COUNTRY_INFO!N54="Surveillance",COUNTRY_INFO!N54="Not required",COUNTRY_INFO!N54=0),0,IF(INTRO!$E$39="Non-endemic",IF(AND($E54<>0,$G54=""),IF($F54=0,COUNTRY_INFO!N54*$E54,COUNTRY_INFO!N54*($E54-$D54)),IF(AND($E54<>0,$G54<>0),IF($F54=0,COUNTRY_INFO!N54*$G54,COUNTRY_INFO!N54*($G54-$D54)),0)),IF($G54="",COUNTRY_INFO!N54*$E54,COUNTRY_INFO!N54*$G54))) -> 0 | I54: =IF(OR(COUNTRY_INFO!O54="Unknown",COUNTRY_INFO!O54="Surveillance",COUNTRY_INFO!O54="Not required",COUNTRY_INFO!O54=0),0,IF($E54<>0, IF($F54=0,COUNTRY_INFO!O54*$E54,COUNTRY_INFO!O54*($E54-$D54)),COUNTRY_INFO!O54*$E54)) -> 0 | K54: =IF(OR(COUNTRY_INFO!P54="Unknown",COUNTRY_INFO!P54="Surveillance",COUNTRY_INFO!P54="Not required",COUNTRY_INFO!P54=0),0,IF(AND($E54<>0,$J54=""),IF($F54=0,COUNTRY_INFO!P54*$E54,COUNTRY_INFO!P54*($E54-$D54)), IF(AND($E54<>0,$J54<>0),IF($F54=0,COUNTRY_INFO!P54*$J54,COUNTRY_INFO!P54*($J54-$D54)), COUNTRY_INFO!P54*$J54))) -> 0 | L54: 0 | M54: 0 | O54: 0 | P54: 0 | R54: 0 | S54: 0 | U54: 0
A55: =IF(AND(INTRO!$E$37="Non-endemic",INTRO!$E$41="Non-endemic")," ",IF(COUNTRY_INFO!A55=0," ",COUNTRY_INFO!A55)) -> Eswatini | B55: =IF(AND(INTRO!$E$37="Non-endemic",INTRO!$E$41="Non-endemic")," ",IF(COUNTRY_INFO!B55=0," ",COUNTRY_INFO!B55)) -> SHISELWENI | C55: =IF(AND(INTRO!$E$37="Non-endemic",INTRO!$E$41="Non-endemic")," ",IF(COUNTRY_INFO!C55=0," ",COUNTRY_INFO!C55)) -> Hosea | D55: =IF(AND(INTRO!$E$37="Non-endemic",INTRO!$E$41="Non-endemic"),0,COUNTRY_INFO!V55) -> 0 | E55: =IF(AND(INTRO!$E$37="Non-endemic",INTRO!$E$41="Non-endemic"),0,COUNTRY_INFO!X55) -> 0 | F55: =IF(INTRO!$E$39="Non-endemic",IF($D55=1,DEC!I55,0),IF($D55=1,IVM!G55,0)) -> 0 | H55: =IF(OR(COUNTRY_INFO!N55="Unknown",COUNTRY_INFO!N55="Surveillance",COUNTRY_INFO!N55="Not required",COUNTRY_INFO!N55=0),0,IF(INTRO!$E$39="Non-endemic",IF(AND($E55<>0,$G55=""),IF($F55=0,COUNTRY_INFO!N55*$E55,COUNTRY_INFO!N55*($E55-$D55)),IF(AND($E55<>0,$G55<>0),IF($F55=0,COUNTRY_INFO!N55*$G55,COUNTRY_INFO!N55*($G55-$D55)),0)),IF($G55="",COUNTRY_INFO!N55*$E55,COUNTRY_INFO!N55*$G55))) -> 0 | I55: =IF(OR(COUNTRY_INFO!O55="Unknown",COUNTRY_INFO!O55="Surveillance",COUNTRY_INFO!O55="Not required",COUNTRY_INFO!O55=0),0,IF($E55<>0, IF($F55=0,COUNTRY_INFO!O55*$E55,COUNTRY_INFO!O55*($E55-$D55)),COUNTRY_INFO!O55*$E55)) -> 0 | K55: =IF(OR(COUNTRY_INFO!P55="Unknown",COUNTRY_INFO!P55="Surveillance",COUNTRY_INFO!P55="Not required",COUNTRY_INFO!P55=0),0,IF(AND($E55<>0,$J55=""),IF($F55=0,COUNTRY_INFO!P55*$E55,COUNTRY_INFO!P55*($E55-$D55)), IF(AND($E55<>0,$J55<>0),IF($F55=0,COUNTRY_INFO!P55*$J55,COUNTRY_INFO!P55*($J55-$D55)), COUNTRY_INFO!P55*$J55))) -> 0 | L55: 0 | M55: 0 | O55: 0 | P55: 0 | R55: 0 | S55: 0 | U55: 0
A56: =IF(AND(INTRO!$E$37="Non-endemic",INTRO!$E$41="Non-endemic")," ",IF(COUNTRY_INFO!A56=0," ",COUNTRY_INFO!A56)) -> Eswatini | B56: =IF(AND(INTRO!$E$37="Non-endemic",INTRO!$E$41="Non-endemic")," ",IF(COUNTRY_INFO!B56=0," ",COUNTRY_INFO!B56)) -> SHISELWENI | C56: =IF(AND(INTRO!$E$37="Non-endemic",INTRO!$E$41="Non-endemic")," ",IF(COUNTRY_INFO!C56=0," ",COUNTRY_INFO!C56)) -> Khubutha | D56: =IF(AND(INTRO!$E$37="Non-endemic",INTRO!$E$41="Non-endemic"),0,COUNTRY_INFO!V56) -> 0 | E56: =IF(AND(INTRO!$E$37="Non-endemic",INTRO!$E$41="Non-endemic"),0,COUNTRY_INFO!X56) -> 0 | F56: =IF(INTRO!$E$39="Non-endemic",IF($D56=1,DEC!I56,0),IF($D56=1,IVM!G56,0)) -> 0 | H56: =IF(OR(COUNTRY_INFO!N56="Unknown",COUNTRY_INFO!N56="Surveillance",COUNTRY_INFO!N56="Not required",COUNTRY_INFO!N56=0),0,IF(INTRO!$E$39="Non-endemic",IF(AND($E56<>0,$G56=""),IF($F56=0,COUNTRY_INFO!N56*$E56,COUNTRY_INFO!N56*($E56-$D56)),IF(AND($E56<>0,$G56<>0),IF($F56=0,COUNTRY_INFO!N56*$G56,COUNTRY_INFO!N56*($G56-$D56)),0)),IF($G56="",COUNTRY_INFO!N56*$E56,COUNTRY_INFO!N56*$G56))) -> 0 | I56: =IF(OR(COUNTRY_INFO!O56="Unknown",COUNTRY_INFO!O56="Surveillance",COUNTRY_INFO!O56="Not required",COUNTRY_INFO!O56=0),0,IF($E56<>0, IF($F56=0,COUNTRY_INFO!O56*$E56,COUNTRY_INFO!O56*($E56-$D56)),COUNTRY_INFO!O56*$E56)) -> 0 | K56: =IF(OR(COUNTRY_INFO!P56="Unknown",COUNTRY_INFO!P56="Surveillance",COUNTRY_INFO!P56="Not required",COUNTRY_INFO!P56=0),0,IF(AND($E56<>0,$J56=""),IF($F56=0,COUNTRY_INFO!P56*$E56,COUNTRY_INFO!P56*($E56-$D56)), IF(AND($E56<>0,$J56<>0),IF($F56=0,COUNTRY_INFO!P56*$J56,COUNTRY_INFO!P56*($J56-$D56)), COUNTRY_INFO!P56*$J56))) -> 0 | L56: 0 | M56: 0 | O56: 0 | P56: 0 | R56: 0 | S56: 0 | U56: 0
A57: =IF(AND(INTRO!$E$37="Non-endemic",INTRO!$E$41="Non-endemic")," ",IF(COUNTRY_INFO!A57=0," ",COUNTRY_INFO!A57)) -> Eswatini | B57: =IF(AND(INTRO!$E$37="Non-endemic",INTRO!$E$41="Non-endemic")," ",IF(COUNTRY_INFO!B57=0," ",COUNTRY_INFO!B57)) -> SHISELWENI | C57: =IF(AND(INTRO!$E$37="Non-endemic",INTRO!$E$41="Non-endemic")," ",IF(COUNTRY_INFO!C57=0," ",COUNTRY_INFO!C57)) -> Maseyisini | D57: =IF(AND(INTRO!$E$37="Non-endemic",INTRO!$E$41="Non-endemic"),0,COUNTRY_INFO!V57) -> 0 | E57: =IF(AND(INTRO!$E$37="Non-endemic",INTRO!$E$41="Non-endemic"),0,COUNTRY_INFO!X57) -> 0 | F57: =IF(INTRO!$E$39="Non-endemic",IF($D57=1,DEC!I57,0),IF($D57=1,IVM!G57,0)) -> 0 | H57: =IF(OR(COUNTRY_INFO!N57="Unknown",COUNTRY_INFO!N57="Surveillance",COUNTRY_INFO!N57="Not required",COUNTRY_INFO!N57=0),0,IF(INTRO!$E$39="Non-endemic",IF(AND($E57<>0,$G57=""),IF($F57=0,COUNTRY_INFO!N57*$E57,COUNTRY_INFO!N57*($E57-$D57)),IF(AND($E57<>0,$G57<>0),IF($F57=0,COUNTRY_INFO!N57*$G57,COUNTRY_INFO!N57*($G57-$D57)),0)),IF($G57="",COUNTRY_INFO!N57*$E57,COUNTRY_INFO!N57*$G57))) -> 0 | I57: =IF(OR(COUNTRY_INFO!O57="Unknown",COUNTRY_INFO!O57="Surveillance",COUNTRY_INFO!O57="Not required",COUNTRY_INFO!O57=0),0,IF($E57<>0, IF($F57=0,COUNTRY_INFO!O57*$E57,COUNTRY_INFO!O57*($E57-$D57)),COUNTRY_INFO!O57*$E57)) -> 0 | K57: =IF(OR(COUNTRY_INFO!P57="Unknown",COUNTRY_INFO!P57="Surveillance",COUNTRY_INFO!P57="Not required",COUNTRY_INFO!P57=0),0,IF(AND($E57<>0,$J57=""),IF($F57=0,COUNTRY_INFO!P57*$E57,COUNTRY_INFO!P57*($E57-$D57)), IF(AND($E57<>0,$J57<>0),IF($F57=0,COUNTRY_INFO!P57*$J57,COUNTRY_INFO!P57*($J57-$D57)), COUNTRY_INFO!P57*$J57))) -> 0 | L57: 0 | M57: 0 | O57: 0 | P57: 0 | R57: 0 | S57: 0 | U57: 0
A58: =IF(AND(INTRO!$E$37="Non-endemic",INTRO!$E$41="Non-endemic")," ",IF(COUNTRY_INFO!A58=0," ",COUNTRY_INFO!A58)) -> Eswatini | B58: =IF(AND(INTRO!$E$37="Non-endemic",INTRO!$E$41="Non-endemic")," ",IF(COUNTRY_INFO!B58=0," ",COUNTRY_INFO!B58)) -> SHISELWENI | C58: =IF(AND(INTRO!$E$37="Non-endemic",INTRO!$E$41="Non-endemic")," ",IF(COUNTRY_INFO!C58=0," ",COUNTRY_INFO!C58)) -> Matsanjeni South | D58: =IF(AND(INTRO!$E$37="Non-endemic",INTRO!$E$41="Non-endemic"),0,COUNTRY_INFO!V58) -> 0 | E58: =IF(AND(INTRO!$E$37="Non-endemic",INTRO!$E$41="Non-endemic"),0,COUNTRY_INFO!X58) -> 0 | F58: =IF(INTRO!$E$39="Non-endemic",IF($D58=1,DEC!I58,0),IF($D58=1,IVM!G58,0)) -> 0 | H58: =IF(OR(COUNTRY_INFO!N58="Unknown",COUNTRY_INFO!N58="Surveillance",COUNTRY_INFO!N58="Not required",COUNTRY_INFO!N58=0),0,IF(INTRO!$E$39="Non-endemic",IF(AND($E58<>0,$G58=""),IF($F58=0,COUNTRY_INFO!N58*$E58,COUNTRY_INFO!N58*($E58-$D58)),IF(AND($E58<>0,$G58<>0),IF($F58=0,COUNTRY_INFO!N58*$G58,COUNTRY_INFO!N58*($G58-$D58)),0)),IF($G58="",COUNTRY_INFO!N58*$E58,COUNTRY_INFO!N58*$G58))) -> 0 | I58: =IF(OR(COUNTRY_INFO!O58="Unknown",COUNTRY_INFO!O58="Surveillance",COUNTRY_INFO!O58="Not required",COUNTRY_INFO!O58=0),0,IF($E58<>0, IF($F58=0,COUNTRY_INFO!O58*$E58,COUNTRY_INFO!O58*($E58-$D58)),COUNTRY_INFO!O58*$E58)) -> 0 | K58: =IF(OR(COUNTRY_INFO!P58="Unknown",COUNTRY_INFO!P58="Surveillance",COUNTRY_INFO!P58="Not required",COUNTRY_INFO!P58=0),0,IF(AND($E58<>0,$J58=""),IF($F58=0,COUNTRY_INFO!P58*$E58,COUNTRY_INFO!P58*($E58-$D58)), IF(AND($E58<>0,$J58<>0),IF($F58=0,COUNTRY_INFO!P58*$J58,COUNTRY_INFO!P58*($J58-$D58)), COUNTRY_INFO!P58*$J58))) -> 0 | L58: 0 | M58: 0 | O58: 0 | P58: 0 | R58: 0 | S58: 0 | U58: 0
A59: =IF(AND(INTRO!$E$37="Non-endemic",INTRO!$E$41="Non-endemic")," ",IF(COUNTRY_INFO!A59=0," ",COUNTRY_INFO!A59)) -> Eswatini | B59: =IF(AND(INTRO!$E$37="Non-endemic",INTRO!$E$41="Non-endemic")," ",IF(COUNTRY_INFO!B59=0," ",COUNTRY_INFO!B59)) -> SHISELWENI | C59: =IF(AND(INTRO!$E$37="Non-endemic",INTRO!$E$41="Non-endemic")," ",IF(COUNTRY_INFO!C59=0," ",COUNTRY_INFO!C59)) -> Methula | D59: =IF(AND(INTRO!$E$37="Non-endemic",INTRO!$E$41="Non-endemic"),0,COUNTRY_INFO!V59) -> 0 | E59: =IF(AND(INTRO!$E$37="Non-endemic",INTRO!$E$41="Non-endemic"),0,COUNTRY_INFO!X59) -> 0 | F59: =IF(INTRO!$E$39="Non-endemic",IF($D59=1,DEC!I59,0),IF($D59=1,IVM!G59,0)) -> 0 | H59: =IF(OR(COUNTRY_INFO!N59="Unknown",COUNTRY_INFO!N59="Surveillance",COUNTRY_INFO!N59="Not required",COUNTRY_INFO!N59=0),0,IF(INTRO!$E$39="Non-endemic",IF(AND($E59<>0,$G59=""),IF($F59=0,COUNTRY_INFO!N59*$E59,COUNTRY_INFO!N59*($E59-$D59)),IF(AND($E59<>0,$G59<>0),IF($F59=0,COUNTRY_INFO!N59*$G59,COUNTRY_INFO!N59*($G59-$D59)),0)),IF($G59="",COUNTRY_INFO!N59*$E59,COUNTRY_INFO!N59*$G59))) -> 0 | I59: =IF(OR(COUNTRY_INFO!O59="Unknown",COUNTRY_INFO!O59="Surveillance",COUNTRY_INFO!O59="Not required",COUNTRY_INFO!O59=0),0,IF($E59<>0, IF($F59=0,COUNTRY_INFO!O59*$E59,COUNTRY_INFO!O59*($E59-$D59)),COUNTRY_INFO!O59*$E59)) -> 0 | K59: =IF(OR(COUNTRY_INFO!P59="Unknown",COUNTRY_INFO!P59="Surveillance",COUNTRY_INFO!P59="Not required",COUNTRY_INFO!P59=0),0,IF(AND($E59<>0,$J59=""),IF($F59=0,COUNTRY_INFO!P59*$E59,COUNTRY_INFO!P59*($E59-$D59)), IF(AND($E59<>0,$J59<>0),IF($F59=0,COUNTRY_INFO!P59*$J59,COUNTRY_INFO!P59*($J59-$D59)), COUNTRY_INFO!P59*$J59))) -> 0 | L59: 0 | M59: 0 | O59: 0 | P59: 0 | R59: 0 | S59: 0 | U59: 0
A60: =IF(AND(INTRO!$E$37="Non-endemic",INTRO!$E$41="Non-endemic")," ",IF(COUNTRY_INFO!A60=0," ",COUNTRY_INFO!A60)) -> Eswatini | B60: =IF(AND(INTRO!$E$37="Non-endemic",INTRO!$E$41="Non-endemic")," ",IF(COUNTRY_INFO!B60=0," ",COUNTRY_INFO!B60)) -> SHISELWENI | C60: =IF(AND(INTRO!$E$37="Non-endemic",INTRO!$E$41="Non-endemic")," ",IF(COUNTRY_INFO!C60=0," ",COUNTRY_INFO!C60)) -> Mbangweni/Shiselweni 2 | D60: =IF(AND(INTRO!$E$37="Non-endemic",INTRO!$E$41="Non-endemic"),0,COUNTRY_INFO!V60) -> 0 | E60: =IF(AND(INTRO!$E$37="Non-endemic",INTRO!$E$41="Non-endemic"),0,COUNTRY_INFO!X60) -> 0 | F60: =IF(INTRO!$E$39="Non-endemic",IF($D60=1,DEC!I60,0),IF($D60=1,IVM!G60,0)) -> 0 | H60: =IF(OR(COUNTRY_INFO!N60="Unknown",COUNTRY_INFO!N60="Surveillance",COUNTRY_INFO!N60="Not required",COUNTRY_INFO!N60=0),0,IF(INTRO!$E$39="Non-endemic",IF(AND($E60<>0,$G60=""),IF($F60=0,COUNTRY_INFO!N60*$E60,COUNTRY_INFO!N60*($E60-$D60)),IF(AND($E60<>0,$G60<>0),IF($F60=0,COUNTRY_INFO!N60*$G60,COUNTRY_INFO!N60*($G60-$D60)),0)),IF($G60="",COUNTRY_INFO!N60*$E60,COUNTRY_INFO!N60*$G60))) -> 0 | I60: =IF(OR(COUNTRY_INFO!O60="Unknown",COUNTRY_INFO!O60="Surveillance",COUNTRY_INFO!O60="Not required",COUNTRY_INFO!O60=0),0,IF($E60<>0, IF($F60=0,COUNTRY_INFO!O60*$E60,COUNTRY_INFO!O60*($E60-$D60)),COUNTRY_INFO!O60*$E60)) -> 0 | K60: =IF(OR(COUNTRY_INFO!P60="Unknown",COUNTRY_INFO!P60="Surveillance",COUNTRY_INFO!P60="Not required",COUNTRY_INFO!P60=0),0,IF(AND($E60<>0,$J60=""),IF($F60=0,COUNTRY_INFO!P60*$E60,COUNTRY_INFO!P60*($E60-$D60)), IF(AND($E60<>0,$J60<>0),IF($F60=0,COUNTRY_INFO!P60*$J60,COUNTRY_INFO!P60*($J60-$D60)), COUNTRY_INFO!P60*$J60))) -> 0 | L60: 0 | M60: 0 | O60: 0 | P60: 0 | R60: 0 | S60: 0 | U60: 0
A61: =IF(AND(INTRO!$E$37="Non-endemic",INTRO!$E$41="Non-endemic")," ",IF(COUNTRY_INFO!A61=0," ",COUNTRY_INFO!A61)) -> Eswatini | B61: =IF(AND(INTRO!$E$37="Non-endemic",INTRO!$E$41="Non-endemic")," ",IF(COUNTRY_INFO!B61=0," ",COUNTRY_INFO!B61)) -> SHISELWENI | C61: =IF(AND(INTRO!$E$37="Non-endemic",INTRO!$E$41="Non-endemic")," ",IF(COUNTRY_INFO!C61=0," ",COUNTRY_INFO!C61)) -> Mtsambama | D61: =IF(AND(INTRO!$E$37="Non-endemic",INTRO!$E$41="Non-endemic"),0,COUNTRY_INFO!V61) -> 0 | E61: =IF(AND(INTRO!$E$37="Non-endemic",INTRO!$E$41="Non-endemic"),0,COUNTRY_INFO!X61) -> 0 | F61: =IF(INTRO!$E$39="Non-endemic",IF($D61=1,DEC!I61,0),IF($D61=1,IVM!G61,0)) -> 0 | H61: =IF(OR(COUNTRY_INFO!N61="Unknown",COUNTRY_INFO!N61="Surveillance",COUNTRY_INFO!N61="Not required",COUNTRY_INFO!N61=0),0,IF(INTRO!$E$39="Non-endemic",IF(AND($E61<>0,$G61=""),IF($F61=0,COUNTRY_INFO!N61*$E61,COUNTRY_INFO!N61*($E61-$D61)),IF(AND($E61<>0,$G61<>0),IF($F61=0,COUNTRY_INFO!N61*$G61,COUNTRY_INFO!N61*($G61-$D61)),0)),IF($G61="",COUNTRY_INFO!N61*$E61,COUNTRY_INFO!N61*$G61))) -> 0 | I61: =IF(OR(COUNTRY_INFO!O61="Unknown",COUNTRY_INFO!O61="Surveillance",COUNTRY_INFO!O61="Not required",COUNTRY_INFO!O61=0),0,IF($E61<>0, IF($F61=0,COUNTRY_INFO!O61*$E61,COUNTRY_INFO!O61*($E61-$D61)),COUNTRY_INFO!O61*$E61)) -> 0 | K61: =IF(OR(COUNTRY_INFO!P61="Unknown",COUNTRY_INFO!P61="Surveillance",COUNTRY_INFO!P61="Not required",COUNTRY_INFO!P61=0),0,IF(AND($E61<>0,$J61=""),IF($F61=0,COUNTRY_INFO!P61*$E61,COUNTRY_INFO!P61*($E61-$D61)), IF(AND($E61<>0,$J61<>0),IF($F61=0,COUNTRY_INFO!P61*$J61,COUNTRY_INFO!P61*($J61-$D61)), COUNTRY_INFO!P61*$J61))) -> 0 | L61: 0 | M61: 0 | O61: 0 | P61: 0 | R61: 0 | S61: 0 | U61: 0
A62: =IF(AND(INTRO!$E$37="Non-endemic",INTRO!$E$41="Non-endemic")," ",IF(COUNTRY_INFO!A62=0," ",COUNTRY_INFO!A62)) -> Eswatini | B62: =IF(AND(INTRO!$E$37="Non-endemic",INTRO!$E$41="Non-endemic")," ",IF(COUNTRY_INFO!B62=0," ",COUNTRY_INFO!B62)) -> SHISELWENI | C62: =IF(AND(INTRO!$E$37="Non-endemic",INTRO!$E$41="Non-endemic")," ",IF(COUNTRY_INFO!C62=0," ",COUNTRY_INFO!C62)) -> Ngudzeni | D62: =IF(AND(INTRO!$E$37="Non-endemic",INTRO!$E$41="Non-endemic"),0,COUNTRY_INFO!V62) -> 0 | E62: =IF(AND(INTRO!$E$37="Non-endemic",INTRO!$E$41="Non-endemic"),0,COUNTRY_INFO!X62) -> 0 | F62: =IF(INTRO!$E$39="Non-endemic",IF($D62=1,DEC!I62,0),IF($D62=1,IVM!G62,0)) -> 0 | H62: =IF(OR(COUNTRY_INFO!N62="Unknown",COUNTRY_INFO!N62="Surveillance",COUNTRY_INFO!N62="Not required",COUNTRY_INFO!N62=0),0,IF(INTRO!$E$39="Non-endemic",IF(AND($E62<>0,$G62=""),IF($F62=0,COUNTRY_INFO!N62*$E62,COUNTRY_INFO!N62*($E62-$D62)),IF(AND($E62<>0,$G62<>0),IF($F62=0,COUNTRY_INFO!N62*$G62,COUNTRY_INFO!N62*($G62-$D62)),0)),IF($G62="",COUNTRY_INFO!N62*$E62,COUNTRY_INFO!N62*$G62))) -> 0 | I62: =IF(OR(COUNTRY_INFO!O62="Unknown",COUNTRY_INFO!O62="Surveillance",COUNTRY_INFO!O62="Not required",COUNTRY_INFO!O62=0),0,IF($E62<>0, IF($F62=0,COUNTRY_INFO!O62*$E62,COUNTRY_INFO!O62*($E62-$D62)),COUNTRY_INFO!O62*$E62)) -> 0 | K62: =IF(OR(COUNTRY_INFO!P62="Unknown",COUNTRY_INFO!P62="Surveillance",COUNTRY_INFO!P62="Not required",COUNTRY_INFO!P62=0),0,IF(AND($E62<>0,$J62=""),IF($F62=0,COUNTRY_INFO!P62*$E62,COUNTRY_INFO!P62*($E62-$D62)), IF(AND($E62<>0,$J62<>0),IF($F62=0,COUNTRY_INFO!P62*$J62,COUNTRY_INFO!P62*($J62-$D62)), COUNTRY_INFO!P62*$J62))) -> 0 | L62: 0 | M62: 0 | O62: 0 | P62: 0 | R62: 0 | S62: 0 | U62: 0
A63: =IF(AND(INTRO!$E$37="Non-endemic",INTRO!$E$41="Non-endemic")," ",IF(COUNTRY_INFO!A63=0," ",COUNTRY_INFO!A63)) -> Eswatini | B63: =IF(AND(INTRO!$E$37="Non-endemic",INTRO!$E$41="Non-endemic")," ",IF(COUNTRY_INFO!B63=0," ",COUNTRY_INFO!B63)) -> SHISELWENI | C63: =IF(AND(INTRO!$E$37="Non-endemic",INTRO!$E$41="Non-endemic")," ",IF(COUNTRY_INFO!C63=0," ",COUNTRY_INFO!C63)) -> Nkwene | D63: =IF(AND(INTRO!$E$37="Non-endemic",INTRO!$E$41="Non-endemic"),0,COUNTRY_INFO!V63) -> 0 | E63: =IF(AND(INTRO!$E$37="Non-endemic",INTRO!$E$41="Non-endemic"),0,COUNTRY_INFO!X63) -> 0 | F63: =IF(INTRO!$E$39="Non-endemic",IF($D63=1,DEC!I63,0),IF($D63=1,IVM!G63,0)) -> 0 | H63: =IF(OR(COUNTRY_INFO!N63="Unknown",COUNTRY_INFO!N63="Surveillance",COUNTRY_INFO!N63="Not required",COUNTRY_INFO!N63=0),0,IF(INTRO!$E$39="Non-endemic",IF(AND($E63<>0,$G63=""),IF($F63=0,COUNTRY_INFO!N63*$E63,COUNTRY_INFO!N63*($E63-$D63)),IF(AND($E63<>0,$G63<>0),IF($F63=0,COUNTRY_INFO!N63*$G63,COUNTRY_INFO!N63*($G63-$D63)),0)),IF($G63="",COUNTRY_INFO!N63*$E63,COUNTRY_INFO!N63*$G63))) -> 0 | I63: =IF(OR(COUNTRY_INFO!O63="Unknown",COUNTRY_INFO!O63="Surveillance",COUNTRY_INFO!O63="Not required",COUNTRY_INFO!O63=0),0,IF($E63<>0, IF($F63=0,COUNTRY_INFO!O63*$E63,COUNTRY_INFO!O63*($E63-$D63)),COUNTRY_INFO!O63*$E63)) -> 0 | K63: =IF(OR(COUNTRY_INFO!P63="Unknown",COUNTRY_INFO!P63="Surveillance",COUNTRY_INFO!P63="Not required",COUNTRY_INFO!P63=0),0,IF(AND($E63<>0,$J63=""),IF($F63=0,COUNTRY_INFO!P63*$E63,COUNTRY_INFO!P63*($E63-$D63)), IF(AND($E63<>0,$J63<>0),IF($F63=0,COUNTRY_INFO!P63*$J63,COUNTRY_INFO!P63*($J63-$D63)), COUNTRY_INFO!P63*$J63))) -> 0 | L63: 0 | M63: 0 | O63: 0 | P63: 0 | R63: 0 | S63: 0 | U63: 0
A64: =IF(AND(INTRO!$E$37="Non-endemic",INTRO!$E$41="Non-endemic")," ",IF(COUNTRY_INFO!A64=0," ",COUNTRY_INFO!A64)) -> Eswatini | B64: =IF(AND(INTRO!$E$37="Non-endemic",INTRO!$E$41="Non-endemic")," ",IF(COUNTRY_INFO!B64=0," ",COUNTRY_INFO!B64)) -> SHISELWENI | C64: =IF(AND(INTRO!$E$37="Non-endemic",INTRO!$E$41="Non-endemic")," ",IF(COUNTRY_INFO!C64=0," ",COUNTRY_INFO!C64)) -> Sandleni | D64: =IF(AND(INTRO!$E$37="Non-endemic",INTRO!$E$41="Non-endemic"),0,COUNTRY_INFO!V64) -> 0 | E64: =IF(AND(INTRO!$E$37="Non-endemic",INTRO!$E$41="Non-endemic"),0,COUNTRY_INFO!X64) -> 0 | F64: =IF(INTRO!$E$39="Non-endemic",IF($D64=1,DEC!I64,0),IF($D64=1,IVM!G64,0)) -> 0 | H64: =IF(OR(COUNTRY_INFO!N64="Unknown",COUNTRY_INFO!N64="Surveillance",COUNTRY_INFO!N64="Not required",COUNTRY_INFO!N64=0),0,IF(INTRO!$E$39="Non-endemic",IF(AND($E64<>0,$G64=""),IF($F64=0,COUNTRY_INFO!N64*$E64,COUNTRY_INFO!N64*($E64-$D64)),IF(AND($E64<>0,$G64<>0),IF($F64=0,COUNTRY_INFO!N64*$G64,COUNTRY_INFO!N64*($G64-$D64)),0)),IF($G64="",COUNTRY_INFO!N64*$E64,COUNTRY_INFO!N64*$G64))) -> 0 | I64: =IF(OR(COUNTRY_INFO!O64="Unknown",COUNTRY_INFO!O64="Surveillance",COUNTRY_INFO!O64="Not required",COUNTRY_INFO!O64=0),0,IF($E64<>0, IF($F64=0,COUNTRY_INFO!O64*$E64,COUNTRY_INFO!O64*($E64-$D64)),COUNTRY_INFO!O64*$E64)) -> 0 | K64: =IF(OR(COUNTRY_INFO!P64="Unknown",COUNTRY_INFO!P64="Surveillance",COUNTRY_INFO!P64="Not required",COUNTRY_INFO!P64=0),0,IF(AND($E64<>0,$J64=""),IF($F64=0,COUNTRY_INFO!P64*$E64,COUNTRY_INFO!P64*($E64-$D64)), IF(AND($E64<>0,$J64<>0),IF($F64=0,COUNTRY_INFO!P64*$J64,COUNTRY_INFO!P64*($J64-$D64)), COUNTRY_INFO!P64*$J64))) -> 0 | L64: 0 | M64: 0 | O64: 0 | P64: 0 | R64: 0 | S64: 0 | U64: 0
A65: =IF(AND(INTRO!$E$37="Non-endemic",INTRO!$E$41="Non-endemic")," ",IF(COUNTRY_INFO!A65=0," ",COUNTRY_INFO!A65)) -> Eswatini | B65: =IF(AND(INTRO!$E$37="Non-endemic",INTRO!$E$41="Non-endemic")," ",IF(COUNTRY_INFO!B65=0," ",COUNTRY_INFO!B65)) -> SHISELWENI | C65: =IF(AND(INTRO!$E$37="Non-endemic",INTRO!$E$41="Non-endemic")," ",IF(COUNTRY_INFO!C65=0," ",COUNTRY_INFO!C65)) -> Shiselweni 1 | D65: =IF(AND(INTRO!$E$37="Non-endemic",INTRO!$E$41="Non-endemic"),0,COUNTRY_INFO!V65) -> 0 | E65: =IF(AND(INTRO!$E$37="Non-endemic",INTRO!$E$41="Non-endemic"),0,COUNTRY_INFO!X65) -> 0 | F65: =IF(INTRO!$E$39="Non-endemic",IF($D65=1,DEC!I65,0),IF($D65=1,IVM!G65,0)) -> 0 | H65: =IF(OR(COUNTRY_INFO!N65="Unknown",COUNTRY_INFO!N65="Surveillance",COUNTRY_INFO!N65="Not required",COUNTRY_INFO!N65=0),0,IF(INTRO!$E$39="Non-endemic",IF(AND($E65<>0,$G65=""),IF($F65=0,COUNTRY_INFO!N65*$E65,COUNTRY_INFO!N65*($E65-$D65)),IF(AND($E65<>0,$G65<>0),IF($F65=0,COUNTRY_INFO!N65*$G65,COUNTRY_INFO!N65*($G65-$D65)),0)),IF($G65="",COUNTRY_INFO!N65*$E65,COUNTRY_INFO!N65*$G65))) -> 0 | I65: =IF(OR(COUNTRY_INFO!O65="Unknown",COUNTRY_INFO!O65="Surveillance",COUNTRY_INFO!O65="Not required",COUNTRY_INFO!O65=0),0,IF($E65<>0, IF($F65=0,COUNTRY_INFO!O65*$E65,COUNTRY_INFO!O65*($E65-$D65)),COUNTRY_INFO!O65*$E65)) -> 0 | K65: =IF(OR(COUNTRY_INFO!P65="Unknown",COUNTRY_INFO!P65="Surveillance",COUNTRY_INFO!P65="Not required",COUNTRY_INFO!P65=0),0,IF(AND($E65<>0,$J65=""),IF($F65=0,COUNTRY_INFO!P65*$E65,COUNTRY_INFO!P65*($E65-$D65)), IF(AND($E65<>0,$J65<>0),IF($F65=0,COUNTRY_INFO!P65*$J65,COUNTRY_INFO!P65*($J65-$D65)), COUNTRY_INFO!P65*$J65))) -> 0 | L65: 0 | M65: 0 | O65: 0 | P65: 0 | R65: 0 | S65: 0 | U65: 0
A66: =IF(AND(INTRO!$E$37="Non-endemic",INTRO!$E$41="Non-endemic")," ",IF(COUNTRY_INFO!A66=0," ",COUNTRY_INFO!A66)) -> Eswatini | B66: =IF(AND(INTRO!$E$37="Non-endemic",INTRO!$E$41="Non-endemic")," ",IF(COUNTRY_INFO!B66=0," ",COUNTRY_INFO!B66)) -> SHISELWENI | C66: =IF(AND(INTRO!$E$37="Non-endemic",INTRO!$E$41="Non-endemic")," ",IF(COUNTRY_INFO!C66=0," ",COUNTRY_INFO!C66)) -> Sigwe | D66: =IF(AND(INTRO!$E$37="Non-endemic",INTRO!$E$41="Non-endemic"),0,COUNTRY_INFO!V66) -> 0 | E66: =IF(AND(INTRO!$E$37="Non-endemic",INTRO!$E$41="Non-endemic"),0,COUNTRY_INFO!X66) -> 0 | F66: =IF(INTRO!$E$39="Non-endemic",IF($D66=1,DEC!I66,0),IF($D66=1,IVM!G66,0)) -> 0 | H66: =IF(OR(COUNTRY_INFO!N66="Unknown",COUNTRY_INFO!N66="Surveillance",COUNTRY_INFO!N66="Not required",COUNTRY_INFO!N66=0),0,IF(INTRO!$E$39="Non-endemic",IF(AND($E66<>0,$G66=""),IF($F66=0,COUNTRY_INFO!N66*$E66,COUNTRY_INFO!N66*($E66-$D66)),IF(AND($E66<>0,$G66<>0),IF($F66=0,COUNTRY_INFO!N66*$G66,COUNTRY_INFO!N66*($G66-$D66)),0)),IF($G66="",COUNTRY_INFO!N66*$E66,COUNTRY_INFO!N66*$G66))) -> 0 | I66: =IF(OR(COUNTRY_INFO!O66="Unknown",COUNTRY_INFO!O66="Surveillance",COUNTRY_INFO!O66="Not required",COUNTRY_INFO!O66=0),0,IF($E66<>0, IF($F66=0,COUNTRY_INFO!O66*$E66,COUNTRY_INFO!O66*($E66-$D66)),COUNTRY_INFO!O66*$E66)) -> 0 | K66: =IF(OR(COUNTRY_INFO!P66="Unknown",COUNTRY_INFO!P66="Surveillance",COUNTRY_INFO!P66="Not required",COUNTRY_INFO!P66=0),0,IF(AND($E66<>0,$J66=""),IF($F66=0,COUNTRY_INFO!P66*$E66,COUNTRY_INFO!P66*($E66-$D66)), IF(AND($E66<>0,$J66<>0),IF($F66=0,COUNTRY_INFO!P66*$J66,COUNTRY_INFO!P66*($J66-$D66)), COUNTRY_INFO!P66*$J66))) -> 0 | L66: 0 | M66: 0 | O66: 0 | P66: 0 | R66: 0 | S66: 0 | U66: 0
A67: =IF(AND(INTRO!$E$37="Non-endemic",INTRO!$E$41="Non-endemic")," ",IF(COUNTRY_INFO!A67=0," ",COUNTRY_INFO!A67)) -> Eswatini | B67: =IF(AND(INTRO!$E$37="Non-endemic",INTRO!$E$41="Non-endemic")," ",IF(COUNTRY_INFO!B67=0," ",COUNTRY_INFO!B67)) -> SHISELWENI | C67: =IF(AND(INTRO!$E$37="Non-endemic",INTRO!$E$41="Non-endemic")," ",IF(COUNTRY_INFO!C67=0," ",COUNTRY_INFO!C67)) -> Somntongo | D67: =IF(AND(INTRO!$E$37="Non-endemic",INTRO!$E$41="Non-endemic"),0,COUNTRY_INFO!V67) -> 0 | E67: =IF(AND(INTRO!$E$37="Non-endemic",INTRO!$E$41="Non-endemic"),0,COUNTRY_INFO!X67) -> 0 | F67: =IF(INTRO!$E$39="Non-endemic",IF($D67=1,DEC!I67,0),IF($D67=1,IVM!G67,0)) -> 0 | H67: =IF(OR(COUNTRY_INFO!N67="Unknown",COUNTRY_INFO!N67="Surveillance",COUNTRY_INFO!N67="Not required",COUNTRY_INFO!N67=0),0,IF(INTRO!$E$39="Non-endemic",IF(AND($E67<>0,$G67=""),IF($F67=0,COUNTRY_INFO!N67*$E67,COUNTRY_INFO!N67*($E67-$D67)),IF(AND($E67<>0,$G67<>0),IF($F67=0,COUNTRY_INFO!N67*$G67,COUNTRY_INFO!N67*($G67-$D67)),0)),IF($G67="",COUNTRY_INFO!N67*$E67,COUNTRY_INFO!N67*$G67))) -> 0 | I67: =IF(OR(COUNTRY_INFO!O67="Unknown",COUNTRY_INFO!O67="Surveillance",COUNTRY_INFO!O67="Not required",COUNTRY_INFO!O67=0),0,IF($E67<>0, IF($F67=0,COUNTRY_INFO!O67*$E67,COUNTRY_INFO!O67*($E67-$D67)),COUNTRY_INFO!O67*$E67)) -> 0 | K67: =IF(OR(COUNTRY_INFO!P67="Unknown",COUNTRY_INFO!P67="Surveillance",COUNTRY_INFO!P67="Not required",COUNTRY_INFO!P67=0),0,IF(AND($E67<>0,$J67=""),IF($F67=0,COUNTRY_INFO!P67*$E67,COUNTRY_INFO!P67*($E67-$D67)), IF(AND($E67<>0,$J67<>0),IF($F67=0,COUNTRY_INFO!P67*$J67,COUNTRY_INFO!P67*($J67-$D67)), COUNTRY_INFO!P67*$J67))) -> 0 | L67: 0 | M67: 0 | O67: 0 | P67: 0 | R67: 0 | S67: 0 | U67: 0
A68: =IF(AND(INTRO!$E$37="Non-endemic",INTRO!$E$41="Non-endemic")," ",IF(COUNTRY_INFO!A68=0," ",COUNTRY_INFO!A68)) -> Eswatini | B68: =IF(AND(INTRO!$E$37="Non-endemic",INTRO!$E$41="Non-endemic")," ",IF(COUNTRY_INFO!B68=0," ",COUNTRY_INFO!B68)) -> SHISELWENI | C68: =IF(AND(INTRO!$E$37="Non-endemic",INTRO!$E$41="Non-endemic")," ",IF(COUNTRY_INFO!C68=0," ",COUNTRY_INFO!C68)) -> Zombodze Emuva | D68: =IF(AND(INTRO!$E$37="Non-endemic",INTRO!$E$41="Non-endemic"),0,COUNTRY_INFO!V68) -> 0 | E68: =IF(AND(INTRO!$E$37="Non-endemic",INTRO!$E$41="Non-endemic"),0,COUNTRY_INFO!X68) -> 0 | F68: =IF(INTRO!$E$39="Non-endemic",IF($D68=1,DEC!I68,0),IF($D68=1,IVM!G68,0)) -> 0 | H68: =IF(OR(COUNTRY_INFO!N68="Unknown",COUNTRY_INFO!N68="Surveillance",COUNTRY_INFO!N68="Not required",COUNTRY_INFO!N68=0),0,IF(INTRO!$E$39="Non-endemic",IF(AND($E68<>0,$G68=""),IF($F68=0,COUNTRY_INFO!N68*$E68,COUNTRY_INFO!N68*($E68-$D68)),IF(AND($E68<>0,$G68<>0),IF($F68=0,COUNTRY_INFO!N68*$G68,COUNTRY_INFO!N68*($G68-$D68)),0)),IF($G68="",COUNTRY_INFO!N68*$E68,COUNTRY_INFO!N68*$G68))) -> 0 | I68: =IF(OR(COUNTRY_INFO!O68="Unknown",COUNTRY_INFO!O68="Surveillance",COUNTRY_INFO!O68="Not required",COUNTRY_INFO!O68=0),0,IF($E68<>0, IF($F68=0,COUNTRY_INFO!O68*$E68,COUNTRY_INFO!O68*($E68-$D68)),COUNTRY_INFO!O68*$E68)) -> 0 | K68: =IF(OR(COUNTRY_INFO!P68="Unknown",COUNTRY_INFO!P68="Surveillance",COUNTRY_INFO!P68="Not required",COUNTRY_INFO!P68=0),0,IF(AND($E68<>0,$J68=""),IF($F68=0,COUNTRY_INFO!P68*$E68,COUNTRY_INFO!P68*($E68-$D68)), IF(AND($E68<>0,$J68<>0),IF($F68=0,COUNTRY_INFO!P68*$J68,COUNTRY_INFO!P68*($J68-$D68)), COUNTRY_INFO!P68*$J68))) -> 0 | L68: 0 | M68: 0 | O68: 0 | P68: 0 | R68: 0 | S68: 0 | U68: 0

Sheet PZQ
A1: Praziquantel (PZQ)
A2: Administrative structure, eligible population by age group, treatment plan and information about tablets
A4: TOTAL | E4: =SUBTOTAL(9,E$10:E$1010) -> 64071 | F4: 211782 | G4: 591042 | H4: 866895 | J4: 0 | M4: =SUBTOTAL(9,M$10:M$1010) -> 0 | N4: 423564 | O4: 1773126 | P4: 2196690 | Q4: 0 | R4: 2196690
A6: Country administrative structure | D6: Treatment plan SCH | E6: Target population for SCH | I6: Hot spots | K6: Previous year MDA | M6: Praziquantel (PZQ)
A7: Country | B7: Province/State | C7: District | E7: PreSAC | F7: SAC | G7: Adults | H7: Total | I7: Planned | J7: Population | K7: Rounds | L7: Age groups | M7: PreSAC | N7: SAC | O7: Adults | P7: Total required | Q7: Remaining in stock | R7: Tablets to be procured
A10: =IF(INTRO!$E$43="Non-endemic"," ", IF(COUNTRY_INFO!A10=0," ",COUNTRY_INFO!A10)) -> Eswatini | B10: =IF(INTRO!$E$43="Non-endemic"," ", IF(COUNTRY_INFO!B10=0," ",COUNTRY_INFO!B10)) -> HHOHHO | C10: =IF(INTRO!$E$43="Non-endemic"," ", IF(COUNTRY_INFO!C10=0," ",COUNTRY_INFO!C10)) -> Hhukwini | D10: =IF(INTRO!$E$43="Non-endemic", "Not required", COUNTRY_INFO!Y10) -> 0 | E10: =IF(OR(COUNTRY_INFO!R10="Unknown",COUNTRY_INFO!R10="Surveillance",COUNTRY_INFO!R10="Not required",COUNTRY_INFO!R10=0),0,IF($D10<>0, COUNTRY_INFO!R10,0)) -> 0 | F10: =IF(OR(COUNTRY_INFO!S10="Unknown",COUNTRY_INFO!S10="Surveillance",COUNTRY_INFO!S10="Not required",COUNTRY_INFO!S10=0),0,IF($D10<>0, COUNTRY_INFO!S10,0)) -> 0 | G10: =IF(OR(COUNTRY_INFO!T10="Unknown",COUNTRY_INFO!T10="Surveillance",COUNTRY_INFO!T10="Not required",COUNTRY_INFO!T10=0),0,IF($D10<>0, COUNTRY_INFO!T10,0)) -> 0 | H10: =SUM(E10:G10) -> 0 | N10: =IF($I10<>"Yes",$F10*2,($F10+ROUND(J10*$F10/SUM(COUNTRY_INFO!$E10:$G10),0))*2) -> 0 | O10: =IF($I10<>"Yes",$G10*3,($G10+ROUND(J10*$G10/SUM(COUNTRY_INFO!$E10:$G10),0))*3) -> 0 | P10: =SUM(M10:O10) -> 0 | R10: =IF($P10>$Q10,P10-Q10,0) -> 0
A11: =IF(INTRO!$E$43="Non-endemic"," ", IF(COUNTRY_INFO!A11=0," ",COUNTRY_INFO!A11)) -> Eswatini | B11: =IF(INTRO!$E$43="Non-endemic"," ", IF(COUNTRY_INFO!B11=0," ",COUNTRY_INFO!B11)) -> HHOHHO | C11: =IF(INTRO!$E$43="Non-endemic"," ", IF(COUNTRY_INFO!C11=0," ",COUNTRY_INFO!C11)) -> Lobamba | D11: =IF(INTRO!$E$43="Non-endemic", "Not required", COUNTRY_INFO!Y11) -> 0 | E11: =IF(OR(COUNTRY_INFO!R11="Unknown",COUNTRY_INFO!R11="Surveillance",COUNTRY_INFO!R11="Not required",COUNTRY_INFO!R11=0),0,IF($D11<>0, COUNTRY_INFO!R11,0)) -> 0 | F11: =IF(OR(COUNTRY_INFO!S11="Unknown",COUNTRY_INFO!S11="Surveillance",COUNTRY_INFO!S11="Not required",COUNTRY_INFO!S11=0),0,IF($D11<>0, COUNTRY_INFO!S11,0)) -> 0 | G11: =IF(OR(COUNTRY_INFO!T11="Unknown",COUNTRY_INFO!T11="Surveillance",COUNTRY_INFO!T11="Not required",COUNTRY_INFO!T11=0),0,IF($D11<>0, COUNTRY_INFO!T11,0)) -> 0 | H11: =SUM(E11:G11) -> 0 | N11: =IF($I11<>"Yes",$F11*2,($F11+ROUND(J11*$F11/SUM(COUNTRY_INFO!$E11:$G11),0))*2) -> 0 | O11: =IF($I11<>"Yes",$G11*3,($G11+ROUND(J11*$G11/SUM(COUNTRY_INFO!$E11:$G11),0))*3) -> 0 | P11: =SUM(M11:O11) -> 0 | R11: =IF($P11>$Q11,P11-Q11,0) -> 0
A12: =IF(INTRO!$E$43="Non-endemic"," ", IF(COUNTRY_INFO!A12=0," ",COUNTRY_INFO!A12)) -> Eswatini | B12: =IF(INTRO!$E$43="Non-endemic"," ", IF(COUNTRY_INFO!B12=0," ",COUNTRY_INFO!B12)) -> HHOHHO | C12: =IF(INTRO!$E$43="Non-endemic"," ", IF(COUNTRY_INFO!C12=0," ",COUNTRY_INFO!C12)) -> Madlangempisi | D12: =IF(INTRO!$E$43="Non-endemic", "Not required", COUNTRY_INFO!Y12) -> 1 | E12: =IF(OR(COUNTRY_INFO!R12="Unknown",COUNTRY_INFO!R12="Surveillance",COUNTRY_INFO!R12="Not required",COUNTRY_INFO!R12=0),0,IF($D12<>0, COUNTRY_INFO!R12,0)) -> 1757 | F12: =IF(OR(COUNTRY_INFO!S12="Unknown",COUNTRY_INFO!S12="Surveillance",COUNTRY_INFO!S12="Not required",COUNTRY_INFO!S12=0),0,IF($D12<>0, COUNTRY_INFO!S12,0)) -> 5809 | G12: =IF(OR(COUNTRY_INFO!T12="Unknown",COUNTRY_INFO!T12="Surveillance",COUNTRY_INFO!T12="Not required",COUNTRY_INFO!T12=0),0,IF($D12<>0, COUNTRY_INFO!T12,0)) -> 16211 | H12: 23777 | N12: =IF($I12<>"Yes",$F12*2,($F12+ROUND(J12*$F12/SUM(COUNTRY_INFO!$E12:$G12),0))*2) -> 11618 | O12: =IF($I12<>"Yes",$G12*3,($G12+ROUND(J12*$G12/SUM(COUNTRY_INFO!$E12:$G12),0))*3) -> 48633 | P12: 60251 | R12: 60251
A13: =IF(INTRO!$E$43="Non-endemic"," ", IF(COUNTRY_INFO!A13=0," ",COUNTRY_INFO!A13)) -> Eswatini | B13: =IF(INTRO!$E$43="Non-endemic"," ", IF(COUNTRY_INFO!B13=0," ",COUNTRY_INFO!B13)) -> HHOHHO | C13: =IF(INTRO!$E$43="Non-endemic"," ", IF(COUNTRY_INFO!C13=0," ",COUNTRY_INFO!C13)) -> Maphalaleni | D13: =IF(INTRO!$E$43="Non-endemic", "Not required", COUNTRY_INFO!Y13) -> 1 | E13: =IF(OR(COUNTRY_INFO!R13="Unknown",COUNTRY_INFO!R13="Surveillance",COUNTRY_INFO!R13="Not required",COUNTRY_INFO!R13=0),0,IF($D13<>0, COUNTRY_INFO!R13,0)) -> 1449 | F13: =IF(OR(COUNTRY_INFO!S13="Unknown",COUNTRY_INFO!S13="Surveillance",COUNTRY_INFO!S13="Not required",COUNTRY_INFO!S13=0),0,IF($D13<>0, COUNTRY_INFO!S13,0)) -> 4791 | G13: =IF(OR(COUNTRY_INFO!T13="Unknown",COUNTRY_INFO!T13="Surveillance",COUNTRY_INFO!T13="Not required",COUNTRY_INFO!T13=0),0,IF($D13<>0, COUNTRY_INFO!T13,0)) -> 13371 | H13: 19611 | I13: Yes | N13: =IF($I13<>"Yes",$F13*2,($F13+ROUND(J13*$F13/SUM(COUNTRY_INFO!$E13:$G13),0))*2) -> 9582 | O13: =IF($I13<>"Yes",$G13*3,($G13+ROUND(J13*$G13/SUM(COUNTRY_INFO!$E13:$G13),0))*3) -> 40113 | P13: 49695 | R13: 49695
A14: =IF(INTRO!$E$43="Non-endemic"," ", IF(COUNTRY_INFO!A14=0," ",COUNTRY_INFO!A14)) -> Eswatini | B14: =IF(INTRO!$E$43="Non-endemic"," ", IF(COUNTRY_INFO!B14=0," ",COUNTRY_INFO!B14)) -> HHOHHO | C14: =IF(INTRO!$E$43="Non-endemic"," ", IF(COUNTRY_INFO!C14=0," ",COUNTRY_INFO!C14)) -> Mayiwane | D14: =IF(INTRO!$E$43="Non-endemic", "Not required", COUNTRY_INFO!Y14) -> 1 | E14: =IF(OR(COUNTRY_INFO!R14="Unknown",COUNTRY_INFO!R14="Surveillance",COUNTRY_INFO!R14="Not required",COUNTRY_INFO!R14=0),0,IF($D14<>0, COUNTRY_INFO!R14,0)) -> 1272 | F14: =IF(OR(COUNTRY_INFO!S14="Unknown",COUNTRY_INFO!S14="Surveillance",COUNTRY_INFO!S14="Not required",COUNTRY_INFO!S14=0),0,IF($D14<>0, COUNTRY_INFO!S14,0)) -> 4206 | G14: =IF(OR(COUNTRY_INFO!T14="Unknown",COUNTRY_INFO!T14="Surveillance",COUNTRY_INFO!T14="Not required",COUNTRY_INFO!T14=0),0,IF($D14<>0, COUNTRY_INFO!T14,0)) -> 11738 | H14: 17216 | N14: =IF($I14<>"Yes",$F14*2,($F14+ROUND(J14*$F14/SUM(COUNTRY_INFO!$E14:$G14),0))*2) -> 8412 | O14: =IF($I14<>"Yes",$G14*3,($G14+ROUND(J14*$G14/SUM(COUNTRY_INFO!$E14:$G14),0))*3) -> 35214 | P14: 43626 | R14: 43626
A15: =IF(INTRO!$E$43="Non-endemic"," ", IF(COUNTRY_INFO!A15=0," ",COUNTRY_INFO!A15)) -> Eswatini | B15: =IF(INTRO!$E$43="Non-endemic"," ", IF(COUNTRY_INFO!B15=0," ",COUNTRY_INFO!B15)) -> HHOHHO | C15: =IF(INTRO!$E$43="Non-endemic"," ", IF(COUNTRY_INFO!C15=0," ",COUNTRY_INFO!C15)) -> Mbabane East | D15: =IF(INTRO!$E$43="Non-endemic", "Not required", COUNTRY_INFO!Y15) -> 1 | E15: =IF(OR(COUNTRY_INFO!R15="Unknown",COUNTRY_INFO!R15="Surveillance",COUNTRY_INFO!R15="Not required",COUNTRY_INFO!R15=0),0,IF($D15<>0, COUNTRY_INFO!R15,0)) -> 2683 | F15: =IF(OR(COUNTRY_INFO!S15="Unknown",COUNTRY_INFO!S15="Surveillance",COUNTRY_INFO!S15="Not required",COUNTRY_INFO!S15=0),0,IF($D15<>0, COUNTRY_INFO!S15,0)) -> 8868 | G15: =IF(OR(COUNTRY_INFO!T15="Unknown",COUNTRY_INFO!T15="Surveillance",COUNTRY_INFO!T15="Not required",COUNTRY_INFO!T15=0),0,IF($D15<>0, COUNTRY_INFO!T15,0)) -> 24750 | H15: 36301 | N15: =IF($I15<>"Yes",$F15*2,($F15+ROUND(J15*$F15/SUM(COUNTRY_INFO!$E15:$G15),0))*2) -> 17736 | O15: =IF($I15<>"Yes",$G15*3,($G15+ROUND(J15*$G15/SUM(COUNTRY_INFO!$E15:$G15),0))*3) -> 74250 | P15: 91986 | R15: 91986
A16: =IF(INTRO!$E$43="Non-endemic"," ", IF(COUNTRY_INFO!A16=0," ",COUNTRY_INFO!A16)) -> Eswatini | B16: =IF(INTRO!$E$43="Non-endemic"," ", IF(COUNTRY_INFO!B16=0," ",COUNTRY_INFO!B16)) -> HHOHHO | C16: =IF(INTRO!$E$43="Non-endemic"," ", IF(COUNTRY_INFO!C16=0," ",COUNTRY_INFO!C16)) -> Mbabane West | D16: =IF(INTRO!$E$43="Non-endemic", "Not required", COUNTRY_INFO!Y16) -> 0 | E16: =IF(OR(COUNTRY_INFO!R16="Unknown",COUNTRY_INFO!R16="Surveillance",COUNTRY_INFO!R16="Not required",COUNTRY_INFO!R16=0),0,IF($D16<>0, COUNTRY_INFO!R16,0)) -> 0 | F16: =IF(OR(COUNTRY_INFO!S16="Unknown",COUNTRY_INFO!S16="Surveillance",COUNTRY_INFO!S16="Not required",COUNTRY_INFO!S16=0),0,IF($D16<>0, COUNTRY_INFO!S16,0)) -> 0 | G16: =IF(OR(COUNTRY_INFO!T16="Unknown",COUNTRY_INFO!T16="Surveillance",COUNTRY_INFO!T16="Not required",COUNTRY_INFO!T16=0),0,IF($D16<>0, COUNTRY_INFO!T16,0)) -> 0 | H16: 0 | N16: =IF($I16<>"Yes",$F16*2,($F16+ROUND(J16*$F16/SUM(COUNTRY_INFO!$E16:$G16),0))*2) -> 0 | O16: =IF($I16<>"Yes",$G16*3,($G16+ROUND(J16*$G16/SUM(COUNTRY_INFO!$E16:$G16),0))*3) -> 0 | P16: 0 | R16: 0
A17: =IF(INTRO!$E$43="Non-endemic"," ", IF(COUNTRY_INFO!A17=0," ",COUNTRY_INFO!A17)) -> Eswatini | B17: =IF(INTRO!$E$43="Non-endemic"," ", IF(COUNTRY_INFO!B17=0," ",COUNTRY_INFO!B17)) -> HHOHHO | C17: =IF(INTRO!$E$43="Non-endemic"," ", IF(COUNTRY_INFO!C17=0," ",COUNTRY_INFO!C17)) -> Mhlangatane | D17: =IF(INTRO!$E$43="Non-endemic", "Not required", COUNTRY_INFO!Y17) -> 1 | E17: =IF(OR(COUNTRY_INFO!R17="Unknown",COUNTRY_INFO!R17="Surveillance",COUNTRY_INFO!R17="Not required",COUNTRY_INFO!R17=0),0,IF($D17<>0, COUNTRY_INFO!R17,0)) -> 1895 | F17: =IF(OR(COUNTRY_INFO!S17="Unknown",COUNTRY_INFO!S17="Surveillance",COUNTRY_INFO!S17="Not required",COUNTRY_INFO!S17=0),0,IF($D17<>0, COUNTRY_INFO!S17,0)) -> 6263 | G17: =IF(OR(COUNTRY_INFO!T17="Unknown",COUNTRY_INFO!T17="Surveillance",COUNTRY_INFO!T17="Not required",COUNTRY_INFO!T17=0),0,IF($D17<>0, COUNTRY_INFO!T17,0)) -> 17479 | H17: 25637 | N17: =IF($I17<>"Yes",$F17*2,($F17+ROUND(J17*$F17/SUM(COUNTRY_INFO!$E17:$G17),0))*2) -> 12526 | O17: =IF($I17<>"Yes",$G17*3,($G17+ROUND(J17*$G17/SUM(COUNTRY_INFO!$E17:$G17),0))*3) -> 52437 | P17: 64963 | R17: 64963
A18: =IF(INTRO!$E$43="Non-endemic"," ", IF(COUNTRY_INFO!A18=0," ",COUNTRY_INFO!A18)) -> Eswatini | B18: =IF(INTRO!$E$43="Non-endemic"," ", IF(COUNTRY_INFO!B18=0," ",COUNTRY_INFO!B18)) -> HHOHHO | C18: =IF(INTRO!$E$43="Non-endemic"," ", IF(COUNTRY_INFO!C18=0," ",COUNTRY_INFO!C18)) -> Motshane | D18: =IF(INTRO!$E$43="Non-endemic", "Not required", COUNTRY_INFO!Y18) -> 1 | E18: =IF(OR(COUNTRY_INFO!R18="Unknown",COUNTRY_INFO!R18="Surveillance",COUNTRY_INFO!R18="Not required",COUNTRY_INFO!R18=0),0,IF($D18<>0, COUNTRY_INFO!R18,0)) -> 2067 | F18: =IF(OR(COUNTRY_INFO!S18="Unknown",COUNTRY_INFO!S18="Surveillance",COUNTRY_INFO!S18="Not required",COUNTRY_INFO!S18=0),0,IF($D18<>0, COUNTRY_INFO!S18,0)) -> 6832 | G18: =IF(OR(COUNTRY_INFO!T18="Unknown",COUNTRY_INFO!T18="Surveillance",COUNTRY_INFO!T18="Not required",COUNTRY_INFO!T18=0),0,IF($D18<>0, COUNTRY_INFO!T18,0)) -> 19068 | H18: 27967 | N18: =IF($I18<>"Yes",$F18*2,($F18+ROUND(J18*$F18/SUM(COUNTRY_INFO!$E18:$G18),0))*2) -> 13664 | O18: =IF($I18<>"Yes",$G18*3,($G18+ROUND(J18*$G18/SUM(COUNTRY_INFO!$E18:$G18),0))*3) -> 57204 | P18: 70868 | R18: 70868
A19: =IF(INTRO!$E$43="Non-endemic"," ", IF(COUNTRY_INFO!A19=0," ",COUNTRY_INFO!A19)) -> Eswatini | B19: =IF(INTRO!$E$43="Non-endemic"," ", IF(COUNTRY_INFO!B19=0," ",COUNTRY_INFO!B19)) -> HHOHHO | C19: =IF(INTRO!$E$43="Non-endemic"," ", IF(COUNTRY_INFO!C19=0," ",COUNTRY_INFO!C19)) -> Ndzingeni | D19: =IF(INTRO!$E$43="Non-endemic", "Not required", COUNTRY_INFO!Y19) -> 0 | E19: =IF(OR(COUNTRY_INFO!R19="Unknown",COUNTRY_INFO!R19="Surveillance",COUNTRY_INFO!R19="Not required",COUNTRY_INFO!R19=0),0,IF($D19<>0, COUNTRY_INFO!R19,0)) -> 0 | F19: =IF(OR(COUNTRY_INFO!S19="Unknown",COUNTRY_INFO!S19="Surveillance",COUNTRY_INFO!S19="Not required",COUNTRY_INFO!S19=0),0,IF($D19<>0, COUNTRY_INFO!S19,0)) -> 0 | G19: =IF(OR(COUNTRY_INFO!T19="Unknown",COUNTRY_INFO!T19="Surveillance",COUNTRY_INFO!T19="Not required",COUNTRY_INFO!T19=0),0,IF($D19<>0, COUNTRY_INFO!T19,0)) -> 0 | H19: 0 | N19: =IF($I19<>"Yes",$F19*2,($F19+ROUND(J19*$F19/SUM(COUNTRY_INFO!$E19:$G19),0))*2) -> 0 | O19: =IF($I19<>"Yes",$G19*3,($G19+ROUND(J19*$G19/SUM(COUNTRY_INFO!$E19:$G19),0))*3) -> 0 | P19: 0 | R19: 0
A20: =IF(INTRO!$E$43="Non-endemic"," ", IF(COUNTRY_INFO!A20=0," ",COUNTRY_INFO!A20)) -> Eswatini | B20: =IF(INTRO!$E$43="Non-endemic"," ", IF(COUNTRY_INFO!B20=0," ",COUNTRY_INFO!B20)) -> HHOHHO | C20: =IF(INTRO!$E$43="Non-endemic"," ", IF(COUNTRY_INFO!C20=0," ",COUNTRY_INFO!C20)) -> Nkhaba | D20: =IF(INTRO!$E$43="Non-endemic", "Not required", COUNTRY_INFO!Y20) -> 0 | E20: =IF(OR(COUNTRY_INFO!R20="Unknown",COUNTRY_INFO!R20="Surveillance",COUNTRY_INFO!R20="Not required",COUNTRY_INFO!R20=0),0,IF($D20<>0, COUNTRY_INFO!R20,0)) -> 0 | F20: =IF(OR(COUNTRY_INFO!S20="Unknown",COUNTRY_INFO!S20="Surveillance",COUNTRY_INFO!S20="Not required",COUNTRY_INFO!S20=0),0,IF($D20<>0, COUNTRY_INFO!S20,0)) -> 0 | G20: =IF(OR(COUNTRY_INFO!T20="Unknown",COUNTRY_INFO!T20="Surveillance",COUNTRY_INFO!T20="Not required",COUNTRY_INFO!T20=0),0,IF($D20<>0, COUNTRY_INFO!T20,0)) -> 0 | H20: 0 | N20: =IF($I20<>"Yes",$F20*2,($F20+ROUND(J20*$F20/SUM(COUNTRY_INFO!$E20:$G20),0))*2) -> 0 | O20: =IF($I20<>"Yes",$G20*3,($G20+ROUND(J20*$G20/SUM(COUNTRY_INFO!$E20:$G20),0))*3) -> 0 | P20: 0 | R20: 0
A21: =IF(INTRO!$E$43="Non-endemic"," ", IF(COUNTRY_INFO!A21=0," ",COUNTRY_INFO!A21)) -> Eswatini | B21: =IF(INTRO!$E$43="Non-endemic"," ", IF(COUNTRY_INFO!B21=0," ",COUNTRY_INFO!B21)) -> HHOHHO | C21: =IF(INTRO!$E$43="Non-endemic"," ", IF(COUNTRY_INFO!C21=0," ",COUNTRY_INFO!C21)) -> Ntfonjeni | D21: =IF(INTRO!$E$43="Non-endemic", "Not required", COUNTRY_INFO!Y21) -> 0 | E21: =IF(OR(COUNTRY_INFO!R21="Unknown",COUNTRY_INFO!R21="Surveillance",COUNTRY_INFO!R21="Not required",COUNTRY_INFO!R21=0),0,IF($D21<>0, COUNTRY_INFO!R21,0)) -> 0 | F21: =IF(OR(COUNTRY_INFO!S21="Unknown",COUNTRY_INFO!S21="Surveillance",COUNTRY_INFO!S21="Not required",COUNTRY_INFO!S21=0),0,IF($D21<>0, COUNTRY_INFO!S21,0)) -> 0 | G21: =IF(OR(COUNTRY_INFO!T21="Unknown",COUNTRY_INFO!T21="Surveillance",COUNTRY_INFO!T21="Not required",COUNTRY_INFO!T21=0),0,IF($D21<>0, COUNTRY_INFO!T21,0)) -> 0 | H21: 0 | N21: =IF($I21<>"Yes",$F21*2,($F21+ROUND(J21*$F21/SUM(COUNTRY_INFO!$E21:$G21),0))*2) -> 0 | O21: =IF($I21<>"Yes",$G21*3,($G21+ROUND(J21*$G21/SUM(COUNTRY_INFO!$E21:$G21),0))*3) -> 0 | P21: 0 | R21: 0
A22: =IF(INTRO!$E$43="Non-endemic"," ", IF(COUNTRY_INFO!A22=0," ",COUNTRY_INFO!A22)) -> Eswatini | B22: =IF(INTRO!$E$43="Non-endemic"," ", IF(COUNTRY_INFO!B22=0," ",COUNTRY_INFO!B22)) -> HHOHHO | C22: =IF(INTRO!$E$43="Non-endemic"," ", IF(COUNTRY_INFO!C22=0," ",COUNTRY_INFO!C22)) -> Pigg's Peak | D22: =IF(INTRO!$E$43="Non-endemic", "Not required", COUNTRY_INFO!Y22) -> 1 | E22: =IF(OR(COUNTRY_INFO!R22="Unknown",COUNTRY_INFO!R22="Surveillance",COUNTRY_INFO!R22="Not required",COUNTRY_INFO!R22=0),0,IF($D22<>0, COUNTRY_INFO!R22,0)) -> 1467 | F22: =IF(OR(COUNTRY_INFO!S22="Unknown",COUNTRY_INFO!S22="Surveillance",COUNTRY_INFO!S22="Not required",COUNTRY_INFO!S22=0),0,IF($D22<>0, COUNTRY_INFO!S22,0)) -> 4850 | G22: =IF(OR(COUNTRY_INFO!T22="Unknown",COUNTRY_INFO!T22="Surveillance",COUNTRY_INFO!T22="Not required",COUNTRY_INFO!T22=0),0,IF($D22<>0, COUNTRY_INFO!T22,0)) -> 13535 | H22: 19852 | N22: =IF($I22<>"Yes",$F22*2,($F22+ROUND(J22*$F22/SUM(COUNTRY_INFO!$E22:$G22),0))*2) -> 9700 | O22: =IF($I22<>"Yes",$G22*3,($G22+ROUND(J22*$G22/SUM(COUNTRY_INFO!$E22:$G22),0))*3) -> 40605 | P22: 50305 | R22: 50305
A23: =IF(INTRO!$E$43="Non-endemic"," ", IF(COUNTRY_INFO!A23=0," ",COUNTRY_INFO!A23)) -> Eswatini | B23: =IF(INTRO!$E$43="Non-endemic"," ", IF(COUNTRY_INFO!B23=0," ",COUNTRY_INFO!B23)) -> HHOHHO | C23: =IF(INTRO!$E$43="Non-endemic"," ", IF(COUNTRY_INFO!C23=0," ",COUNTRY_INFO!C23)) -> Siphocosini | D23: =IF(INTRO!$E$43="Non-endemic", "Not required", COUNTRY_INFO!Y23) -> 1 | E23: =IF(OR(COUNTRY_INFO!R23="Unknown",COUNTRY_INFO!R23="Surveillance",COUNTRY_INFO!R23="Not required",COUNTRY_INFO!R23=0),0,IF($D23<>0, COUNTRY_INFO!R23,0)) -> 1953 | F23: =IF(OR(COUNTRY_INFO!S23="Unknown",COUNTRY_INFO!S23="Surveillance",COUNTRY_INFO!S23="Not required",COUNTRY_INFO!S23=0),0,IF($D23<>0, COUNTRY_INFO!S23,0)) -> 6456 | G23: =IF(OR(COUNTRY_INFO!T23="Unknown",COUNTRY_INFO!T23="Surveillance",COUNTRY_INFO!T23="Not required",COUNTRY_INFO!T23=0),0,IF($D23<>0, COUNTRY_INFO!T23,0)) -> 18017 | H23: 26426 | N23: =IF($I23<>"Yes",$F23*2,($F23+ROUND(J23*$F23/SUM(COUNTRY_INFO!$E23:$G23),0))*2) -> 12912 | O23: =IF($I23<>"Yes",$G23*3,($G23+ROUND(J23*$G23/SUM(COUNTRY_INFO!$E23:$G23),0))*3) -> 54051 | P23: 66963 | R23: 66963
A24: =IF(INTRO!$E$43="Non-endemic"," ", IF(COUNTRY_INFO!A24=0," ",COUNTRY_INFO!A24)) -> Eswatini | B24: =IF(INTRO!$E$43="Non-endemic"," ", IF(COUNTRY_INFO!B24=0," ",COUNTRY_INFO!B24)) -> HHOHHO | C24: =IF(INTRO!$E$43="Non-endemic"," ", IF(COUNTRY_INFO!C24=0," ",COUNTRY_INFO!C24)) -> Timphisini | D24: =IF(INTRO!$E$43="Non-endemic", "Not required", COUNTRY_INFO!Y24) -> 1 | E24: =IF(OR(COUNTRY_INFO!R24="Unknown",COUNTRY_INFO!R24="Surveillance",COUNTRY_INFO!R24="Not required",COUNTRY_INFO!R24=0),0,IF($D24<>0, COUNTRY_INFO!R24,0)) -> 947 | F24: =IF(OR(COUNTRY_INFO!S24="Unknown",COUNTRY_INFO!S24="Surveillance",COUNTRY_INFO!S24="Not required",COUNTRY_INFO!S24=0),0,IF($D24<>0, COUNTRY_INFO!S24,0)) -> 3130 | G24: =IF(OR(COUNTRY_INFO!T24="Unknown",COUNTRY_INFO!T24="Surveillance",COUNTRY_INFO!T24="Not required",COUNTRY_INFO!T24=0),0,IF($D24<>0, COUNTRY_INFO!T24,0)) -> 8737 | H24: 12814 | N24: =IF($I24<>"Yes",$F24*2,($F24+ROUND(J24*$F24/SUM(COUNTRY_INFO!$E24:$G24),0))*2) -> 6260 | O24: =IF($I24<>"Yes",$G24*3,($G24+ROUND(J24*$G24/SUM(COUNTRY_INFO!$E24:$G24),0))*3) -> 26211 | P24: 32471 | R24: 32471
A25: =IF(INTRO!$E$43="Non-endemic"," ", IF(COUNTRY_INFO!A25=0," ",COUNTRY_INFO!A25)) -> Eswatini | B25: =IF(INTRO!$E$43="Non-endemic"," ", IF(COUNTRY_INFO!B25=0," ",COUNTRY_INFO!B25)) -> LUBOMBO | C25: =IF(INTRO!$E$43="Non-endemic"," ", IF(COUNTRY_INFO!C25=0," ",COUNTRY_INFO!C25)) -> Dvokodvweni | D25: =IF(INTRO!$E$43="Non-endemic", "Not required", COUNTRY_INFO!Y25) -> 0 | E25: =IF(OR(COUNTRY_INFO!R25="Unknown",COUNTRY_INFO!R25="Surveillance",COUNTRY_INFO!R25="Not required",COUNTRY_INFO!R25=0),0,IF($D25<>0, COUNTRY_INFO!R25,0)) -> 0 | F25: =IF(OR(COUNTRY_INFO!S25="Unknown",COUNTRY_INFO!S25="Surveillance",COUNTRY_INFO!S25="Not required",COUNTRY_INFO!S25=0),0,IF($D25<>0, COUNTRY_INFO!S25,0)) -> 0 | G25: =IF(OR(COUNTRY_INFO!T25="Unknown",COUNTRY_INFO!T25="Surveillance",COUNTRY_INFO!T25="Not required",COUNTRY_INFO!T25=0),0,IF($D25<>0, COUNTRY_INFO!T25,0)) -> 0 | H25: 0 | N25: =IF($I25<>"Yes",$F25*2,($F25+ROUND(J25*$F25/SUM(COUNTRY_INFO!$E25:$G25),0))*2) -> 0 | O25: =IF($I25<>"Yes",$G25*3,($G25+ROUND(J25*$G25/SUM(COUNTRY_INFO!$E25:$G25),0))*3) -> 0 | P25: 0 | R25: 0
A26: =IF(INTRO!$E$43="Non-endemic"," ", IF(COUNTRY_INFO!A26=0," ",COUNTRY_INFO!A26)) -> Eswatini | B26: =IF(INTRO!$E$43="Non-endemic"," ", IF(COUNTRY_INFO!B26=0," ",COUNTRY_INFO!B26)) -> LUBOMBO | C26: =IF(INTRO!$E$43="Non-endemic"," ", IF(COUNTRY_INFO!C26=0," ",COUNTRY_INFO!C26)) -> Gigal | D26: =IF(INTRO!$E$43="Non-endemic", "Not required", COUNTRY_INFO!Y26) -> 1 | E26: =IF(OR(COUNTRY_INFO!R26="Unknown",COUNTRY_INFO!R26="Surveillance",COUNTRY_INFO!R26="Not required",COUNTRY_INFO!R26=0),0,IF($D26<>0, COUNTRY_INFO!R26,0)) -> 841 | F26: =IF(OR(COUNTRY_INFO!S26="Unknown",COUNTRY_INFO!S26="Surveillance",COUNTRY_INFO!S26="Not required",COUNTRY_INFO!S26=0),0,IF($D26<>0, COUNTRY_INFO!S26,0)) -> 2778 | G26: =IF(OR(COUNTRY_INFO!T26="Unknown",COUNTRY_INFO!T26="Surveillance",COUNTRY_INFO!T26="Not required",COUNTRY_INFO!T26=0),0,IF($D26<>0, COUNTRY_INFO!T26,0)) -> 7753 | H26: 11372 | N26: =IF($I26<>"Yes",$F26*2,($F26+ROUND(J26*$F26/SUM(COUNTRY_INFO!$E26:$G26),0))*2) -> 5556 | O26: =IF($I26<>"Yes",$G26*3,($G26+ROUND(J26*$G26/SUM(COUNTRY_INFO!$E26:$G26),0))*3) -> 23259 | P26: 28815 | R26: 28815
A27: =IF(INTRO!$E$43="Non-endemic"," ", IF(COUNTRY_INFO!A27=0," ",COUNTRY_INFO!A27)) -> Eswatini | B27: =IF(INTRO!$E$43="Non-endemic"," ", IF(COUNTRY_INFO!B27=0," ",COUNTRY_INFO!B27)) -> LUBOMBO | C27: =IF(INTRO!$E$43="Non-endemic"," ", IF(COUNTRY_INFO!C27=0," ",COUNTRY_INFO!C27)) -> Lomahasha | D27: =IF(INTRO!$E$43="Non-endemic", "Not required", COUNTRY_INFO!Y27) -> 1 | E27: =IF(OR(COUNTRY_INFO!R27="Unknown",COUNTRY_INFO!R27="Surveillance",COUNTRY_INFO!R27="Not required",COUNTRY_INFO!R27=0),0,IF($D27<>0, COUNTRY_INFO!R27,0)) -> 1651 | F27: =IF(OR(COUNTRY_INFO!S27="Unknown",COUNTRY_INFO!S27="Surveillance",COUNTRY_INFO!S27="Not required",COUNTRY_INFO!S27=0),0,IF($D27<>0, COUNTRY_INFO!S27,0)) -> 5457 | G27: =IF(OR(COUNTRY_INFO!T27="Unknown",COUNTRY_INFO!T27="Surveillance",COUNTRY_INFO!T27="Not required",COUNTRY_INFO!T27=0),0,IF($D27<>0, COUNTRY_INFO!T27,0)) -> 15230 | H27: 22338 | N27: =IF($I27<>"Yes",$F27*2,($F27+ROUND(J27*$F27/SUM(COUNTRY_INFO!$E27:$G27),0))*2) -> 10914 | O27: =IF($I27<>"Yes",$G27*3,($G27+ROUND(J27*$G27/SUM(COUNTRY_INFO!$E27:$G27),0))*3) -> 45690 | P27: 56604 | R27: 56604
A28: =IF(INTRO!$E$43="Non-endemic"," ", IF(COUNTRY_INFO!A28=0," ",COUNTRY_INFO!A28)) -> Eswatini | B28: =IF(INTRO!$E$43="Non-endemic"," ", IF(COUNTRY_INFO!B28=0," ",COUNTRY_INFO!B28)) -> LUBOMBO | C28: =IF(INTRO!$E$43="Non-endemic"," ", IF(COUNTRY_INFO!C28=0," ",COUNTRY_INFO!C28)) -> Lubuli | D28: =IF(INTRO!$E$43="Non-endemic", "Not required", COUNTRY_INFO!Y28) -> 0 | E28: =IF(OR(COUNTRY_INFO!R28="Unknown",COUNTRY_INFO!R28="Surveillance",COUNTRY_INFO!R28="Not required",COUNTRY_INFO!R28=0),0,IF($D28<>0, COUNTRY_INFO!R28,0)) -> 0 | F28: =IF(OR(COUNTRY_INFO!S28="Unknown",COUNTRY_INFO!S28="Surveillance",COUNTRY_INFO!S28="Not required",COUNTRY_INFO!S28=0),0,IF($D28<>0, COUNTRY_INFO!S28,0)) -> 0 | G28: =IF(OR(COUNTRY_INFO!T28="Unknown",COUNTRY_INFO!T28="Surveillance",COUNTRY_INFO!T28="Not required",COUNTRY_INFO!T28=0),0,IF($D28<>0, COUNTRY_INFO!T28,0)) -> 0 | H28: 0 | N28: =IF($I28<>"Yes",$F28*2,($F28+ROUND(J28*$F28/SUM(COUNTRY_INFO!$E28:$G28),0))*2) -> 0 | O28: =IF($I28<>"Yes",$G28*3,($G28+ROUND(J28*$G28/SUM(COUNTRY_INFO!$E28:$G28),0))*3) -> 0 | P28: 0 | R28: 0
A29: =IF(INTRO!$E$43="Non-endemic"," ", IF(COUNTRY_INFO!A29=0," ",COUNTRY_INFO!A29)) -> Eswatini | B29: =IF(INTRO!$E$43="Non-endemic"," ", IF(COUNTRY_INFO!B29=0," ",COUNTRY_INFO!B29)) -> LUBOMBO | C29: =IF(INTRO!$E$43="Non-endemic"," ", IF(COUNTRY_INFO!C29=0," ",COUNTRY_INFO!C29)) -> Lugongolweni | D29: =IF(INTRO!$E$43="Non-endemic", "Not required", COUNTRY_INFO!Y29) -> 1 | E29: =IF(OR(COUNTRY_INFO!R29="Unknown",COUNTRY_INFO!R29="Surveillance",COUNTRY_INFO!R29="Not required",COUNTRY_INFO!R29=0),0,IF($D29<>0, COUNTRY_INFO!R29,0)) -> 2042 | F29: =IF(OR(COUNTRY_INFO!S29="Unknown",COUNTRY_INFO!S29="Surveillance",COUNTRY_INFO!S29="Not required",COUNTRY_INFO!S29=0),0,IF($D29<>0, COUNTRY_INFO!S29,0)) -> 6747 | G29: =IF(OR(COUNTRY_INFO!T29="Unknown",COUNTRY_INFO!T29="Surveillance",COUNTRY_INFO!T29="Not required",COUNTRY_INFO!T29=0),0,IF($D29<>0, COUNTRY_INFO!T29,0)) -> 18830 | H29: 27619 | N29: =IF($I29<>"Yes",$F29*2,($F29+ROUND(J29*$F29/SUM(COUNTRY_INFO!$E29:$G29),0))*2) -> 13494 | O29: =IF($I29<>"Yes",$G29*3,($G29+ROUND(J29*$G29/SUM(COUNTRY_INFO!$E29:$G29),0))*3) -> 56490 | P29: 69984 | R29: 69984
A30: =IF(INTRO!$E$43="Non-endemic"," ", IF(COUNTRY_INFO!A30=0," ",COUNTRY_INFO!A30)) -> Eswatini | B30: =IF(INTRO!$E$43="Non-endemic"," ", IF(COUNTRY_INFO!B30=0," ",COUNTRY_INFO!B30)) -> LUBOMBO | C30: =IF(INTRO!$E$43="Non-endemic"," ", IF(COUNTRY_INFO!C30=0," ",COUNTRY_INFO!C30)) -> Matsanjeni North | D30: =IF(INTRO!$E$43="Non-endemic", "Not required", COUNTRY_INFO!Y30) -> 1 | E30: =IF(OR(COUNTRY_INFO!R30="Unknown",COUNTRY_INFO!R30="Surveillance",COUNTRY_INFO!R30="Not required",COUNTRY_INFO!R30=0),0,IF($D30<>0, COUNTRY_INFO!R30,0)) -> 1158 | F30: =IF(OR(COUNTRY_INFO!S30="Unknown",COUNTRY_INFO!S30="Surveillance",COUNTRY_INFO!S30="Not required",COUNTRY_INFO!S30=0),0,IF($D30<>0, COUNTRY_INFO!S30,0)) -> 3829 | G30: =IF(OR(COUNTRY_INFO!T30="Unknown",COUNTRY_INFO!T30="Surveillance",COUNTRY_INFO!T30="Not required",COUNTRY_INFO!T30=0),0,IF($D30<>0, COUNTRY_INFO!T30,0)) -> 10685 | H30: 15672 | N30: =IF($I30<>"Yes",$F30*2,($F30+ROUND(J30*$F30/SUM(COUNTRY_INFO!$E30:$G30),0))*2) -> 7658 | O30: =IF($I30<>"Yes",$G30*3,($G30+ROUND(J30*$G30/SUM(COUNTRY_INFO!$E30:$G30),0))*3) -> 32055 | P30: 39713 | R30: 39713
A31: =IF(INTRO!$E$43="Non-endemic"," ", IF(COUNTRY_INFO!A31=0," ",COUNTRY_INFO!A31)) -> Eswatini | B31: =IF(INTRO!$E$43="Non-endemic"," ", IF(COUNTRY_INFO!B31=0," ",COUNTRY_INFO!B31)) -> LUBOMBO | C31: =IF(INTRO!$E$43="Non-endemic"," ", IF(COUNTRY_INFO!C31=0," ",COUNTRY_INFO!C31)) -> Mhlume | D31: =IF(INTRO!$E$43="Non-endemic", "Not required", COUNTRY_INFO!Y31) -> 1 | E31: =IF(OR(COUNTRY_INFO!R31="Unknown",COUNTRY_INFO!R31="Surveillance",COUNTRY_INFO!R31="Not required",COUNTRY_INFO!R31=0),0,IF($D31<>0, COUNTRY_INFO!R31,0)) -> 1230 | F31: =IF(OR(COUNTRY_INFO!S31="Unknown",COUNTRY_INFO!S31="Surveillance",COUNTRY_INFO!S31="Not required",COUNTRY_INFO!S31=0),0,IF($D31<>0, COUNTRY_INFO!S31,0)) -> 4066 | G31: =IF(OR(COUNTRY_INFO!T31="Unknown",COUNTRY_INFO!T31="Surveillance",COUNTRY_INFO!T31="Not required",COUNTRY_INFO!T31=0),0,IF($D31<>0, COUNTRY_INFO!T31,0)) -> 11347 | H31: 16643 | N31: =IF($I31<>"Yes",$F31*2,($F31+ROUND(J31*$F31/SUM(COUNTRY_INFO!$E31:$G31),0))*2) -> 8132 | O31: =IF($I31<>"Yes",$G31*3,($G31+ROUND(J31*$G31/SUM(COUNTRY_INFO!$E31:$G31),0))*3) -> 34041 | P31: 42173 | R31: 42173
A32: =IF(INTRO!$E$43="Non-endemic"," ", IF(COUNTRY_INFO!A32=0," ",COUNTRY_INFO!A32)) -> Eswatini | B32: =IF(INTRO!$E$43="Non-endemic"," ", IF(COUNTRY_INFO!B32=0," ",COUNTRY_INFO!B32)) -> LUBOMBO | C32: =IF(INTRO!$E$43="Non-endemic"," ", IF(COUNTRY_INFO!C32=0," ",COUNTRY_INFO!C32)) -> Mpolonjeni | D32: =IF(INTRO!$E$43="Non-endemic", "Not required", COUNTRY_INFO!Y32) -> 1 | E32: =IF(OR(COUNTRY_INFO!R32="Unknown",COUNTRY_INFO!R32="Surveillance",COUNTRY_INFO!R32="Not required",COUNTRY_INFO!R32=0),0,IF($D32<>0, COUNTRY_INFO!R32,0)) -> 1049 | F32: =IF(OR(COUNTRY_INFO!S32="Unknown",COUNTRY_INFO!S32="Surveillance",COUNTRY_INFO!S32="Not required",COUNTRY_INFO!S32=0),0,IF($D32<>0, COUNTRY_INFO!S32,0)) -> 3469 | G32: =IF(OR(COUNTRY_INFO!T32="Unknown",COUNTRY_INFO!T32="Surveillance",COUNTRY_INFO!T32="Not required",COUNTRY_INFO!T32=0),0,IF($D32<>0, COUNTRY_INFO!T32,0)) -> 9681 | H32: 14199 | N32: =IF($I32<>"Yes",$F32*2,($F32+ROUND(J32*$F32/SUM(COUNTRY_INFO!$E32:$G32),0))*2) -> 6938 | O32: =IF($I32<>"Yes",$G32*3,($G32+ROUND(J32*$G32/SUM(COUNTRY_INFO!$E32:$G32),0))*3) -> 29043 | P32: 35981 | R32: 35981
A33: =IF(INTRO!$E$43="Non-endemic"," ", IF(COUNTRY_INFO!A33=0," ",COUNTRY_INFO!A33)) -> Eswatini | B33: =IF(INTRO!$E$43="Non-endemic"," ", IF(COUNTRY_INFO!B33=0," ",COUNTRY_INFO!B33)) -> LUBOMBO | C33: =IF(INTRO!$E$43="Non-endemic"," ", IF(COUNTRY_INFO!C33=0," ",COUNTRY_INFO!C33)) -> Nkilongo | D33: =IF(INTRO!$E$43="Non-endemic", "Not required", COUNTRY_INFO!Y33) -> 1 | E33: =IF(OR(COUNTRY_INFO!R33="Unknown",COUNTRY_INFO!R33="Surveillance",COUNTRY_INFO!R33="Not required",COUNTRY_INFO!R33=0),0,IF($D33<>0, COUNTRY_INFO!R33,0)) -> 1100 | F33: =IF(OR(COUNTRY_INFO!S33="Unknown",COUNTRY_INFO!S33="Surveillance",COUNTRY_INFO!S33="Not required",COUNTRY_INFO!S33=0),0,IF($D33<>0, COUNTRY_INFO!S33,0)) -> 3636 | G33: =IF(OR(COUNTRY_INFO!T33="Unknown",COUNTRY_INFO!T33="Surveillance",COUNTRY_INFO!T33="Not required",COUNTRY_INFO!T33=0),0,IF($D33<>0, COUNTRY_INFO!T33,0)) -> 10148 | H33: 14884 | N33: =IF($I33<>"Yes",$F33*2,($F33+ROUND(J33*$F33/SUM(COUNTRY_INFO!$E33:$G33),0))*2) -> 7272 | O33: =IF($I33<>"Yes",$G33*3,($G33+ROUND(J33*$G33/SUM(COUNTRY_INFO!$E33:$G33),0))*3) -> 30444 | P33: 37716 | R33: 37716
A34: =IF(INTRO!$E$43="Non-endemic"," ", IF(COUNTRY_INFO!A34=0," ",COUNTRY_INFO!A34)) -> Eswatini | B34: =IF(INTRO!$E$43="Non-endemic"," ", IF(COUNTRY_INFO!B34=0," ",COUNTRY_INFO!B34)) -> LUBOMBO | C34: =IF(INTRO!$E$43="Non-endemic"," ", IF(COUNTRY_INFO!C34=0," ",COUNTRY_INFO!C34)) -> Siphofaneni | D34: =IF(INTRO!$E$43="Non-endemic", "Not required", COUNTRY_INFO!Y34) -> 1 | E34: =IF(OR(COUNTRY_INFO!R34="Unknown",COUNTRY_INFO!R34="Surveillance",COUNTRY_INFO!R34="Not required",COUNTRY_INFO!R34=0),0,IF($D34<>0, COUNTRY_INFO!R34,0)) -> 2425 | F34: =IF(OR(COUNTRY_INFO!S34="Unknown",COUNTRY_INFO!S34="Surveillance",COUNTRY_INFO!S34="Not required",COUNTRY_INFO!S34=0),0,IF($D34<>0, COUNTRY_INFO!S34,0)) -> 8014 | G34: =IF(OR(COUNTRY_INFO!T34="Unknown",COUNTRY_INFO!T34="Surveillance",COUNTRY_INFO!T34="Not required",COUNTRY_INFO!T34=0),0,IF($D34<>0, COUNTRY_INFO!T34,0)) -> 22367 | H34: 32806 | N34: =IF($I34<>"Yes",$F34*2,($F34+ROUND(J34*$F34/SUM(COUNTRY_INFO!$E34:$G34),0))*2) -> 16028 | O34: =IF($I34<>"Yes",$G34*3,($G34+ROUND(J34*$G34/SUM(COUNTRY_INFO!$E34:$G34),0))*3) -> 67101 | P34: 83129 | R34: 83129
A35: =IF(INTRO!$E$43="Non-endemic"," ", IF(COUNTRY_INFO!A35=0," ",COUNTRY_INFO!A35)) -> Eswatini | B35: =IF(INTRO!$E$43="Non-endemic"," ", IF(COUNTRY_INFO!B35=0," ",COUNTRY_INFO!B35)) -> LUBOMBO | C35: =IF(INTRO!$E$43="Non-endemic"," ", IF(COUNTRY_INFO!C35=0," ",COUNTRY_INFO!C35)) -> Sithobela | D35: =IF(INTRO!$E$43="Non-endemic", "Not required", COUNTRY_INFO!Y35) -> 1 | E35: =IF(OR(COUNTRY_INFO!R35="Unknown",COUNTRY_INFO!R35="Surveillance",COUNTRY_INFO!R35="Not required",COUNTRY_INFO!R35=0),0,IF($D35<>0, COUNTRY_INFO!R35,0)) -> 2092 | F35: =IF(OR(COUNTRY_INFO!S35="Unknown",COUNTRY_INFO!S35="Surveillance",COUNTRY_INFO!S35="Not required",COUNTRY_INFO!S35=0),0,IF($D35<>0, COUNTRY_INFO!S35,0)) -> 6916 | G35: =IF(OR(COUNTRY_INFO!T35="Unknown",COUNTRY_INFO!T35="Surveillance",COUNTRY_INFO!T35="Not required",COUNTRY_INFO!T35=0),0,IF($D35<>0, COUNTRY_INFO!T35,0)) -> 19300 | H35: 28308 | N35: =IF($I35<>"Yes",$F35*2,($F35+ROUND(J35*$F35/SUM(COUNTRY_INFO!$E35:$G35),0))*2) -> 13832 | O35: =IF($I35<>"Yes",$G35*3,($G35+ROUND(J35*$G35/SUM(COUNTRY_INFO!$E35:$G35),0))*3) -> 57900 | P35: 71732 | R35: 71732
A36: =IF(INTRO!$E$43="Non-endemic"," ", IF(COUNTRY_INFO!A36=0," ",COUNTRY_INFO!A36)) -> Eswatini | B36: =IF(INTRO!$E$43="Non-endemic"," ", IF(COUNTRY_INFO!B36=0," ",COUNTRY_INFO!B36)) -> MANZINI | C36: =IF(INTRO!$E$43="Non-endemic"," ", IF(COUNTRY_INFO!C36=0," ",COUNTRY_INFO!C36)) -> Kukhanyeni | D36: =IF(INTRO!$E$43="Non-endemic", "Not required", COUNTRY_INFO!Y36) -> 1 | E36: =IF(OR(COUNTRY_INFO!R36="Unknown",COUNTRY_INFO!R36="Surveillance",COUNTRY_INFO!R36="Not required",COUNTRY_INFO!R36=0),0,IF($D36<>0, COUNTRY_INFO!R36,0)) -> 1425 | F36: =IF(OR(COUNTRY_INFO!S36="Unknown",COUNTRY_INFO!S36="Surveillance",COUNTRY_INFO!S36="Not required",COUNTRY_INFO!S36=0),0,IF($D36<>0, COUNTRY_INFO!S36,0)) -> 4711 | G36: =IF(OR(COUNTRY_INFO!T36="Unknown",COUNTRY_INFO!T36="Surveillance",COUNTRY_INFO!T36="Not required",COUNTRY_INFO!T36=0),0,IF($D36<>0, COUNTRY_INFO!T36,0)) -> 13149 | H36: 19285 | N36: =IF($I36<>"Yes",$F36*2,($F36+ROUND(J36*$F36/SUM(COUNTRY_INFO!$E36:$G36),0))*2) -> 9422 | O36: =IF($I36<>"Yes",$G36*3,($G36+ROUND(J36*$G36/SUM(COUNTRY_INFO!$E36:$G36),0))*3) -> 39447 | P36: 48869 | R36: 48869
A37: =IF(INTRO!$E$43="Non-endemic"," ", IF(COUNTRY_INFO!A37=0," ",COUNTRY_INFO!A37)) -> Eswatini | B37: =IF(INTRO!$E$43="Non-endemic"," ", IF(COUNTRY_INFO!B37=0," ",COUNTRY_INFO!B37)) -> MANZINI | C37: =IF(INTRO!$E$43="Non-endemic"," ", IF(COUNTRY_INFO!C37=0," ",COUNTRY_INFO!C37)) -> Kwaluseni | D37: =IF(INTRO!$E$43="Non-endemic", "Not required", COUNTRY_INFO!Y37) -> 0 | E37: =IF(OR(COUNTRY_INFO!R37="Unknown",COUNTRY_INFO!R37="Surveillance",COUNTRY_INFO!R37="Not required",COUNTRY_INFO!R37=0),0,IF($D37<>0, COUNTRY_INFO!R37,0)) -> 0 | F37: =IF(OR(COUNTRY_INFO!S37="Unknown",COUNTRY_INFO!S37="Surveillance",COUNTRY_INFO!S37="Not required",COUNTRY_INFO!S37=0),0,IF($D37<>0, COUNTRY_INFO!S37,0)) -> 0 | G37: =IF(OR(COUNTRY_INFO!T37="Unknown",COUNTRY_INFO!T37="Surveillance",COUNTRY_INFO!T37="Not required",COUNTRY_INFO!T37=0),0,IF($D37<>0, COUNTRY_INFO!T37,0)) -> 0 | H37: 0 | N37: =IF($I37<>"Yes",$F37*2,($F37+ROUND(J37*$F37/SUM(COUNTRY_INFO!$E37:$G37),0))*2) -> 0 | O37: =IF($I37<>"Yes",$G37*3,($G37+ROUND(J37*$G37/SUM(COUNTRY_INFO!$E37:$G37),0))*3) -> 0 | P37: 0 | R37: 0
A38: =IF(INTRO!$E$43="Non-endemic"," ", IF(COUNTRY_INFO!A38=0," ",COUNTRY_INFO!A38)) -> Eswatini | B38: =IF(INTRO!$E$43="Non-endemic"," ", IF(COUNTRY_INFO!B38=0," ",COUNTRY_INFO!B38)) -> MANZINI | C38: =IF(INTRO!$E$43="Non-endemic"," ", IF(COUNTRY_INFO!C38=0," ",COUNTRY_INFO!C38)) -> LaMgabhi | D38: =IF(INTRO!$E$43="Non-endemic", "Not required", COUNTRY_INFO!Y38) -> 1 | E38: =IF(OR(COUNTRY_INFO!R38="Unknown",COUNTRY_INFO!R38="Surveillance",COUNTRY_INFO!R38="Not required",COUNTRY_INFO!R38=0),0,IF($D38<>0, COUNTRY_INFO!R38,0)) -> 848 | F38: =IF(OR(COUNTRY_INFO!S38="Unknown",COUNTRY_INFO!S38="Surveillance",COUNTRY_INFO!S38="Not required",COUNTRY_INFO!S38=0),0,IF($D38<>0, COUNTRY_INFO!S38,0)) -> 2802 | G38: =IF(OR(COUNTRY_INFO!T38="Unknown",COUNTRY_INFO!T38="Surveillance",COUNTRY_INFO!T38="Not required",COUNTRY_INFO!T38=0),0,IF($D38<>0, COUNTRY_INFO!T38,0)) -> 7819 | H38: 11469 | N38: =IF($I38<>"Yes",$F38*2,($F38+ROUND(J38*$F38/SUM(COUNTRY_INFO!$E38:$G38),0))*2) -> 5604 | O38: =IF($I38<>"Yes",$G38*3,($G38+ROUND(J38*$G38/SUM(COUNTRY_INFO!$E38:$G38),0))*3) -> 23457 | P38: 29061 | R38: 29061
A39: =IF(INTRO!$E$43="Non-endemic"," ", IF(COUNTRY_INFO!A39=0," ",COUNTRY_INFO!A39)) -> Eswatini | B39: =IF(INTRO!$E$43="Non-endemic"," ", IF(COUNTRY_INFO!B39=0," ",COUNTRY_INFO!B39)) -> MANZINI | C39: =IF(INTRO!$E$43="Non-endemic"," ", IF(COUNTRY_INFO!C39=0," ",COUNTRY_INFO!C39)) -> Lobamba Lomdzala | D39: =IF(INTRO!$E$43="Non-endemic", "Not required", COUNTRY_INFO!Y39) -> 1 | E39: =IF(OR(COUNTRY_INFO!R39="Unknown",COUNTRY_INFO!R39="Surveillance",COUNTRY_INFO!R39="Not required",COUNTRY_INFO!R39=0),0,IF($D39<>0, COUNTRY_INFO!R39,0)) -> 1627 | F39: =IF(OR(COUNTRY_INFO!S39="Unknown",COUNTRY_INFO!S39="Surveillance",COUNTRY_INFO!S39="Not required",COUNTRY_INFO!S39=0),0,IF($D39<>0, COUNTRY_INFO!S39,0)) -> 5378 | G39: =IF(OR(COUNTRY_INFO!T39="Unknown",COUNTRY_INFO!T39="Surveillance",COUNTRY_INFO!T39="Not required",COUNTRY_INFO!T39=0),0,IF($D39<>0, COUNTRY_INFO!T39,0)) -> 15009 | H39: 22014 | N39: =IF($I39<>"Yes",$F39*2,($F39+ROUND(J39*$F39/SUM(COUNTRY_INFO!$E39:$G39),0))*2) -> 10756 | O39: =IF($I39<>"Yes",$G39*3,($G39+ROUND(J39*$G39/SUM(COUNTRY_INFO!$E39:$G39),0))*3) -> 45027 | P39: 55783 | R39: 55783
A40: =IF(INTRO!$E$43="Non-endemic"," ", IF(COUNTRY_INFO!A40=0," ",COUNTRY_INFO!A40)) -> Eswatini | B40: =IF(INTRO!$E$43="Non-endemic"," ", IF(COUNTRY_INFO!B40=0," ",COUNTRY_INFO!B40)) -> MANZINI | C40: =IF(INTRO!$E$43="Non-endemic"," ", IF(COUNTRY_INFO!C40=0," ",COUNTRY_INFO!C40)) -> Ludzeludze | D40: =IF(INTRO!$E$43="Non-endemic", "Not required", COUNTRY_INFO!Y40) -> 1 | E40: =IF(OR(COUNTRY_INFO!R40="Unknown",COUNTRY_INFO!R40="Surveillance",COUNTRY_INFO!R40="Not required",COUNTRY_INFO!R40=0),0,IF($D40<>0, COUNTRY_INFO!R40,0)) -> 1726 | F40: =IF(OR(COUNTRY_INFO!S40="Unknown",COUNTRY_INFO!S40="Surveillance",COUNTRY_INFO!S40="Not required",COUNTRY_INFO!S40=0),0,IF($D40<>0, COUNTRY_INFO!S40,0)) -> 5704 | G40: =IF(OR(COUNTRY_INFO!T40="Unknown",COUNTRY_INFO!T40="Surveillance",COUNTRY_INFO!T40="Not required",COUNTRY_INFO!T40=0),0,IF($D40<>0, COUNTRY_INFO!T40,0)) -> 15918 | H40: 23348 | N40: =IF($I40<>"Yes",$F40*2,($F40+ROUND(J40*$F40/SUM(COUNTRY_INFO!$E40:$G40),0))*2) -> 11408 | O40: =IF($I40<>"Yes",$G40*3,($G40+ROUND(J40*$G40/SUM(COUNTRY_INFO!$E40:$G40),0))*3) -> 47754 | P40: 59162 | R40: 59162
A41: =IF(INTRO!$E$43="Non-endemic"," ", IF(COUNTRY_INFO!A41=0," ",COUNTRY_INFO!A41)) -> Eswatini | B41: =IF(INTRO!$E$43="Non-endemic"," ", IF(COUNTRY_INFO!B41=0," ",COUNTRY_INFO!B41)) -> MANZINI | C41: =IF(INTRO!$E$43="Non-endemic"," ", IF(COUNTRY_INFO!C41=0," ",COUNTRY_INFO!C41)) -> Mafutseni | D41: =IF(INTRO!$E$43="Non-endemic", "Not required", COUNTRY_INFO!Y41) -> 1 | E41: =IF(OR(COUNTRY_INFO!R41="Unknown",COUNTRY_INFO!R41="Surveillance",COUNTRY_INFO!R41="Not required",COUNTRY_INFO!R41=0),0,IF($D41<>0, COUNTRY_INFO!R41,0)) -> 1646 | F41: =IF(OR(COUNTRY_INFO!S41="Unknown",COUNTRY_INFO!S41="Surveillance",COUNTRY_INFO!S41="Not required",COUNTRY_INFO!S41=0),0,IF($D41<>0, COUNTRY_INFO!S41,0)) -> 5442 | G41: =IF(OR(COUNTRY_INFO!T41="Unknown",COUNTRY_INFO!T41="Surveillance",COUNTRY_INFO!T41="Not required",COUNTRY_INFO!T41=0),0,IF($D41<>0, COUNTRY_INFO!T41,0)) -> 15187 | H41: 22275 | N41: =IF($I41<>"Yes",$F41*2,($F41+ROUND(J41*$F41/SUM(COUNTRY_INFO!$E41:$G41),0))*2) -> 10884 | O41: =IF($I41<>"Yes",$G41*3,($G41+ROUND(J41*$G41/SUM(COUNTRY_INFO!$E41:$G41),0))*3) -> 45561 | P41: 56445 | R41: 56445
A42: =IF(INTRO!$E$43="Non-endemic"," ", IF(COUNTRY_INFO!A42=0," ",COUNTRY_INFO!A42)) -> Eswatini | B42: =IF(INTRO!$E$43="Non-endemic"," ", IF(COUNTRY_INFO!B42=0," ",COUNTRY_INFO!B42)) -> MANZINI | C42: =IF(INTRO!$E$43="Non-endemic"," ", IF(COUNTRY_INFO!C42=0," ",COUNTRY_INFO!C42)) -> Mahlangatsha | D42: =IF(INTRO!$E$43="Non-endemic", "Not required", COUNTRY_INFO!Y42) -> 1 | E42: =IF(OR(COUNTRY_INFO!R42="Unknown",COUNTRY_INFO!R42="Surveillance",COUNTRY_INFO!R42="Not required",COUNTRY_INFO!R42=0),0,IF($D42<>0, COUNTRY_INFO!R42,0)) -> 1332 | F42: =IF(OR(COUNTRY_INFO!S42="Unknown",COUNTRY_INFO!S42="Surveillance",COUNTRY_INFO!S42="Not required",COUNTRY_INFO!S42=0),0,IF($D42<>0, COUNTRY_INFO!S42,0)) -> 4403 | G42: =IF(OR(COUNTRY_INFO!T42="Unknown",COUNTRY_INFO!T42="Surveillance",COUNTRY_INFO!T42="Not required",COUNTRY_INFO!T42=0),0,IF($D42<>0, COUNTRY_INFO!T42,0)) -> 12287 | H42: 18022 | N42: =IF($I42<>"Yes",$F42*2,($F42+ROUND(J42*$F42/SUM(COUNTRY_INFO!$E42:$G42),0))*2) -> 8806 | O42: =IF($I42<>"Yes",$G42*3,($G42+ROUND(J42*$G42/SUM(COUNTRY_INFO!$E42:$G42),0))*3) -> 36861 | P42: 45667 | R42: 45667
